Workbook

Sheet Start
G2: Risk Dashboard Interactive Tool
G3: =+'Reference Dates'!$C$4 -> Q12021 Data
E4: Please enable macros to ensure the correct functioning of the tool
O5: List showing in Dropdown menu | P5: RI number | Q5: RI Code | R5: Name for tables - change if needs to be different from dropdown names | T5: Tables name for dropdown
O6: Tier 1 capital ratio | P6: 1 | Q6: SVC_1 | R6: Tier 1 capital ratio | T6: Assets
B7: Choose a Risk Indicator: | E7: RI Number (*) | G7: RI Code | O7: Total capital ratio | P7: 2 | Q7: SVC_2 | R7: Total capital ratio | T7: Loans Composition
B8: Tier 1 capital ratio | E8: =IFERROR(VLOOKUP(B8,$O$6:$Q$26,2,0),"") -> 1 | G8: =IFERROR(VLOOKUP(B8,$O$6:$Q$26,3,0),"") -> SVC_1 | O8: CET1 ratio | P8: 3 | Q8: SVC_3 | R8: CET1 ratio | T8: Loans NPL and coverage ratio
O9: CET1 ratio (fully loaded) | P9: 4 | Q9: SVC_29 | R9: CET1 ratio (fully loaded) | T9: NACE composition
B10: Choose a set of Tables from the statistical Annex: | O10: Leverage ratio | P10: 5 | Q10: SVC_13 | R10: Leverage ratio (transitional definition of Tier 1) | T10: NPL ratio by NACE
B11: Assets | I11: =IFERROR((LEFT($B$11,FIND(" ",$B$11)-1)),$B$11) -> Assets | O11: Leverage ratio (fully phased-in definition of Tier 1) | P11: 6 | Q11: SVC_12 | R11: Leverage ratio (fully phased-in definition of Tier 1) | T11: RE and Construction Exposures
O12: Ratio of non-performing loans and advances (NPL ratio) | P12: 7 | Q12: AQT_3.2 | R12: Ratio of non-performing loans and advances (NPL ratio) | T12: IFRS9
O13: Coverage ratio of non-performing loans and advances | P13: 8 | Q13: AQT_41.2 | R13: Coverage ratio of non-performing loans and advances | T13: Sovereigns
O14: Forbearance ratio for loans and advances | P14: 9 | Q14: AQT_42.2 | R14: Forbearance ratio for loans and advances | T14: Liabilities
B15: (*) In order of appearance in the Risk Dashboard | O15: Ratio of non-performing exposures (NPE ratio) | P15: 10 | Q15: AQT_3.1 | R15: Ratio of non-performing exposures (NPE ratio) | T15: Own funds and RWA
O16: Return on equity | P16: 11 | Q16: PFT_21 | R16: Return on equity | T16: Profitability
O17: Return on assets | P17: 12 | Q17: PFT_24 | R17: Return on assets | T17: Moratoria
O18: Cost to income ratio | P18: 13 | Q18: PFT_23 | R18: Cost to income ratio | T18: Public guarantee schemes
O19: Net interest income to total net operating income | P19: 14 | Q19: PFT_25 | R19: Net interest income to total net operating income
O20: Net fee and commission income to total net operating income | P20: 15 | Q20: PFT_26 | R20: Net fee and commission income to total net operating income
O21: Net trading income to total net operating income | P21: 16 | Q21: PFT_29 | R21: Net trading income to total net operating income
O22: Net interest margin | P22: 17 | Q22: PFT_41 | R22: Net interest margin
O23: Cost of Risk | P23: 18 | Q23: PFT_43 | R23: Cost of Risk
O24: Loan-to-deposit ratio for households and non-financial corporations | P24: 19 | Q24: FND_32 | R24: Loan-to-deposit ratio for households and non-financial corporations
O25: Asset encumbrance ratio | P25: 20 | Q25: FND_33 | R25: Asset encumbrance ratio
O26: Liquidity coverage ratio (%) | P26: 21 | Q26: LIQ_17 | R26: Liquidity coverage ratio (%)

Sheet Sheet2 (hidden)

Sheet Charts
B2: =$AR$21 -> Solvency
B3: =AM21&" - "&$AO$20 -> 1 - Tier 1 capital ratio
B4: Due to the automation of this file, charts axis are not scaled as in the booklet version. User may need to manually adjust it.
B5: Dispersion | J5: Numerator and denominator: trends
B7: 5th and 95th pct, interquartile range and median. From Q1 2020 onwards, EU aggregates no longer include figures for UK banks and they include data for subsidiaries of UK banks in EU countries. | J7: =IF(AK21="PFT_43","Total numerator and denominator. 2018Q1=100.","Total numerator and denominator. "& IF(NOT(ISNA($AS$25)), YEAR($AM$25), IF(NOT(ISNA($AS$26)), YEAR($AM$26), IF(NOT(ISNA($AS$27)), YEAR($AM$27), IF(NOT(ISNA($AS$28)), YEAR($AM$28), IF(NOT(ISNA(#REF!)), YEAR($AM$29),IF(NOT(ISNA($AS$30)), YEAR($AM$30),IF(NOT(ISNA($AS$31)), YEAR($AM$31),IF(NOT(ISNA($AS$32)), YEAR($AM$32),IF(NOT(ISNA($AS$33)), YEAR($AM$33),IF(NOT(ISNA($AS$34)), YEAR($AM$34),IF(NOT(ISNA($AS$35)), YEAR($AM$35),YEAR($AM$36)))))))))))) &"Q"& IF(NOT(ISNA($AS$25)),ROUNDUP(MONTH($AM$25)/3,0), IF(NOT(ISNA($AS$26)),ROUNDUP(MONTH($AM$26)/3,0), IF(NOT(ISNA($AS$27)), ROUNDUP(MONTH($AM$27)/3,0), IF(NOT(ISNA($AS$28)), ROUNDUP(MONTH($AM$28)/3,0),NOT(ISNA($AS$29)))))) &" = 100.") -> Total numerator and denominator. 2018Q2 = 100.
B9: ="Country dispersion (as of "& YEAR(MAX(AM25:AM45))&" Q"&(ROUNDUP((MONTH(MAX(AM25:AM45))/3),0))&")" -> Country dispersion (as of 2021 Q1) | J9: KRI by size class
B11: ( * ) Not reported. Weighted Averages by country. From Q1 2020 onwards, EU aggregates no longer include figures for UK banks and they include data for subsidiaries of UK banks in EU countries. | J11: ="Weighted average. Banks are classified in the size class according to the their average total assets between 2014Q4 and "&YEAR(MAX(AM25:AM45))&"Q"&(ROUNDUP(MONTH(MAX(AM25:AM45))/3,0))&IF(AN48="Y",". Non-FINREP banks are assigned to the bucket of small banks.",". ") -> Weighted average. Banks are classified in the size class according to the their average total assets between 2014Q4 and 2021Q1.
B14: Period | E14: Weighted average | H14: 25th percentile | K14: 50th percentile | N14: 75th percentile
C16: =AM25 -> 2018-06-01 | F16: =IF(AND(YEAR(C16)<2018,$AK$21="PFT_43"),"",IFERROR(VLOOKUP($C16,$AM$25:$BB$42,8,FALSE), "")) -> 0.1602768672 | I16: =IF(AND(YEAR(C16)<2018,$AK$21="PFT_43"),"",IFERROR(VLOOKUP($C16,$AM$25:$BB$42,5,FALSE), "")) -> 0.1406711908 | L16: =IF(AND(YEAR(C16)<2018,$AK$21="PFT_43"),"",IFERROR(VLOOKUP($C16,$AM$25:$BB$42,6,FALSE), "")) -> 0.1671943404 | O16: =IF(AND(YEAR(C16)<2018,$AK$21="PFT_43"),"",IFERROR(VLOOKUP($C16,$AM$25:$BB$42,9,FALSE), "")) -> 0.2168852002
C17: =AM26 -> 2018-09-01 | F17: =IF(AND(YEAR(C17)<2018,$AK$21="PFT_43"),"",IFERROR(VLOOKUP($C17,$AM$25:$BB$42,8,FALSE), "")) -> 0.1628481677 | I17: =IF(AND(YEAR(C17)<2018,$AK$21="PFT_43"),"",IFERROR(VLOOKUP($C17,$AM$25:$BB$42,5,FALSE), "")) -> 0.1388371555 | L17: =IF(AND(YEAR(C17)<2018,$AK$21="PFT_43"),"",IFERROR(VLOOKUP($C17,$AM$25:$BB$42,6,FALSE), "")) -> 0.1691677188 | O17: =IF(AND(YEAR(C17)<2018,$AK$21="PFT_43"),"",IFERROR(VLOOKUP($C17,$AM$25:$BB$42,9,FALSE), "")) -> 0.2175033887
C18: =AM27 -> 2018-12-01 | F18: 0.1631737569 | I18: 0.1440516175 | L18: 0.1666461429 | O18: 0.2031647335
C19: =AM28 -> 2019-03-01 | F19: 0.1613771813 | I19: 0.1450424878 | L19: 0.1659485756 | O19: 0.2001838872
C20: 2019-06-01 | F20: 0.1617222784 | I20: 0.1464257216 | L20: 0.165238908 | O20: 0.1975077077 | AN20: dashboard name | AO20: =VLOOKUP($AM$21*1,List!$A$3:$M$23,8,FALSE) -> Tier 1 capital ratio
C21: 2019-09-01 | F21: 0.1613677389 | I21: 0.147537046 | L21: 0.1638160644 | O21: 0.1945912543 | AK21: =VLOOKUP($AM$21*1,List!$A$3:$F$23,6,0) -> SVC_1 | AM21: =Start!E8 -> 1 | AN21: =VLOOKUP($AM$21*1,List!$A$3:$F$23,4,0) -> 1 | AO21: =VLOOKUP($AM$21*1,List!$A$3:$E$23,5,0) -> Tier 1 capital ratio | AP21: =VLOOKUP($AM$21*1,List!$A$3:$K$23,11,FALSE) -> 0 | AR21: =VLOOKUP($AM$21*1,List!$A$3:$M$23,13,FALSE) -> Solvency
C22: 2019-12-01 | F22: 0.1678534559 | I22: 0.152002714 | L22: 0.1717275433 | O22: 0.2041354545 | AT22: WA
C23: 2020-03-01 | F23: =IF(AND(YEAR(C23)<2018,$AK$21="PFT_43"),"",IFERROR(VLOOKUP($C23,$AM$25:$BB$42,8,FALSE), "")) -> 0.1581940147 | I23: 0.1427134004 | L23: 0.162881694 | O23: 0.1989703886 | AP23: 5 | AQ23: 6 | AR23: 7 | AS23: 8 | AT23: 9 | AU23: 10 | AV23: 11 | AW23: 14 | AX23: 15 | AY23: Dispersion chart | BD23: 12 | BE23: 13 | BJ23: 16
C24: 2020-06-01 | F24: 0.1630562935 | I24: 0.1479937941 | L24: 0.1696146986 | O24: 0.2011049692 | AL24: =+'Reference Dates'!$C$6 -> 2021-03-31 | AP24: 5^ pct | AQ24: First quartile | AR24: Median | AS24: Average | AT24: All banks | AU24: Third quartile | AV24: 95^ pct | AW24: Small | AX24: Medium | AY24: Q1 | AZ24: Q1 Neg | BA24: Q2 | BB24: Q3 | BC24: 5pct | BD24: 95 pct | BE24: Numeratir | BF24: Denominator | BG24: =VLOOKUP($AN$21,List!$D:$L,6,0) -> Tier 1 capital | BH24: =VLOOKUP($AN$21,List!$D:$L,7,0) -> Total risk exposure amount | BI24: Quarter | BJ24: Large
C25: 2020-09-01 | F25: 0.1672985796 | I25: 0.1529035899 | L25: 0.173303983 | O25: 0.2052266468 | AK25: 1 | AL25: =(+AN25)*1 -> 201806 | AM25: =+'Reference Dates'!$C$7 -> 2018-06-01 | AN25: =+IF(MONTH(AM25)=12,YEAR(AM25)&MONTH(AM25),YEAR(AM25)&0&MONTH(AM25)) -> 201806 | AO25: =CONCATENATE($AO$21,AN25) -> Tier 1 capital ratio201806 | AP25: =VLOOKUP($AO25,Data!$A$1:$P$688,Charts!AP$23,FALSE) -> 0.1192798065 | AQ25: =VLOOKUP($AO25,Data!$A$1:$P$688,Charts!AQ$23,FALSE) -> 0.1406711908 | AR25: =VLOOKUP($AO25,Data!$A$1:$P$688,Charts!AR$23,FALSE) -> 0.1671943404 | AS25: =VLOOKUP($AO25,Data!$A$1:$P$688,Charts!AS$23,FALSE) -> 0.213544679 | AT25: =VLOOKUP($AO25,Data!$A$1:$P$688,Charts!AT$23,FALSE) -> 0.1602768672 | AU25: =VLOOKUP($AO25,Data!$A$1:$P$688,Charts!AU$23,FALSE) -> 0.2168852002 | AV25: =VLOOKUP($AO25,Data!$A$1:$P$688,Charts!AV$23,FALSE) -> 0.4475551975 | AW25: =VLOOKUP($AO25,Data!$A$1:$P$688,Charts!AW$23,FALSE) -> 0.1669100409 | AX25: =VLOOKUP($AO25,Data!$A$1:$P$688,Charts!AX$23,FALSE) -> 0.1672930363 | AY25: =IF(AQ25<0,0,AQ25) -> 0.1406711908 | AZ25: =IF(AQ25<0,AQ25,0) -> 0 | BA25: =AR25-AY25 -> 0.02652314957 | BB25: =AU25-AR25 -> 0.0496908598 | BC25: =AQ25-AP25 -> 0.02139138435 | BD25: =AV25-AU25 -> 0.2306699974 | BE25: =VLOOKUP($AO25,Data!$A$1:$P$688,BD$23,FALSE) -> 1.172097019e+12 | BF25: =VLOOKUP($AO25,Data!$A$1:$P$688,BE$23,FALSE) -> 7.583977798e+12 | BG25: =IFERROR(IF($AP$21=0,BE25/BE$25*100,(100*(BE25*12/$BI25)/BE$25)),IFERROR(IF($AP$21=0, BE25/BE$26*100, 100*(BE25*12/$BI25)/BE$26), IFERROR(IF($AP$21=0, BE25/BE$27*100, 100*(BE25*12/$BI25)/BE$27),IFERROR(IF($AP$21=0, BE25/BE$28*100, 100*(BE25*12/$BI25)/BE$28), IFERROR(IF($AP$21=0, BE25/BE$29*100, 100*(BE25*12/$BI25)/BE$29),IFERROR(IF($AP$21=0, BE25/BE$30*100, 100*(BE25*12/$BI25)/#REF!),IFERROR(IF($AP$21=0, BE25/BE$31*100, 100*(BE25*12/$BI25)/BE$31),IFERROR(IF($AP$21=0, BE25/BE$31*100, 100*(BE25*12/$BI25)/BE$31),IFERROR(IF($AP$21=0, BE25/BE$32*100, 100*(BE25*12/$BI25)/BE$32),IFERROR(IF($AP$21=0, BE25/BE$33*100, 100*(BE25*12/$BI25)/BE$33),IF($AP$21=0, BE25/BE$34*100, 100*(BE25*12/$BI25)/BE$34))))))))))) -> 100 | BH25: =IFERROR(IF($AP$21=0,BF25/BF$25*100,(100*(BF25*12/$BI25)/BF$25)),IFERROR(IF($AP$21=0, BF25/BF$26*100, 100*(BF25*12/$BI25)/BF$26), IFERROR(IF($AP$21=0, BF25/BF$27*100, 100*(BF25*12/$BI25)/BF$27),IFERROR(IF($AP$21=0, BF25/BF$28*100, 100*(BF25*12/$BI25)/BF$28), IFERROR(IF($AP$21=0, BF25/BF$29*100, 100*(BF25*12/$BI25)/BF$29),IFERROR(IF($AP$21=0, BF25/BF$30*100, 100*(BF25*12/$BI25)/#REF!),IFERROR(IF($AP$21=0, BF25/BF$31*100, 100*(BF25*12/$BI25)/BF$31),IFERROR(IF($AP$21=0, BF25/BF$31*100, 100*(BF25*12/$BI25)/BF$31),IFERROR(IF($AP$21=0, BF25/BF$32*100, 100*(BF25*12/$BI25)/BF$32),IFERROR(IF($AP$21=0, BF25/BF$33*100, 100*(BF25*12/$BI25)/BF$33),IF($AP$21=0, BF25/BF$34*100, 100*(BF25*12/$BI25)/BF$34))))))))))) -> 100 | BI25: =MONTH(AM25) -> 6 | BJ25: =VLOOKUP($AO25,Data!$A$1:$P$688,Charts!BJ$23,FALSE) -> 0.158146717
C26: =AM35 -> 2020-12-01 | F26: 0.1719918669 | I26: 0.1583604907 | L26: 0.1809886869 | O26: 0.212919732 | AL26: 201809 | AM26: =IF(AM25<$AL$24,+DATE(YEAR(AM25),MONTH(AM25)+3,DAY(AM25)),"") -> 2018-09-01 | AN26: =+IF(MONTH(AM26)=12,YEAR(AM26)&MONTH(AM26),YEAR(AM26)&0&MONTH(AM26)) -> 201809 | AO26: Tier 1 capital ratio201809 | AP26: =VLOOKUP($AO26,Data!$A$1:$P$688,Charts!AP$23,FALSE) -> 0.1189777367 | AQ26: =VLOOKUP($AO26,Data!$A$1:$P$688,Charts!AQ$23,FALSE) -> 0.1388371555 | AR26: =VLOOKUP($AO26,Data!$A$1:$P$688,Charts!AR$23,FALSE) -> 0.1691677188 | AS26: =VLOOKUP($AO26,Data!$A$1:$P$688,Charts!AS$23,FALSE) -> 0.2175951185 | AT26: =VLOOKUP($AO26,Data!$A$1:$P$688,Charts!AT$23,FALSE) -> 0.1628481677 | AU26: =VLOOKUP($AO26,Data!$A$1:$P$688,Charts!AU$23,FALSE) -> 0.2175033887 | AV26: =VLOOKUP($AO26,Data!$A$1:$P$688,Charts!AV$23,FALSE) -> 0.4475878207 | AW26: =VLOOKUP($AO26,Data!$A$1:$P$688,Charts!AW$23,FALSE) -> 0.1754297271 | AX26: =VLOOKUP($AO26,Data!$A$1:$P$688,Charts!AX$23,FALSE) -> 0.1682058333 | AY26: =IF(AQ26<0,0,AQ26) -> 0.1388371555 | AZ26: =IF(AQ26<0,AQ26,0) -> 0 | BA26: =AR26-AY26 -> 0.03033056326 | BB26: =AU26-AR26 -> 0.04833566989 | BC26: =AQ26-AP26 -> 0.01985941877 | BD26: =AV26-AU26 -> 0.230084432 | BE26: =VLOOKUP($AO26,Data!$A$1:$P$688,BD$23,FALSE) -> 1.173302614e+12 | BF26: =VLOOKUP($AO26,Data!$A$1:$P$688,BE$23,FALSE) -> 7.54372247e+12 | BG26: =IFERROR(IF($AP$21=0,BE26/BE$25*100,(100*(BE26*12/$BI26)/BE$25)),IFERROR(IF($AP$21=0, BE26/BE$26*100, 100*(BE26*12/$BI26)/BE$26), IFERROR(IF($AP$21=0, BE26/BE$27*100, 100*(BE26*12/$BI26)/BE$27),IFERROR(IF($AP$21=0, BE26/BE$28*100, 100*(BE26*12/$BI26)/BE$28), IFERROR(IF($AP$21=0, BE26/BE$29*100, 100*(BE26*12/$BI26)/BE$29),IFERROR(IF($AP$21=0, BE26/BE$30*100, 100*(BE26*12/$BI26)/#REF!),IFERROR(IF($AP$21=0, BE26/BE$31*100, 100*(BE26*12/$BI26)/BE$31),IFERROR(IF($AP$21=0, BE26/BE$31*100, 100*(BE26*12/$BI26)/BE$31),IFERROR(IF($AP$21=0, BE26/BE$32*100, 100*(BE26*12/$BI26)/BE$32),IFERROR(IF($AP$21=0, BE26/BE$33*100, 100*(BE26*12/$BI26)/BE$33),IF($AP$21=0, BE26/BE$34*100, 100*(BE26*12/$BI26)/BE$34))))))))))) -> 100.102858 | BH26: =IFERROR(IF($AP$21=0,BF26/BF$25*100,(100*(BF26*12/$BI26)/BF$25)),IFERROR(IF($AP$21=0, BF26/BF$26*100, 100*(BF26*12/$BI26)/BF$26), IFERROR(IF($AP$21=0, BF26/BF$27*100, 100*(BF26*12/$BI26)/BF$27),IFERROR(IF($AP$21=0, BF26/BF$28*100, 100*(BF26*12/$BI26)/BF$28), IFERROR(IF($AP$21=0, BF26/BF$29*100, 100*(BF26*12/$BI26)/BF$29),IFERROR(IF($AP$21=0, BF26/BF$30*100, 100*(BF26*12/$BI26)/#REF!),IFERROR(IF($AP$21=0, BF26/BF$31*100, 100*(BF26*12/$BI26)/BF$31),IFERROR(IF($AP$21=0, BF26/BF$31*100, 100*(BF26*12/$BI26)/BF$31),IFERROR(IF($AP$21=0, BF26/BF$32*100, 100*(BF26*12/$BI26)/BF$32),IFERROR(IF($AP$21=0, BF26/BF$33*100, 100*(BF26*12/$BI26)/BF$33),IF($AP$21=0, BF26/BF$34*100, 100*(BF26*12/$BI26)/BF$34))))))))))) -> 99.46920562 | BI26: 9 | BJ26: =VLOOKUP($AO26,Data!$A$1:$P$688,Charts!BJ$23,FALSE) -> 0.160331347
C27: =AM36 -> 2021-03-01 | F27: 0.1711488198 | I27: 0.156679587 | L27: 0.181267051 | O27: 0.2115167044 | AL27: 201812 | AM27: =IF(AM26<$AL$24,+DATE(YEAR(AM26),MONTH(AM26)+3,DAY(AM26)),"") -> 2018-12-01 | AN27: 201812 | AO27: Tier 1 capital ratio201812 | AP27: =VLOOKUP($AO27,Data!$A$1:$P$688,Charts!AP$23,FALSE) -> 0.1217731642 | AQ27: =VLOOKUP($AO27,Data!$A$1:$P$688,Charts!AQ$23,FALSE) -> 0.1440516175 | AR27: =VLOOKUP($AO27,Data!$A$1:$P$688,Charts!AR$23,FALSE) -> 0.1666461429 | AS27: =VLOOKUP($AO27,Data!$A$1:$P$688,Charts!AS$23,FALSE) -> 0.2199849837 | AT27: =VLOOKUP($AO27,Data!$A$1:$P$688,Charts!AT$23,FALSE) -> 0.1631737569 | AU27: =VLOOKUP($AO27,Data!$A$1:$P$688,Charts!AU$23,FALSE) -> 0.2031647335 | AV27: =VLOOKUP($AO27,Data!$A$1:$P$688,Charts!AV$23,FALSE) -> 0.4912670896 | AW27: =VLOOKUP($AO27,Data!$A$1:$P$688,Charts!AW$23,FALSE) -> 0.1853924008 | AX27: =VLOOKUP($AO27,Data!$A$1:$P$688,Charts!AX$23,FALSE) -> 0.1702022842 | AY27: 0.1440516175 | AZ27: 0 | BA27: 0.02259452544 | BB27: 0.03651859059 | BC27: 0.02227845322 | BD27: 0.2881023561 | BE27: =VLOOKUP($AO27,Data!$A$1:$P$688,BD$23,FALSE) -> 1.192829432e+12 | BF27: =VLOOKUP($AO27,Data!$A$1:$P$688,BE$23,FALSE) -> 7.662716108e+12 | BG27: =IFERROR(IF($AP$21=0,BE27/BE$25*100,(100*(BE27*12/$BI27)/BE$25)),IFERROR(IF($AP$21=0, BE27/BE$26*100, 100*(BE27*12/$BI27)/BE$26), IFERROR(IF($AP$21=0, BE27/BE$27*100, 100*(BE27*12/$BI27)/BE$27),IFERROR(IF($AP$21=0, BE27/BE$28*100, 100*(BE27*12/$BI27)/BE$28), IFERROR(IF($AP$21=0, BE27/BE$29*100, 100*(BE27*12/$BI27)/BE$29),IFERROR(IF($AP$21=0, BE27/BE$30*100, 100*(BE27*12/$BI27)/#REF!),IFERROR(IF($AP$21=0, BE27/BE$31*100, 100*(BE27*12/$BI27)/BE$31),IFERROR(IF($AP$21=0, BE27/BE$31*100, 100*(BE27*12/$BI27)/BE$31),IFERROR(IF($AP$21=0, BE27/BE$32*100, 100*(BE27*12/$BI27)/BE$32),IFERROR(IF($AP$21=0, BE27/BE$33*100, 100*(BE27*12/$BI27)/BE$33),IF($AP$21=0, BE27/BE$34*100, 100*(BE27*12/$BI27)/BE$34))))))))))) -> 101.7688308 | BH27: =IFERROR(IF($AP$21=0,BF27/BF$25*100,(100*(BF27*12/$BI27)/BF$25)),IFERROR(IF($AP$21=0, BF27/BF$26*100, 100*(BF27*12/$BI27)/BF$26), IFERROR(IF($AP$21=0, BF27/BF$27*100, 100*(BF27*12/$BI27)/BF$27),IFERROR(IF($AP$21=0, BF27/BF$28*100, 100*(BF27*12/$BI27)/BF$28), IFERROR(IF($AP$21=0, BF27/BF$29*100, 100*(BF27*12/$BI27)/BF$29),IFERROR(IF($AP$21=0, BF27/BF$30*100, 100*(BF27*12/$BI27)/#REF!),IFERROR(IF($AP$21=0, BF27/BF$31*100, 100*(BF27*12/$BI27)/BF$31),IFERROR(IF($AP$21=0, BF27/BF$31*100, 100*(BF27*12/$BI27)/BF$31),IFERROR(IF($AP$21=0, BF27/BF$32*100, 100*(BF27*12/$BI27)/BF$32),IFERROR(IF($AP$21=0, BF27/BF$33*100, 100*(BF27*12/$BI27)/BF$33),IF($AP$21=0, BF27/BF$34*100, 100*(BF27*12/$BI27)/BF$34))))))))))) -> 101.0382191 | BI27: 12 | BJ27: =VLOOKUP($AO27,Data!$A$1:$P$688,Charts!BJ$23,FALSE) -> 0.1593725993
B28: =IF($AK$21="PFT_43","Data for Cost of Risk are shown here as a positive value, even though they are commonly expenses.","") ->  | AL28: 201903 | AM28: 2019-03-01 | AN28: 201903 | AO28: Tier 1 capital ratio201903 | AP28: =VLOOKUP($AO28,Data!$A$1:$P$688,Charts!AP$23,FALSE) -> 0.1258831946 | AQ28: =VLOOKUP($AO28,Data!$A$1:$P$688,Charts!AQ$23,FALSE) -> 0.1450424878 | AR28: =VLOOKUP($AO28,Data!$A$1:$P$688,Charts!AR$23,FALSE) -> 0.1659485756 | AS28: =VLOOKUP($AO28,Data!$A$1:$P$688,Charts!AS$23,FALSE) -> 0.2025804793 | AT28: =VLOOKUP($AO28,Data!$A$1:$P$688,Charts!AT$23,FALSE) -> 0.1613771813 | AU28: =VLOOKUP($AO28,Data!$A$1:$P$688,Charts!AU$23,FALSE) -> 0.2001838872 | AV28: =VLOOKUP($AO28,Data!$A$1:$P$688,Charts!AV$23,FALSE) -> 0.3818776056 | AW28: =VLOOKUP($AO28,Data!$A$1:$P$688,Charts!AW$23,FALSE) -> 0.1808655688 | AX28: =VLOOKUP($AO28,Data!$A$1:$P$688,Charts!AX$23,FALSE) -> 0.1683182124 | AY28: 0.1450424878 | AZ28: 0 | BA28: 0.02090608783 | BB28: 0.03423531163 | BC28: 0.01915929313 | BD28: 0.1816937184 | BE28: =VLOOKUP($AO28,Data!$A$1:$P$688,BD$23,FALSE) -> 1.217557126e+12 | BF28: =VLOOKUP($AO28,Data!$A$1:$P$688,BE$23,FALSE) -> 7.857547765e+12 | BG28: =IFERROR(IF($AP$21=0,BE28/BE$25*100,(100*(BE28*12/$BI28)/BE$25)),IFERROR(IF($AP$21=0, BE28/BE$26*100, 100*(BE28*12/$BI28)/BE$26), IFERROR(IF($AP$21=0, BE28/BE$27*100, 100*(BE28*12/$BI28)/BE$27),IFERROR(IF($AP$21=0, BE28/BE$28*100, 100*(BE28*12/$BI28)/BE$28), IFERROR(IF($AP$21=0, BE28/BE$29*100, 100*(BE28*12/$BI28)/BE$29),IFERROR(IF($AP$21=0, BE28/BE$30*100, 100*(BE28*12/$BI28)/#REF!),IFERROR(IF($AP$21=0, BE28/BE$31*100, 100*(BE28*12/$BI28)/BE$31),IFERROR(IF($AP$21=0, BE28/BE$31*100, 100*(BE28*12/$BI28)/BE$31),IFERROR(IF($AP$21=0, BE28/BE$32*100, 100*(BE28*12/$BI28)/BE$32),IFERROR(IF($AP$21=0, BE28/BE$33*100, 100*(BE28*12/$BI28)/BE$33),IF($AP$21=0, BE28/BE$34*100, 100*(BE28*12/$BI28)/BE$34))))))))))) -> 103.8785276 | BH28: =IFERROR(IF($AP$21=0,BF28/BF$25*100,(100*(BF28*12/$BI28)/BF$25)),IFERROR(IF($AP$21=0, BF28/BF$26*100, 100*(BF28*12/$BI28)/BF$26), IFERROR(IF($AP$21=0, BF28/BF$27*100, 100*(BF28*12/$BI28)/BF$27),IFERROR(IF($AP$21=0, BF28/BF$28*100, 100*(BF28*12/$BI28)/BF$28), IFERROR(IF($AP$21=0, BF28/BF$29*100, 100*(BF28*12/$BI28)/BF$29),IFERROR(IF($AP$21=0, BF28/BF$30*100, 100*(BF28*12/$BI28)/#REF!),IFERROR(IF($AP$21=0, BF28/BF$31*100, 100*(BF28*12/$BI28)/BF$31),IFERROR(IF($AP$21=0, BF28/BF$31*100, 100*(BF28*12/$BI28)/BF$31),IFERROR(IF($AP$21=0, BF28/BF$32*100, 100*(BF28*12/$BI28)/BF$32),IFERROR(IF($AP$21=0, BF28/BF$33*100, 100*(BF28*12/$BI28)/BF$33),IF($AP$21=0, BF28/BF$34*100, 100*(BF28*12/$BI28)/BF$34))))))))))) -> 103.6072095 | BI28: 3 | BJ28: =VLOOKUP($AO28,Data!$A$1:$P$688,Charts!BJ$23,FALSE) -> 0.1575886245
AL29: 201906 | AM29: 2019-06-01 | AN29: 201906 | AO29: Tier 1 capital ratio201906 | AP29: =VLOOKUP($AO29,Data!$A$1:$P$688,Charts!AP$23,FALSE) -> 0.1286853066 | AQ29: =VLOOKUP($AO29,Data!$A$1:$P$688,Charts!AQ$23,FALSE) -> 0.1464257216 | AR29: =VLOOKUP($AO29,Data!$A$1:$P$688,Charts!AR$23,FALSE) -> 0.165238908 | AS29: =VLOOKUP($AO29,Data!$A$1:$P$688,Charts!AS$23,FALSE) -> 0.2029240713 | AT29: =VLOOKUP($AO29,Data!$A$1:$P$688,Charts!AT$23,FALSE) -> 0.1617222784 | AU29: =VLOOKUP($AO29,Data!$A$1:$P$688,Charts!AU$23,FALSE) -> 0.1975077077 | AV29: =VLOOKUP($AO29,Data!$A$1:$P$688,Charts!AV$23,FALSE) -> 0.4361673222 | AW29: =VLOOKUP($AO29,Data!$A$1:$P$688,Charts!AW$23,FALSE) -> 0.1821048056 | AX29: =VLOOKUP($AO29,Data!$A$1:$P$688,Charts!AX$23,FALSE) -> 0.1694256164 | AY29: =IF(AQ29<0,0,AQ29) -> 0.1464257216 | AZ29: =IF(AQ29<0,AQ29,0) -> 0 | BA29: =AR29-AY29 -> 0.01881318643 | BB29: =AU29-AR29 -> 0.03226879974 | BC29: =AQ29-AP29 -> 0.01774041494 | BD29: =AV29-AU29 -> 0.2386596144 | BE29: =VLOOKUP($AO29,Data!$A$1:$P$688,BD$23,FALSE) -> 1.231376808e+12 | BF29: =VLOOKUP($AO29,Data!$A$1:$P$688,BE$23,FALSE) -> 7.898100054e+12 | BG29: =IFERROR(IF($AP$21=0,BE29/BE$25*100,(100*(BE29*12/$BI29)/BE$25)),IFERROR(IF($AP$21=0, BE29/BE$26*100, 100*(BE29*12/$BI29)/BE$26), IFERROR(IF($AP$21=0, BE29/BE$27*100, 100*(BE29*12/$BI29)/BE$27),IFERROR(IF($AP$21=0, BE29/BE$28*100, 100*(BE29*12/$BI29)/BE$28), IFERROR(IF($AP$21=0, BE29/BE$29*100, 100*(BE29*12/$BI29)/BE$29),IFERROR(IF($AP$21=0, BE29/BE$30*100, 100*(BE29*12/$BI29)/#REF!),IFERROR(IF($AP$21=0, BE29/BE$31*100, 100*(BE29*12/$BI29)/BE$31),IFERROR(IF($AP$21=0, BE29/BE$31*100, 100*(BE29*12/$BI29)/BE$31),IFERROR(IF($AP$21=0, BE29/BE$32*100, 100*(BE29*12/$BI29)/BE$32),IFERROR(IF($AP$21=0, BE29/BE$33*100, 100*(BE29*12/$BI29)/BE$33),IF($AP$21=0, BE29/BE$34*100, 100*(BE29*12/$BI29)/BE$34))))))))))) -> 105.0575838 | BH29: =IFERROR(IF($AP$21=0,BF29/BF$25*100,(100*(BF29*12/$BI29)/BF$25)),IFERROR(IF($AP$21=0, BF29/BF$26*100, 100*(BF29*12/$BI29)/BF$26), IFERROR(IF($AP$21=0, BF29/BF$27*100, 100*(BF29*12/$BI29)/BF$27),IFERROR(IF($AP$21=0, BF29/BF$28*100, 100*(BF29*12/$BI29)/BF$28), IFERROR(IF($AP$21=0, BF29/BF$29*100, 100*(BF29*12/$BI29)/BF$29),IFERROR(IF($AP$21=0, BF29/BF$30*100, 100*(BF29*12/$BI29)/#REF!),IFERROR(IF($AP$21=0, BF29/BF$31*100, 100*(BF29*12/$BI29)/BF$31),IFERROR(IF($AP$21=0, BF29/BF$31*100, 100*(BF29*12/$BI29)/BF$31),IFERROR(IF($AP$21=0, BF29/BF$32*100, 100*(BF29*12/$BI29)/BF$32),IFERROR(IF($AP$21=0, BF29/BF$33*100, 100*(BF29*12/$BI29)/BF$33),IF($AP$21=0, BF29/BF$34*100, 100*(BF29*12/$BI29)/BF$34))))))))))) -> 104.1419195 | BI29: 6 | BJ29: =VLOOKUP($AO29,Data!$A$1:$P$688,Charts!BJ$23,FALSE) -> 0.1577377394
AL30: 201909 | AM30: 2019-09-01 | AN30: 201909 | AO30: Tier 1 capital ratio201909 | AP30: =VLOOKUP($AO30,Data!$A$1:$P$688,Charts!AP$23,FALSE) -> 0.1301158391 | AQ30: =VLOOKUP($AO30,Data!$A$1:$P$688,Charts!AQ$23,FALSE) -> 0.147537046 | AR30: =VLOOKUP($AO30,Data!$A$1:$P$688,Charts!AR$23,FALSE) -> 0.1638160644 | AS30: =VLOOKUP($AO30,Data!$A$1:$P$688,Charts!AS$23,FALSE) -> 0.2011495804 | AT30: =VLOOKUP($AO30,Data!$A$1:$P$688,Charts!AT$23,FALSE) -> 0.1613677389 | AU30: =VLOOKUP($AO30,Data!$A$1:$P$688,Charts!AU$23,FALSE) -> 0.1945912543 | AV30: =VLOOKUP($AO30,Data!$A$1:$P$688,Charts!AV$23,FALSE) -> 0.4122195248 | AW30: =VLOOKUP($AO30,Data!$A$1:$P$688,Charts!AW$23,FALSE) -> 0.1790053384 | AX30: =VLOOKUP($AO30,Data!$A$1:$P$688,Charts!AX$23,FALSE) -> 0.168543293 | AY30: 0.147537046 | AZ30: 0 | BA30: 0.0162790184 | BB30: 0.03077518984 | BC30: 0.01742120696 | BD30: 0.2176282706 | BE30: =VLOOKUP($AO30,Data!$A$1:$P$688,BD$23,FALSE) -> 1.245892622e+12 | BF30: =VLOOKUP($AO30,Data!$A$1:$P$688,BE$23,FALSE) -> 7.980962146e+12 | BG30: =IFERROR(IF($AP$21=0,BE30/BE$25*100,(100*(BE30*12/$BI30)/BE$25)),IFERROR(IF($AP$21=0, BE30/BE$26*100, 100*(BE30*12/$BI30)/BE$26), IFERROR(IF($AP$21=0, BE30/BE$27*100, 100*(BE30*12/$BI30)/BE$27),IFERROR(IF($AP$21=0, BE30/BE$28*100, 100*(BE30*12/$BI30)/BE$28), IFERROR(IF($AP$21=0, BE30/BE$29*100, 100*(BE30*12/$BI30)/BE$29),IFERROR(IF($AP$21=0, BE30/BE$30*100, 100*(BE30*12/$BI30)/#REF!),IFERROR(IF($AP$21=0, BE30/BE$31*100, 100*(BE30*12/$BI30)/BE$31),IFERROR(IF($AP$21=0, BE30/BE$31*100, 100*(BE30*12/$BI30)/BE$31),IFERROR(IF($AP$21=0, BE30/BE$32*100, 100*(BE30*12/$BI30)/BE$32),IFERROR(IF($AP$21=0, BE30/BE$33*100, 100*(BE30*12/$BI30)/BE$33),IF($AP$21=0, BE30/BE$34*100, 100*(BE30*12/$BI30)/BE$34))))))))))) -> 106.296032 | BH30: =IFERROR(IF($AP$21=0,BF30/BF$25*100,(100*(BF30*12/$BI30)/BF$25)),IFERROR(IF($AP$21=0, BF30/BF$26*100, 100*(BF30*12/$BI30)/BF$26), IFERROR(IF($AP$21=0, BF30/BF$27*100, 100*(BF30*12/$BI30)/BF$27),IFERROR(IF($AP$21=0, BF30/BF$28*100, 100*(BF30*12/$BI30)/BF$28), IFERROR(IF($AP$21=0, BF30/BF$29*100, 100*(BF30*12/$BI30)/BF$29),IFERROR(IF($AP$21=0, BF30/BF$30*100, 100*(BF30*12/$BI30)/#REF!),IFERROR(IF($AP$21=0, BF30/BF$31*100, 100*(BF30*12/$BI30)/BF$31),IFERROR(IF($AP$21=0, BF30/BF$31*100, 100*(BF30*12/$BI30)/BF$31),IFERROR(IF($AP$21=0, BF30/BF$32*100, 100*(BF30*12/$BI30)/BF$32),IFERROR(IF($AP$21=0, BF30/BF$33*100, 100*(BF30*12/$BI30)/BF$33),IF($AP$21=0, BF30/BF$34*100, 100*(BF30*12/$BI30)/BF$34))))))))))) -> 105.2345136 | BI30: 9 | BJ30: =VLOOKUP($AO30,Data!$A$1:$P$688,Charts!BJ$23,FALSE) -> 0.1577070081
AL31: 201912 | AM31: 2019-12-01 | AN31: 201912 | AO31: =CONCATENATE($AO$21,AN31) -> Tier 1 capital ratio201912 | AP31: =VLOOKUP($AO31,Data!$A$1:$P$688,Charts!AP$23,FALSE) -> 0.132043229 | AQ31: =VLOOKUP($AO31,Data!$A$1:$P$688,Charts!AQ$23,FALSE) -> 0.152002714 | AR31: =VLOOKUP($AO31,Data!$A$1:$P$688,Charts!AR$23,FALSE) -> 0.1717275433 | AS31: =VLOOKUP($AO31,Data!$A$1:$P$688,Charts!AS$23,FALSE) -> 0.2063098402 | AT31: =VLOOKUP($AO31,Data!$A$1:$P$688,Charts!AT$23,FALSE) -> 0.1678534559 | AU31: =VLOOKUP($AO31,Data!$A$1:$P$688,Charts!AU$23,FALSE) -> 0.2041354545 | AV31: =VLOOKUP($AO31,Data!$A$1:$P$688,Charts!AV$23,FALSE) -> 0.388349476 | AW31: =VLOOKUP($AO31,Data!$A$1:$P$688,Charts!AW$23,FALSE) -> 0.1938528918 | AX31: =VLOOKUP($AO31,Data!$A$1:$P$688,Charts!AX$23,FALSE) -> 0.174033383 | AY31: =IF(AQ31<0,0,AQ31) -> 0.152002714 | AZ31: =IF(AQ31<0,AQ31,0) -> 0 | BA31: =AR31-AY31 -> 0.01972482922 | BB31: =AU31-AR31 -> 0.0324079112 | BC31: =AQ31-AP31 -> 0.01995948503 | BD31: =AV31-AU31 -> 0.1842140215 | BE31: =VLOOKUP($AO31,Data!$A$1:$P$688,BD$23,FALSE) -> 1.282096666e+12 | BF31: =VLOOKUP($AO31,Data!$A$1:$P$688,BE$23,FALSE) -> 7.912146964e+12 | BG31: =IFERROR(IF($AP$21=0,BE31/BE$25*100,(100*(BE31*12/$BI31)/BE$25)),IFERROR(IF($AP$21=0, BE31/BE$26*100, 100*(BE31*12/$BI31)/BE$26), IFERROR(IF($AP$21=0, BE31/BE$27*100, 100*(BE31*12/$BI31)/BE$27),IFERROR(IF($AP$21=0, BE31/BE$28*100, 100*(BE31*12/$BI31)/BE$28), IFERROR(IF($AP$21=0, BE31/BE$29*100, 100*(BE31*12/$BI31)/BE$29),IFERROR(IF($AP$21=0, BE31/BE$30*100, 100*(BE31*12/$BI31)/#REF!),IFERROR(IF($AP$21=0, BE31/BE$31*100, 100*(BE31*12/$BI31)/BE$31),IFERROR(IF($AP$21=0, BE31/BE$31*100, 100*(BE31*12/$BI31)/BE$31),IFERROR(IF($AP$21=0, BE31/BE$32*100, 100*(BE31*12/$BI31)/BE$32),IFERROR(IF($AP$21=0, BE31/BE$33*100, 100*(BE31*12/$BI31)/BE$33),IF($AP$21=0, BE31/BE$34*100, 100*(BE31*12/$BI31)/BE$34))))))))))) -> 109.3848586 | BH31: =IFERROR(IF($AP$21=0,BF31/BF$25*100,(100*(BF31*12/$BI31)/BF$25)),IFERROR(IF($AP$21=0, BF31/BF$26*100, 100*(BF31*12/$BI31)/BF$26), IFERROR(IF($AP$21=0, BF31/BF$27*100, 100*(BF31*12/$BI31)/BF$27),IFERROR(IF($AP$21=0, BF31/BF$28*100, 100*(BF31*12/$BI31)/BF$28), IFERROR(IF($AP$21=0, BF31/BF$29*100, 100*(BF31*12/$BI31)/BF$29),IFERROR(IF($AP$21=0, BF31/BF$30*100, 100*(BF31*12/$BI31)/#REF!),IFERROR(IF($AP$21=0, BF31/BF$31*100, 100*(BF31*12/$BI31)/BF$31),IFERROR(IF($AP$21=0, BF31/BF$31*100, 100*(BF31*12/$BI31)/BF$31),IFERROR(IF($AP$21=0, BF31/BF$32*100, 100*(BF31*12/$BI31)/BF$32),IFERROR(IF($AP$21=0, BF31/BF$33*100, 100*(BF31*12/$BI31)/BF$33),IF($AP$21=0, BF31/BF$34*100, 100*(BF31*12/$BI31)/BF$34))))))))))) -> 104.3271377 | BI31: =MONTH(AM31) -> 12 | BJ31: =VLOOKUP($AO31,Data!$A$1:$P$688,Charts!BJ$23,FALSE) -> 0.1634828973
AL32: 202003 | AM32: =IF(AM31<$AL$24,+DATE(YEAR(AM31),MONTH(AM31)+3,DAY(AM31)),"") -> 2020-03-01 | AN32: 202003 | AO32: Tier 1 capital ratio202003 | AP32: =VLOOKUP($AO32,Data!$A$1:$P$688,Charts!AP$23,FALSE) -> 0.1310134759 | AQ32: =VLOOKUP($AO32,Data!$A$1:$P$688,Charts!AQ$23,FALSE) -> 0.1427134004 | AR32: =VLOOKUP($AO32,Data!$A$1:$P$688,Charts!AR$23,FALSE) -> 0.162881694 | AS32: =VLOOKUP($AO32,Data!$A$1:$P$688,Charts!AS$23,FALSE) -> 0.1985415208 | AT32: =VLOOKUP($AO32,Data!$A$1:$P$688,Charts!AT$23,FALSE) -> 0.1581940147 | AU32: =VLOOKUP($AO32,Data!$A$1:$P$688,Charts!AU$23,FALSE) -> 0.1989703886 | AV32: =VLOOKUP($AO32,Data!$A$1:$P$688,Charts!AV$23,FALSE) -> 0.3691135761 | AW32: =VLOOKUP($AO32,Data!$A$1:$P$688,Charts!AW$23,FALSE) -> 0.2011248002 | AX32: =VLOOKUP($AO32,Data!$A$1:$P$688,Charts!AX$23,FALSE) -> 0.167292084 | AY32: 0.1427134004 | AZ32: 0 | BA32: 0.02016829364 | BB32: 0.03608869459 | BC32: 0.01169992444 | BD32: 0.1701431875 | BE32: =VLOOKUP($AO32,Data!$A$1:$P$688,BD$23,FALSE) -> 1.262917517e+12 | BF32: =VLOOKUP($AO32,Data!$A$1:$P$688,BE$23,FALSE) -> 8.044193945e+12 | BG32: =IFERROR(IF($AP$21=0,BE32/BE$25*100,(100*(BE32*12/$BI32)/BE$25)),IFERROR(IF($AP$21=0, BE32/BE$26*100, 100*(BE32*12/$BI32)/BE$26), IFERROR(IF($AP$21=0, BE32/BE$27*100, 100*(BE32*12/$BI32)/BE$27),IFERROR(IF($AP$21=0, BE32/BE$28*100, 100*(BE32*12/$BI32)/BE$28), IFERROR(IF($AP$21=0, BE32/BE$29*100, 100*(BE32*12/$BI32)/BE$29),IFERROR(IF($AP$21=0, BE32/BE$30*100, 100*(BE32*12/$BI32)/#REF!),IFERROR(IF($AP$21=0, BE32/BE$31*100, 100*(BE32*12/$BI32)/BE$31),IFERROR(IF($AP$21=0, BE32/BE$31*100, 100*(BE32*12/$BI32)/BE$31),IFERROR(IF($AP$21=0, BE32/BE$32*100, 100*(BE32*12/$BI32)/BE$32),IFERROR(IF($AP$21=0, BE32/BE$33*100, 100*(BE32*12/$BI32)/BE$33),IF($AP$21=0, BE32/BE$34*100, 100*(BE32*12/$BI32)/BE$34))))))))))) -> 107.7485478 | BH32: =IFERROR(IF($AP$21=0,BF32/BF$25*100,(100*(BF32*12/$BI32)/BF$25)),IFERROR(IF($AP$21=0, BF32/BF$26*100, 100*(BF32*12/$BI32)/BF$26), IFERROR(IF($AP$21=0, BF32/BF$27*100, 100*(BF32*12/$BI32)/BF$27),IFERROR(IF($AP$21=0, BF32/BF$28*100, 100*(BF32*12/$BI32)/BF$28), IFERROR(IF($AP$21=0, BF32/BF$29*100, 100*(BF32*12/$BI32)/BF$29),IFERROR(IF($AP$21=0, BF32/BF$30*100, 100*(BF32*12/$BI32)/#REF!),IFERROR(IF($AP$21=0, BF32/BF$31*100, 100*(BF32*12/$BI32)/BF$31),IFERROR(IF($AP$21=0, BF32/BF$31*100, 100*(BF32*12/$BI32)/BF$31),IFERROR(IF($AP$21=0, BF32/BF$32*100, 100*(BF32*12/$BI32)/BF$32),IFERROR(IF($AP$21=0, BF32/BF$33*100, 100*(BF32*12/$BI32)/BF$33),IF($AP$21=0, BF32/BF$34*100, 100*(BF32*12/$BI32)/BF$34))))))))))) -> 106.0682686 | BI32: 3 | BJ32: =VLOOKUP($AO32,Data!$A$1:$P$688,Charts!BJ$23,FALSE) -> 0.1542275145
AL33: 202006 | AM33: =IF(AM32<$AL$24,+DATE(YEAR(AM32),MONTH(AM32)+3,DAY(AM32)),"") -> 2020-06-01 | AN33: 202006 | AO33: Tier 1 capital ratio202006 | AP33: =VLOOKUP($AO33,Data!$A$1:$P$688,Charts!AP$23,FALSE) -> 0.1330936645 | AQ33: =VLOOKUP($AO33,Data!$A$1:$P$688,Charts!AQ$23,FALSE) -> 0.1479937941 | AR33: =VLOOKUP($AO33,Data!$A$1:$P$688,Charts!AR$23,FALSE) -> 0.1696146986 | AS33: =VLOOKUP($AO33,Data!$A$1:$P$688,Charts!AS$23,FALSE) -> 0.2065639102 | AT33: =VLOOKUP($AO33,Data!$A$1:$P$688,Charts!AT$23,FALSE) -> 0.1630562935 | AU33: =VLOOKUP($AO33,Data!$A$1:$P$688,Charts!AU$23,FALSE) -> 0.2011049692 | AV33: =VLOOKUP($AO33,Data!$A$1:$P$688,Charts!AV$23,FALSE) -> 0.3597325392 | AW33: =VLOOKUP($AO33,Data!$A$1:$P$688,Charts!AW$23,FALSE) -> 0.2077145219 | AX33: =VLOOKUP($AO33,Data!$A$1:$P$688,Charts!AX$23,FALSE) -> 0.1718578814 | AY33: 0.1479937941 | AZ33: 0 | BA33: 0.02162090451 | BB33: 0.0314902706 | BC33: 0.01490012965 | BD33: 0.1586275699 | BE33: =VLOOKUP($AO33,Data!$A$1:$P$688,BD$23,FALSE) -> 1.293915832e+12 | BF33: =VLOOKUP($AO33,Data!$A$1:$P$688,BE$23,FALSE) -> 8.002364608e+12 | BG33: =IFERROR(IF($AP$21=0,BE33/BE$25*100,(100*(BE33*12/$BI33)/BE$25)),IFERROR(IF($AP$21=0, BE33/BE$26*100, 100*(BE33*12/$BI33)/BE$26), IFERROR(IF($AP$21=0, BE33/BE$27*100, 100*(BE33*12/$BI33)/BE$27),IFERROR(IF($AP$21=0, BE33/BE$28*100, 100*(BE33*12/$BI33)/BE$28), IFERROR(IF($AP$21=0, BE33/BE$29*100, 100*(BE33*12/$BI33)/BE$29),IFERROR(IF($AP$21=0, BE33/BE$30*100, 100*(BE33*12/$BI33)/#REF!),IFERROR(IF($AP$21=0, BE33/BE$31*100, 100*(BE33*12/$BI33)/BE$31),IFERROR(IF($AP$21=0, BE33/BE$31*100, 100*(BE33*12/$BI33)/BE$31),IFERROR(IF($AP$21=0, BE33/BE$32*100, 100*(BE33*12/$BI33)/BE$32),IFERROR(IF($AP$21=0, BE33/BE$33*100, 100*(BE33*12/$BI33)/BE$33),IF($AP$21=0, BE33/BE$34*100, 100*(BE33*12/$BI33)/BE$34))))))))))) -> 110.3932363 | BH33: =IFERROR(IF($AP$21=0,BF33/BF$25*100,(100*(BF33*12/$BI33)/BF$25)),IFERROR(IF($AP$21=0, BF33/BF$26*100, 100*(BF33*12/$BI33)/BF$26), IFERROR(IF($AP$21=0, BF33/BF$27*100, 100*(BF33*12/$BI33)/BF$27),IFERROR(IF($AP$21=0, BF33/BF$28*100, 100*(BF33*12/$BI33)/BF$28), IFERROR(IF($AP$21=0, BF33/BF$29*100, 100*(BF33*12/$BI33)/BF$29),IFERROR(IF($AP$21=0, BF33/BF$30*100, 100*(BF33*12/$BI33)/#REF!),IFERROR(IF($AP$21=0, BF33/BF$31*100, 100*(BF33*12/$BI33)/BF$31),IFERROR(IF($AP$21=0, BF33/BF$31*100, 100*(BF33*12/$BI33)/BF$31),IFERROR(IF($AP$21=0, BF33/BF$32*100, 100*(BF33*12/$BI33)/BF$32),IFERROR(IF($AP$21=0, BF33/BF$33*100, 100*(BF33*12/$BI33)/BF$33),IF($AP$21=0, BF33/BF$34*100, 100*(BF33*12/$BI33)/BF$34))))))))))) -> 105.5167199 | BI33: 6 | BJ33: =VLOOKUP($AO33,Data!$A$1:$P$688,Charts!BJ$23,FALSE) -> 0.1591210479
AL34: 202009 | AM34: 2020-09-01 | AN34: 202009 | AO34: Tier 1 capital ratio202009 | AP34: =VLOOKUP($AO34,Data!$A$1:$P$688,Charts!AP$23,FALSE) -> 0.1338801773 | AQ34: =VLOOKUP($AO34,Data!$A$1:$P$688,Charts!AQ$23,FALSE) -> 0.1529035899 | AR34: =VLOOKUP($AO34,Data!$A$1:$P$688,Charts!AR$23,FALSE) -> 0.173303983 | AS34: =VLOOKUP($AO34,Data!$A$1:$P$688,Charts!AS$23,FALSE) -> 0.2151623488 | AT34: =VLOOKUP($AO34,Data!$A$1:$P$688,Charts!AT$23,FALSE) -> 0.1672985796 | AU34: =VLOOKUP($AO34,Data!$A$1:$P$688,Charts!AU$23,FALSE) -> 0.2052266468 | AV34: =VLOOKUP($AO34,Data!$A$1:$P$688,Charts!AV$23,FALSE) -> 0.4015620238 | AW34: =VLOOKUP($AO34,Data!$A$1:$P$688,Charts!AW$23,FALSE) -> 0.2221802543 | AX34: =VLOOKUP($AO34,Data!$A$1:$P$688,Charts!AX$23,FALSE) -> 0.1758440264 | AY34: 0.1529035899 | AZ34: 0 | BA34: 0.02040039318 | BB34: 0.03192266376 | BC34: 0.01902341254 | BD34: 0.196335377 | BE34: =VLOOKUP($AO34,Data!$A$1:$P$688,BD$23,FALSE) -> 1.304893583e+12 | BF34: =VLOOKUP($AO34,Data!$A$1:$P$688,BE$23,FALSE) -> 7.889986083e+12 | BG34: =IFERROR(IF($AP$21=0,BE34/BE$25*100,(100*(BE34*12/$BI34)/BE$25)),IFERROR(IF($AP$21=0, BE34/BE$26*100, 100*(BE34*12/$BI34)/BE$26), IFERROR(IF($AP$21=0, BE34/BE$27*100, 100*(BE34*12/$BI34)/BE$27),IFERROR(IF($AP$21=0, BE34/BE$28*100, 100*(BE34*12/$BI34)/BE$28), IFERROR(IF($AP$21=0, BE34/BE$29*100, 100*(BE34*12/$BI34)/BE$29),IFERROR(IF($AP$21=0, BE34/BE$30*100, 100*(BE34*12/$BI34)/#REF!),IFERROR(IF($AP$21=0, BE34/BE$31*100, 100*(BE34*12/$BI34)/BE$31),IFERROR(IF($AP$21=0, BE34/BE$31*100, 100*(BE34*12/$BI34)/BE$31),IFERROR(IF($AP$21=0, BE34/BE$32*100, 100*(BE34*12/$BI34)/BE$32),IFERROR(IF($AP$21=0, BE34/BE$33*100, 100*(BE34*12/$BI34)/BE$33),IF($AP$21=0, BE34/BE$34*100, 100*(BE34*12/$BI34)/BE$34))))))))))) -> 111.3298269 | BH34: =IFERROR(IF($AP$21=0,BF34/BF$25*100,(100*(BF34*12/$BI34)/BF$25)),IFERROR(IF($AP$21=0, BF34/BF$26*100, 100*(BF34*12/$BI34)/BF$26), IFERROR(IF($AP$21=0, BF34/BF$27*100, 100*(BF34*12/$BI34)/BF$27),IFERROR(IF($AP$21=0, BF34/BF$28*100, 100*(BF34*12/$BI34)/BF$28), IFERROR(IF($AP$21=0, BF34/BF$29*100, 100*(BF34*12/$BI34)/BF$29),IFERROR(IF($AP$21=0, BF34/BF$30*100, 100*(BF34*12/$BI34)/#REF!),IFERROR(IF($AP$21=0, BF34/BF$31*100, 100*(BF34*12/$BI34)/BF$31),IFERROR(IF($AP$21=0, BF34/BF$31*100, 100*(BF34*12/$BI34)/BF$31),IFERROR(IF($AP$21=0, BF34/BF$32*100, 100*(BF34*12/$BI34)/BF$32),IFERROR(IF($AP$21=0, BF34/BF$33*100, 100*(BF34*12/$BI34)/BF$33),IF($AP$21=0, BF34/BF$34*100, 100*(BF34*12/$BI34)/BF$34))))))))))) -> 104.0349312 | BI34: 9 | BJ34: =VLOOKUP($AO34,Data!$A$1:$P$688,Charts!BJ$23,FALSE) -> 0.1629699545
AL35: 202012 | AM35: 2020-12-01 | AN35: 202012 | AO35: Tier 1 capital ratio202012 | AP35: =VLOOKUP($AO35,Data!$A$1:$P$688,Charts!AP$23,FALSE) -> 0.1378822295 | AQ35: =VLOOKUP($AO35,Data!$A$1:$P$688,Charts!AQ$23,FALSE) -> 0.1583604907 | AR35: =VLOOKUP($AO35,Data!$A$1:$P$688,Charts!AR$23,FALSE) -> 0.1809886869 | AS35: =VLOOKUP($AO35,Data!$A$1:$P$688,Charts!AS$23,FALSE) -> 0.2346510669 | AT35: =VLOOKUP($AO35,Data!$A$1:$P$688,Charts!AT$23,FALSE) -> 0.1719918669 | AU35: =VLOOKUP($AO35,Data!$A$1:$P$688,Charts!AU$23,FALSE) -> 0.212919732 | AV35: =VLOOKUP($AO35,Data!$A$1:$P$688,Charts!AV$23,FALSE) -> 0.3869305403 | AW35: =VLOOKUP($AO35,Data!$A$1:$P$688,Charts!AW$23,FALSE) -> 0.2206895111 | AX35: =VLOOKUP($AO35,Data!$A$1:$P$688,Charts!AX$23,FALSE) -> 0.1817755558 | AY35: 0.1583604907 | AZ35: 0 | BA35: 0.02262819615 | BB35: 0.03193104508 | BC35: 0.0204782612 | BD35: 0.1740108083 | BE35: =VLOOKUP($AO35,Data!$A$1:$P$688,BD$23,FALSE) -> 1.354002201e+12 | BF35: =VLOOKUP($AO35,Data!$A$1:$P$688,BE$23,FALSE) -> 7.952210306e+12 | BG35: =IFERROR(IF($AP$21=0,BE35/BE$25*100,(100*(BE35*12/$BI35)/BE$25)),IFERROR(IF($AP$21=0, BE35/BE$26*100, 100*(BE35*12/$BI35)/BE$26), IFERROR(IF($AP$21=0, BE35/BE$27*100, 100*(BE35*12/$BI35)/BE$27),IFERROR(IF($AP$21=0, BE35/BE$28*100, 100*(BE35*12/$BI35)/BE$28), IFERROR(IF($AP$21=0, BE35/BE$29*100, 100*(BE35*12/$BI35)/BE$29),IFERROR(IF($AP$21=0, BE35/BE$30*100, 100*(BE35*12/$BI35)/#REF!),IFERROR(IF($AP$21=0, BE35/BE$31*100, 100*(BE35*12/$BI35)/BE$31),IFERROR(IF($AP$21=0, BE35/BE$31*100, 100*(BE35*12/$BI35)/BE$31),IFERROR(IF($AP$21=0, BE35/BE$32*100, 100*(BE35*12/$BI35)/BE$32),IFERROR(IF($AP$21=0, BE35/BE$33*100, 100*(BE35*12/$BI35)/BE$33),IF($AP$21=0, BE35/BE$34*100, 100*(BE35*12/$BI35)/BE$34))))))))))) -> 115.5196353 | BH35: =IFERROR(IF($AP$21=0,BF35/BF$25*100,(100*(BF35*12/$BI35)/BF$25)),IFERROR(IF($AP$21=0, BF35/BF$26*100, 100*(BF35*12/$BI35)/BF$26), IFERROR(IF($AP$21=0, BF35/BF$27*100, 100*(BF35*12/$BI35)/BF$27),IFERROR(IF($AP$21=0, BF35/BF$28*100, 100*(BF35*12/$BI35)/BF$28), IFERROR(IF($AP$21=0, BF35/BF$29*100, 100*(BF35*12/$BI35)/BF$29),IFERROR(IF($AP$21=0, BF35/BF$30*100, 100*(BF35*12/$BI35)/#REF!),IFERROR(IF($AP$21=0, BF35/BF$31*100, 100*(BF35*12/$BI35)/BF$31),IFERROR(IF($AP$21=0, BF35/BF$31*100, 100*(BF35*12/$BI35)/BF$31),IFERROR(IF($AP$21=0, BF35/BF$32*100, 100*(BF35*12/$BI35)/BF$32),IFERROR(IF($AP$21=0, BF35/BF$33*100, 100*(BF35*12/$BI35)/BF$33),IF($AP$21=0, BF35/BF$34*100, 100*(BF35*12/$BI35)/BF$34))))))))))) -> 104.8554007 | BI35: 12 | BJ35: =VLOOKUP($AO35,Data!$A$1:$P$688,Charts!BJ$23,FALSE) -> 0.1674452616
AL36: 202103 | AM36: =IF(AM35<$AL$24,+DATE(YEAR(AM35),MONTH(AM35)+3,DAY(AM35)),"") -> 2021-03-01 | AN36: =+IF(MONTH(AM36)=12,YEAR(AM36)&MONTH(AM36),YEAR(AM36)&0&MONTH(AM36)) -> 202103 | AO36: Tier 1 capital ratio202103 | AP36: =VLOOKUP($AO36,Data!$A$1:$P$688,Charts!AP$23,FALSE) -> 0.1374039246 | AQ36: =VLOOKUP($AO36,Data!$A$1:$P$688,Charts!AQ$23,FALSE) -> 0.156679587 | AR36: =VLOOKUP($AO36,Data!$A$1:$P$688,Charts!AR$23,FALSE) -> 0.181267051 | AS36: =VLOOKUP($AO36,Data!$A$1:$P$688,Charts!AS$23,FALSE) -> 0.2316278813 | AT36: =VLOOKUP($AO36,Data!$A$1:$P$688,Charts!AT$23,FALSE) -> 0.1711488198 | AU36: =VLOOKUP($AO36,Data!$A$1:$P$688,Charts!AU$23,FALSE) -> 0.2115167044 | AV36: =VLOOKUP($AO36,Data!$A$1:$P$688,Charts!AV$23,FALSE) -> 0.3839600054 | AW36: =VLOOKUP($AO36,Data!$A$1:$P$688,Charts!AW$23,FALSE) -> 0.2087260858 | AX36: =VLOOKUP($AO36,Data!$A$1:$P$688,Charts!AX$23,FALSE) -> 0.1799575222 | AY36: 0.156679587 | AZ36: 0 | BA36: 0.02458746404 | BB36: 0.03024965336 | BC36: 0.01927566237 | BD36: 0.172443301 | BE36: =VLOOKUP($AO36,Data!$A$1:$P$688,BD$23,FALSE) -> 1.363574761e+12 | BF36: =VLOOKUP($AO36,Data!$A$1:$P$688,BE$23,FALSE) -> 8.07332054e+12 | BG36: =IFERROR(IF($AP$21=0,BE36/BE$25*100,(100*(BE36*12/$BI36)/BE$25)),IFERROR(IF($AP$21=0, BE36/BE$26*100, 100*(BE36*12/$BI36)/BE$26), IFERROR(IF($AP$21=0, BE36/BE$27*100, 100*(BE36*12/$BI36)/BE$27),IFERROR(IF($AP$21=0, BE36/BE$28*100, 100*(BE36*12/$BI36)/BE$28), IFERROR(IF($AP$21=0, BE36/BE$29*100, 100*(BE36*12/$BI36)/BE$29),IFERROR(IF($AP$21=0, BE36/BE$30*100, 100*(BE36*12/$BI36)/#REF!),IFERROR(IF($AP$21=0, BE36/BE$31*100, 100*(BE36*12/$BI36)/BE$31),IFERROR(IF($AP$21=0, BE36/BE$31*100, 100*(BE36*12/$BI36)/BE$31),IFERROR(IF($AP$21=0, BE36/BE$32*100, 100*(BE36*12/$BI36)/BE$32),IFERROR(IF($AP$21=0, BE36/BE$33*100, 100*(BE36*12/$BI36)/BE$33),IF($AP$21=0, BE36/BE$34*100, 100*(BE36*12/$BI36)/BE$34))))))))))) -> 116.336339 | BH36: =IFERROR(IF($AP$21=0,BF36/BF$25*100,(100*(BF36*12/$BI36)/BF$25)),IFERROR(IF($AP$21=0, BF36/BF$26*100, 100*(BF36*12/$BI36)/BF$26), IFERROR(IF($AP$21=0, BF36/BF$27*100, 100*(BF36*12/$BI36)/BF$27),IFERROR(IF($AP$21=0, BF36/BF$28*100, 100*(BF36*12/$BI36)/BF$28), IFERROR(IF($AP$21=0, BF36/BF$29*100, 100*(BF36*12/$BI36)/BF$29),IFERROR(IF($AP$21=0, BF36/BF$30*100, 100*(BF36*12/$BI36)/#REF!),IFERROR(IF($AP$21=0, BF36/BF$31*100, 100*(BF36*12/$BI36)/BF$31),IFERROR(IF($AP$21=0, BF36/BF$31*100, 100*(BF36*12/$BI36)/BF$31),IFERROR(IF($AP$21=0, BF36/BF$32*100, 100*(BF36*12/$BI36)/BF$32),IFERROR(IF($AP$21=0, BF36/BF$33*100, 100*(BF36*12/$BI36)/BF$33),IF($AP$21=0, BF36/BF$34*100, 100*(BF36*12/$BI36)/BF$34))))))))))) -> 106.452323 | BI36: 3 | BJ36: =VLOOKUP($AO36,Data!$A$1:$P$688,Charts!BJ$23,FALSE) -> 0.1670110586
AN48: =VLOOKUP(AM21*1,List!$A$1:$I$100,9,FALSE) -> 9 | AO48: Indicator | AP48: Country | AQ48: Country name | AR48: Value | AS48: EU value
AO49: 2 | AQ49: 5 | AR49: 8
AN50: =MAX($AL$25:$AL$45) -> 202103 | AO50: =CONCATENATE(VLOOKUP($AN$21*1,Data!$W$1:$AB$688,AO$49,FALSE),AP50) -> Tier 1 Capital Ratio1 | AP50: 1 | AQ50: =VLOOKUP($AO50,Data!$U$1:$AC$688,AQ$49,FALSE)&IF(AR50="","*","") -> EE | AR50: =VLOOKUP($AO50,Data!$U$1:$AC$688,AR$49,FALSE) -> 0.2996916245 | AS50: =VLOOKUP($AO$79,Data!$U$1:$AC$688,$AR$49,FALSE) -> 0.1711488198
AN51: =MAX($AL$25:$AL$45) -> 202103 | AO51: =CONCATENATE(VLOOKUP($AN$21*1,Data!$W$1:$AB$688,AO$49,FALSE),AP51) -> Tier 1 Capital Ratio2 | AP51: 2 | AQ51: =VLOOKUP($AO51,Data!$U$1:$AC$688,AQ$49,FALSE)&IF(AR51="","*","") -> LV | AR51: =VLOOKUP($AO51,Data!$U$1:$AC$688,AR$49,FALSE) -> 0.2485557372 | AS51: =VLOOKUP($AO$79,Data!$U$1:$AC$688,$AR$49,FALSE) -> 0.1711488198
AN52: 202103 | AO52: =CONCATENATE(VLOOKUP($AN$21*1,Data!$W$1:$AB$688,AO$49,FALSE),AP52) -> Tier 1 Capital Ratio3 | AP52: 3 | AQ52: =VLOOKUP($AO52,Data!$U$1:$AC$688,AQ$49,FALSE)&IF(AR52="","*","") -> HR | AR52: =VLOOKUP($AO52,Data!$U$1:$AC$688,AR$49,FALSE) -> 0.2456958731 | AS52: =VLOOKUP($AO$79,Data!$U$1:$AC$688,$AR$49,FALSE) -> 0.1711488198
AN53: 202103 | AO53: =CONCATENATE(VLOOKUP($AN$21*1,Data!$W$1:$AB$688,AO$49,FALSE),AP53) -> Tier 1 Capital Ratio4 | AP53: 4 | AQ53: =VLOOKUP($AO53,Data!$U$1:$AC$688,AQ$49,FALSE)&IF(AR53="","*","") -> LT | AR53: =VLOOKUP($AO53,Data!$U$1:$AC$688,AR$49,FALSE) -> 0.2387291836 | AS53: =VLOOKUP($AO$79,Data!$U$1:$AC$688,$AR$49,FALSE) -> 0.1711488198
AN54: 202103 | AO54: =CONCATENATE(VLOOKUP($AN$21*1,Data!$W$1:$AB$688,AO$49,FALSE),AP54) -> Tier 1 Capital Ratio5 | AP54: 5 | AQ54: =VLOOKUP($AO54,Data!$U$1:$AC$688,AQ$49,FALSE)&IF(AR54="","*","") -> CZ | AR54: =VLOOKUP($AO54,Data!$U$1:$AC$688,AR$49,FALSE) -> 0.2375700845 | AS54: =VLOOKUP($AO$79,Data!$U$1:$AC$688,$AR$49,FALSE) -> 0.1711488198
AN55: 202103 | AO55: =CONCATENATE(VLOOKUP($AN$21*1,Data!$W$1:$AB$688,AO$49,FALSE),AP55) -> Tier 1 Capital Ratio6 | AP55: 6 | AQ55: =VLOOKUP($AO55,Data!$U$1:$AC$688,AQ$49,FALSE)&IF(AR55="","*","") -> BG | AR55: =VLOOKUP($AO55,Data!$U$1:$AC$688,AR$49,FALSE) -> 0.2314746286 | AS55: =VLOOKUP($AO$79,Data!$U$1:$AC$688,$AR$49,FALSE) -> 0.1711488198
AN56: 202103 | AO56: =CONCATENATE(VLOOKUP($AN$21*1,Data!$W$1:$AB$688,AO$49,FALSE),AP56) -> Tier 1 Capital Ratio7 | AP56: 7 | AQ56: =VLOOKUP($AO56,Data!$U$1:$AC$688,AQ$49,FALSE)&IF(AR56="","*","") -> RO | AR56: =VLOOKUP($AO56,Data!$U$1:$AC$688,AR$49,FALSE) -> 0.2206112474 | AS56: =VLOOKUP($AO$79,Data!$U$1:$AC$688,$AR$49,FALSE) -> 0.1711488198
AN57: 202103 | AO57: =CONCATENATE(VLOOKUP($AN$21*1,Data!$W$1:$AB$688,AO$49,FALSE),AP57) -> Tier 1 Capital Ratio8 | AP57: 8 | AQ57: =VLOOKUP($AO57,Data!$U$1:$AC$688,AQ$49,FALSE)&IF(AR57="","*","") -> IS | AR57: =VLOOKUP($AO57,Data!$U$1:$AC$688,AR$49,FALSE) -> 0.2195116403 | AS57: =VLOOKUP($AO$79,Data!$U$1:$AC$688,$AR$49,FALSE) -> 0.1711488198
AN58: 202103 | AO58: =CONCATENATE(VLOOKUP($AN$21*1,Data!$W$1:$AB$688,AO$49,FALSE),AP58) -> Tier 1 Capital Ratio9 | AP58: 9 | AQ58: =VLOOKUP($AO58,Data!$U$1:$AC$688,AQ$49,FALSE)&IF(AR58="","*","") -> NO | AR58: =VLOOKUP($AO58,Data!$U$1:$AC$688,AR$49,FALSE) -> 0.2136074076 | AS58: =VLOOKUP($AO$79,Data!$U$1:$AC$688,$AR$49,FALSE) -> 0.1711488198
AN59: 202103 | AO59: =CONCATENATE(VLOOKUP($AN$21*1,Data!$W$1:$AB$688,AO$49,FALSE),AP59) -> Tier 1 Capital Ratio10 | AP59: 10 | AQ59: =VLOOKUP($AO59,Data!$U$1:$AC$688,AQ$49,FALSE)&IF(AR59="","*","") -> SE | AR59: =VLOOKUP($AO59,Data!$U$1:$AC$688,AR$49,FALSE) -> 0.2102183016 | AS59: =VLOOKUP($AO$79,Data!$U$1:$AC$688,$AR$49,FALSE) -> 0.1711488198
AN60: 202103 | AO60: =CONCATENATE(VLOOKUP($AN$21*1,Data!$W$1:$AB$688,AO$49,FALSE),AP60) -> Tier 1 Capital Ratio11 | AP60: 11 | AQ60: =VLOOKUP($AO60,Data!$U$1:$AC$688,AQ$49,FALSE)&IF(AR60="","*","") -> DK | AR60: =VLOOKUP($AO60,Data!$U$1:$AC$688,AR$49,FALSE) -> 0.2043124711 | AS60: =VLOOKUP($AO$79,Data!$U$1:$AC$688,$AR$49,FALSE) -> 0.1711488198
AN61: 202103 | AO61: =CONCATENATE(VLOOKUP($AN$21*1,Data!$W$1:$AB$688,AO$49,FALSE),AP61) -> Tier 1 Capital Ratio12 | AP61: 12 | AQ61: =VLOOKUP($AO61,Data!$U$1:$AC$688,AQ$49,FALSE)&IF(AR61="","*","") -> IE | AR61: =VLOOKUP($AO61,Data!$U$1:$AC$688,AR$49,FALSE) -> 0.2031792691 | AS61: =VLOOKUP($AO$79,Data!$U$1:$AC$688,$AR$49,FALSE) -> 0.1711488198
AN62: 202103 | AO62: =CONCATENATE(VLOOKUP($AN$21*1,Data!$W$1:$AB$688,AO$49,FALSE),AP62) -> Tier 1 Capital Ratio13 | AP62: 13 | AQ62: =VLOOKUP($AO62,Data!$U$1:$AC$688,AQ$49,FALSE)&IF(AR62="","*","") -> LU | AR62: =VLOOKUP($AO62,Data!$U$1:$AC$688,AR$49,FALSE) -> 0.20189854 | AS62: =VLOOKUP($AO$79,Data!$U$1:$AC$688,$AR$49,FALSE) -> 0.1711488198
AN63: 202103 | AO63: =CONCATENATE(VLOOKUP($AN$21*1,Data!$W$1:$AB$688,AO$49,FALSE),AP63) -> Tier 1 Capital Ratio14 | AP63: 14 | AQ63: =VLOOKUP($AO63,Data!$U$1:$AC$688,AQ$49,FALSE)&IF(AR63="","*","") -> FI | AR63: =VLOOKUP($AO63,Data!$U$1:$AC$688,AR$49,FALSE) -> 0.1955385516 | AS63: =VLOOKUP($AO$79,Data!$U$1:$AC$688,$AR$49,FALSE) -> 0.1711488198
AN64: 202103 | AO64: =CONCATENATE(VLOOKUP($AN$21*1,Data!$W$1:$AB$688,AO$49,FALSE),AP64) -> Tier 1 Capital Ratio15 | AP64: 15 | AQ64: =VLOOKUP($AO64,Data!$U$1:$AC$688,AQ$49,FALSE)&IF(AR64="","*","") -> BE | AR64: =VLOOKUP($AO64,Data!$U$1:$AC$688,AR$49,FALSE) -> 0.1915987885 | AS64: =VLOOKUP($AO$79,Data!$U$1:$AC$688,$AR$49,FALSE) -> 0.1711488198
AN65: 202103 | AO65: =CONCATENATE(VLOOKUP($AN$21*1,Data!$W$1:$AB$688,AO$49,FALSE),AP65) -> Tier 1 Capital Ratio16 | AP65: 16 | AQ65: =VLOOKUP($AO65,Data!$U$1:$AC$688,AQ$49,FALSE)&IF(AR65="","*","") -> NL | AR65: =VLOOKUP($AO65,Data!$U$1:$AC$688,AR$49,FALSE) -> 0.1888076475 | AS65: =VLOOKUP($AO$79,Data!$U$1:$AC$688,$AR$49,FALSE) -> 0.1711488198
AN66: 202103 | AO66: =CONCATENATE(VLOOKUP($AN$21*1,Data!$W$1:$AB$688,AO$49,FALSE),AP66) -> Tier 1 Capital Ratio17 | AP66: 17 | AQ66: =VLOOKUP($AO66,Data!$U$1:$AC$688,AQ$49,FALSE)&IF(AR66="","*","") -> MT | AR66: =VLOOKUP($AO66,Data!$U$1:$AC$688,AR$49,FALSE) -> 0.1884399725 | AS66: =VLOOKUP($AO$79,Data!$U$1:$AC$688,$AR$49,FALSE) -> 0.1711488198
AN67: 202103 | AO67: =CONCATENATE(VLOOKUP($AN$21*1,Data!$W$1:$AB$688,AO$49,FALSE),AP67) -> Tier 1 Capital Ratio18 | AP67: 18 | AQ67: =VLOOKUP($AO67,Data!$U$1:$AC$688,AQ$49,FALSE)&IF(AR67="","*","") -> CY | AR67: =VLOOKUP($AO67,Data!$U$1:$AC$688,AR$49,FALSE) -> 0.1867469226 | AS67: =VLOOKUP($AO$79,Data!$U$1:$AC$688,$AR$49,FALSE) -> 0.1711488198
AN68: 202103 | AO68: =CONCATENATE(VLOOKUP($AN$21*1,Data!$W$1:$AB$688,AO$49,FALSE),AP68) -> Tier 1 Capital Ratio19 | AP68: 19 | AQ68: =VLOOKUP($AO68,Data!$U$1:$AC$688,AQ$49,FALSE)&IF(AR68="","*","") -> SK | AR68: =VLOOKUP($AO68,Data!$U$1:$AC$688,AR$49,FALSE) -> 0.1864058376 | AS68: =VLOOKUP($AO$79,Data!$U$1:$AC$688,$AR$49,FALSE) -> 0.1711488198
AN69: 202103 | AO69: =CONCATENATE(VLOOKUP($AN$21*1,Data!$W$1:$AB$688,AO$49,FALSE),AP69) -> Tier 1 Capital Ratio20 | AP69: 20 | AQ69: =VLOOKUP($AO69,Data!$U$1:$AC$688,AQ$49,FALSE)&IF(AR69="","*","") -> PL | AR69: =VLOOKUP($AO69,Data!$U$1:$AC$688,AR$49,FALSE) -> 0.18104892 | AS69: =VLOOKUP($AO$79,Data!$U$1:$AC$688,$AR$49,FALSE) -> 0.1711488198
AN70: 202103 | AO70: =CONCATENATE(VLOOKUP($AN$21*1,Data!$W$1:$AB$688,AO$49,FALSE),AP70) -> Tier 1 Capital Ratio21 | AP70: 21 | AQ70: =VLOOKUP($AO70,Data!$U$1:$AC$688,AQ$49,FALSE)&IF(AR70="","*","") -> IT | AR70: =VLOOKUP($AO70,Data!$U$1:$AC$688,AR$49,FALSE) -> 0.1715676333 | AS70: =VLOOKUP($AO$79,Data!$U$1:$AC$688,$AR$49,FALSE) -> 0.1711488198
AN71: 202103 | AO71: =CONCATENATE(VLOOKUP($AN$21*1,Data!$W$1:$AB$688,AO$49,FALSE),AP71) -> Tier 1 Capital Ratio22 | AP71: 22 | AQ71: =VLOOKUP($AO71,Data!$U$1:$AC$688,AQ$49,FALSE)&IF(AR71="","*","") -> DE | AR71: =VLOOKUP($AO71,Data!$U$1:$AC$688,AR$49,FALSE) -> 0.1704071774 | AS71: =VLOOKUP($AO$79,Data!$U$1:$AC$688,$AR$49,FALSE) -> 0.1711488198
AN72: 202103 | AO72: =CONCATENATE(VLOOKUP($AN$21*1,Data!$W$1:$AB$688,AO$49,FALSE),AP72) -> Tier 1 Capital Ratio23 | AP72: 23 | AQ72: =VLOOKUP($AO72,Data!$U$1:$AC$688,AQ$49,FALSE)&IF(AR72="","*","") -> FR | AR72: =VLOOKUP($AO72,Data!$U$1:$AC$688,AR$49,FALSE) -> 0.1676624244 | AS72: =VLOOKUP($AO$79,Data!$U$1:$AC$688,$AR$49,FALSE) -> 0.1711488198
AN73: 202103 | AO73: =CONCATENATE(VLOOKUP($AN$21*1,Data!$W$1:$AB$688,AO$49,FALSE),AP73) -> Tier 1 Capital Ratio24 | AP73: 24 | AQ73: =VLOOKUP($AO73,Data!$U$1:$AC$688,AQ$49,FALSE)&IF(AR73="","*","") -> AT | AR73: =VLOOKUP($AO73,Data!$U$1:$AC$688,AR$49,FALSE) -> 0.1650791811 | AS73: =VLOOKUP($AO$79,Data!$U$1:$AC$688,$AR$49,FALSE) -> 0.1711488198
AN74: 202103 | AO74: =CONCATENATE(VLOOKUP($AN$21*1,Data!$W$1:$AB$688,AO$49,FALSE),AP74) -> Tier 1 Capital Ratio25 | AP74: 25 | AQ74: =VLOOKUP($AO74,Data!$U$1:$AC$688,AQ$49,FALSE)&IF(AR74="","*","") -> HU | AR74: =VLOOKUP($AO74,Data!$U$1:$AC$688,AR$49,FALSE) -> 0.1643675172 | AS74: =VLOOKUP($AO$79,Data!$U$1:$AC$688,$AR$49,FALSE) -> 0.1711488198
AN75: 202103 | AO75: =CONCATENATE(VLOOKUP($AN$21*1,Data!$W$1:$AB$688,AO$49,FALSE),AP75) -> Tier 1 Capital Ratio26 | AP75: 26 | AQ75: =VLOOKUP($AO75,Data!$U$1:$AC$688,AQ$49,FALSE)&IF(AR75="","*","") -> PT | AR75: =VLOOKUP($AO75,Data!$U$1:$AC$688,AR$49,FALSE) -> 0.1574620142 | AS75: =VLOOKUP($AO$79,Data!$U$1:$AC$688,$AR$49,FALSE) -> 0.1711488198
AN76: 202103 | AO76: =CONCATENATE(VLOOKUP($AN$21*1,Data!$W$1:$AB$688,AO$49,FALSE),AP76) -> Tier 1 Capital Ratio27 | AP76: 27 | AQ76: =VLOOKUP($AO76,Data!$U$1:$AC$688,AQ$49,FALSE)&IF(AR76="","*","") -> SI | AR76: =VLOOKUP($AO76,Data!$U$1:$AC$688,AR$49,FALSE) -> 0.1521587299 | AS76: =VLOOKUP($AO$79,Data!$U$1:$AC$688,$AR$49,FALSE) -> 0.1711488198
AN77: 202103 | AO77: =CONCATENATE(VLOOKUP($AN$21*1,Data!$W$1:$AB$688,AO$49,FALSE),AP77) -> Tier 1 Capital Ratio28 | AP77: 28 | AQ77: =VLOOKUP($AO77,Data!$U$1:$AC$688,AQ$49,FALSE)&IF(AR77="","*","") -> ES | AR77: =VLOOKUP($AO77,Data!$U$1:$AC$688,AR$49,FALSE) -> 0.144044542 | AS77: =VLOOKUP($AO$79,Data!$U$1:$AC$688,$AR$49,FALSE) -> 0.1711488198
AN78: 202103 | AO78: =CONCATENATE(VLOOKUP($AN$21*1,Data!$W$1:$AB$688,AO$49,FALSE),AP78) -> Tier 1 Capital Ratio29 | AP78: 29 | AQ78: =VLOOKUP($AO78,Data!$U$1:$AC$688,AQ$49,FALSE)&IF(AR78="","*","") -> GR | AR78: =VLOOKUP($AO78,Data!$U$1:$AC$688,AR$49,FALSE) -> 0.137889255 | AS78: =VLOOKUP($AO$79,Data!$U$1:$AC$688,$AR$49,FALSE) -> 0.1711488198
AN79: =MAX($AL$25:$AL$45) -> 202103 | AO79: =CONCATENATE(VLOOKUP($AN$21*1,Data!$W$1:$AB$688,AO$49,FALSE),AP79) -> Tier 1 Capital Ratio99 | AP79: 99 | AQ79: =VLOOKUP($AO79,Data!$U$1:$AC$688,AQ$49,FALSE)&IF(AR79="","*","") -> EU | AR79: =VLOOKUP($AO79,Data!$U$1:$AC$688,AR$49,FALSE) -> 0.1711488198 | AS79: =VLOOKUP($AO$79,Data!$U$1:$AC$688,$AR$49,FALSE) -> 0.1711488198

Sheet Assets
D1: =("'"&MID(CELL("filename",$A$1),FIND("]",CELL("filename",$A$1))+1,32)&"'") -> 'Assets' | E1: T01_1 | F1: T01_1 | G1: T01_1 | H1: T01_1 | I1: T01_2 | J1: T01_2 | K1: T01_2 | L1: T01_2 | M1: T01_3 | N1: T01_3 | O1: T01_3 | P1: T01_3 | Q1: T01_4 | R1: T01_4 | S1: T01_4 | T1: T01_4 | U1: T01_5 | V1: T01_5 | W1: T01_5 | X1: T01_5 | Y1: T01_6 | Z1: T01_6 | AA1: T01_6 | AB1: T01_6
A2: ='Reference Dates'!$C$8 -> 202103 | E2: =TEXT(E12,"YYYYMM")+0 -> 202006 | F2: =TEXT(F12,"YYYYMM")+0 -> 202009 | G2: 202012 | H2: 202103 | I2: 202006 | J2: 202009 | K2: 202012 | L2: 202103 | M2: 202006 | N2: 202009 | O2: 202012 | P2: 202103 | Q2: 202006 | R2: 202009 | S2: 202012 | T2: 202103 | U2: 202006 | V2: 202009 | W2: 202012 | X2: 202103 | Y2: 202006 | Z2: 202009 | AA2: 202012 | AB2: 202103
A3: =DATE(LEFT(A2,4),RIGHT(A2,2),1) -> 2021-03-01
D4: Statistical Annex
D5: Asset composition and volumes
B8: CH_1 | D8: Asset composition
D10: % of total assets
E11: Cash balances | I11: Equity instruments | M11: Debt securities | Q11: Loans and advances | U11: Derivatives | Y11: Other Assets
E12: =EOMONTH($A$3,-9) -> 2020-06-30 | F12: =EOMONTH($A$3,-6) -> 2020-09-30 | G12: =EOMONTH($A$3,-3) -> 2020-12-31 | H12: =$A$3 -> 2021-03-01 | I12: =EOMONTH($A$3,-9) -> 2020-06-30 | J12: =EOMONTH($A$3,-6) -> 2020-09-30 | K12: =EOMONTH($A$3,-3) -> 2020-12-31 | L12: =$A$3 -> 2021-03-01 | M12: =EOMONTH($A$3,-9) -> 2020-06-30 | N12: =EOMONTH($A$3,-6) -> 2020-09-30 | O12: =EOMONTH($A$3,-3) -> 2020-12-31 | P12: =$A$3 -> 2021-03-01 | Q12: =EOMONTH($A$3,-9) -> 2020-06-30 | R12: =EOMONTH($A$3,-6) -> 2020-09-30 | S12: =EOMONTH($A$3,-3) -> 2020-12-31 | T12: =$A$3 -> 2021-03-01 | U12: =EOMONTH($A$3,-9) -> 2020-06-30 | V12: =EOMONTH($A$3,-6) -> 2020-09-30 | W12: =EOMONTH($A$3,-3) -> 2020-12-31 | X12: =$A$3 -> 2021-03-01 | Y12: =EOMONTH($A$3,-9) -> 2020-06-30 | Z12: =EOMONTH($A$3,-6) -> 2020-09-30 | AA12: =EOMONTH($A$3,-3) -> 2020-12-31 | AB12: =$A$3 -> 2021-03-01
B13: AT | D13: =IF(OR(E13="n.a.",F13="n.a.",G13="n.a.",H13="n.a.",I13="n.a.",J13="n.a.",K13="n.a.",L13="n.a.",M13="n.a.",N13="n.a.",O13="n.a.",P13="n.a.",Q13="n.a.",R13="n.a.",S13="n.a.",T13="n.a.",U13="n.a.",V13="n.a.",W13="n.a.",X13="n.a.",Y13="n.a.",Z13="n.a.",AA13="n.a.",AB13="n.a."),$B13&"*",$B13) -> AT | E13: =IFERROR(INDEX('Data Annex'!$K$1:$AN$6000,MATCH(Assets!E$1&"|"&Assets!$B13,'Data Annex'!$K$1:$K$6000,0),MATCH(Assets!E$2,'Data Annex'!$K$1:$AN$1,0)),"") -> 0.1335462682 | F13: =IFERROR(INDEX('Data Annex'!$K$1:$AN$6000,MATCH(Assets!F$1&"|"&Assets!$B13,'Data Annex'!$K$1:$K$6000,0),MATCH(Assets!F$2,'Data Annex'!$K$1:$AN$1,0)),"") -> 0.1557056149 | G13: =IFERROR(INDEX('Data Annex'!$K$1:$AN$6000,MATCH(Assets!G$1&"|"&Assets!$B13,'Data Annex'!$K$1:$K$6000,0),MATCH(Assets!G$2,'Data Annex'!$K$1:$AN$1,0)),"") -> 0.1766316048 | H13: =IFERROR(INDEX('Data Annex'!$K$1:$AO$6000,MATCH(Assets!H$1&"|"&Assets!$B13,'Data Annex'!$K$1:$K$6000,0),MATCH(Assets!H$2,'Data Annex'!$K$1:$AO$1,0)),"") -> 0.1982215083 | I13: =IFERROR(INDEX('Data Annex'!$K$1:$AO$6000,MATCH(Assets!I$1&"|"&Assets!$B13,'Data Annex'!$K$1:$K$6000,0),MATCH(Assets!I$2,'Data Annex'!$K$1:$AO$1,0)),"") -> 0.0027824716 | J13: =IFERROR(INDEX('Data Annex'!$K$1:$AO$6000,MATCH(Assets!J$1&"|"&Assets!$B13,'Data Annex'!$K$1:$K$6000,0),MATCH(Assets!J$2,'Data Annex'!$K$1:$AO$1,0)),"") -> 0.0027046617 | K13: =IFERROR(INDEX('Data Annex'!$K$1:$AO$6000,MATCH(Assets!K$1&"|"&Assets!$B13,'Data Annex'!$K$1:$K$6000,0),MATCH(Assets!K$2,'Data Annex'!$K$1:$AO$1,0)),"") -> 0.0052577561 | L13: =IFERROR(INDEX('Data Annex'!$K$1:$AO$6000,MATCH(Assets!L$1&"|"&Assets!$B13,'Data Annex'!$K$1:$K$6000,0),MATCH(Assets!L$2,'Data Annex'!$K$1:$AO$1,0)),"") -> 0.0052321375 | M13: =IFERROR(INDEX('Data Annex'!$K$1:$AO$6000,MATCH(Assets!M$1&"|"&Assets!$B13,'Data Annex'!$K$1:$K$6000,0),MATCH(Assets!M$2,'Data Annex'!$K$1:$AO$1,0)),"") -> 0.1457006144 | N13: =IFERROR(INDEX('Data Annex'!$K$1:$AO$6000,MATCH(Assets!N$1&"|"&Assets!$B13,'Data Annex'!$K$1:$K$6000,0),MATCH(Assets!N$2,'Data Annex'!$K$1:$AO$1,0)),"") -> 0.1388162189 | O13: =IFERROR(INDEX('Data Annex'!$K$1:$AO$6000,MATCH(Assets!O$1&"|"&Assets!$B13,'Data Annex'!$K$1:$K$6000,0),MATCH(Assets!O$2,'Data Annex'!$K$1:$AO$1,0)),"") -> 0.1343164484 | P13: =IFERROR(INDEX('Data Annex'!$K$1:$AO$6000,MATCH(Assets!P$1&"|"&Assets!$B13,'Data Annex'!$K$1:$K$6000,0),MATCH(Assets!P$2,'Data Annex'!$K$1:$AO$1,0)),"") -> 0.1298500698 | Q13: =IFERROR(INDEX('Data Annex'!$K$1:$AO$6000,MATCH(Assets!Q$1&"|"&Assets!$B13,'Data Annex'!$K$1:$K$6000,0),MATCH(Assets!Q$2,'Data Annex'!$K$1:$AO$1,0)),"") -> 0.6656915871 | R13: =IFERROR(INDEX('Data Annex'!$K$1:$AO$6000,MATCH(Assets!R$1&"|"&Assets!$B13,'Data Annex'!$K$1:$K$6000,0),MATCH(Assets!R$2,'Data Annex'!$K$1:$AO$1,0)),"") -> 0.6509059075 | S13: =IFERROR(INDEX('Data Annex'!$K$1:$AO$6000,MATCH(Assets!S$1&"|"&Assets!$B13,'Data Annex'!$K$1:$K$6000,0),MATCH(Assets!S$2,'Data Annex'!$K$1:$AO$1,0)),"") -> 0.6341933531 | T13: =IFERROR(INDEX('Data Annex'!$K$1:$AO$6000,MATCH(Assets!T$1&"|"&Assets!$B13,'Data Annex'!$K$1:$K$6000,0),MATCH(Assets!T$2,'Data Annex'!$K$1:$AO$1,0)),"") -> 0.6227294583 | U13: =IFERROR(INDEX('Data Annex'!$K$1:$AO$6000,MATCH(Assets!U$1&"|"&Assets!$B13,'Data Annex'!$K$1:$K$6000,0),MATCH(Assets!U$2,'Data Annex'!$K$1:$AO$1,0)),"") -> 0.0189792107 | V13: =IFERROR(INDEX('Data Annex'!$K$1:$AO$6000,MATCH(Assets!V$1&"|"&Assets!$B13,'Data Annex'!$K$1:$K$6000,0),MATCH(Assets!V$2,'Data Annex'!$K$1:$AO$1,0)),"") -> 0.0190590614 | W13: =IFERROR(INDEX('Data Annex'!$K$1:$AO$6000,MATCH(Assets!W$1&"|"&Assets!$B13,'Data Annex'!$K$1:$K$6000,0),MATCH(Assets!W$2,'Data Annex'!$K$1:$AO$1,0)),"") -> 0.0174393731 | X13: =IFERROR(INDEX('Data Annex'!$K$1:$AO$6000,MATCH(Assets!X$1&"|"&Assets!$B13,'Data Annex'!$K$1:$K$6000,0),MATCH(Assets!X$2,'Data Annex'!$K$1:$AO$1,0)),"") -> 0.0143008773 | Y13: =IFERROR(INDEX('Data Annex'!$K$1:$AO$6000,MATCH(Assets!Y$1&"|"&Assets!$B13,'Data Annex'!$K$1:$K$6000,0),MATCH(Assets!Y$2,'Data Annex'!$K$1:$AO$1,0)),"") -> 0.0332998479 | Z13: =IFERROR(INDEX('Data Annex'!$K$1:$AO$6000,MATCH(Assets!Z$1&"|"&Assets!$B13,'Data Annex'!$K$1:$K$6000,0),MATCH(Assets!Z$2,'Data Annex'!$K$1:$AO$1,0)),"") -> 0.0328085356 | AA13: =IFERROR(INDEX('Data Annex'!$K$1:$AO$6000,MATCH(Assets!AA$1&"|"&Assets!$B13,'Data Annex'!$K$1:$K$6000,0),MATCH(Assets!AA$2,'Data Annex'!$K$1:$AO$1,0)),"") -> 0.0321614645 | AB13: =IFERROR(INDEX('Data Annex'!$K$1:$AO$6000,MATCH(Assets!AB$1&"|"&Assets!$B13,'Data Annex'!$K$1:$K$6000,0),MATCH(Assets!AB$2,'Data Annex'!$K$1:$AO$1,0)),"") -> 0.0296659487 | AC13: =IFERROR(INDEX('Data Annex'!$K$1:$AH$6000,MATCH(Assets!AC$1&"|"&Assets!$B13,'Data Annex'!$K$1:$K$6000,0),MATCH(Assets!AC$2,'Data Annex'!$K$1:$AH$1,0)),"") -> 
B14: BE | D14: =IF(OR(E14="n.a.",F14="n.a.",G14="n.a.",H14="n.a.",I14="n.a.",J14="n.a.",K14="n.a.",L14="n.a.",M14="n.a.",N14="n.a.",O14="n.a.",P14="n.a.",Q14="n.a.",R14="n.a.",S14="n.a.",T14="n.a.",U14="n.a.",V14="n.a.",W14="n.a.",X14="n.a.",Y14="n.a.",Z14="n.a.",AA14="n.a.",AB14="n.a."),$B14&"*",$B14) -> BE | E14: =IFERROR(INDEX('Data Annex'!$K$1:$AN$6000,MATCH(Assets!E$1&"|"&Assets!$B14,'Data Annex'!$K$1:$K$6000,0),MATCH(Assets!E$2,'Data Annex'!$K$1:$AN$1,0)),"") -> 0.1274306146 | F14: =IFERROR(INDEX('Data Annex'!$K$1:$AN$6000,MATCH(Assets!F$1&"|"&Assets!$B14,'Data Annex'!$K$1:$K$6000,0),MATCH(Assets!F$2,'Data Annex'!$K$1:$AN$1,0)),"") -> 0.1433631114 | G14: =IFERROR(INDEX('Data Annex'!$K$1:$AN$6000,MATCH(Assets!G$1&"|"&Assets!$B14,'Data Annex'!$K$1:$K$6000,0),MATCH(Assets!G$2,'Data Annex'!$K$1:$AN$1,0)),"") -> 0.1548956813 | H14: =IFERROR(INDEX('Data Annex'!$K$1:$AO$6000,MATCH(Assets!H$1&"|"&Assets!$B14,'Data Annex'!$K$1:$K$6000,0),MATCH(Assets!H$2,'Data Annex'!$K$1:$AO$1,0)),"") -> 0.1960771158 | I14: =IFERROR(INDEX('Data Annex'!$K$1:$AO$6000,MATCH(Assets!I$1&"|"&Assets!$B14,'Data Annex'!$K$1:$K$6000,0),MATCH(Assets!I$2,'Data Annex'!$K$1:$AO$1,0)),"") -> 0.0020317278 | J14: =IFERROR(INDEX('Data Annex'!$K$1:$AO$6000,MATCH(Assets!J$1&"|"&Assets!$B14,'Data Annex'!$K$1:$K$6000,0),MATCH(Assets!J$2,'Data Annex'!$K$1:$AO$1,0)),"") -> 0.0019819839 | K14: =IFERROR(INDEX('Data Annex'!$K$1:$AO$6000,MATCH(Assets!K$1&"|"&Assets!$B14,'Data Annex'!$K$1:$K$6000,0),MATCH(Assets!K$2,'Data Annex'!$K$1:$AO$1,0)),"") -> 0.0021127743 | L14: =IFERROR(INDEX('Data Annex'!$K$1:$AO$6000,MATCH(Assets!L$1&"|"&Assets!$B14,'Data Annex'!$K$1:$K$6000,0),MATCH(Assets!L$2,'Data Annex'!$K$1:$AO$1,0)),"") -> 0.0021343111 | M14: =IFERROR(INDEX('Data Annex'!$K$1:$AO$6000,MATCH(Assets!M$1&"|"&Assets!$B14,'Data Annex'!$K$1:$K$6000,0),MATCH(Assets!M$2,'Data Annex'!$K$1:$AO$1,0)),"") -> 0.1482343175 | N14: =IFERROR(INDEX('Data Annex'!$K$1:$AO$6000,MATCH(Assets!N$1&"|"&Assets!$B14,'Data Annex'!$K$1:$K$6000,0),MATCH(Assets!N$2,'Data Annex'!$K$1:$AO$1,0)),"") -> 0.1448980044 | O14: =IFERROR(INDEX('Data Annex'!$K$1:$AO$6000,MATCH(Assets!O$1&"|"&Assets!$B14,'Data Annex'!$K$1:$K$6000,0),MATCH(Assets!O$2,'Data Annex'!$K$1:$AO$1,0)),"") -> 0.1414386836 | P14: =IFERROR(INDEX('Data Annex'!$K$1:$AO$6000,MATCH(Assets!P$1&"|"&Assets!$B14,'Data Annex'!$K$1:$K$6000,0),MATCH(Assets!P$2,'Data Annex'!$K$1:$AO$1,0)),"") -> 0.1340745148 | Q14: =IFERROR(INDEX('Data Annex'!$K$1:$AO$6000,MATCH(Assets!Q$1&"|"&Assets!$B14,'Data Annex'!$K$1:$K$6000,0),MATCH(Assets!Q$2,'Data Annex'!$K$1:$AO$1,0)),"") -> 0.6133156234 | R14: =IFERROR(INDEX('Data Annex'!$K$1:$AO$6000,MATCH(Assets!R$1&"|"&Assets!$B14,'Data Annex'!$K$1:$K$6000,0),MATCH(Assets!R$2,'Data Annex'!$K$1:$AO$1,0)),"") -> 0.6034755719 | S14: =IFERROR(INDEX('Data Annex'!$K$1:$AO$6000,MATCH(Assets!S$1&"|"&Assets!$B14,'Data Annex'!$K$1:$K$6000,0),MATCH(Assets!S$2,'Data Annex'!$K$1:$AO$1,0)),"") -> 0.5983262243 | T14: =IFERROR(INDEX('Data Annex'!$K$1:$AO$6000,MATCH(Assets!T$1&"|"&Assets!$B14,'Data Annex'!$K$1:$K$6000,0),MATCH(Assets!T$2,'Data Annex'!$K$1:$AO$1,0)),"") -> 0.5769543019 | U14: =IFERROR(INDEX('Data Annex'!$K$1:$AO$6000,MATCH(Assets!U$1&"|"&Assets!$B14,'Data Annex'!$K$1:$K$6000,0),MATCH(Assets!U$2,'Data Annex'!$K$1:$AO$1,0)),"") -> 0.0502779483 | V14: =IFERROR(INDEX('Data Annex'!$K$1:$AO$6000,MATCH(Assets!V$1&"|"&Assets!$B14,'Data Annex'!$K$1:$K$6000,0),MATCH(Assets!V$2,'Data Annex'!$K$1:$AO$1,0)),"") -> 0.0483934896 | W14: =IFERROR(INDEX('Data Annex'!$K$1:$AO$6000,MATCH(Assets!W$1&"|"&Assets!$B14,'Data Annex'!$K$1:$K$6000,0),MATCH(Assets!W$2,'Data Annex'!$K$1:$AO$1,0)),"") -> 0.0447821291 | X14: =IFERROR(INDEX('Data Annex'!$K$1:$AO$6000,MATCH(Assets!X$1&"|"&Assets!$B14,'Data Annex'!$K$1:$K$6000,0),MATCH(Assets!X$2,'Data Annex'!$K$1:$AO$1,0)),"") -> 0.0356197873 | Y14: =IFERROR(INDEX('Data Annex'!$K$1:$AO$6000,MATCH(Assets!Y$1&"|"&Assets!$B14,'Data Annex'!$K$1:$K$6000,0),MATCH(Assets!Y$2,'Data Annex'!$K$1:$AO$1,0)),"") -> 0.0587097685 | Z14: =IFERROR(INDEX('Data Annex'!$K$1:$AO$6000,MATCH(Assets!Z$1&"|"&Assets!$B14,'Data Annex'!$K$1:$K$6000,0),MATCH(Assets!Z$2,'Data Annex'!$K$1:$AO$1,0)),"") -> 0.0578878387 | AA14: =IFERROR(INDEX('Data Annex'!$K$1:$AO$6000,MATCH(Assets!AA$1&"|"&Assets!$B14,'Data Annex'!$K$1:$K$6000,0),MATCH(Assets!AA$2,'Data Annex'!$K$1:$AO$1,0)),"") -> 0.0584445075 | AB14: =IFERROR(INDEX('Data Annex'!$K$1:$AO$6000,MATCH(Assets!AB$1&"|"&Assets!$B14,'Data Annex'!$K$1:$K$6000,0),MATCH(Assets!AB$2,'Data Annex'!$K$1:$AO$1,0)),"") -> 0.0551399692 | AC14: =IFERROR(INDEX('Data Annex'!$K$1:$AH$6000,MATCH(Assets!AC$1&"|"&Assets!$B14,'Data Annex'!$K$1:$K$6000,0),MATCH(Assets!AC$2,'Data Annex'!$K$1:$AH$1,0)),"") -> 
B15: BG | D15: BG | E15: =IFERROR(INDEX('Data Annex'!$K$1:$AN$6000,MATCH(Assets!E$1&"|"&Assets!$B15,'Data Annex'!$K$1:$K$6000,0),MATCH(Assets!E$2,'Data Annex'!$K$1:$AN$1,0)),"") -> 0.1747297514 | F15: =IFERROR(INDEX('Data Annex'!$K$1:$AN$6000,MATCH(Assets!F$1&"|"&Assets!$B15,'Data Annex'!$K$1:$K$6000,0),MATCH(Assets!F$2,'Data Annex'!$K$1:$AN$1,0)),"") -> 0.1833716042 | G15: =IFERROR(INDEX('Data Annex'!$K$1:$AN$6000,MATCH(Assets!G$1&"|"&Assets!$B15,'Data Annex'!$K$1:$K$6000,0),MATCH(Assets!G$2,'Data Annex'!$K$1:$AN$1,0)),"") -> 0.2047075446 | H15: =IFERROR(INDEX('Data Annex'!$K$1:$AO$6000,MATCH(Assets!H$1&"|"&Assets!$B15,'Data Annex'!$K$1:$K$6000,0),MATCH(Assets!H$2,'Data Annex'!$K$1:$AO$1,0)),"") -> 0.176516006 | I15: =IFERROR(INDEX('Data Annex'!$K$1:$AO$6000,MATCH(Assets!I$1&"|"&Assets!$B15,'Data Annex'!$K$1:$K$6000,0),MATCH(Assets!I$2,'Data Annex'!$K$1:$AO$1,0)),"") -> 0.0015255814 | J15: =IFERROR(INDEX('Data Annex'!$K$1:$AO$6000,MATCH(Assets!J$1&"|"&Assets!$B15,'Data Annex'!$K$1:$K$6000,0),MATCH(Assets!J$2,'Data Annex'!$K$1:$AO$1,0)),"") -> 0.0014783324 | K15: =IFERROR(INDEX('Data Annex'!$K$1:$AO$6000,MATCH(Assets!K$1&"|"&Assets!$B15,'Data Annex'!$K$1:$K$6000,0),MATCH(Assets!K$2,'Data Annex'!$K$1:$AO$1,0)),"") -> 0.0013900081 | L15: =IFERROR(INDEX('Data Annex'!$K$1:$AO$6000,MATCH(Assets!L$1&"|"&Assets!$B15,'Data Annex'!$K$1:$K$6000,0),MATCH(Assets!L$2,'Data Annex'!$K$1:$AO$1,0)),"") -> 0.0013813435 | M15: =IFERROR(INDEX('Data Annex'!$K$1:$AO$6000,MATCH(Assets!M$1&"|"&Assets!$B15,'Data Annex'!$K$1:$K$6000,0),MATCH(Assets!M$2,'Data Annex'!$K$1:$AO$1,0)),"") -> 0.1543555839 | N15: =IFERROR(INDEX('Data Annex'!$K$1:$AO$6000,MATCH(Assets!N$1&"|"&Assets!$B15,'Data Annex'!$K$1:$K$6000,0),MATCH(Assets!N$2,'Data Annex'!$K$1:$AO$1,0)),"") -> 0.156644683 | O15: =IFERROR(INDEX('Data Annex'!$K$1:$AO$6000,MATCH(Assets!O$1&"|"&Assets!$B15,'Data Annex'!$K$1:$K$6000,0),MATCH(Assets!O$2,'Data Annex'!$K$1:$AO$1,0)),"") -> 0.1517566938 | P15: =IFERROR(INDEX('Data Annex'!$K$1:$AO$6000,MATCH(Assets!P$1&"|"&Assets!$B15,'Data Annex'!$K$1:$K$6000,0),MATCH(Assets!P$2,'Data Annex'!$K$1:$AO$1,0)),"") -> 0.1597491215 | Q15: =IFERROR(INDEX('Data Annex'!$K$1:$AO$6000,MATCH(Assets!Q$1&"|"&Assets!$B15,'Data Annex'!$K$1:$K$6000,0),MATCH(Assets!Q$2,'Data Annex'!$K$1:$AO$1,0)),"") -> 0.6209496037 | R15: =IFERROR(INDEX('Data Annex'!$K$1:$AO$6000,MATCH(Assets!R$1&"|"&Assets!$B15,'Data Annex'!$K$1:$K$6000,0),MATCH(Assets!R$2,'Data Annex'!$K$1:$AO$1,0)),"") -> 0.6113139787 | S15: =IFERROR(INDEX('Data Annex'!$K$1:$AO$6000,MATCH(Assets!S$1&"|"&Assets!$B15,'Data Annex'!$K$1:$K$6000,0),MATCH(Assets!S$2,'Data Annex'!$K$1:$AO$1,0)),"") -> 0.5975292267 | T15: =IFERROR(INDEX('Data Annex'!$K$1:$AO$6000,MATCH(Assets!T$1&"|"&Assets!$B15,'Data Annex'!$K$1:$K$6000,0),MATCH(Assets!T$2,'Data Annex'!$K$1:$AO$1,0)),"") -> 0.6180913118 | U15: =IFERROR(INDEX('Data Annex'!$K$1:$AO$6000,MATCH(Assets!U$1&"|"&Assets!$B15,'Data Annex'!$K$1:$K$6000,0),MATCH(Assets!U$2,'Data Annex'!$K$1:$AO$1,0)),"") -> 0.0015296792 | V15: =IFERROR(INDEX('Data Annex'!$K$1:$AO$6000,MATCH(Assets!V$1&"|"&Assets!$B15,'Data Annex'!$K$1:$K$6000,0),MATCH(Assets!V$2,'Data Annex'!$K$1:$AO$1,0)),"") -> 0.0017522571 | W15: =IFERROR(INDEX('Data Annex'!$K$1:$AO$6000,MATCH(Assets!W$1&"|"&Assets!$B15,'Data Annex'!$K$1:$K$6000,0),MATCH(Assets!W$2,'Data Annex'!$K$1:$AO$1,0)),"") -> 0.0020606834 | X15: =IFERROR(INDEX('Data Annex'!$K$1:$AO$6000,MATCH(Assets!X$1&"|"&Assets!$B15,'Data Annex'!$K$1:$K$6000,0),MATCH(Assets!X$2,'Data Annex'!$K$1:$AO$1,0)),"") -> 0.0029076166 | Y15: =IFERROR(INDEX('Data Annex'!$K$1:$AO$6000,MATCH(Assets!Y$1&"|"&Assets!$B15,'Data Annex'!$K$1:$K$6000,0),MATCH(Assets!Y$2,'Data Annex'!$K$1:$AO$1,0)),"") -> 0.0469098004 | Z15: =IFERROR(INDEX('Data Annex'!$K$1:$AO$6000,MATCH(Assets!Z$1&"|"&Assets!$B15,'Data Annex'!$K$1:$K$6000,0),MATCH(Assets!Z$2,'Data Annex'!$K$1:$AO$1,0)),"") -> 0.0454391446 | AA15: =IFERROR(INDEX('Data Annex'!$K$1:$AO$6000,MATCH(Assets!AA$1&"|"&Assets!$B15,'Data Annex'!$K$1:$K$6000,0),MATCH(Assets!AA$2,'Data Annex'!$K$1:$AO$1,0)),"") -> 0.0425558434 | AB15: =IFERROR(INDEX('Data Annex'!$K$1:$AO$6000,MATCH(Assets!AB$1&"|"&Assets!$B15,'Data Annex'!$K$1:$K$6000,0),MATCH(Assets!AB$2,'Data Annex'!$K$1:$AO$1,0)),"") -> 0.0413546006 | AC15: =IFERROR(INDEX('Data Annex'!$K$1:$AH$6000,MATCH(Assets!AC$1&"|"&Assets!$B15,'Data Annex'!$K$1:$K$6000,0),MATCH(Assets!AC$2,'Data Annex'!$K$1:$AH$1,0)),"") -> 
B16: CY | D16: CY | E16: =IFERROR(INDEX('Data Annex'!$K$1:$AN$6000,MATCH(Assets!E$1&"|"&Assets!$B16,'Data Annex'!$K$1:$K$6000,0),MATCH(Assets!E$2,'Data Annex'!$K$1:$AN$1,0)),"") -> 0.2403110952 | F16: =IFERROR(INDEX('Data Annex'!$K$1:$AN$6000,MATCH(Assets!F$1&"|"&Assets!$B16,'Data Annex'!$K$1:$K$6000,0),MATCH(Assets!F$2,'Data Annex'!$K$1:$AN$1,0)),"") -> 0.2433024396 | G16: =IFERROR(INDEX('Data Annex'!$K$1:$AN$6000,MATCH(Assets!G$1&"|"&Assets!$B16,'Data Annex'!$K$1:$K$6000,0),MATCH(Assets!G$2,'Data Annex'!$K$1:$AN$1,0)),"") -> 0.2640720927 | H16: =IFERROR(INDEX('Data Annex'!$K$1:$AO$6000,MATCH(Assets!H$1&"|"&Assets!$B16,'Data Annex'!$K$1:$K$6000,0),MATCH(Assets!H$2,'Data Annex'!$K$1:$AO$1,0)),"") -> 0.2911333221 | I16: =IFERROR(INDEX('Data Annex'!$K$1:$AO$6000,MATCH(Assets!I$1&"|"&Assets!$B16,'Data Annex'!$K$1:$K$6000,0),MATCH(Assets!I$2,'Data Annex'!$K$1:$AO$1,0)),"") -> 0.000945985 | J16: =IFERROR(INDEX('Data Annex'!$K$1:$AO$6000,MATCH(Assets!J$1&"|"&Assets!$B16,'Data Annex'!$K$1:$K$6000,0),MATCH(Assets!J$2,'Data Annex'!$K$1:$AO$1,0)),"") -> 0.0009474367 | K16: =IFERROR(INDEX('Data Annex'!$K$1:$AO$6000,MATCH(Assets!K$1&"|"&Assets!$B16,'Data Annex'!$K$1:$K$6000,0),MATCH(Assets!K$2,'Data Annex'!$K$1:$AO$1,0)),"") -> 0.0010811886 | L16: =IFERROR(INDEX('Data Annex'!$K$1:$AO$6000,MATCH(Assets!L$1&"|"&Assets!$B16,'Data Annex'!$K$1:$K$6000,0),MATCH(Assets!L$2,'Data Annex'!$K$1:$AO$1,0)),"") -> 0.0012129673 | M16: =IFERROR(INDEX('Data Annex'!$K$1:$AO$6000,MATCH(Assets!M$1&"|"&Assets!$B16,'Data Annex'!$K$1:$K$6000,0),MATCH(Assets!M$2,'Data Annex'!$K$1:$AO$1,0)),"") -> 0.2081078083 | N16: =IFERROR(INDEX('Data Annex'!$K$1:$AO$6000,MATCH(Assets!N$1&"|"&Assets!$B16,'Data Annex'!$K$1:$K$6000,0),MATCH(Assets!N$2,'Data Annex'!$K$1:$AO$1,0)),"") -> 0.2071586822 | O16: =IFERROR(INDEX('Data Annex'!$K$1:$AO$6000,MATCH(Assets!O$1&"|"&Assets!$B16,'Data Annex'!$K$1:$K$6000,0),MATCH(Assets!O$2,'Data Annex'!$K$1:$AO$1,0)),"") -> 0.1848345807 | P16: =IFERROR(INDEX('Data Annex'!$K$1:$AO$6000,MATCH(Assets!P$1&"|"&Assets!$B16,'Data Annex'!$K$1:$K$6000,0),MATCH(Assets!P$2,'Data Annex'!$K$1:$AO$1,0)),"") -> 0.182059432 | Q16: =IFERROR(INDEX('Data Annex'!$K$1:$AO$6000,MATCH(Assets!Q$1&"|"&Assets!$B16,'Data Annex'!$K$1:$K$6000,0),MATCH(Assets!Q$2,'Data Annex'!$K$1:$AO$1,0)),"") -> 0.4601455899 | R16: =IFERROR(INDEX('Data Annex'!$K$1:$AO$6000,MATCH(Assets!R$1&"|"&Assets!$B16,'Data Annex'!$K$1:$K$6000,0),MATCH(Assets!R$2,'Data Annex'!$K$1:$AO$1,0)),"") -> 0.4564167673 | S16: =IFERROR(INDEX('Data Annex'!$K$1:$AO$6000,MATCH(Assets!S$1&"|"&Assets!$B16,'Data Annex'!$K$1:$K$6000,0),MATCH(Assets!S$2,'Data Annex'!$K$1:$AO$1,0)),"") -> 0.4529601059 | T16: =IFERROR(INDEX('Data Annex'!$K$1:$AO$6000,MATCH(Assets!T$1&"|"&Assets!$B16,'Data Annex'!$K$1:$K$6000,0),MATCH(Assets!T$2,'Data Annex'!$K$1:$AO$1,0)),"") -> 0.4344948564 | U16: =IFERROR(INDEX('Data Annex'!$K$1:$AO$6000,MATCH(Assets!U$1&"|"&Assets!$B16,'Data Annex'!$K$1:$K$6000,0),MATCH(Assets!U$2,'Data Annex'!$K$1:$AO$1,0)),"") -> 0.0004732555 | V16: =IFERROR(INDEX('Data Annex'!$K$1:$AO$6000,MATCH(Assets!V$1&"|"&Assets!$B16,'Data Annex'!$K$1:$K$6000,0),MATCH(Assets!V$2,'Data Annex'!$K$1:$AO$1,0)),"") -> 0.0006008879 | W16: =IFERROR(INDEX('Data Annex'!$K$1:$AO$6000,MATCH(Assets!W$1&"|"&Assets!$B16,'Data Annex'!$K$1:$K$6000,0),MATCH(Assets!W$2,'Data Annex'!$K$1:$AO$1,0)),"") -> 0.0006886014 | X16: =IFERROR(INDEX('Data Annex'!$K$1:$AO$6000,MATCH(Assets!X$1&"|"&Assets!$B16,'Data Annex'!$K$1:$K$6000,0),MATCH(Assets!X$2,'Data Annex'!$K$1:$AO$1,0)),"") -> 0.0003871844 | Y16: =IFERROR(INDEX('Data Annex'!$K$1:$AO$6000,MATCH(Assets!Y$1&"|"&Assets!$B16,'Data Annex'!$K$1:$K$6000,0),MATCH(Assets!Y$2,'Data Annex'!$K$1:$AO$1,0)),"") -> 0.0900162661 | Z16: =IFERROR(INDEX('Data Annex'!$K$1:$AO$6000,MATCH(Assets!Z$1&"|"&Assets!$B16,'Data Annex'!$K$1:$K$6000,0),MATCH(Assets!Z$2,'Data Annex'!$K$1:$AO$1,0)),"") -> 0.0915737863 | AA16: =IFERROR(INDEX('Data Annex'!$K$1:$AO$6000,MATCH(Assets!AA$1&"|"&Assets!$B16,'Data Annex'!$K$1:$K$6000,0),MATCH(Assets!AA$2,'Data Annex'!$K$1:$AO$1,0)),"") -> 0.0963634307 | AB16: =IFERROR(INDEX('Data Annex'!$K$1:$AO$6000,MATCH(Assets!AB$1&"|"&Assets!$B16,'Data Annex'!$K$1:$K$6000,0),MATCH(Assets!AB$2,'Data Annex'!$K$1:$AO$1,0)),"") -> 0.0907122377 | AC16: =IFERROR(INDEX('Data Annex'!$K$1:$AH$6000,MATCH(Assets!AC$1&"|"&Assets!$B16,'Data Annex'!$K$1:$K$6000,0),MATCH(Assets!AC$2,'Data Annex'!$K$1:$AH$1,0)),"") -> 
B17: CZ | D17: CZ | E17: =IFERROR(INDEX('Data Annex'!$K$1:$AN$6000,MATCH(Assets!E$1&"|"&Assets!$B17,'Data Annex'!$K$1:$K$6000,0),MATCH(Assets!E$2,'Data Annex'!$K$1:$AN$1,0)),"") -> 0.0256209369 | F17: =IFERROR(INDEX('Data Annex'!$K$1:$AN$6000,MATCH(Assets!F$1&"|"&Assets!$B17,'Data Annex'!$K$1:$K$6000,0),MATCH(Assets!F$2,'Data Annex'!$K$1:$AN$1,0)),"") -> 0.0294519873 | G17: =IFERROR(INDEX('Data Annex'!$K$1:$AN$6000,MATCH(Assets!G$1&"|"&Assets!$B17,'Data Annex'!$K$1:$K$6000,0),MATCH(Assets!G$2,'Data Annex'!$K$1:$AN$1,0)),"") -> 0.0220689694 | H17: =IFERROR(INDEX('Data Annex'!$K$1:$AO$6000,MATCH(Assets!H$1&"|"&Assets!$B17,'Data Annex'!$K$1:$K$6000,0),MATCH(Assets!H$2,'Data Annex'!$K$1:$AO$1,0)),"") -> 0.0237821891 | I17: =IFERROR(INDEX('Data Annex'!$K$1:$AO$6000,MATCH(Assets!I$1&"|"&Assets!$B17,'Data Annex'!$K$1:$K$6000,0),MATCH(Assets!I$2,'Data Annex'!$K$1:$AO$1,0)),"") -> 0.000627947 | J17: =IFERROR(INDEX('Data Annex'!$K$1:$AO$6000,MATCH(Assets!J$1&"|"&Assets!$B17,'Data Annex'!$K$1:$K$6000,0),MATCH(Assets!J$2,'Data Annex'!$K$1:$AO$1,0)),"") -> 0.0008191529 | K17: =IFERROR(INDEX('Data Annex'!$K$1:$AO$6000,MATCH(Assets!K$1&"|"&Assets!$B17,'Data Annex'!$K$1:$K$6000,0),MATCH(Assets!K$2,'Data Annex'!$K$1:$AO$1,0)),"") -> 0.0006523252 | L17: =IFERROR(INDEX('Data Annex'!$K$1:$AO$6000,MATCH(Assets!L$1&"|"&Assets!$B17,'Data Annex'!$K$1:$K$6000,0),MATCH(Assets!L$2,'Data Annex'!$K$1:$AO$1,0)),"") -> 0.0006296302 | M17: =IFERROR(INDEX('Data Annex'!$K$1:$AO$6000,MATCH(Assets!M$1&"|"&Assets!$B17,'Data Annex'!$K$1:$K$6000,0),MATCH(Assets!M$2,'Data Annex'!$K$1:$AO$1,0)),"") -> 0.1407540098 | N17: =IFERROR(INDEX('Data Annex'!$K$1:$AO$6000,MATCH(Assets!N$1&"|"&Assets!$B17,'Data Annex'!$K$1:$K$6000,0),MATCH(Assets!N$2,'Data Annex'!$K$1:$AO$1,0)),"") -> 0.1362219149 | O17: =IFERROR(INDEX('Data Annex'!$K$1:$AO$6000,MATCH(Assets!O$1&"|"&Assets!$B17,'Data Annex'!$K$1:$K$6000,0),MATCH(Assets!O$2,'Data Annex'!$K$1:$AO$1,0)),"") -> 0.1446508339 | P17: =IFERROR(INDEX('Data Annex'!$K$1:$AO$6000,MATCH(Assets!P$1&"|"&Assets!$B17,'Data Annex'!$K$1:$K$6000,0),MATCH(Assets!P$2,'Data Annex'!$K$1:$AO$1,0)),"") -> 0.1443243548 | Q17: =IFERROR(INDEX('Data Annex'!$K$1:$AO$6000,MATCH(Assets!Q$1&"|"&Assets!$B17,'Data Annex'!$K$1:$K$6000,0),MATCH(Assets!Q$2,'Data Annex'!$K$1:$AO$1,0)),"") -> 0.7855485901 | R17: =IFERROR(INDEX('Data Annex'!$K$1:$AO$6000,MATCH(Assets!R$1&"|"&Assets!$B17,'Data Annex'!$K$1:$K$6000,0),MATCH(Assets!R$2,'Data Annex'!$K$1:$AO$1,0)),"") -> 0.7863091932 | S17: =IFERROR(INDEX('Data Annex'!$K$1:$AO$6000,MATCH(Assets!S$1&"|"&Assets!$B17,'Data Annex'!$K$1:$K$6000,0),MATCH(Assets!S$2,'Data Annex'!$K$1:$AO$1,0)),"") -> 0.7914045158 | T17: =IFERROR(INDEX('Data Annex'!$K$1:$AO$6000,MATCH(Assets!T$1&"|"&Assets!$B17,'Data Annex'!$K$1:$K$6000,0),MATCH(Assets!T$2,'Data Annex'!$K$1:$AO$1,0)),"") -> 0.7970819237 | U17: =IFERROR(INDEX('Data Annex'!$K$1:$AO$6000,MATCH(Assets!U$1&"|"&Assets!$B17,'Data Annex'!$K$1:$K$6000,0),MATCH(Assets!U$2,'Data Annex'!$K$1:$AO$1,0)),"") -> 0.0279487 | V17: =IFERROR(INDEX('Data Annex'!$K$1:$AO$6000,MATCH(Assets!V$1&"|"&Assets!$B17,'Data Annex'!$K$1:$K$6000,0),MATCH(Assets!V$2,'Data Annex'!$K$1:$AO$1,0)),"") -> 0.0278914474 | W17: =IFERROR(INDEX('Data Annex'!$K$1:$AO$6000,MATCH(Assets!W$1&"|"&Assets!$B17,'Data Annex'!$K$1:$K$6000,0),MATCH(Assets!W$2,'Data Annex'!$K$1:$AO$1,0)),"") -> 0.0214082196 | X17: =IFERROR(INDEX('Data Annex'!$K$1:$AO$6000,MATCH(Assets!X$1&"|"&Assets!$B17,'Data Annex'!$K$1:$K$6000,0),MATCH(Assets!X$2,'Data Annex'!$K$1:$AO$1,0)),"") -> 0.0159750194 | Y17: =IFERROR(INDEX('Data Annex'!$K$1:$AO$6000,MATCH(Assets!Y$1&"|"&Assets!$B17,'Data Annex'!$K$1:$K$6000,0),MATCH(Assets!Y$2,'Data Annex'!$K$1:$AO$1,0)),"") -> 0.0194998162 | Z17: =IFERROR(INDEX('Data Annex'!$K$1:$AO$6000,MATCH(Assets!Z$1&"|"&Assets!$B17,'Data Annex'!$K$1:$K$6000,0),MATCH(Assets!Z$2,'Data Annex'!$K$1:$AO$1,0)),"") -> 0.0193063042 | AA17: =IFERROR(INDEX('Data Annex'!$K$1:$AO$6000,MATCH(Assets!AA$1&"|"&Assets!$B17,'Data Annex'!$K$1:$K$6000,0),MATCH(Assets!AA$2,'Data Annex'!$K$1:$AO$1,0)),"") -> 0.0198151361 | AB17: =IFERROR(INDEX('Data Annex'!$K$1:$AO$6000,MATCH(Assets!AB$1&"|"&Assets!$B17,'Data Annex'!$K$1:$K$6000,0),MATCH(Assets!AB$2,'Data Annex'!$K$1:$AO$1,0)),"") -> 0.0182068828 | AC17: =IFERROR(INDEX('Data Annex'!$K$1:$AH$6000,MATCH(Assets!AC$1&"|"&Assets!$B17,'Data Annex'!$K$1:$K$6000,0),MATCH(Assets!AC$2,'Data Annex'!$K$1:$AH$1,0)),"") -> 
B18: DE | D18: DE | E18: =IFERROR(INDEX('Data Annex'!$K$1:$AN$6000,MATCH(Assets!E$1&"|"&Assets!$B18,'Data Annex'!$K$1:$K$6000,0),MATCH(Assets!E$2,'Data Annex'!$K$1:$AN$1,0)),"") -> 0.1388370559 | F18: =IFERROR(INDEX('Data Annex'!$K$1:$AN$6000,MATCH(Assets!F$1&"|"&Assets!$B18,'Data Annex'!$K$1:$K$6000,0),MATCH(Assets!F$2,'Data Annex'!$K$1:$AN$1,0)),"") -> 0.1515831737 | G18: =IFERROR(INDEX('Data Annex'!$K$1:$AN$6000,MATCH(Assets!G$1&"|"&Assets!$B18,'Data Annex'!$K$1:$K$6000,0),MATCH(Assets!G$2,'Data Annex'!$K$1:$AN$1,0)),"") -> 0.1379373533 | H18: =IFERROR(INDEX('Data Annex'!$K$1:$AO$6000,MATCH(Assets!H$1&"|"&Assets!$B18,'Data Annex'!$K$1:$K$6000,0),MATCH(Assets!H$2,'Data Annex'!$K$1:$AO$1,0)),"") -> 0.1718696934 | I18: =IFERROR(INDEX('Data Annex'!$K$1:$AO$6000,MATCH(Assets!I$1&"|"&Assets!$B18,'Data Annex'!$K$1:$K$6000,0),MATCH(Assets!I$2,'Data Annex'!$K$1:$AO$1,0)),"") -> 0.0073410419 | J18: =IFERROR(INDEX('Data Annex'!$K$1:$AO$6000,MATCH(Assets!J$1&"|"&Assets!$B18,'Data Annex'!$K$1:$K$6000,0),MATCH(Assets!J$2,'Data Annex'!$K$1:$AO$1,0)),"") -> 0.0073066387 | K18: =IFERROR(INDEX('Data Annex'!$K$1:$AO$6000,MATCH(Assets!K$1&"|"&Assets!$B18,'Data Annex'!$K$1:$K$6000,0),MATCH(Assets!K$2,'Data Annex'!$K$1:$AO$1,0)),"") -> 0.0075903908 | L18: =IFERROR(INDEX('Data Annex'!$K$1:$AO$6000,MATCH(Assets!L$1&"|"&Assets!$B18,'Data Annex'!$K$1:$K$6000,0),MATCH(Assets!L$2,'Data Annex'!$K$1:$AO$1,0)),"") -> 0.0082801433 | M18: =IFERROR(INDEX('Data Annex'!$K$1:$AO$6000,MATCH(Assets!M$1&"|"&Assets!$B18,'Data Annex'!$K$1:$K$6000,0),MATCH(Assets!M$2,'Data Annex'!$K$1:$AO$1,0)),"") -> 0.1369795379 | N18: =IFERROR(INDEX('Data Annex'!$K$1:$AO$6000,MATCH(Assets!N$1&"|"&Assets!$B18,'Data Annex'!$K$1:$K$6000,0),MATCH(Assets!N$2,'Data Annex'!$K$1:$AO$1,0)),"") -> 0.1366725464 | O18: =IFERROR(INDEX('Data Annex'!$K$1:$AO$6000,MATCH(Assets!O$1&"|"&Assets!$B18,'Data Annex'!$K$1:$K$6000,0),MATCH(Assets!O$2,'Data Annex'!$K$1:$AO$1,0)),"") -> 0.1380723139 | P18: =IFERROR(INDEX('Data Annex'!$K$1:$AO$6000,MATCH(Assets!P$1&"|"&Assets!$B18,'Data Annex'!$K$1:$K$6000,0),MATCH(Assets!P$2,'Data Annex'!$K$1:$AO$1,0)),"") -> 0.1291531433 | Q18: =IFERROR(INDEX('Data Annex'!$K$1:$AO$6000,MATCH(Assets!Q$1&"|"&Assets!$B18,'Data Annex'!$K$1:$K$6000,0),MATCH(Assets!Q$2,'Data Annex'!$K$1:$AO$1,0)),"") -> 0.5521379674 | R18: =IFERROR(INDEX('Data Annex'!$K$1:$AO$6000,MATCH(Assets!R$1&"|"&Assets!$B18,'Data Annex'!$K$1:$K$6000,0),MATCH(Assets!R$2,'Data Annex'!$K$1:$AO$1,0)),"") -> 0.5487647265 | S18: =IFERROR(INDEX('Data Annex'!$K$1:$AO$6000,MATCH(Assets!S$1&"|"&Assets!$B18,'Data Annex'!$K$1:$K$6000,0),MATCH(Assets!S$2,'Data Annex'!$K$1:$AO$1,0)),"") -> 0.5539725329 | T18: =IFERROR(INDEX('Data Annex'!$K$1:$AO$6000,MATCH(Assets!T$1&"|"&Assets!$B18,'Data Annex'!$K$1:$K$6000,0),MATCH(Assets!T$2,'Data Annex'!$K$1:$AO$1,0)),"") -> 0.5533771995 | U18: =IFERROR(INDEX('Data Annex'!$K$1:$AO$6000,MATCH(Assets!U$1&"|"&Assets!$B18,'Data Annex'!$K$1:$K$6000,0),MATCH(Assets!U$2,'Data Annex'!$K$1:$AO$1,0)),"") -> 0.1386970899 | V18: =IFERROR(INDEX('Data Annex'!$K$1:$AO$6000,MATCH(Assets!V$1&"|"&Assets!$B18,'Data Annex'!$K$1:$K$6000,0),MATCH(Assets!V$2,'Data Annex'!$K$1:$AO$1,0)),"") -> 0.1298298847 | W18: =IFERROR(INDEX('Data Annex'!$K$1:$AO$6000,MATCH(Assets!W$1&"|"&Assets!$B18,'Data Annex'!$K$1:$K$6000,0),MATCH(Assets!W$2,'Data Annex'!$K$1:$AO$1,0)),"") -> 0.1357797099 | X18: =IFERROR(INDEX('Data Annex'!$K$1:$AO$6000,MATCH(Assets!X$1&"|"&Assets!$B18,'Data Annex'!$K$1:$K$6000,0),MATCH(Assets!X$2,'Data Annex'!$K$1:$AO$1,0)),"") -> 0.1116763175 | Y18: =IFERROR(INDEX('Data Annex'!$K$1:$AO$6000,MATCH(Assets!Y$1&"|"&Assets!$B18,'Data Annex'!$K$1:$K$6000,0),MATCH(Assets!Y$2,'Data Annex'!$K$1:$AO$1,0)),"") -> 0.0260073069 | Z18: =IFERROR(INDEX('Data Annex'!$K$1:$AO$6000,MATCH(Assets!Z$1&"|"&Assets!$B18,'Data Annex'!$K$1:$K$6000,0),MATCH(Assets!Z$2,'Data Annex'!$K$1:$AO$1,0)),"") -> 0.0258430298 | AA18: =IFERROR(INDEX('Data Annex'!$K$1:$AO$6000,MATCH(Assets!AA$1&"|"&Assets!$B18,'Data Annex'!$K$1:$K$6000,0),MATCH(Assets!AA$2,'Data Annex'!$K$1:$AO$1,0)),"") -> 0.0266476989 | AB18: =IFERROR(INDEX('Data Annex'!$K$1:$AO$6000,MATCH(Assets!AB$1&"|"&Assets!$B18,'Data Annex'!$K$1:$K$6000,0),MATCH(Assets!AB$2,'Data Annex'!$K$1:$AO$1,0)),"") -> 0.0256435029 | AC18: =IFERROR(INDEX('Data Annex'!$K$1:$AH$6000,MATCH(Assets!AC$1&"|"&Assets!$B18,'Data Annex'!$K$1:$K$6000,0),MATCH(Assets!AC$2,'Data Annex'!$K$1:$AH$1,0)),"") -> 
B19: DK | D19: DK | E19: =IFERROR(INDEX('Data Annex'!$K$1:$AN$6000,MATCH(Assets!E$1&"|"&Assets!$B19,'Data Annex'!$K$1:$K$6000,0),MATCH(Assets!E$2,'Data Annex'!$K$1:$AN$1,0)),"") -> 0.0474422283 | F19: =IFERROR(INDEX('Data Annex'!$K$1:$AN$6000,MATCH(Assets!F$1&"|"&Assets!$B19,'Data Annex'!$K$1:$K$6000,0),MATCH(Assets!F$2,'Data Annex'!$K$1:$AN$1,0)),"") -> 0.0512306762 | G19: =IFERROR(INDEX('Data Annex'!$K$1:$AN$6000,MATCH(Assets!G$1&"|"&Assets!$B19,'Data Annex'!$K$1:$K$6000,0),MATCH(Assets!G$2,'Data Annex'!$K$1:$AN$1,0)),"") -> 0.0707650719 | H19: =IFERROR(INDEX('Data Annex'!$K$1:$AO$6000,MATCH(Assets!H$1&"|"&Assets!$B19,'Data Annex'!$K$1:$K$6000,0),MATCH(Assets!H$2,'Data Annex'!$K$1:$AO$1,0)),"") -> 0.0701525981 | I19: =IFERROR(INDEX('Data Annex'!$K$1:$AO$6000,MATCH(Assets!I$1&"|"&Assets!$B19,'Data Annex'!$K$1:$K$6000,0),MATCH(Assets!I$2,'Data Annex'!$K$1:$AO$1,0)),"") -> 0.0044925977 | J19: =IFERROR(INDEX('Data Annex'!$K$1:$AO$6000,MATCH(Assets!J$1&"|"&Assets!$B19,'Data Annex'!$K$1:$K$6000,0),MATCH(Assets!J$2,'Data Annex'!$K$1:$AO$1,0)),"") -> 0.0056848335 | K19: =IFERROR(INDEX('Data Annex'!$K$1:$AO$6000,MATCH(Assets!K$1&"|"&Assets!$B19,'Data Annex'!$K$1:$K$6000,0),MATCH(Assets!K$2,'Data Annex'!$K$1:$AO$1,0)),"") -> 0.0061399519 | L19: =IFERROR(INDEX('Data Annex'!$K$1:$AO$6000,MATCH(Assets!L$1&"|"&Assets!$B19,'Data Annex'!$K$1:$K$6000,0),MATCH(Assets!L$2,'Data Annex'!$K$1:$AO$1,0)),"") -> 0.0066932283 | M19: =IFERROR(INDEX('Data Annex'!$K$1:$AO$6000,MATCH(Assets!M$1&"|"&Assets!$B19,'Data Annex'!$K$1:$K$6000,0),MATCH(Assets!M$2,'Data Annex'!$K$1:$AO$1,0)),"") -> 0.1315939271 | N19: =IFERROR(INDEX('Data Annex'!$K$1:$AO$6000,MATCH(Assets!N$1&"|"&Assets!$B19,'Data Annex'!$K$1:$K$6000,0),MATCH(Assets!N$2,'Data Annex'!$K$1:$AO$1,0)),"") -> 0.1397808727 | O19: =IFERROR(INDEX('Data Annex'!$K$1:$AO$6000,MATCH(Assets!O$1&"|"&Assets!$B19,'Data Annex'!$K$1:$K$6000,0),MATCH(Assets!O$2,'Data Annex'!$K$1:$AO$1,0)),"") -> 0.1345382641 | P19: =IFERROR(INDEX('Data Annex'!$K$1:$AO$6000,MATCH(Assets!P$1&"|"&Assets!$B19,'Data Annex'!$K$1:$K$6000,0),MATCH(Assets!P$2,'Data Annex'!$K$1:$AO$1,0)),"") -> 0.1417907207 | Q19: =IFERROR(INDEX('Data Annex'!$K$1:$AO$6000,MATCH(Assets!Q$1&"|"&Assets!$B19,'Data Annex'!$K$1:$K$6000,0),MATCH(Assets!Q$2,'Data Annex'!$K$1:$AO$1,0)),"") -> 0.7140153624 | R19: =IFERROR(INDEX('Data Annex'!$K$1:$AO$6000,MATCH(Assets!R$1&"|"&Assets!$B19,'Data Annex'!$K$1:$K$6000,0),MATCH(Assets!R$2,'Data Annex'!$K$1:$AO$1,0)),"") -> 0.7051810093 | S19: =IFERROR(INDEX('Data Annex'!$K$1:$AO$6000,MATCH(Assets!S$1&"|"&Assets!$B19,'Data Annex'!$K$1:$K$6000,0),MATCH(Assets!S$2,'Data Annex'!$K$1:$AO$1,0)),"") -> 0.6901385892 | T19: =IFERROR(INDEX('Data Annex'!$K$1:$AO$6000,MATCH(Assets!T$1&"|"&Assets!$B19,'Data Annex'!$K$1:$K$6000,0),MATCH(Assets!T$2,'Data Annex'!$K$1:$AO$1,0)),"") -> 0.6945602134 | U19: =IFERROR(INDEX('Data Annex'!$K$1:$AO$6000,MATCH(Assets!U$1&"|"&Assets!$B19,'Data Annex'!$K$1:$K$6000,0),MATCH(Assets!U$2,'Data Annex'!$K$1:$AO$1,0)),"") -> 0.078688225 | V19: =IFERROR(INDEX('Data Annex'!$K$1:$AO$6000,MATCH(Assets!V$1&"|"&Assets!$B19,'Data Annex'!$K$1:$K$6000,0),MATCH(Assets!V$2,'Data Annex'!$K$1:$AO$1,0)),"") -> 0.0742625739 | W19: =IFERROR(INDEX('Data Annex'!$K$1:$AO$6000,MATCH(Assets!W$1&"|"&Assets!$B19,'Data Annex'!$K$1:$K$6000,0),MATCH(Assets!W$2,'Data Annex'!$K$1:$AO$1,0)),"") -> 0.0748243501 | X19: =IFERROR(INDEX('Data Annex'!$K$1:$AO$6000,MATCH(Assets!X$1&"|"&Assets!$B19,'Data Annex'!$K$1:$K$6000,0),MATCH(Assets!X$2,'Data Annex'!$K$1:$AO$1,0)),"") -> 0.0626951399 | Y19: =IFERROR(INDEX('Data Annex'!$K$1:$AO$6000,MATCH(Assets!Y$1&"|"&Assets!$B19,'Data Annex'!$K$1:$K$6000,0),MATCH(Assets!Y$2,'Data Annex'!$K$1:$AO$1,0)),"") -> 0.0237676595 | Z19: =IFERROR(INDEX('Data Annex'!$K$1:$AO$6000,MATCH(Assets!Z$1&"|"&Assets!$B19,'Data Annex'!$K$1:$K$6000,0),MATCH(Assets!Z$2,'Data Annex'!$K$1:$AO$1,0)),"") -> 0.0238600344 | AA19: =IFERROR(INDEX('Data Annex'!$K$1:$AO$6000,MATCH(Assets!AA$1&"|"&Assets!$B19,'Data Annex'!$K$1:$K$6000,0),MATCH(Assets!AA$2,'Data Annex'!$K$1:$AO$1,0)),"") -> 0.0235937729 | AB19: =IFERROR(INDEX('Data Annex'!$K$1:$AO$6000,MATCH(Assets!AB$1&"|"&Assets!$B19,'Data Annex'!$K$1:$K$6000,0),MATCH(Assets!AB$2,'Data Annex'!$K$1:$AO$1,0)),"") -> 0.0241080996 | AC19: =IFERROR(INDEX('Data Annex'!$K$1:$AH$6000,MATCH(Assets!AC$1&"|"&Assets!$B19,'Data Annex'!$K$1:$K$6000,0),MATCH(Assets!AC$2,'Data Annex'!$K$1:$AH$1,0)),"") -> 
B20: EE | D20: EE | E20: =IFERROR(INDEX('Data Annex'!$K$1:$AN$6000,MATCH(Assets!E$1&"|"&Assets!$B20,'Data Annex'!$K$1:$K$6000,0),MATCH(Assets!E$2,'Data Annex'!$K$1:$AN$1,0)),"") -> 0.2346068731 | F20: =IFERROR(INDEX('Data Annex'!$K$1:$AN$6000,MATCH(Assets!F$1&"|"&Assets!$B20,'Data Annex'!$K$1:$K$6000,0),MATCH(Assets!F$2,'Data Annex'!$K$1:$AN$1,0)),"") -> 0.2530743588 | G20: =IFERROR(INDEX('Data Annex'!$K$1:$AN$6000,MATCH(Assets!G$1&"|"&Assets!$B20,'Data Annex'!$K$1:$K$6000,0),MATCH(Assets!G$2,'Data Annex'!$K$1:$AN$1,0)),"") -> 0.2812879921 | H20: =IFERROR(INDEX('Data Annex'!$K$1:$AO$6000,MATCH(Assets!H$1&"|"&Assets!$B20,'Data Annex'!$K$1:$K$6000,0),MATCH(Assets!H$2,'Data Annex'!$K$1:$AO$1,0)),"") -> 0.2590042973 | I20: =IFERROR(INDEX('Data Annex'!$K$1:$AO$6000,MATCH(Assets!I$1&"|"&Assets!$B20,'Data Annex'!$K$1:$K$6000,0),MATCH(Assets!I$2,'Data Annex'!$K$1:$AO$1,0)),"") -> 0.0004839829 | J20: =IFERROR(INDEX('Data Annex'!$K$1:$AO$6000,MATCH(Assets!J$1&"|"&Assets!$B20,'Data Annex'!$K$1:$K$6000,0),MATCH(Assets!J$2,'Data Annex'!$K$1:$AO$1,0)),"") -> 0.0004771147 | K20: =IFERROR(INDEX('Data Annex'!$K$1:$AO$6000,MATCH(Assets!K$1&"|"&Assets!$B20,'Data Annex'!$K$1:$K$6000,0),MATCH(Assets!K$2,'Data Annex'!$K$1:$AO$1,0)),"") -> 0.0003537127 | L20: =IFERROR(INDEX('Data Annex'!$K$1:$AO$6000,MATCH(Assets!L$1&"|"&Assets!$B20,'Data Annex'!$K$1:$K$6000,0),MATCH(Assets!L$2,'Data Annex'!$K$1:$AO$1,0)),"") -> 0.000412895 | M20: =IFERROR(INDEX('Data Annex'!$K$1:$AO$6000,MATCH(Assets!M$1&"|"&Assets!$B20,'Data Annex'!$K$1:$K$6000,0),MATCH(Assets!M$2,'Data Annex'!$K$1:$AO$1,0)),"") -> 0.0799827384 | N20: =IFERROR(INDEX('Data Annex'!$K$1:$AO$6000,MATCH(Assets!N$1&"|"&Assets!$B20,'Data Annex'!$K$1:$K$6000,0),MATCH(Assets!N$2,'Data Annex'!$K$1:$AO$1,0)),"") -> 0.0782807987 | O20: =IFERROR(INDEX('Data Annex'!$K$1:$AO$6000,MATCH(Assets!O$1&"|"&Assets!$B20,'Data Annex'!$K$1:$K$6000,0),MATCH(Assets!O$2,'Data Annex'!$K$1:$AO$1,0)),"") -> 0.0699538309 | P20: =IFERROR(INDEX('Data Annex'!$K$1:$AO$6000,MATCH(Assets!P$1&"|"&Assets!$B20,'Data Annex'!$K$1:$K$6000,0),MATCH(Assets!P$2,'Data Annex'!$K$1:$AO$1,0)),"") -> 0.0761885394 | Q20: =IFERROR(INDEX('Data Annex'!$K$1:$AO$6000,MATCH(Assets!Q$1&"|"&Assets!$B20,'Data Annex'!$K$1:$K$6000,0),MATCH(Assets!Q$2,'Data Annex'!$K$1:$AO$1,0)),"") -> 0.6724347335 | R20: =IFERROR(INDEX('Data Annex'!$K$1:$AO$6000,MATCH(Assets!R$1&"|"&Assets!$B20,'Data Annex'!$K$1:$K$6000,0),MATCH(Assets!R$2,'Data Annex'!$K$1:$AO$1,0)),"") -> 0.6557902814 | S20: =IFERROR(INDEX('Data Annex'!$K$1:$AO$6000,MATCH(Assets!S$1&"|"&Assets!$B20,'Data Annex'!$K$1:$K$6000,0),MATCH(Assets!S$2,'Data Annex'!$K$1:$AO$1,0)),"") -> 0.6351108931 | T20: =IFERROR(INDEX('Data Annex'!$K$1:$AO$6000,MATCH(Assets!T$1&"|"&Assets!$B20,'Data Annex'!$K$1:$K$6000,0),MATCH(Assets!T$2,'Data Annex'!$K$1:$AO$1,0)),"") -> 0.6539179899 | U20: =IFERROR(INDEX('Data Annex'!$K$1:$AO$6000,MATCH(Assets!U$1&"|"&Assets!$B20,'Data Annex'!$K$1:$K$6000,0),MATCH(Assets!U$2,'Data Annex'!$K$1:$AO$1,0)),"") -> 0.0018372178 | V20: =IFERROR(INDEX('Data Annex'!$K$1:$AO$6000,MATCH(Assets!V$1&"|"&Assets!$B20,'Data Annex'!$K$1:$K$6000,0),MATCH(Assets!V$2,'Data Annex'!$K$1:$AO$1,0)),"") -> 0.0017666567 | W20: =IFERROR(INDEX('Data Annex'!$K$1:$AO$6000,MATCH(Assets!W$1&"|"&Assets!$B20,'Data Annex'!$K$1:$K$6000,0),MATCH(Assets!W$2,'Data Annex'!$K$1:$AO$1,0)),"") -> 0.0014840571 | X20: =IFERROR(INDEX('Data Annex'!$K$1:$AO$6000,MATCH(Assets!X$1&"|"&Assets!$B20,'Data Annex'!$K$1:$K$6000,0),MATCH(Assets!X$2,'Data Annex'!$K$1:$AO$1,0)),"") -> 0.0019718749 | Y20: =IFERROR(INDEX('Data Annex'!$K$1:$AO$6000,MATCH(Assets!Y$1&"|"&Assets!$B20,'Data Annex'!$K$1:$K$6000,0),MATCH(Assets!Y$2,'Data Annex'!$K$1:$AO$1,0)),"") -> 0.0106544542 | Z20: =IFERROR(INDEX('Data Annex'!$K$1:$AO$6000,MATCH(Assets!Z$1&"|"&Assets!$B20,'Data Annex'!$K$1:$K$6000,0),MATCH(Assets!Z$2,'Data Annex'!$K$1:$AO$1,0)),"") -> 0.0106107896 | AA20: =IFERROR(INDEX('Data Annex'!$K$1:$AO$6000,MATCH(Assets!AA$1&"|"&Assets!$B20,'Data Annex'!$K$1:$K$6000,0),MATCH(Assets!AA$2,'Data Annex'!$K$1:$AO$1,0)),"") -> 0.0118095141 | AB20: =IFERROR(INDEX('Data Annex'!$K$1:$AO$6000,MATCH(Assets!AB$1&"|"&Assets!$B20,'Data Annex'!$K$1:$K$6000,0),MATCH(Assets!AB$2,'Data Annex'!$K$1:$AO$1,0)),"") -> 0.0085044035 | AC20: =IFERROR(INDEX('Data Annex'!$K$1:$AH$6000,MATCH(Assets!AC$1&"|"&Assets!$B20,'Data Annex'!$K$1:$K$6000,0),MATCH(Assets!AC$2,'Data Annex'!$K$1:$AH$1,0)),"") -> 
B21: ES | D21: ES | E21: =IFERROR(INDEX('Data Annex'!$K$1:$AN$6000,MATCH(Assets!E$1&"|"&Assets!$B21,'Data Annex'!$K$1:$K$6000,0),MATCH(Assets!E$2,'Data Annex'!$K$1:$AN$1,0)),"") -> 0.0939519757 | F21: =IFERROR(INDEX('Data Annex'!$K$1:$AN$6000,MATCH(Assets!F$1&"|"&Assets!$B21,'Data Annex'!$K$1:$K$6000,0),MATCH(Assets!F$2,'Data Annex'!$K$1:$AN$1,0)),"") -> 0.1014205798 | G21: =IFERROR(INDEX('Data Annex'!$K$1:$AN$6000,MATCH(Assets!G$1&"|"&Assets!$B21,'Data Annex'!$K$1:$K$6000,0),MATCH(Assets!G$2,'Data Annex'!$K$1:$AN$1,0)),"") -> 0.1020603686 | H21: =IFERROR(INDEX('Data Annex'!$K$1:$AO$6000,MATCH(Assets!H$1&"|"&Assets!$B21,'Data Annex'!$K$1:$K$6000,0),MATCH(Assets!H$2,'Data Annex'!$K$1:$AO$1,0)),"") -> 0.1187764128 | I21: =IFERROR(INDEX('Data Annex'!$K$1:$AO$6000,MATCH(Assets!I$1&"|"&Assets!$B21,'Data Annex'!$K$1:$K$6000,0),MATCH(Assets!I$2,'Data Annex'!$K$1:$AO$1,0)),"") -> 0.0072989544 | J21: =IFERROR(INDEX('Data Annex'!$K$1:$AO$6000,MATCH(Assets!J$1&"|"&Assets!$B21,'Data Annex'!$K$1:$K$6000,0),MATCH(Assets!J$2,'Data Annex'!$K$1:$AO$1,0)),"") -> 0.0075441254 | K21: =IFERROR(INDEX('Data Annex'!$K$1:$AO$6000,MATCH(Assets!K$1&"|"&Assets!$B21,'Data Annex'!$K$1:$K$6000,0),MATCH(Assets!K$2,'Data Annex'!$K$1:$AO$1,0)),"") -> 0.0092669083 | L21: =IFERROR(INDEX('Data Annex'!$K$1:$AO$6000,MATCH(Assets!L$1&"|"&Assets!$B21,'Data Annex'!$K$1:$K$6000,0),MATCH(Assets!L$2,'Data Annex'!$K$1:$AO$1,0)),"") -> 0.0098545114 | M21: =IFERROR(INDEX('Data Annex'!$K$1:$AO$6000,MATCH(Assets!M$1&"|"&Assets!$B21,'Data Annex'!$K$1:$K$6000,0),MATCH(Assets!M$2,'Data Annex'!$K$1:$AO$1,0)),"") -> 0.135005813 | N21: =IFERROR(INDEX('Data Annex'!$K$1:$AO$6000,MATCH(Assets!N$1&"|"&Assets!$B21,'Data Annex'!$K$1:$K$6000,0),MATCH(Assets!N$2,'Data Annex'!$K$1:$AO$1,0)),"") -> 0.1377909643 | O21: =IFERROR(INDEX('Data Annex'!$K$1:$AO$6000,MATCH(Assets!O$1&"|"&Assets!$B21,'Data Annex'!$K$1:$K$6000,0),MATCH(Assets!O$2,'Data Annex'!$K$1:$AO$1,0)),"") -> 0.1213331267 | P21: =IFERROR(INDEX('Data Annex'!$K$1:$AO$6000,MATCH(Assets!P$1&"|"&Assets!$B21,'Data Annex'!$K$1:$K$6000,0),MATCH(Assets!P$2,'Data Annex'!$K$1:$AO$1,0)),"") -> 0.1313252426 | Q21: =IFERROR(INDEX('Data Annex'!$K$1:$AO$6000,MATCH(Assets!Q$1&"|"&Assets!$B21,'Data Annex'!$K$1:$K$6000,0),MATCH(Assets!Q$2,'Data Annex'!$K$1:$AO$1,0)),"") -> 0.6454992137 | R21: =IFERROR(INDEX('Data Annex'!$K$1:$AO$6000,MATCH(Assets!R$1&"|"&Assets!$B21,'Data Annex'!$K$1:$K$6000,0),MATCH(Assets!R$2,'Data Annex'!$K$1:$AO$1,0)),"") -> 0.6374329468 | S21: =IFERROR(INDEX('Data Annex'!$K$1:$AO$6000,MATCH(Assets!S$1&"|"&Assets!$B21,'Data Annex'!$K$1:$K$6000,0),MATCH(Assets!S$2,'Data Annex'!$K$1:$AO$1,0)),"") -> 0.5839975982 | T21: =IFERROR(INDEX('Data Annex'!$K$1:$AO$6000,MATCH(Assets!T$1&"|"&Assets!$B21,'Data Annex'!$K$1:$K$6000,0),MATCH(Assets!T$2,'Data Annex'!$K$1:$AO$1,0)),"") -> 0.6175335655 | U21: =IFERROR(INDEX('Data Annex'!$K$1:$AO$6000,MATCH(Assets!U$1&"|"&Assets!$B21,'Data Annex'!$K$1:$K$6000,0),MATCH(Assets!U$2,'Data Annex'!$K$1:$AO$1,0)),"") -> 0.0503817189 | V21: =IFERROR(INDEX('Data Annex'!$K$1:$AO$6000,MATCH(Assets!V$1&"|"&Assets!$B21,'Data Annex'!$K$1:$K$6000,0),MATCH(Assets!V$2,'Data Annex'!$K$1:$AO$1,0)),"") -> 0.0471156541 | W21: =IFERROR(INDEX('Data Annex'!$K$1:$AO$6000,MATCH(Assets!W$1&"|"&Assets!$B21,'Data Annex'!$K$1:$K$6000,0),MATCH(Assets!W$2,'Data Annex'!$K$1:$AO$1,0)),"") -> 0.0395199966 | X21: =IFERROR(INDEX('Data Annex'!$K$1:$AO$6000,MATCH(Assets!X$1&"|"&Assets!$B21,'Data Annex'!$K$1:$K$6000,0),MATCH(Assets!X$2,'Data Annex'!$K$1:$AO$1,0)),"") -> 0.0349795593 | Y21: =IFERROR(INDEX('Data Annex'!$K$1:$AO$6000,MATCH(Assets!Y$1&"|"&Assets!$B21,'Data Annex'!$K$1:$K$6000,0),MATCH(Assets!Y$2,'Data Annex'!$K$1:$AO$1,0)),"") -> 0.0678623245 | Z21: =IFERROR(INDEX('Data Annex'!$K$1:$AO$6000,MATCH(Assets!Z$1&"|"&Assets!$B21,'Data Annex'!$K$1:$K$6000,0),MATCH(Assets!Z$2,'Data Annex'!$K$1:$AO$1,0)),"") -> 0.0686957301 | AA21: =IFERROR(INDEX('Data Annex'!$K$1:$AO$6000,MATCH(Assets!AA$1&"|"&Assets!$B21,'Data Annex'!$K$1:$K$6000,0),MATCH(Assets!AA$2,'Data Annex'!$K$1:$AO$1,0)),"") -> 0.1438220012 | AB21: =IFERROR(INDEX('Data Annex'!$K$1:$AO$6000,MATCH(Assets!AB$1&"|"&Assets!$B21,'Data Annex'!$K$1:$K$6000,0),MATCH(Assets!AB$2,'Data Annex'!$K$1:$AO$1,0)),"") -> 0.0875307083 | AC21: =IFERROR(INDEX('Data Annex'!$K$1:$AH$6000,MATCH(Assets!AC$1&"|"&Assets!$B21,'Data Annex'!$K$1:$K$6000,0),MATCH(Assets!AC$2,'Data Annex'!$K$1:$AH$1,0)),"") -> 
B22: FI | D22: FI | E22: =IFERROR(INDEX('Data Annex'!$K$1:$AN$6000,MATCH(Assets!E$1&"|"&Assets!$B22,'Data Annex'!$K$1:$K$6000,0),MATCH(Assets!E$2,'Data Annex'!$K$1:$AN$1,0)),"") -> 0.1079413938 | F22: =IFERROR(INDEX('Data Annex'!$K$1:$AN$6000,MATCH(Assets!F$1&"|"&Assets!$B22,'Data Annex'!$K$1:$K$6000,0),MATCH(Assets!F$2,'Data Annex'!$K$1:$AN$1,0)),"") -> 0.1127537765 | G22: =IFERROR(INDEX('Data Annex'!$K$1:$AN$6000,MATCH(Assets!G$1&"|"&Assets!$B22,'Data Annex'!$K$1:$K$6000,0),MATCH(Assets!G$2,'Data Annex'!$K$1:$AN$1,0)),"") -> 0.0931234167 | H22: =IFERROR(INDEX('Data Annex'!$K$1:$AO$6000,MATCH(Assets!H$1&"|"&Assets!$B22,'Data Annex'!$K$1:$K$6000,0),MATCH(Assets!H$2,'Data Annex'!$K$1:$AO$1,0)),"") -> 0.1295339877 | I22: =IFERROR(INDEX('Data Annex'!$K$1:$AO$6000,MATCH(Assets!I$1&"|"&Assets!$B22,'Data Annex'!$K$1:$K$6000,0),MATCH(Assets!I$2,'Data Annex'!$K$1:$AO$1,0)),"") -> 0.0074864538 | J22: =IFERROR(INDEX('Data Annex'!$K$1:$AO$6000,MATCH(Assets!J$1&"|"&Assets!$B22,'Data Annex'!$K$1:$K$6000,0),MATCH(Assets!J$2,'Data Annex'!$K$1:$AO$1,0)),"") -> 0.0077294564 | K22: =IFERROR(INDEX('Data Annex'!$K$1:$AO$6000,MATCH(Assets!K$1&"|"&Assets!$B22,'Data Annex'!$K$1:$K$6000,0),MATCH(Assets!K$2,'Data Annex'!$K$1:$AO$1,0)),"") -> 0.0072925821 | L22: =IFERROR(INDEX('Data Annex'!$K$1:$AO$6000,MATCH(Assets!L$1&"|"&Assets!$B22,'Data Annex'!$K$1:$K$6000,0),MATCH(Assets!L$2,'Data Annex'!$K$1:$AO$1,0)),"") -> 0.015556164 | M22: =IFERROR(INDEX('Data Annex'!$K$1:$AO$6000,MATCH(Assets!M$1&"|"&Assets!$B22,'Data Annex'!$K$1:$K$6000,0),MATCH(Assets!M$2,'Data Annex'!$K$1:$AO$1,0)),"") -> 0.1295644483 | N22: =IFERROR(INDEX('Data Annex'!$K$1:$AO$6000,MATCH(Assets!N$1&"|"&Assets!$B22,'Data Annex'!$K$1:$K$6000,0),MATCH(Assets!N$2,'Data Annex'!$K$1:$AO$1,0)),"") -> 0.1250475259 | O22: =IFERROR(INDEX('Data Annex'!$K$1:$AO$6000,MATCH(Assets!O$1&"|"&Assets!$B22,'Data Annex'!$K$1:$K$6000,0),MATCH(Assets!O$2,'Data Annex'!$K$1:$AO$1,0)),"") -> 0.1161399781 | P22: =IFERROR(INDEX('Data Annex'!$K$1:$AO$6000,MATCH(Assets!P$1&"|"&Assets!$B22,'Data Annex'!$K$1:$K$6000,0),MATCH(Assets!P$2,'Data Annex'!$K$1:$AO$1,0)),"") -> 0.1146882631 | Q22: =IFERROR(INDEX('Data Annex'!$K$1:$AO$6000,MATCH(Assets!Q$1&"|"&Assets!$B22,'Data Annex'!$K$1:$K$6000,0),MATCH(Assets!Q$2,'Data Annex'!$K$1:$AO$1,0)),"") -> 0.6573599788 | R22: =IFERROR(INDEX('Data Annex'!$K$1:$AO$6000,MATCH(Assets!R$1&"|"&Assets!$B22,'Data Annex'!$K$1:$K$6000,0),MATCH(Assets!R$2,'Data Annex'!$K$1:$AO$1,0)),"") -> 0.6582754913 | S22: =IFERROR(INDEX('Data Annex'!$K$1:$AO$6000,MATCH(Assets!S$1&"|"&Assets!$B22,'Data Annex'!$K$1:$K$6000,0),MATCH(Assets!S$2,'Data Annex'!$K$1:$AO$1,0)),"") -> 0.684293847 | T22: =IFERROR(INDEX('Data Annex'!$K$1:$AO$6000,MATCH(Assets!T$1&"|"&Assets!$B22,'Data Annex'!$K$1:$K$6000,0),MATCH(Assets!T$2,'Data Annex'!$K$1:$AO$1,0)),"") -> 0.6562750048 | U22: =IFERROR(INDEX('Data Annex'!$K$1:$AO$6000,MATCH(Assets!U$1&"|"&Assets!$B22,'Data Annex'!$K$1:$K$6000,0),MATCH(Assets!U$2,'Data Annex'!$K$1:$AO$1,0)),"") -> 0.0745197952 | V22: =IFERROR(INDEX('Data Annex'!$K$1:$AO$6000,MATCH(Assets!V$1&"|"&Assets!$B22,'Data Annex'!$K$1:$K$6000,0),MATCH(Assets!V$2,'Data Annex'!$K$1:$AO$1,0)),"") -> 0.0732901906 | W22: =IFERROR(INDEX('Data Annex'!$K$1:$AO$6000,MATCH(Assets!W$1&"|"&Assets!$B22,'Data Annex'!$K$1:$K$6000,0),MATCH(Assets!W$2,'Data Annex'!$K$1:$AO$1,0)),"") -> 0.0748920365 | X22: =IFERROR(INDEX('Data Annex'!$K$1:$AO$6000,MATCH(Assets!X$1&"|"&Assets!$B22,'Data Annex'!$K$1:$K$6000,0),MATCH(Assets!X$2,'Data Annex'!$K$1:$AO$1,0)),"") -> 0.0585560723 | Y22: =IFERROR(INDEX('Data Annex'!$K$1:$AO$6000,MATCH(Assets!Y$1&"|"&Assets!$B22,'Data Annex'!$K$1:$K$6000,0),MATCH(Assets!Y$2,'Data Annex'!$K$1:$AO$1,0)),"") -> 0.0231279301 | Z22: =IFERROR(INDEX('Data Annex'!$K$1:$AO$6000,MATCH(Assets!Z$1&"|"&Assets!$B22,'Data Annex'!$K$1:$K$6000,0),MATCH(Assets!Z$2,'Data Annex'!$K$1:$AO$1,0)),"") -> 0.0229035584 | AA22: =IFERROR(INDEX('Data Annex'!$K$1:$AO$6000,MATCH(Assets!AA$1&"|"&Assets!$B22,'Data Annex'!$K$1:$K$6000,0),MATCH(Assets!AA$2,'Data Annex'!$K$1:$AO$1,0)),"") -> 0.0242581397 | AB22: =IFERROR(INDEX('Data Annex'!$K$1:$AO$6000,MATCH(Assets!AB$1&"|"&Assets!$B22,'Data Annex'!$K$1:$K$6000,0),MATCH(Assets!AB$2,'Data Annex'!$K$1:$AO$1,0)),"") -> 0.0253905081 | AC22: =IFERROR(INDEX('Data Annex'!$K$1:$AH$6000,MATCH(Assets!AC$1&"|"&Assets!$B22,'Data Annex'!$K$1:$K$6000,0),MATCH(Assets!AC$2,'Data Annex'!$K$1:$AH$1,0)),"") -> 
B23: FR | D23: FR | E23: =IFERROR(INDEX('Data Annex'!$K$1:$AN$6000,MATCH(Assets!E$1&"|"&Assets!$B23,'Data Annex'!$K$1:$K$6000,0),MATCH(Assets!E$2,'Data Annex'!$K$1:$AN$1,0)),"") -> 0.1178318255 | F23: =IFERROR(INDEX('Data Annex'!$K$1:$AN$6000,MATCH(Assets!F$1&"|"&Assets!$B23,'Data Annex'!$K$1:$K$6000,0),MATCH(Assets!F$2,'Data Annex'!$K$1:$AN$1,0)),"") -> 0.1263413335 | G23: =IFERROR(INDEX('Data Annex'!$K$1:$AN$6000,MATCH(Assets!G$1&"|"&Assets!$B23,'Data Annex'!$K$1:$K$6000,0),MATCH(Assets!G$2,'Data Annex'!$K$1:$AN$1,0)),"") -> 0.1278050147 | H23: =IFERROR(INDEX('Data Annex'!$K$1:$AO$6000,MATCH(Assets!H$1&"|"&Assets!$B23,'Data Annex'!$K$1:$K$6000,0),MATCH(Assets!H$2,'Data Annex'!$K$1:$AO$1,0)),"") -> 0.1419534444 | I23: =IFERROR(INDEX('Data Annex'!$K$1:$AO$6000,MATCH(Assets!I$1&"|"&Assets!$B23,'Data Annex'!$K$1:$K$6000,0),MATCH(Assets!I$2,'Data Annex'!$K$1:$AO$1,0)),"") -> 0.0223877776 | J23: =IFERROR(INDEX('Data Annex'!$K$1:$AO$6000,MATCH(Assets!J$1&"|"&Assets!$B23,'Data Annex'!$K$1:$K$6000,0),MATCH(Assets!J$2,'Data Annex'!$K$1:$AO$1,0)),"") -> 0.0233884033 | K23: =IFERROR(INDEX('Data Annex'!$K$1:$AO$6000,MATCH(Assets!K$1&"|"&Assets!$B23,'Data Annex'!$K$1:$K$6000,0),MATCH(Assets!K$2,'Data Annex'!$K$1:$AO$1,0)),"") -> 0.0267019768 | L23: =IFERROR(INDEX('Data Annex'!$K$1:$AO$6000,MATCH(Assets!L$1&"|"&Assets!$B23,'Data Annex'!$K$1:$K$6000,0),MATCH(Assets!L$2,'Data Annex'!$K$1:$AO$1,0)),"") -> 0.0346474237 | M23: =IFERROR(INDEX('Data Annex'!$K$1:$AO$6000,MATCH(Assets!M$1&"|"&Assets!$B23,'Data Annex'!$K$1:$K$6000,0),MATCH(Assets!M$2,'Data Annex'!$K$1:$AO$1,0)),"") -> 0.1114818275 | N23: =IFERROR(INDEX('Data Annex'!$K$1:$AO$6000,MATCH(Assets!N$1&"|"&Assets!$B23,'Data Annex'!$K$1:$K$6000,0),MATCH(Assets!N$2,'Data Annex'!$K$1:$AO$1,0)),"") -> 0.1076301466 | O23: =IFERROR(INDEX('Data Annex'!$K$1:$AO$6000,MATCH(Assets!O$1&"|"&Assets!$B23,'Data Annex'!$K$1:$K$6000,0),MATCH(Assets!O$2,'Data Annex'!$K$1:$AO$1,0)),"") -> 0.1003063415 | P23: =IFERROR(INDEX('Data Annex'!$K$1:$AO$6000,MATCH(Assets!P$1&"|"&Assets!$B23,'Data Annex'!$K$1:$K$6000,0),MATCH(Assets!P$2,'Data Annex'!$K$1:$AO$1,0)),"") -> 0.1055550223 | Q23: =IFERROR(INDEX('Data Annex'!$K$1:$AO$6000,MATCH(Assets!Q$1&"|"&Assets!$B23,'Data Annex'!$K$1:$K$6000,0),MATCH(Assets!Q$2,'Data Annex'!$K$1:$AO$1,0)),"") -> 0.59060693 | R23: =IFERROR(INDEX('Data Annex'!$K$1:$AO$6000,MATCH(Assets!R$1&"|"&Assets!$B23,'Data Annex'!$K$1:$K$6000,0),MATCH(Assets!R$2,'Data Annex'!$K$1:$AO$1,0)),"") -> 0.5892184451 | S23: =IFERROR(INDEX('Data Annex'!$K$1:$AO$6000,MATCH(Assets!S$1&"|"&Assets!$B23,'Data Annex'!$K$1:$K$6000,0),MATCH(Assets!S$2,'Data Annex'!$K$1:$AO$1,0)),"") -> 0.5917221236 | T23: =IFERROR(INDEX('Data Annex'!$K$1:$AO$6000,MATCH(Assets!T$1&"|"&Assets!$B23,'Data Annex'!$K$1:$K$6000,0),MATCH(Assets!T$2,'Data Annex'!$K$1:$AO$1,0)),"") -> 0.5829245379 | U23: =IFERROR(INDEX('Data Annex'!$K$1:$AO$6000,MATCH(Assets!U$1&"|"&Assets!$B23,'Data Annex'!$K$1:$K$6000,0),MATCH(Assets!U$2,'Data Annex'!$K$1:$AO$1,0)),"") -> 0.0926243332 | V23: =IFERROR(INDEX('Data Annex'!$K$1:$AO$6000,MATCH(Assets!V$1&"|"&Assets!$B23,'Data Annex'!$K$1:$K$6000,0),MATCH(Assets!V$2,'Data Annex'!$K$1:$AO$1,0)),"") -> 0.087967764 | W23: =IFERROR(INDEX('Data Annex'!$K$1:$AO$6000,MATCH(Assets!W$1&"|"&Assets!$B23,'Data Annex'!$K$1:$K$6000,0),MATCH(Assets!W$2,'Data Annex'!$K$1:$AO$1,0)),"") -> 0.0869408979 | X23: =IFERROR(INDEX('Data Annex'!$K$1:$AO$6000,MATCH(Assets!X$1&"|"&Assets!$B23,'Data Annex'!$K$1:$K$6000,0),MATCH(Assets!X$2,'Data Annex'!$K$1:$AO$1,0)),"") -> 0.074700193 | Y23: =IFERROR(INDEX('Data Annex'!$K$1:$AO$6000,MATCH(Assets!Y$1&"|"&Assets!$B23,'Data Annex'!$K$1:$K$6000,0),MATCH(Assets!Y$2,'Data Annex'!$K$1:$AO$1,0)),"") -> 0.0650673062 | Z23: =IFERROR(INDEX('Data Annex'!$K$1:$AO$6000,MATCH(Assets!Z$1&"|"&Assets!$B23,'Data Annex'!$K$1:$K$6000,0),MATCH(Assets!Z$2,'Data Annex'!$K$1:$AO$1,0)),"") -> 0.0654539076 | AA23: =IFERROR(INDEX('Data Annex'!$K$1:$AO$6000,MATCH(Assets!AA$1&"|"&Assets!$B23,'Data Annex'!$K$1:$K$6000,0),MATCH(Assets!AA$2,'Data Annex'!$K$1:$AO$1,0)),"") -> 0.0665236457 | AB23: =IFERROR(INDEX('Data Annex'!$K$1:$AO$6000,MATCH(Assets!AB$1&"|"&Assets!$B23,'Data Annex'!$K$1:$K$6000,0),MATCH(Assets!AB$2,'Data Annex'!$K$1:$AO$1,0)),"") -> 0.0602193786 | AC23: =IFERROR(INDEX('Data Annex'!$K$1:$AH$6000,MATCH(Assets!AC$1&"|"&Assets!$B23,'Data Annex'!$K$1:$K$6000,0),MATCH(Assets!AC$2,'Data Annex'!$K$1:$AH$1,0)),"") -> 
B24: GR | D24: GR | E24: =IFERROR(INDEX('Data Annex'!$K$1:$AN$6000,MATCH(Assets!E$1&"|"&Assets!$B24,'Data Annex'!$K$1:$K$6000,0),MATCH(Assets!E$2,'Data Annex'!$K$1:$AN$1,0)),"") -> 0.0959096473 | F24: =IFERROR(INDEX('Data Annex'!$K$1:$AN$6000,MATCH(Assets!F$1&"|"&Assets!$B24,'Data Annex'!$K$1:$K$6000,0),MATCH(Assets!F$2,'Data Annex'!$K$1:$AN$1,0)),"") -> 0.1052206413 | G24: =IFERROR(INDEX('Data Annex'!$K$1:$AN$6000,MATCH(Assets!G$1&"|"&Assets!$B24,'Data Annex'!$K$1:$K$6000,0),MATCH(Assets!G$2,'Data Annex'!$K$1:$AN$1,0)),"") -> 0.126226016 | H24: =IFERROR(INDEX('Data Annex'!$K$1:$AO$6000,MATCH(Assets!H$1&"|"&Assets!$B24,'Data Annex'!$K$1:$K$6000,0),MATCH(Assets!H$2,'Data Annex'!$K$1:$AO$1,0)),"") -> 0.1420757959 | I24: =IFERROR(INDEX('Data Annex'!$K$1:$AO$6000,MATCH(Assets!I$1&"|"&Assets!$B24,'Data Annex'!$K$1:$K$6000,0),MATCH(Assets!I$2,'Data Annex'!$K$1:$AO$1,0)),"") -> 0.0024796424 | J24: =IFERROR(INDEX('Data Annex'!$K$1:$AO$6000,MATCH(Assets!J$1&"|"&Assets!$B24,'Data Annex'!$K$1:$K$6000,0),MATCH(Assets!J$2,'Data Annex'!$K$1:$AO$1,0)),"") -> 0.0023654054 | K24: =IFERROR(INDEX('Data Annex'!$K$1:$AO$6000,MATCH(Assets!K$1&"|"&Assets!$B24,'Data Annex'!$K$1:$K$6000,0),MATCH(Assets!K$2,'Data Annex'!$K$1:$AO$1,0)),"") -> 0.0027467835 | L24: =IFERROR(INDEX('Data Annex'!$K$1:$AO$6000,MATCH(Assets!L$1&"|"&Assets!$B24,'Data Annex'!$K$1:$K$6000,0),MATCH(Assets!L$2,'Data Annex'!$K$1:$AO$1,0)),"") -> 0.0026540907 | M24: =IFERROR(INDEX('Data Annex'!$K$1:$AO$6000,MATCH(Assets!M$1&"|"&Assets!$B24,'Data Annex'!$K$1:$K$6000,0),MATCH(Assets!M$2,'Data Annex'!$K$1:$AO$1,0)),"") -> 0.1459718174 | N24: =IFERROR(INDEX('Data Annex'!$K$1:$AO$6000,MATCH(Assets!N$1&"|"&Assets!$B24,'Data Annex'!$K$1:$K$6000,0),MATCH(Assets!N$2,'Data Annex'!$K$1:$AO$1,0)),"") -> 0.1441428496 | O24: =IFERROR(INDEX('Data Annex'!$K$1:$AO$6000,MATCH(Assets!O$1&"|"&Assets!$B24,'Data Annex'!$K$1:$K$6000,0),MATCH(Assets!O$2,'Data Annex'!$K$1:$AO$1,0)),"") -> 0.1452105755 | P24: =IFERROR(INDEX('Data Annex'!$K$1:$AO$6000,MATCH(Assets!P$1&"|"&Assets!$B24,'Data Annex'!$K$1:$K$6000,0),MATCH(Assets!P$2,'Data Annex'!$K$1:$AO$1,0)),"") -> 0.1553484674 | Q24: =IFERROR(INDEX('Data Annex'!$K$1:$AO$6000,MATCH(Assets!Q$1&"|"&Assets!$B24,'Data Annex'!$K$1:$K$6000,0),MATCH(Assets!Q$2,'Data Annex'!$K$1:$AO$1,0)),"") -> 0.549570817 | R24: =IFERROR(INDEX('Data Annex'!$K$1:$AO$6000,MATCH(Assets!R$1&"|"&Assets!$B24,'Data Annex'!$K$1:$K$6000,0),MATCH(Assets!R$2,'Data Annex'!$K$1:$AO$1,0)),"") -> 0.5558152504 | S24: =IFERROR(INDEX('Data Annex'!$K$1:$AO$6000,MATCH(Assets!S$1&"|"&Assets!$B24,'Data Annex'!$K$1:$K$6000,0),MATCH(Assets!S$2,'Data Annex'!$K$1:$AO$1,0)),"") -> 0.5321919358 | T24: =IFERROR(INDEX('Data Annex'!$K$1:$AO$6000,MATCH(Assets!T$1&"|"&Assets!$B24,'Data Annex'!$K$1:$K$6000,0),MATCH(Assets!T$2,'Data Annex'!$K$1:$AO$1,0)),"") -> 0.515233033 | U24: =IFERROR(INDEX('Data Annex'!$K$1:$AO$6000,MATCH(Assets!U$1&"|"&Assets!$B24,'Data Annex'!$K$1:$K$6000,0),MATCH(Assets!U$2,'Data Annex'!$K$1:$AO$1,0)),"") -> 0.0373780135 | V24: =IFERROR(INDEX('Data Annex'!$K$1:$AO$6000,MATCH(Assets!V$1&"|"&Assets!$B24,'Data Annex'!$K$1:$K$6000,0),MATCH(Assets!V$2,'Data Annex'!$K$1:$AO$1,0)),"") -> 0.0361659862 | W24: =IFERROR(INDEX('Data Annex'!$K$1:$AO$6000,MATCH(Assets!W$1&"|"&Assets!$B24,'Data Annex'!$K$1:$K$6000,0),MATCH(Assets!W$2,'Data Annex'!$K$1:$AO$1,0)),"") -> 0.0350315154 | X24: =IFERROR(INDEX('Data Annex'!$K$1:$AO$6000,MATCH(Assets!X$1&"|"&Assets!$B24,'Data Annex'!$K$1:$K$6000,0),MATCH(Assets!X$2,'Data Annex'!$K$1:$AO$1,0)),"") -> 0.0301080559 | Y24: =IFERROR(INDEX('Data Annex'!$K$1:$AO$6000,MATCH(Assets!Y$1&"|"&Assets!$B24,'Data Annex'!$K$1:$K$6000,0),MATCH(Assets!Y$2,'Data Annex'!$K$1:$AO$1,0)),"") -> 0.1686900624 | Z24: =IFERROR(INDEX('Data Annex'!$K$1:$AO$6000,MATCH(Assets!Z$1&"|"&Assets!$B24,'Data Annex'!$K$1:$K$6000,0),MATCH(Assets!Z$2,'Data Annex'!$K$1:$AO$1,0)),"") -> 0.1562898671 | AA24: =IFERROR(INDEX('Data Annex'!$K$1:$AO$6000,MATCH(Assets!AA$1&"|"&Assets!$B24,'Data Annex'!$K$1:$K$6000,0),MATCH(Assets!AA$2,'Data Annex'!$K$1:$AO$1,0)),"") -> 0.1585931738 | AB24: =IFERROR(INDEX('Data Annex'!$K$1:$AO$6000,MATCH(Assets!AB$1&"|"&Assets!$B24,'Data Annex'!$K$1:$K$6000,0),MATCH(Assets!AB$2,'Data Annex'!$K$1:$AO$1,0)),"") -> 0.154580557 | AC24: =IFERROR(INDEX('Data Annex'!$K$1:$AH$6000,MATCH(Assets!AC$1&"|"&Assets!$B24,'Data Annex'!$K$1:$K$6000,0),MATCH(Assets!AC$2,'Data Annex'!$K$1:$AH$1,0)),"") -> 
B25: HR | D25: HR | E25: =IFERROR(INDEX('Data Annex'!$K$1:$AN$6000,MATCH(Assets!E$1&"|"&Assets!$B25,'Data Annex'!$K$1:$K$6000,0),MATCH(Assets!E$2,'Data Annex'!$K$1:$AN$1,0)),"") -> 0.1620112667 | F25: =IFERROR(INDEX('Data Annex'!$K$1:$AN$6000,MATCH(Assets!F$1&"|"&Assets!$B25,'Data Annex'!$K$1:$K$6000,0),MATCH(Assets!F$2,'Data Annex'!$K$1:$AN$1,0)),"") -> 0.1563260154 | G25: =IFERROR(INDEX('Data Annex'!$K$1:$AN$6000,MATCH(Assets!G$1&"|"&Assets!$B25,'Data Annex'!$K$1:$K$6000,0),MATCH(Assets!G$2,'Data Annex'!$K$1:$AN$1,0)),"") -> 0.1821350417 | H25: =IFERROR(INDEX('Data Annex'!$K$1:$AO$6000,MATCH(Assets!H$1&"|"&Assets!$B25,'Data Annex'!$K$1:$K$6000,0),MATCH(Assets!H$2,'Data Annex'!$K$1:$AO$1,0)),"") -> 0.1963689733 | I25: =IFERROR(INDEX('Data Annex'!$K$1:$AO$6000,MATCH(Assets!I$1&"|"&Assets!$B25,'Data Annex'!$K$1:$K$6000,0),MATCH(Assets!I$2,'Data Annex'!$K$1:$AO$1,0)),"") -> 0.0025443064 | J25: =IFERROR(INDEX('Data Annex'!$K$1:$AO$6000,MATCH(Assets!J$1&"|"&Assets!$B25,'Data Annex'!$K$1:$K$6000,0),MATCH(Assets!J$2,'Data Annex'!$K$1:$AO$1,0)),"") -> 0.0026748941 | K25: =IFERROR(INDEX('Data Annex'!$K$1:$AO$6000,MATCH(Assets!K$1&"|"&Assets!$B25,'Data Annex'!$K$1:$K$6000,0),MATCH(Assets!K$2,'Data Annex'!$K$1:$AO$1,0)),"") -> 0.0021375982 | L25: =IFERROR(INDEX('Data Annex'!$K$1:$AO$6000,MATCH(Assets!L$1&"|"&Assets!$B25,'Data Annex'!$K$1:$K$6000,0),MATCH(Assets!L$2,'Data Annex'!$K$1:$AO$1,0)),"") -> 0.0020336627 | M25: =IFERROR(INDEX('Data Annex'!$K$1:$AO$6000,MATCH(Assets!M$1&"|"&Assets!$B25,'Data Annex'!$K$1:$K$6000,0),MATCH(Assets!M$2,'Data Annex'!$K$1:$AO$1,0)),"") -> 0.108733985 | N25: =IFERROR(INDEX('Data Annex'!$K$1:$AO$6000,MATCH(Assets!N$1&"|"&Assets!$B25,'Data Annex'!$K$1:$K$6000,0),MATCH(Assets!N$2,'Data Annex'!$K$1:$AO$1,0)),"") -> 0.1137800142 | O25: =IFERROR(INDEX('Data Annex'!$K$1:$AO$6000,MATCH(Assets!O$1&"|"&Assets!$B25,'Data Annex'!$K$1:$K$6000,0),MATCH(Assets!O$2,'Data Annex'!$K$1:$AO$1,0)),"") -> 0.111510949 | P25: =IFERROR(INDEX('Data Annex'!$K$1:$AO$6000,MATCH(Assets!P$1&"|"&Assets!$B25,'Data Annex'!$K$1:$K$6000,0),MATCH(Assets!P$2,'Data Annex'!$K$1:$AO$1,0)),"") -> 0.1077921308 | Q25: =IFERROR(INDEX('Data Annex'!$K$1:$AO$6000,MATCH(Assets!Q$1&"|"&Assets!$B25,'Data Annex'!$K$1:$K$6000,0),MATCH(Assets!Q$2,'Data Annex'!$K$1:$AO$1,0)),"") -> 0.6965766963 | R25: =IFERROR(INDEX('Data Annex'!$K$1:$AO$6000,MATCH(Assets!R$1&"|"&Assets!$B25,'Data Annex'!$K$1:$K$6000,0),MATCH(Assets!R$2,'Data Annex'!$K$1:$AO$1,0)),"") -> 0.6999710264 | S25: =IFERROR(INDEX('Data Annex'!$K$1:$AO$6000,MATCH(Assets!S$1&"|"&Assets!$B25,'Data Annex'!$K$1:$K$6000,0),MATCH(Assets!S$2,'Data Annex'!$K$1:$AO$1,0)),"") -> 0.677264788 | T25: =IFERROR(INDEX('Data Annex'!$K$1:$AO$6000,MATCH(Assets!T$1&"|"&Assets!$B25,'Data Annex'!$K$1:$K$6000,0),MATCH(Assets!T$2,'Data Annex'!$K$1:$AO$1,0)),"") -> 0.6664110873 | U25: =IFERROR(INDEX('Data Annex'!$K$1:$AO$6000,MATCH(Assets!U$1&"|"&Assets!$B25,'Data Annex'!$K$1:$K$6000,0),MATCH(Assets!U$2,'Data Annex'!$K$1:$AO$1,0)),"") -> 0.0055206715 | V25: =IFERROR(INDEX('Data Annex'!$K$1:$AO$6000,MATCH(Assets!V$1&"|"&Assets!$B25,'Data Annex'!$K$1:$K$6000,0),MATCH(Assets!V$2,'Data Annex'!$K$1:$AO$1,0)),"") -> 0.0028032682 | W25: =IFERROR(INDEX('Data Annex'!$K$1:$AO$6000,MATCH(Assets!W$1&"|"&Assets!$B25,'Data Annex'!$K$1:$K$6000,0),MATCH(Assets!W$2,'Data Annex'!$K$1:$AO$1,0)),"") -> 0.0022659289 | X25: =IFERROR(INDEX('Data Annex'!$K$1:$AO$6000,MATCH(Assets!X$1&"|"&Assets!$B25,'Data Annex'!$K$1:$K$6000,0),MATCH(Assets!X$2,'Data Annex'!$K$1:$AO$1,0)),"") -> 0.0027985268 | Y25: =IFERROR(INDEX('Data Annex'!$K$1:$AO$6000,MATCH(Assets!Y$1&"|"&Assets!$B25,'Data Annex'!$K$1:$K$6000,0),MATCH(Assets!Y$2,'Data Annex'!$K$1:$AO$1,0)),"") -> 0.0246130741 | Z25: =IFERROR(INDEX('Data Annex'!$K$1:$AO$6000,MATCH(Assets!Z$1&"|"&Assets!$B25,'Data Annex'!$K$1:$K$6000,0),MATCH(Assets!Z$2,'Data Annex'!$K$1:$AO$1,0)),"") -> 0.0244447818 | AA25: =IFERROR(INDEX('Data Annex'!$K$1:$AO$6000,MATCH(Assets!AA$1&"|"&Assets!$B25,'Data Annex'!$K$1:$K$6000,0),MATCH(Assets!AA$2,'Data Annex'!$K$1:$AO$1,0)),"") -> 0.0246856941 | AB25: =IFERROR(INDEX('Data Annex'!$K$1:$AO$6000,MATCH(Assets!AB$1&"|"&Assets!$B25,'Data Annex'!$K$1:$K$6000,0),MATCH(Assets!AB$2,'Data Annex'!$K$1:$AO$1,0)),"") -> 0.0245956192 | AC25: =IFERROR(INDEX('Data Annex'!$K$1:$AH$6000,MATCH(Assets!AC$1&"|"&Assets!$B25,'Data Annex'!$K$1:$K$6000,0),MATCH(Assets!AC$2,'Data Annex'!$K$1:$AH$1,0)),"") -> 
B26: HU | D26: HU | E26: =IFERROR(INDEX('Data Annex'!$K$1:$AN$6000,MATCH(Assets!E$1&"|"&Assets!$B26,'Data Annex'!$K$1:$K$6000,0),MATCH(Assets!E$2,'Data Annex'!$K$1:$AN$1,0)),"") -> 0.0948139321 | F26: =IFERROR(INDEX('Data Annex'!$K$1:$AN$6000,MATCH(Assets!F$1&"|"&Assets!$B26,'Data Annex'!$K$1:$K$6000,0),MATCH(Assets!F$2,'Data Annex'!$K$1:$AN$1,0)),"") -> 0.091964725 | G26: =IFERROR(INDEX('Data Annex'!$K$1:$AN$6000,MATCH(Assets!G$1&"|"&Assets!$B26,'Data Annex'!$K$1:$K$6000,0),MATCH(Assets!G$2,'Data Annex'!$K$1:$AN$1,0)),"") -> 0.0983616806 | H26: =IFERROR(INDEX('Data Annex'!$K$1:$AO$6000,MATCH(Assets!H$1&"|"&Assets!$B26,'Data Annex'!$K$1:$K$6000,0),MATCH(Assets!H$2,'Data Annex'!$K$1:$AO$1,0)),"") -> 0.0955000765 | I26: =IFERROR(INDEX('Data Annex'!$K$1:$AO$6000,MATCH(Assets!I$1&"|"&Assets!$B26,'Data Annex'!$K$1:$K$6000,0),MATCH(Assets!I$2,'Data Annex'!$K$1:$AO$1,0)),"") -> 0.0031207756 | J26: =IFERROR(INDEX('Data Annex'!$K$1:$AO$6000,MATCH(Assets!J$1&"|"&Assets!$B26,'Data Annex'!$K$1:$K$6000,0),MATCH(Assets!J$2,'Data Annex'!$K$1:$AO$1,0)),"") -> 0.0032510037 | K26: =IFERROR(INDEX('Data Annex'!$K$1:$AO$6000,MATCH(Assets!K$1&"|"&Assets!$B26,'Data Annex'!$K$1:$K$6000,0),MATCH(Assets!K$2,'Data Annex'!$K$1:$AO$1,0)),"") -> 0.0032771288 | L26: =IFERROR(INDEX('Data Annex'!$K$1:$AO$6000,MATCH(Assets!L$1&"|"&Assets!$B26,'Data Annex'!$K$1:$K$6000,0),MATCH(Assets!L$2,'Data Annex'!$K$1:$AO$1,0)),"") -> 0.0033566151 | M26: =IFERROR(INDEX('Data Annex'!$K$1:$AO$6000,MATCH(Assets!M$1&"|"&Assets!$B26,'Data Annex'!$K$1:$K$6000,0),MATCH(Assets!M$2,'Data Annex'!$K$1:$AO$1,0)),"") -> 0.215359666 | N26: =IFERROR(INDEX('Data Annex'!$K$1:$AO$6000,MATCH(Assets!N$1&"|"&Assets!$B26,'Data Annex'!$K$1:$K$6000,0),MATCH(Assets!N$2,'Data Annex'!$K$1:$AO$1,0)),"") -> 0.2203542238 | O26: =IFERROR(INDEX('Data Annex'!$K$1:$AO$6000,MATCH(Assets!O$1&"|"&Assets!$B26,'Data Annex'!$K$1:$K$6000,0),MATCH(Assets!O$2,'Data Annex'!$K$1:$AO$1,0)),"") -> 0.2150084946 | P26: =IFERROR(INDEX('Data Annex'!$K$1:$AO$6000,MATCH(Assets!P$1&"|"&Assets!$B26,'Data Annex'!$K$1:$K$6000,0),MATCH(Assets!P$2,'Data Annex'!$K$1:$AO$1,0)),"") -> 0.2461602359 | Q26: =IFERROR(INDEX('Data Annex'!$K$1:$AO$6000,MATCH(Assets!Q$1&"|"&Assets!$B26,'Data Annex'!$K$1:$K$6000,0),MATCH(Assets!Q$2,'Data Annex'!$K$1:$AO$1,0)),"") -> 0.6274576897 | R26: =IFERROR(INDEX('Data Annex'!$K$1:$AO$6000,MATCH(Assets!R$1&"|"&Assets!$B26,'Data Annex'!$K$1:$K$6000,0),MATCH(Assets!R$2,'Data Annex'!$K$1:$AO$1,0)),"") -> 0.6299878552 | S26: =IFERROR(INDEX('Data Annex'!$K$1:$AO$6000,MATCH(Assets!S$1&"|"&Assets!$B26,'Data Annex'!$K$1:$K$6000,0),MATCH(Assets!S$2,'Data Annex'!$K$1:$AO$1,0)),"") -> 0.6316132733 | T26: =IFERROR(INDEX('Data Annex'!$K$1:$AO$6000,MATCH(Assets!T$1&"|"&Assets!$B26,'Data Annex'!$K$1:$K$6000,0),MATCH(Assets!T$2,'Data Annex'!$K$1:$AO$1,0)),"") -> 0.6053550428 | U26: =IFERROR(INDEX('Data Annex'!$K$1:$AO$6000,MATCH(Assets!U$1&"|"&Assets!$B26,'Data Annex'!$K$1:$K$6000,0),MATCH(Assets!U$2,'Data Annex'!$K$1:$AO$1,0)),"") -> 0.0154974838 | V26: =IFERROR(INDEX('Data Annex'!$K$1:$AO$6000,MATCH(Assets!V$1&"|"&Assets!$B26,'Data Annex'!$K$1:$K$6000,0),MATCH(Assets!V$2,'Data Annex'!$K$1:$AO$1,0)),"") -> 0.0133874189 | W26: =IFERROR(INDEX('Data Annex'!$K$1:$AO$6000,MATCH(Assets!W$1&"|"&Assets!$B26,'Data Annex'!$K$1:$K$6000,0),MATCH(Assets!W$2,'Data Annex'!$K$1:$AO$1,0)),"") -> 0.0105758347 | X26: =IFERROR(INDEX('Data Annex'!$K$1:$AO$6000,MATCH(Assets!X$1&"|"&Assets!$B26,'Data Annex'!$K$1:$K$6000,0),MATCH(Assets!X$2,'Data Annex'!$K$1:$AO$1,0)),"") -> 0.0090197539 | Y26: =IFERROR(INDEX('Data Annex'!$K$1:$AO$6000,MATCH(Assets!Y$1&"|"&Assets!$B26,'Data Annex'!$K$1:$K$6000,0),MATCH(Assets!Y$2,'Data Annex'!$K$1:$AO$1,0)),"") -> 0.0437504527 | Z26: =IFERROR(INDEX('Data Annex'!$K$1:$AO$6000,MATCH(Assets!Z$1&"|"&Assets!$B26,'Data Annex'!$K$1:$K$6000,0),MATCH(Assets!Z$2,'Data Annex'!$K$1:$AO$1,0)),"") -> 0.0410547734 | AA26: =IFERROR(INDEX('Data Annex'!$K$1:$AO$6000,MATCH(Assets!AA$1&"|"&Assets!$B26,'Data Annex'!$K$1:$K$6000,0),MATCH(Assets!AA$2,'Data Annex'!$K$1:$AO$1,0)),"") -> 0.0411635881 | AB26: =IFERROR(INDEX('Data Annex'!$K$1:$AO$6000,MATCH(Assets!AB$1&"|"&Assets!$B26,'Data Annex'!$K$1:$K$6000,0),MATCH(Assets!AB$2,'Data Annex'!$K$1:$AO$1,0)),"") -> 0.0406082758 | AC26: =IFERROR(INDEX('Data Annex'!$K$1:$AH$6000,MATCH(Assets!AC$1&"|"&Assets!$B26,'Data Annex'!$K$1:$K$6000,0),MATCH(Assets!AC$2,'Data Annex'!$K$1:$AH$1,0)),"") -> 
B27: IE | D27: IE | E27: =IFERROR(INDEX('Data Annex'!$K$1:$AN$6000,MATCH(Assets!E$1&"|"&Assets!$B27,'Data Annex'!$K$1:$K$6000,0),MATCH(Assets!E$2,'Data Annex'!$K$1:$AN$1,0)),"") -> 0.1557062174 | F27: =IFERROR(INDEX('Data Annex'!$K$1:$AN$6000,MATCH(Assets!F$1&"|"&Assets!$B27,'Data Annex'!$K$1:$K$6000,0),MATCH(Assets!F$2,'Data Annex'!$K$1:$AN$1,0)),"") -> 0.1826865498 | G27: =IFERROR(INDEX('Data Annex'!$K$1:$AN$6000,MATCH(Assets!G$1&"|"&Assets!$B27,'Data Annex'!$K$1:$K$6000,0),MATCH(Assets!G$2,'Data Annex'!$K$1:$AN$1,0)),"") -> 0.1876902209 | H27: =IFERROR(INDEX('Data Annex'!$K$1:$AO$6000,MATCH(Assets!H$1&"|"&Assets!$B27,'Data Annex'!$K$1:$K$6000,0),MATCH(Assets!H$2,'Data Annex'!$K$1:$AO$1,0)),"") -> 0.2234631953 | I27: =IFERROR(INDEX('Data Annex'!$K$1:$AO$6000,MATCH(Assets!I$1&"|"&Assets!$B27,'Data Annex'!$K$1:$K$6000,0),MATCH(Assets!I$2,'Data Annex'!$K$1:$AO$1,0)),"") -> 0.0021386656 | J27: =IFERROR(INDEX('Data Annex'!$K$1:$AO$6000,MATCH(Assets!J$1&"|"&Assets!$B27,'Data Annex'!$K$1:$K$6000,0),MATCH(Assets!J$2,'Data Annex'!$K$1:$AO$1,0)),"") -> 0.0021132149 | K27: =IFERROR(INDEX('Data Annex'!$K$1:$AO$6000,MATCH(Assets!K$1&"|"&Assets!$B27,'Data Annex'!$K$1:$K$6000,0),MATCH(Assets!K$2,'Data Annex'!$K$1:$AO$1,0)),"") -> 0.0015674218 | L27: =IFERROR(INDEX('Data Annex'!$K$1:$AO$6000,MATCH(Assets!L$1&"|"&Assets!$B27,'Data Annex'!$K$1:$K$6000,0),MATCH(Assets!L$2,'Data Annex'!$K$1:$AO$1,0)),"") -> 0.001573207 | M27: =IFERROR(INDEX('Data Annex'!$K$1:$AO$6000,MATCH(Assets!M$1&"|"&Assets!$B27,'Data Annex'!$K$1:$K$6000,0),MATCH(Assets!M$2,'Data Annex'!$K$1:$AO$1,0)),"") -> 0.1483591749 | N27: =IFERROR(INDEX('Data Annex'!$K$1:$AO$6000,MATCH(Assets!N$1&"|"&Assets!$B27,'Data Annex'!$K$1:$K$6000,0),MATCH(Assets!N$2,'Data Annex'!$K$1:$AO$1,0)),"") -> 0.1434877947 | O27: =IFERROR(INDEX('Data Annex'!$K$1:$AO$6000,MATCH(Assets!O$1&"|"&Assets!$B27,'Data Annex'!$K$1:$K$6000,0),MATCH(Assets!O$2,'Data Annex'!$K$1:$AO$1,0)),"") -> 0.1402755121 | P27: =IFERROR(INDEX('Data Annex'!$K$1:$AO$6000,MATCH(Assets!P$1&"|"&Assets!$B27,'Data Annex'!$K$1:$K$6000,0),MATCH(Assets!P$2,'Data Annex'!$K$1:$AO$1,0)),"") -> 0.1331192439 | Q27: =IFERROR(INDEX('Data Annex'!$K$1:$AO$6000,MATCH(Assets!Q$1&"|"&Assets!$B27,'Data Annex'!$K$1:$K$6000,0),MATCH(Assets!Q$2,'Data Annex'!$K$1:$AO$1,0)),"") -> 0.6041807918 | R27: =IFERROR(INDEX('Data Annex'!$K$1:$AO$6000,MATCH(Assets!R$1&"|"&Assets!$B27,'Data Annex'!$K$1:$K$6000,0),MATCH(Assets!R$2,'Data Annex'!$K$1:$AO$1,0)),"") -> 0.5862512748 | S27: =IFERROR(INDEX('Data Annex'!$K$1:$AO$6000,MATCH(Assets!S$1&"|"&Assets!$B27,'Data Annex'!$K$1:$K$6000,0),MATCH(Assets!S$2,'Data Annex'!$K$1:$AO$1,0)),"") -> 0.5797161342 | T27: =IFERROR(INDEX('Data Annex'!$K$1:$AO$6000,MATCH(Assets!T$1&"|"&Assets!$B27,'Data Annex'!$K$1:$K$6000,0),MATCH(Assets!T$2,'Data Annex'!$K$1:$AO$1,0)),"") -> 0.549412993 | U27: =IFERROR(INDEX('Data Annex'!$K$1:$AO$6000,MATCH(Assets!U$1&"|"&Assets!$B27,'Data Annex'!$K$1:$K$6000,0),MATCH(Assets!U$2,'Data Annex'!$K$1:$AO$1,0)),"") -> 0.035332501 | V27: =IFERROR(INDEX('Data Annex'!$K$1:$AO$6000,MATCH(Assets!V$1&"|"&Assets!$B27,'Data Annex'!$K$1:$K$6000,0),MATCH(Assets!V$2,'Data Annex'!$K$1:$AO$1,0)),"") -> 0.0360496887 | W27: =IFERROR(INDEX('Data Annex'!$K$1:$AO$6000,MATCH(Assets!W$1&"|"&Assets!$B27,'Data Annex'!$K$1:$K$6000,0),MATCH(Assets!W$2,'Data Annex'!$K$1:$AO$1,0)),"") -> 0.0448276131 | X27: =IFERROR(INDEX('Data Annex'!$K$1:$AO$6000,MATCH(Assets!X$1&"|"&Assets!$B27,'Data Annex'!$K$1:$K$6000,0),MATCH(Assets!X$2,'Data Annex'!$K$1:$AO$1,0)),"") -> 0.0449178568 | Y27: =IFERROR(INDEX('Data Annex'!$K$1:$AO$6000,MATCH(Assets!Y$1&"|"&Assets!$B27,'Data Annex'!$K$1:$K$6000,0),MATCH(Assets!Y$2,'Data Annex'!$K$1:$AO$1,0)),"") -> 0.0542826492 | Z27: =IFERROR(INDEX('Data Annex'!$K$1:$AO$6000,MATCH(Assets!Z$1&"|"&Assets!$B27,'Data Annex'!$K$1:$K$6000,0),MATCH(Assets!Z$2,'Data Annex'!$K$1:$AO$1,0)),"") -> 0.049411477 | AA27: =IFERROR(INDEX('Data Annex'!$K$1:$AO$6000,MATCH(Assets!AA$1&"|"&Assets!$B27,'Data Annex'!$K$1:$K$6000,0),MATCH(Assets!AA$2,'Data Annex'!$K$1:$AO$1,0)),"") -> 0.0459230978 | AB27: =IFERROR(INDEX('Data Annex'!$K$1:$AO$6000,MATCH(Assets!AB$1&"|"&Assets!$B27,'Data Annex'!$K$1:$K$6000,0),MATCH(Assets!AB$2,'Data Annex'!$K$1:$AO$1,0)),"") -> 0.047513504 | AC27: =IFERROR(INDEX('Data Annex'!$K$1:$AH$6000,MATCH(Assets!AC$1&"|"&Assets!$B27,'Data Annex'!$K$1:$K$6000,0),MATCH(Assets!AC$2,'Data Annex'!$K$1:$AH$1,0)),"") -> 
B28: IS | D28: IS | E28: =IFERROR(INDEX('Data Annex'!$K$1:$AN$6000,MATCH(Assets!E$1&"|"&Assets!$B28,'Data Annex'!$K$1:$K$6000,0),MATCH(Assets!E$2,'Data Annex'!$K$1:$AN$1,0)),"") -> 0.0955728716 | F28: =IFERROR(INDEX('Data Annex'!$K$1:$AN$6000,MATCH(Assets!F$1&"|"&Assets!$B28,'Data Annex'!$K$1:$K$6000,0),MATCH(Assets!F$2,'Data Annex'!$K$1:$AN$1,0)),"") -> 0.1035054023 | G28: =IFERROR(INDEX('Data Annex'!$K$1:$AN$6000,MATCH(Assets!G$1&"|"&Assets!$B28,'Data Annex'!$K$1:$K$6000,0),MATCH(Assets!G$2,'Data Annex'!$K$1:$AN$1,0)),"") -> 0.0746503568 | H28: =IFERROR(INDEX('Data Annex'!$K$1:$AO$6000,MATCH(Assets!H$1&"|"&Assets!$B28,'Data Annex'!$K$1:$K$6000,0),MATCH(Assets!H$2,'Data Annex'!$K$1:$AO$1,0)),"") -> 0.0805854865 | I28: =IFERROR(INDEX('Data Annex'!$K$1:$AO$6000,MATCH(Assets!I$1&"|"&Assets!$B28,'Data Annex'!$K$1:$K$6000,0),MATCH(Assets!I$2,'Data Annex'!$K$1:$AO$1,0)),"") -> 0.0168973171 | J28: =IFERROR(INDEX('Data Annex'!$K$1:$AO$6000,MATCH(Assets!J$1&"|"&Assets!$B28,'Data Annex'!$K$1:$K$6000,0),MATCH(Assets!J$2,'Data Annex'!$K$1:$AO$1,0)),"") -> 0.0173059889 | K28: =IFERROR(INDEX('Data Annex'!$K$1:$AO$6000,MATCH(Assets!K$1&"|"&Assets!$B28,'Data Annex'!$K$1:$K$6000,0),MATCH(Assets!K$2,'Data Annex'!$K$1:$AO$1,0)),"") -> 0.0187856145 | L28: =IFERROR(INDEX('Data Annex'!$K$1:$AO$6000,MATCH(Assets!L$1&"|"&Assets!$B28,'Data Annex'!$K$1:$K$6000,0),MATCH(Assets!L$2,'Data Annex'!$K$1:$AO$1,0)),"") -> 0.0241040112 | M28: =IFERROR(INDEX('Data Annex'!$K$1:$AO$6000,MATCH(Assets!M$1&"|"&Assets!$B28,'Data Annex'!$K$1:$K$6000,0),MATCH(Assets!M$2,'Data Annex'!$K$1:$AO$1,0)),"") -> 0.1012851327 | N28: =IFERROR(INDEX('Data Annex'!$K$1:$AO$6000,MATCH(Assets!N$1&"|"&Assets!$B28,'Data Annex'!$K$1:$K$6000,0),MATCH(Assets!N$2,'Data Annex'!$K$1:$AO$1,0)),"") -> 0.1067868723 | O28: =IFERROR(INDEX('Data Annex'!$K$1:$AO$6000,MATCH(Assets!O$1&"|"&Assets!$B28,'Data Annex'!$K$1:$K$6000,0),MATCH(Assets!O$2,'Data Annex'!$K$1:$AO$1,0)),"") -> 0.1059762704 | P28: =IFERROR(INDEX('Data Annex'!$K$1:$AO$6000,MATCH(Assets!P$1&"|"&Assets!$B28,'Data Annex'!$K$1:$K$6000,0),MATCH(Assets!P$2,'Data Annex'!$K$1:$AO$1,0)),"") -> 0.0930074594 | Q28: =IFERROR(INDEX('Data Annex'!$K$1:$AO$6000,MATCH(Assets!Q$1&"|"&Assets!$B28,'Data Annex'!$K$1:$K$6000,0),MATCH(Assets!Q$2,'Data Annex'!$K$1:$AO$1,0)),"") -> 0.7493363105 | R28: =IFERROR(INDEX('Data Annex'!$K$1:$AO$6000,MATCH(Assets!R$1&"|"&Assets!$B28,'Data Annex'!$K$1:$K$6000,0),MATCH(Assets!R$2,'Data Annex'!$K$1:$AO$1,0)),"") -> 0.7369517539 | S28: =IFERROR(INDEX('Data Annex'!$K$1:$AO$6000,MATCH(Assets!S$1&"|"&Assets!$B28,'Data Annex'!$K$1:$K$6000,0),MATCH(Assets!S$2,'Data Annex'!$K$1:$AO$1,0)),"") -> 0.7726785027 | T28: =IFERROR(INDEX('Data Annex'!$K$1:$AO$6000,MATCH(Assets!T$1&"|"&Assets!$B28,'Data Annex'!$K$1:$K$6000,0),MATCH(Assets!T$2,'Data Annex'!$K$1:$AO$1,0)),"") -> 0.7715283431 | U28: =IFERROR(INDEX('Data Annex'!$K$1:$AO$6000,MATCH(Assets!U$1&"|"&Assets!$B28,'Data Annex'!$K$1:$K$6000,0),MATCH(Assets!U$2,'Data Annex'!$K$1:$AO$1,0)),"") -> 0.0042507711 | V28: =IFERROR(INDEX('Data Annex'!$K$1:$AO$6000,MATCH(Assets!V$1&"|"&Assets!$B28,'Data Annex'!$K$1:$K$6000,0),MATCH(Assets!V$2,'Data Annex'!$K$1:$AO$1,0)),"") -> 0.0041631835 | W28: =IFERROR(INDEX('Data Annex'!$K$1:$AO$6000,MATCH(Assets!W$1&"|"&Assets!$B28,'Data Annex'!$K$1:$K$6000,0),MATCH(Assets!W$2,'Data Annex'!$K$1:$AO$1,0)),"") -> 0.0042228744 | X28: =IFERROR(INDEX('Data Annex'!$K$1:$AO$6000,MATCH(Assets!X$1&"|"&Assets!$B28,'Data Annex'!$K$1:$K$6000,0),MATCH(Assets!X$2,'Data Annex'!$K$1:$AO$1,0)),"") -> 0.0020730685 | Y28: =IFERROR(INDEX('Data Annex'!$K$1:$AO$6000,MATCH(Assets!Y$1&"|"&Assets!$B28,'Data Annex'!$K$1:$K$6000,0),MATCH(Assets!Y$2,'Data Annex'!$K$1:$AO$1,0)),"") -> 0.0326575969 | Z28: =IFERROR(INDEX('Data Annex'!$K$1:$AO$6000,MATCH(Assets!Z$1&"|"&Assets!$B28,'Data Annex'!$K$1:$K$6000,0),MATCH(Assets!Z$2,'Data Annex'!$K$1:$AO$1,0)),"") -> 0.031286799 | AA28: =IFERROR(INDEX('Data Annex'!$K$1:$AO$6000,MATCH(Assets!AA$1&"|"&Assets!$B28,'Data Annex'!$K$1:$K$6000,0),MATCH(Assets!AA$2,'Data Annex'!$K$1:$AO$1,0)),"") -> 0.0236863812 | AB28: =IFERROR(INDEX('Data Annex'!$K$1:$AO$6000,MATCH(Assets!AB$1&"|"&Assets!$B28,'Data Annex'!$K$1:$K$6000,0),MATCH(Assets!AB$2,'Data Annex'!$K$1:$AO$1,0)),"") -> 0.0287016314 | AC28: =IFERROR(INDEX('Data Annex'!$K$1:$AH$6000,MATCH(Assets!AC$1&"|"&Assets!$B28,'Data Annex'!$K$1:$K$6000,0),MATCH(Assets!AC$2,'Data Annex'!$K$1:$AH$1,0)),"") -> 
B29: IT | D29: IT | E29: =IFERROR(INDEX('Data Annex'!$K$1:$AN$6000,MATCH(Assets!E$1&"|"&Assets!$B29,'Data Annex'!$K$1:$K$6000,0),MATCH(Assets!E$2,'Data Annex'!$K$1:$AN$1,0)),"") -> 0.0593256386 | F29: =IFERROR(INDEX('Data Annex'!$K$1:$AN$6000,MATCH(Assets!F$1&"|"&Assets!$B29,'Data Annex'!$K$1:$K$6000,0),MATCH(Assets!F$2,'Data Annex'!$K$1:$AN$1,0)),"") -> 0.0757322321 | G29: =IFERROR(INDEX('Data Annex'!$K$1:$AN$6000,MATCH(Assets!G$1&"|"&Assets!$B29,'Data Annex'!$K$1:$K$6000,0),MATCH(Assets!G$2,'Data Annex'!$K$1:$AN$1,0)),"") -> 0.1369538901 | H29: =IFERROR(INDEX('Data Annex'!$K$1:$AO$6000,MATCH(Assets!H$1&"|"&Assets!$B29,'Data Annex'!$K$1:$K$6000,0),MATCH(Assets!H$2,'Data Annex'!$K$1:$AO$1,0)),"") -> 0.1479255836 | I29: =IFERROR(INDEX('Data Annex'!$K$1:$AO$6000,MATCH(Assets!I$1&"|"&Assets!$B29,'Data Annex'!$K$1:$K$6000,0),MATCH(Assets!I$2,'Data Annex'!$K$1:$AO$1,0)),"") -> 0.010510686 | J29: =IFERROR(INDEX('Data Annex'!$K$1:$AO$6000,MATCH(Assets!J$1&"|"&Assets!$B29,'Data Annex'!$K$1:$K$6000,0),MATCH(Assets!J$2,'Data Annex'!$K$1:$AO$1,0)),"") -> 0.010575665 | K29: =IFERROR(INDEX('Data Annex'!$K$1:$AO$6000,MATCH(Assets!K$1&"|"&Assets!$B29,'Data Annex'!$K$1:$K$6000,0),MATCH(Assets!K$2,'Data Annex'!$K$1:$AO$1,0)),"") -> 0.0116093016 | L29: =IFERROR(INDEX('Data Annex'!$K$1:$AO$6000,MATCH(Assets!L$1&"|"&Assets!$B29,'Data Annex'!$K$1:$K$6000,0),MATCH(Assets!L$2,'Data Annex'!$K$1:$AO$1,0)),"") -> 0.0113732978 | M29: =IFERROR(INDEX('Data Annex'!$K$1:$AO$6000,MATCH(Assets!M$1&"|"&Assets!$B29,'Data Annex'!$K$1:$K$6000,0),MATCH(Assets!M$2,'Data Annex'!$K$1:$AO$1,0)),"") -> 0.2080416373 | N29: =IFERROR(INDEX('Data Annex'!$K$1:$AO$6000,MATCH(Assets!N$1&"|"&Assets!$B29,'Data Annex'!$K$1:$K$6000,0),MATCH(Assets!N$2,'Data Annex'!$K$1:$AO$1,0)),"") -> 0.2047640128 | O29: =IFERROR(INDEX('Data Annex'!$K$1:$AO$6000,MATCH(Assets!O$1&"|"&Assets!$B29,'Data Annex'!$K$1:$K$6000,0),MATCH(Assets!O$2,'Data Annex'!$K$1:$AO$1,0)),"") -> 0.1906370272 | P29: =IFERROR(INDEX('Data Annex'!$K$1:$AO$6000,MATCH(Assets!P$1&"|"&Assets!$B29,'Data Annex'!$K$1:$K$6000,0),MATCH(Assets!P$2,'Data Annex'!$K$1:$AO$1,0)),"") -> 0.2039471815 | Q29: =IFERROR(INDEX('Data Annex'!$K$1:$AO$6000,MATCH(Assets!Q$1&"|"&Assets!$B29,'Data Annex'!$K$1:$K$6000,0),MATCH(Assets!Q$2,'Data Annex'!$K$1:$AO$1,0)),"") -> 0.626035991 | R29: =IFERROR(INDEX('Data Annex'!$K$1:$AO$6000,MATCH(Assets!R$1&"|"&Assets!$B29,'Data Annex'!$K$1:$K$6000,0),MATCH(Assets!R$2,'Data Annex'!$K$1:$AO$1,0)),"") -> 0.616187594 | S29: =IFERROR(INDEX('Data Annex'!$K$1:$AO$6000,MATCH(Assets!S$1&"|"&Assets!$B29,'Data Annex'!$K$1:$K$6000,0),MATCH(Assets!S$2,'Data Annex'!$K$1:$AO$1,0)),"") -> 0.560832168 | T29: =IFERROR(INDEX('Data Annex'!$K$1:$AO$6000,MATCH(Assets!T$1&"|"&Assets!$B29,'Data Annex'!$K$1:$K$6000,0),MATCH(Assets!T$2,'Data Annex'!$K$1:$AO$1,0)),"") -> 0.5542638912 | U29: =IFERROR(INDEX('Data Annex'!$K$1:$AO$6000,MATCH(Assets!U$1&"|"&Assets!$B29,'Data Annex'!$K$1:$K$6000,0),MATCH(Assets!U$2,'Data Annex'!$K$1:$AO$1,0)),"") -> 0.0379108184 | V29: =IFERROR(INDEX('Data Annex'!$K$1:$AO$6000,MATCH(Assets!V$1&"|"&Assets!$B29,'Data Annex'!$K$1:$K$6000,0),MATCH(Assets!V$2,'Data Annex'!$K$1:$AO$1,0)),"") -> 0.0353323762 | W29: =IFERROR(INDEX('Data Annex'!$K$1:$AO$6000,MATCH(Assets!W$1&"|"&Assets!$B29,'Data Annex'!$K$1:$K$6000,0),MATCH(Assets!W$2,'Data Annex'!$K$1:$AO$1,0)),"") -> 0.03458302 | X29: =IFERROR(INDEX('Data Annex'!$K$1:$AO$6000,MATCH(Assets!X$1&"|"&Assets!$B29,'Data Annex'!$K$1:$K$6000,0),MATCH(Assets!X$2,'Data Annex'!$K$1:$AO$1,0)),"") -> 0.0296372326 | Y29: =IFERROR(INDEX('Data Annex'!$K$1:$AO$6000,MATCH(Assets!Y$1&"|"&Assets!$B29,'Data Annex'!$K$1:$K$6000,0),MATCH(Assets!Y$2,'Data Annex'!$K$1:$AO$1,0)),"") -> 0.0581752287 | Z29: =IFERROR(INDEX('Data Annex'!$K$1:$AO$6000,MATCH(Assets!Z$1&"|"&Assets!$B29,'Data Annex'!$K$1:$K$6000,0),MATCH(Assets!Z$2,'Data Annex'!$K$1:$AO$1,0)),"") -> 0.0574081198 | AA29: =IFERROR(INDEX('Data Annex'!$K$1:$AO$6000,MATCH(Assets!AA$1&"|"&Assets!$B29,'Data Annex'!$K$1:$K$6000,0),MATCH(Assets!AA$2,'Data Annex'!$K$1:$AO$1,0)),"") -> 0.0653845931 | AB29: =IFERROR(INDEX('Data Annex'!$K$1:$AO$6000,MATCH(Assets!AB$1&"|"&Assets!$B29,'Data Annex'!$K$1:$K$6000,0),MATCH(Assets!AB$2,'Data Annex'!$K$1:$AO$1,0)),"") -> 0.0528528133 | AC29: =IFERROR(INDEX('Data Annex'!$K$1:$AH$6000,MATCH(Assets!AC$1&"|"&Assets!$B29,'Data Annex'!$K$1:$K$6000,0),MATCH(Assets!AC$2,'Data Annex'!$K$1:$AH$1,0)),"") -> 
B30: LT | D30: LT | E30: =IFERROR(INDEX('Data Annex'!$K$1:$AN$6000,MATCH(Assets!E$1&"|"&Assets!$B30,'Data Annex'!$K$1:$K$6000,0),MATCH(Assets!E$2,'Data Annex'!$K$1:$AN$1,0)),"") -> 0.3393282414 | F30: =IFERROR(INDEX('Data Annex'!$K$1:$AN$6000,MATCH(Assets!F$1&"|"&Assets!$B30,'Data Annex'!$K$1:$K$6000,0),MATCH(Assets!F$2,'Data Annex'!$K$1:$AN$1,0)),"") -> 0.3796991185 | G30: =IFERROR(INDEX('Data Annex'!$K$1:$AN$6000,MATCH(Assets!G$1&"|"&Assets!$B30,'Data Annex'!$K$1:$K$6000,0),MATCH(Assets!G$2,'Data Annex'!$K$1:$AN$1,0)),"") -> 0.3682813835 | H30: =IFERROR(INDEX('Data Annex'!$K$1:$AO$6000,MATCH(Assets!H$1&"|"&Assets!$B30,'Data Annex'!$K$1:$K$6000,0),MATCH(Assets!H$2,'Data Annex'!$K$1:$AO$1,0)),"") -> 0.4394624799 | I30: =IFERROR(INDEX('Data Annex'!$K$1:$AO$6000,MATCH(Assets!I$1&"|"&Assets!$B30,'Data Annex'!$K$1:$K$6000,0),MATCH(Assets!I$2,'Data Annex'!$K$1:$AO$1,0)),"") -> 0.000667688 | J30: =IFERROR(INDEX('Data Annex'!$K$1:$AO$6000,MATCH(Assets!J$1&"|"&Assets!$B30,'Data Annex'!$K$1:$K$6000,0),MATCH(Assets!J$2,'Data Annex'!$K$1:$AO$1,0)),"") -> 0.0007194998 | K30: =IFERROR(INDEX('Data Annex'!$K$1:$AO$6000,MATCH(Assets!K$1&"|"&Assets!$B30,'Data Annex'!$K$1:$K$6000,0),MATCH(Assets!K$2,'Data Annex'!$K$1:$AO$1,0)),"") -> 0.0003748175 | L30: =IFERROR(INDEX('Data Annex'!$K$1:$AO$6000,MATCH(Assets!L$1&"|"&Assets!$B30,'Data Annex'!$K$1:$K$6000,0),MATCH(Assets!L$2,'Data Annex'!$K$1:$AO$1,0)),"") -> 0.000404162 | M30: =IFERROR(INDEX('Data Annex'!$K$1:$AO$6000,MATCH(Assets!M$1&"|"&Assets!$B30,'Data Annex'!$K$1:$K$6000,0),MATCH(Assets!M$2,'Data Annex'!$K$1:$AO$1,0)),"") -> 0.0563768684 | N30: =IFERROR(INDEX('Data Annex'!$K$1:$AO$6000,MATCH(Assets!N$1&"|"&Assets!$B30,'Data Annex'!$K$1:$K$6000,0),MATCH(Assets!N$2,'Data Annex'!$K$1:$AO$1,0)),"") -> 0.0555683965 | O30: =IFERROR(INDEX('Data Annex'!$K$1:$AO$6000,MATCH(Assets!O$1&"|"&Assets!$B30,'Data Annex'!$K$1:$K$6000,0),MATCH(Assets!O$2,'Data Annex'!$K$1:$AO$1,0)),"") -> 0.0543089739 | P30: =IFERROR(INDEX('Data Annex'!$K$1:$AO$6000,MATCH(Assets!P$1&"|"&Assets!$B30,'Data Annex'!$K$1:$K$6000,0),MATCH(Assets!P$2,'Data Annex'!$K$1:$AO$1,0)),"") -> 0.053143022 | Q30: =IFERROR(INDEX('Data Annex'!$K$1:$AO$6000,MATCH(Assets!Q$1&"|"&Assets!$B30,'Data Annex'!$K$1:$K$6000,0),MATCH(Assets!Q$2,'Data Annex'!$K$1:$AO$1,0)),"") -> 0.5932569777 | R30: =IFERROR(INDEX('Data Annex'!$K$1:$AO$6000,MATCH(Assets!R$1&"|"&Assets!$B30,'Data Annex'!$K$1:$K$6000,0),MATCH(Assets!R$2,'Data Annex'!$K$1:$AO$1,0)),"") -> 0.5541702467 | S30: =IFERROR(INDEX('Data Annex'!$K$1:$AO$6000,MATCH(Assets!S$1&"|"&Assets!$B30,'Data Annex'!$K$1:$K$6000,0),MATCH(Assets!S$2,'Data Annex'!$K$1:$AO$1,0)),"") -> 0.5680204832 | T30: =IFERROR(INDEX('Data Annex'!$K$1:$AO$6000,MATCH(Assets!T$1&"|"&Assets!$B30,'Data Annex'!$K$1:$K$6000,0),MATCH(Assets!T$2,'Data Annex'!$K$1:$AO$1,0)),"") -> 0.4978533351 | U30: =IFERROR(INDEX('Data Annex'!$K$1:$AO$6000,MATCH(Assets!U$1&"|"&Assets!$B30,'Data Annex'!$K$1:$K$6000,0),MATCH(Assets!U$2,'Data Annex'!$K$1:$AO$1,0)),"") -> 0.0010231076 | V30: =IFERROR(INDEX('Data Annex'!$K$1:$AO$6000,MATCH(Assets!V$1&"|"&Assets!$B30,'Data Annex'!$K$1:$K$6000,0),MATCH(Assets!V$2,'Data Annex'!$K$1:$AO$1,0)),"") -> 0.0011580772 | W30: =IFERROR(INDEX('Data Annex'!$K$1:$AO$6000,MATCH(Assets!W$1&"|"&Assets!$B30,'Data Annex'!$K$1:$K$6000,0),MATCH(Assets!W$2,'Data Annex'!$K$1:$AO$1,0)),"") -> 0.0011631788 | X30: =IFERROR(INDEX('Data Annex'!$K$1:$AO$6000,MATCH(Assets!X$1&"|"&Assets!$B30,'Data Annex'!$K$1:$K$6000,0),MATCH(Assets!X$2,'Data Annex'!$K$1:$AO$1,0)),"") -> 0.0012162499 | Y30: =IFERROR(INDEX('Data Annex'!$K$1:$AO$6000,MATCH(Assets!Y$1&"|"&Assets!$B30,'Data Annex'!$K$1:$K$6000,0),MATCH(Assets!Y$2,'Data Annex'!$K$1:$AO$1,0)),"") -> 0.0093471169 | Z30: =IFERROR(INDEX('Data Annex'!$K$1:$AO$6000,MATCH(Assets!Z$1&"|"&Assets!$B30,'Data Annex'!$K$1:$K$6000,0),MATCH(Assets!Z$2,'Data Annex'!$K$1:$AO$1,0)),"") -> 0.0086846613 | AA30: =IFERROR(INDEX('Data Annex'!$K$1:$AO$6000,MATCH(Assets!AA$1&"|"&Assets!$B30,'Data Annex'!$K$1:$K$6000,0),MATCH(Assets!AA$2,'Data Annex'!$K$1:$AO$1,0)),"") -> 0.007851163 | AB30: =IFERROR(INDEX('Data Annex'!$K$1:$AO$6000,MATCH(Assets!AB$1&"|"&Assets!$B30,'Data Annex'!$K$1:$K$6000,0),MATCH(Assets!AB$2,'Data Annex'!$K$1:$AO$1,0)),"") -> 0.0079207511 | AC30: =IFERROR(INDEX('Data Annex'!$K$1:$AH$6000,MATCH(Assets!AC$1&"|"&Assets!$B30,'Data Annex'!$K$1:$K$6000,0),MATCH(Assets!AC$2,'Data Annex'!$K$1:$AH$1,0)),"") -> 
B31: LU | D31: LU | E31: =IFERROR(INDEX('Data Annex'!$K$1:$AN$6000,MATCH(Assets!E$1&"|"&Assets!$B31,'Data Annex'!$K$1:$K$6000,0),MATCH(Assets!E$2,'Data Annex'!$K$1:$AN$1,0)),"") -> 0.1645737006 | F31: =IFERROR(INDEX('Data Annex'!$K$1:$AN$6000,MATCH(Assets!F$1&"|"&Assets!$B31,'Data Annex'!$K$1:$K$6000,0),MATCH(Assets!F$2,'Data Annex'!$K$1:$AN$1,0)),"") -> 0.1663693923 | G31: =IFERROR(INDEX('Data Annex'!$K$1:$AN$6000,MATCH(Assets!G$1&"|"&Assets!$B31,'Data Annex'!$K$1:$K$6000,0),MATCH(Assets!G$2,'Data Annex'!$K$1:$AN$1,0)),"") -> 0.2111680705 | H31: =IFERROR(INDEX('Data Annex'!$K$1:$AO$6000,MATCH(Assets!H$1&"|"&Assets!$B31,'Data Annex'!$K$1:$K$6000,0),MATCH(Assets!H$2,'Data Annex'!$K$1:$AO$1,0)),"") -> 0.2121603097 | I31: =IFERROR(INDEX('Data Annex'!$K$1:$AO$6000,MATCH(Assets!I$1&"|"&Assets!$B31,'Data Annex'!$K$1:$K$6000,0),MATCH(Assets!I$2,'Data Annex'!$K$1:$AO$1,0)),"") -> 0.0033836231 | J31: =IFERROR(INDEX('Data Annex'!$K$1:$AO$6000,MATCH(Assets!J$1&"|"&Assets!$B31,'Data Annex'!$K$1:$K$6000,0),MATCH(Assets!J$2,'Data Annex'!$K$1:$AO$1,0)),"") -> 0.0028607687 | K31: =IFERROR(INDEX('Data Annex'!$K$1:$AO$6000,MATCH(Assets!K$1&"|"&Assets!$B31,'Data Annex'!$K$1:$K$6000,0),MATCH(Assets!K$2,'Data Annex'!$K$1:$AO$1,0)),"") -> 0.0038270003 | L31: =IFERROR(INDEX('Data Annex'!$K$1:$AO$6000,MATCH(Assets!L$1&"|"&Assets!$B31,'Data Annex'!$K$1:$K$6000,0),MATCH(Assets!L$2,'Data Annex'!$K$1:$AO$1,0)),"") -> 0.0041684247 | M31: =IFERROR(INDEX('Data Annex'!$K$1:$AO$6000,MATCH(Assets!M$1&"|"&Assets!$B31,'Data Annex'!$K$1:$K$6000,0),MATCH(Assets!M$2,'Data Annex'!$K$1:$AO$1,0)),"") -> 0.127975496 | N31: =IFERROR(INDEX('Data Annex'!$K$1:$AO$6000,MATCH(Assets!N$1&"|"&Assets!$B31,'Data Annex'!$K$1:$K$6000,0),MATCH(Assets!N$2,'Data Annex'!$K$1:$AO$1,0)),"") -> 0.1276608352 | O31: =IFERROR(INDEX('Data Annex'!$K$1:$AO$6000,MATCH(Assets!O$1&"|"&Assets!$B31,'Data Annex'!$K$1:$K$6000,0),MATCH(Assets!O$2,'Data Annex'!$K$1:$AO$1,0)),"") -> 0.1587766898 | P31: =IFERROR(INDEX('Data Annex'!$K$1:$AO$6000,MATCH(Assets!P$1&"|"&Assets!$B31,'Data Annex'!$K$1:$K$6000,0),MATCH(Assets!P$2,'Data Annex'!$K$1:$AO$1,0)),"") -> 0.1493939062 | Q31: =IFERROR(INDEX('Data Annex'!$K$1:$AO$6000,MATCH(Assets!Q$1&"|"&Assets!$B31,'Data Annex'!$K$1:$K$6000,0),MATCH(Assets!Q$2,'Data Annex'!$K$1:$AO$1,0)),"") -> 0.6632791813 | R31: =IFERROR(INDEX('Data Annex'!$K$1:$AO$6000,MATCH(Assets!R$1&"|"&Assets!$B31,'Data Annex'!$K$1:$K$6000,0),MATCH(Assets!R$2,'Data Annex'!$K$1:$AO$1,0)),"") -> 0.6643997976 | S31: =IFERROR(INDEX('Data Annex'!$K$1:$AO$6000,MATCH(Assets!S$1&"|"&Assets!$B31,'Data Annex'!$K$1:$K$6000,0),MATCH(Assets!S$2,'Data Annex'!$K$1:$AO$1,0)),"") -> 0.5868106416 | T31: =IFERROR(INDEX('Data Annex'!$K$1:$AO$6000,MATCH(Assets!T$1&"|"&Assets!$B31,'Data Annex'!$K$1:$K$6000,0),MATCH(Assets!T$2,'Data Annex'!$K$1:$AO$1,0)),"") -> 0.5961134893 | U31: =IFERROR(INDEX('Data Annex'!$K$1:$AO$6000,MATCH(Assets!U$1&"|"&Assets!$B31,'Data Annex'!$K$1:$K$6000,0),MATCH(Assets!U$2,'Data Annex'!$K$1:$AO$1,0)),"") -> 0.0152414732 | V31: =IFERROR(INDEX('Data Annex'!$K$1:$AO$6000,MATCH(Assets!V$1&"|"&Assets!$B31,'Data Annex'!$K$1:$K$6000,0),MATCH(Assets!V$2,'Data Annex'!$K$1:$AO$1,0)),"") -> 0.0117134036 | W31: =IFERROR(INDEX('Data Annex'!$K$1:$AO$6000,MATCH(Assets!W$1&"|"&Assets!$B31,'Data Annex'!$K$1:$K$6000,0),MATCH(Assets!W$2,'Data Annex'!$K$1:$AO$1,0)),"") -> 0.011013229 | X31: =IFERROR(INDEX('Data Annex'!$K$1:$AO$6000,MATCH(Assets!X$1&"|"&Assets!$B31,'Data Annex'!$K$1:$K$6000,0),MATCH(Assets!X$2,'Data Annex'!$K$1:$AO$1,0)),"") -> 0.0100192025 | Y31: =IFERROR(INDEX('Data Annex'!$K$1:$AO$6000,MATCH(Assets!Y$1&"|"&Assets!$B31,'Data Annex'!$K$1:$K$6000,0),MATCH(Assets!Y$2,'Data Annex'!$K$1:$AO$1,0)),"") -> 0.0255465258 | Z31: =IFERROR(INDEX('Data Annex'!$K$1:$AO$6000,MATCH(Assets!Z$1&"|"&Assets!$B31,'Data Annex'!$K$1:$K$6000,0),MATCH(Assets!Z$2,'Data Annex'!$K$1:$AO$1,0)),"") -> 0.026995798 | AA31: =IFERROR(INDEX('Data Annex'!$K$1:$AO$6000,MATCH(Assets!AA$1&"|"&Assets!$B31,'Data Annex'!$K$1:$K$6000,0),MATCH(Assets!AA$2,'Data Annex'!$K$1:$AO$1,0)),"") -> 0.0284043688 | AB31: =IFERROR(INDEX('Data Annex'!$K$1:$AO$6000,MATCH(Assets!AB$1&"|"&Assets!$B31,'Data Annex'!$K$1:$K$6000,0),MATCH(Assets!AB$2,'Data Annex'!$K$1:$AO$1,0)),"") -> 0.0281446677 | AC31: =IFERROR(INDEX('Data Annex'!$K$1:$AH$6000,MATCH(Assets!AC$1&"|"&Assets!$B31,'Data Annex'!$K$1:$K$6000,0),MATCH(Assets!AC$2,'Data Annex'!$K$1:$AH$1,0)),"") -> 
B32: LV | D32: LV | E32: =IFERROR(INDEX('Data Annex'!$K$1:$AN$6000,MATCH(Assets!E$1&"|"&Assets!$B32,'Data Annex'!$K$1:$K$6000,0),MATCH(Assets!E$2,'Data Annex'!$K$1:$AN$1,0)),"") -> 0.2799142931 | F32: =IFERROR(INDEX('Data Annex'!$K$1:$AN$6000,MATCH(Assets!F$1&"|"&Assets!$B32,'Data Annex'!$K$1:$K$6000,0),MATCH(Assets!F$2,'Data Annex'!$K$1:$AN$1,0)),"") -> 0.2603761072 | G32: =IFERROR(INDEX('Data Annex'!$K$1:$AN$6000,MATCH(Assets!G$1&"|"&Assets!$B32,'Data Annex'!$K$1:$K$6000,0),MATCH(Assets!G$2,'Data Annex'!$K$1:$AN$1,0)),"") -> 0.3013727612 | H32: =IFERROR(INDEX('Data Annex'!$K$1:$AO$6000,MATCH(Assets!H$1&"|"&Assets!$B32,'Data Annex'!$K$1:$K$6000,0),MATCH(Assets!H$2,'Data Annex'!$K$1:$AO$1,0)),"") -> 0.2639648943 | I32: =IFERROR(INDEX('Data Annex'!$K$1:$AO$6000,MATCH(Assets!I$1&"|"&Assets!$B32,'Data Annex'!$K$1:$K$6000,0),MATCH(Assets!I$2,'Data Annex'!$K$1:$AO$1,0)),"") -> 0.001755582 | J32: =IFERROR(INDEX('Data Annex'!$K$1:$AO$6000,MATCH(Assets!J$1&"|"&Assets!$B32,'Data Annex'!$K$1:$K$6000,0),MATCH(Assets!J$2,'Data Annex'!$K$1:$AO$1,0)),"") -> 0.0018817099 | K32: =IFERROR(INDEX('Data Annex'!$K$1:$AO$6000,MATCH(Assets!K$1&"|"&Assets!$B32,'Data Annex'!$K$1:$K$6000,0),MATCH(Assets!K$2,'Data Annex'!$K$1:$AO$1,0)),"") -> 0.001410675 | L32: =IFERROR(INDEX('Data Annex'!$K$1:$AO$6000,MATCH(Assets!L$1&"|"&Assets!$B32,'Data Annex'!$K$1:$K$6000,0),MATCH(Assets!L$2,'Data Annex'!$K$1:$AO$1,0)),"") -> 0.0010945041 | M32: =IFERROR(INDEX('Data Annex'!$K$1:$AO$6000,MATCH(Assets!M$1&"|"&Assets!$B32,'Data Annex'!$K$1:$K$6000,0),MATCH(Assets!M$2,'Data Annex'!$K$1:$AO$1,0)),"") -> 0.1660895115 | N32: =IFERROR(INDEX('Data Annex'!$K$1:$AO$6000,MATCH(Assets!N$1&"|"&Assets!$B32,'Data Annex'!$K$1:$K$6000,0),MATCH(Assets!N$2,'Data Annex'!$K$1:$AO$1,0)),"") -> 0.1953812474 | O32: =IFERROR(INDEX('Data Annex'!$K$1:$AO$6000,MATCH(Assets!O$1&"|"&Assets!$B32,'Data Annex'!$K$1:$K$6000,0),MATCH(Assets!O$2,'Data Annex'!$K$1:$AO$1,0)),"") -> 0.1788497566 | P32: =IFERROR(INDEX('Data Annex'!$K$1:$AO$6000,MATCH(Assets!P$1&"|"&Assets!$B32,'Data Annex'!$K$1:$K$6000,0),MATCH(Assets!P$2,'Data Annex'!$K$1:$AO$1,0)),"") -> 0.1717969032 | Q32: =IFERROR(INDEX('Data Annex'!$K$1:$AO$6000,MATCH(Assets!Q$1&"|"&Assets!$B32,'Data Annex'!$K$1:$K$6000,0),MATCH(Assets!Q$2,'Data Annex'!$K$1:$AO$1,0)),"") -> 0.5371440451 | R32: =IFERROR(INDEX('Data Annex'!$K$1:$AO$6000,MATCH(Assets!R$1&"|"&Assets!$B32,'Data Annex'!$K$1:$K$6000,0),MATCH(Assets!R$2,'Data Annex'!$K$1:$AO$1,0)),"") -> 0.5283583595 | S32: =IFERROR(INDEX('Data Annex'!$K$1:$AO$6000,MATCH(Assets!S$1&"|"&Assets!$B32,'Data Annex'!$K$1:$K$6000,0),MATCH(Assets!S$2,'Data Annex'!$K$1:$AO$1,0)),"") -> 0.5081720121 | T32: =IFERROR(INDEX('Data Annex'!$K$1:$AO$6000,MATCH(Assets!T$1&"|"&Assets!$B32,'Data Annex'!$K$1:$K$6000,0),MATCH(Assets!T$2,'Data Annex'!$K$1:$AO$1,0)),"") -> 0.5501880625 | U32: =IFERROR(INDEX('Data Annex'!$K$1:$AO$6000,MATCH(Assets!U$1&"|"&Assets!$B32,'Data Annex'!$K$1:$K$6000,0),MATCH(Assets!U$2,'Data Annex'!$K$1:$AO$1,0)),"") -> 0.0037364435 | V32: =IFERROR(INDEX('Data Annex'!$K$1:$AO$6000,MATCH(Assets!V$1&"|"&Assets!$B32,'Data Annex'!$K$1:$K$6000,0),MATCH(Assets!V$2,'Data Annex'!$K$1:$AO$1,0)),"") -> 0.0033555941 | W32: =IFERROR(INDEX('Data Annex'!$K$1:$AO$6000,MATCH(Assets!W$1&"|"&Assets!$B32,'Data Annex'!$K$1:$K$6000,0),MATCH(Assets!W$2,'Data Annex'!$K$1:$AO$1,0)),"") -> 0.0022326588 | X32: =IFERROR(INDEX('Data Annex'!$K$1:$AO$6000,MATCH(Assets!X$1&"|"&Assets!$B32,'Data Annex'!$K$1:$K$6000,0),MATCH(Assets!X$2,'Data Annex'!$K$1:$AO$1,0)),"") -> 0.00342744 | Y32: =IFERROR(INDEX('Data Annex'!$K$1:$AO$6000,MATCH(Assets!Y$1&"|"&Assets!$B32,'Data Annex'!$K$1:$K$6000,0),MATCH(Assets!Y$2,'Data Annex'!$K$1:$AO$1,0)),"") -> 0.0113601247 | Z32: =IFERROR(INDEX('Data Annex'!$K$1:$AO$6000,MATCH(Assets!Z$1&"|"&Assets!$B32,'Data Annex'!$K$1:$K$6000,0),MATCH(Assets!Z$2,'Data Annex'!$K$1:$AO$1,0)),"") -> 0.0106469819 | AA32: =IFERROR(INDEX('Data Annex'!$K$1:$AO$6000,MATCH(Assets!AA$1&"|"&Assets!$B32,'Data Annex'!$K$1:$K$6000,0),MATCH(Assets!AA$2,'Data Annex'!$K$1:$AO$1,0)),"") -> 0.0079621363 | AB32: =IFERROR(INDEX('Data Annex'!$K$1:$AO$6000,MATCH(Assets!AB$1&"|"&Assets!$B32,'Data Annex'!$K$1:$K$6000,0),MATCH(Assets!AB$2,'Data Annex'!$K$1:$AO$1,0)),"") -> 0.0095281959 | AC32: =IFERROR(INDEX('Data Annex'!$K$1:$AH$6000,MATCH(Assets!AC$1&"|"&Assets!$B32,'Data Annex'!$K$1:$K$6000,0),MATCH(Assets!AC$2,'Data Annex'!$K$1:$AH$1,0)),"") -> 
B33: MT | D33: MT | E33: =IFERROR(INDEX('Data Annex'!$K$1:$AN$6000,MATCH(Assets!E$1&"|"&Assets!$B33,'Data Annex'!$K$1:$K$6000,0),MATCH(Assets!E$2,'Data Annex'!$K$1:$AN$1,0)),"") -> 0.2125966362 | F33: =IFERROR(INDEX('Data Annex'!$K$1:$AN$6000,MATCH(Assets!F$1&"|"&Assets!$B33,'Data Annex'!$K$1:$K$6000,0),MATCH(Assets!F$2,'Data Annex'!$K$1:$AN$1,0)),"") -> 0.2185057017 | G33: =IFERROR(INDEX('Data Annex'!$K$1:$AN$6000,MATCH(Assets!G$1&"|"&Assets!$B33,'Data Annex'!$K$1:$K$6000,0),MATCH(Assets!G$2,'Data Annex'!$K$1:$AN$1,0)),"") -> 0.2386673696 | H33: =IFERROR(INDEX('Data Annex'!$K$1:$AO$6000,MATCH(Assets!H$1&"|"&Assets!$B33,'Data Annex'!$K$1:$K$6000,0),MATCH(Assets!H$2,'Data Annex'!$K$1:$AO$1,0)),"") -> 0.2333378011 | I33: =IFERROR(INDEX('Data Annex'!$K$1:$AO$6000,MATCH(Assets!I$1&"|"&Assets!$B33,'Data Annex'!$K$1:$K$6000,0),MATCH(Assets!I$2,'Data Annex'!$K$1:$AO$1,0)),"") -> 0.0022282171 | J33: =IFERROR(INDEX('Data Annex'!$K$1:$AO$6000,MATCH(Assets!J$1&"|"&Assets!$B33,'Data Annex'!$K$1:$K$6000,0),MATCH(Assets!J$2,'Data Annex'!$K$1:$AO$1,0)),"") -> 0.0024711449 | K33: =IFERROR(INDEX('Data Annex'!$K$1:$AO$6000,MATCH(Assets!K$1&"|"&Assets!$B33,'Data Annex'!$K$1:$K$6000,0),MATCH(Assets!K$2,'Data Annex'!$K$1:$AO$1,0)),"") -> 0.0026218885 | L33: =IFERROR(INDEX('Data Annex'!$K$1:$AO$6000,MATCH(Assets!L$1&"|"&Assets!$B33,'Data Annex'!$K$1:$K$6000,0),MATCH(Assets!L$2,'Data Annex'!$K$1:$AO$1,0)),"") -> 0.002139367 | M33: =IFERROR(INDEX('Data Annex'!$K$1:$AO$6000,MATCH(Assets!M$1&"|"&Assets!$B33,'Data Annex'!$K$1:$K$6000,0),MATCH(Assets!M$2,'Data Annex'!$K$1:$AO$1,0)),"") -> 0.274514576 | N33: =IFERROR(INDEX('Data Annex'!$K$1:$AO$6000,MATCH(Assets!N$1&"|"&Assets!$B33,'Data Annex'!$K$1:$K$6000,0),MATCH(Assets!N$2,'Data Annex'!$K$1:$AO$1,0)),"") -> 0.2666675588 | O33: =IFERROR(INDEX('Data Annex'!$K$1:$AO$6000,MATCH(Assets!O$1&"|"&Assets!$B33,'Data Annex'!$K$1:$K$6000,0),MATCH(Assets!O$2,'Data Annex'!$K$1:$AO$1,0)),"") -> 0.2498229781 | P33: =IFERROR(INDEX('Data Annex'!$K$1:$AO$6000,MATCH(Assets!P$1&"|"&Assets!$B33,'Data Annex'!$K$1:$K$6000,0),MATCH(Assets!P$2,'Data Annex'!$K$1:$AO$1,0)),"") -> 0.2464896668 | Q33: =IFERROR(INDEX('Data Annex'!$K$1:$AO$6000,MATCH(Assets!Q$1&"|"&Assets!$B33,'Data Annex'!$K$1:$K$6000,0),MATCH(Assets!Q$2,'Data Annex'!$K$1:$AO$1,0)),"") -> 0.478767291 | R33: =IFERROR(INDEX('Data Annex'!$K$1:$AO$6000,MATCH(Assets!R$1&"|"&Assets!$B33,'Data Annex'!$K$1:$K$6000,0),MATCH(Assets!R$2,'Data Annex'!$K$1:$AO$1,0)),"") -> 0.4816128038 | S33: =IFERROR(INDEX('Data Annex'!$K$1:$AO$6000,MATCH(Assets!S$1&"|"&Assets!$B33,'Data Annex'!$K$1:$K$6000,0),MATCH(Assets!S$2,'Data Annex'!$K$1:$AO$1,0)),"") -> 0.4772420322 | T33: =IFERROR(INDEX('Data Annex'!$K$1:$AO$6000,MATCH(Assets!T$1&"|"&Assets!$B33,'Data Annex'!$K$1:$K$6000,0),MATCH(Assets!T$2,'Data Annex'!$K$1:$AO$1,0)),"") -> 0.4881088817 | U33: =IFERROR(INDEX('Data Annex'!$K$1:$AO$6000,MATCH(Assets!U$1&"|"&Assets!$B33,'Data Annex'!$K$1:$K$6000,0),MATCH(Assets!U$2,'Data Annex'!$K$1:$AO$1,0)),"") -> 0.0007891128 | V33: =IFERROR(INDEX('Data Annex'!$K$1:$AO$6000,MATCH(Assets!V$1&"|"&Assets!$B33,'Data Annex'!$K$1:$K$6000,0),MATCH(Assets!V$2,'Data Annex'!$K$1:$AO$1,0)),"") -> 0.0006481527 | W33: =IFERROR(INDEX('Data Annex'!$K$1:$AO$6000,MATCH(Assets!W$1&"|"&Assets!$B33,'Data Annex'!$K$1:$K$6000,0),MATCH(Assets!W$2,'Data Annex'!$K$1:$AO$1,0)),"") -> 0.0004566257 | X33: =IFERROR(INDEX('Data Annex'!$K$1:$AO$6000,MATCH(Assets!X$1&"|"&Assets!$B33,'Data Annex'!$K$1:$K$6000,0),MATCH(Assets!X$2,'Data Annex'!$K$1:$AO$1,0)),"") -> 0.0010551459 | Y33: =IFERROR(INDEX('Data Annex'!$K$1:$AO$6000,MATCH(Assets!Y$1&"|"&Assets!$B33,'Data Annex'!$K$1:$K$6000,0),MATCH(Assets!Y$2,'Data Annex'!$K$1:$AO$1,0)),"") -> 0.0311041669 | Z33: =IFERROR(INDEX('Data Annex'!$K$1:$AO$6000,MATCH(Assets!Z$1&"|"&Assets!$B33,'Data Annex'!$K$1:$K$6000,0),MATCH(Assets!Z$2,'Data Annex'!$K$1:$AO$1,0)),"") -> 0.0300946381 | AA33: =IFERROR(INDEX('Data Annex'!$K$1:$AO$6000,MATCH(Assets!AA$1&"|"&Assets!$B33,'Data Annex'!$K$1:$K$6000,0),MATCH(Assets!AA$2,'Data Annex'!$K$1:$AO$1,0)),"") -> 0.0311891059 | AB33: =IFERROR(INDEX('Data Annex'!$K$1:$AO$6000,MATCH(Assets!AB$1&"|"&Assets!$B33,'Data Annex'!$K$1:$K$6000,0),MATCH(Assets!AB$2,'Data Annex'!$K$1:$AO$1,0)),"") -> 0.0288691375 | AC33: =IFERROR(INDEX('Data Annex'!$K$1:$AH$6000,MATCH(Assets!AC$1&"|"&Assets!$B33,'Data Annex'!$K$1:$K$6000,0),MATCH(Assets!AC$2,'Data Annex'!$K$1:$AH$1,0)),"") -> 
B34: NL | D34: NL | E34: =IFERROR(INDEX('Data Annex'!$K$1:$AN$6000,MATCH(Assets!E$1&"|"&Assets!$B34,'Data Annex'!$K$1:$K$6000,0),MATCH(Assets!E$2,'Data Annex'!$K$1:$AN$1,0)),"") -> 0.1212178169 | F34: =IFERROR(INDEX('Data Annex'!$K$1:$AN$6000,MATCH(Assets!F$1&"|"&Assets!$B34,'Data Annex'!$K$1:$K$6000,0),MATCH(Assets!F$2,'Data Annex'!$K$1:$AN$1,0)),"") -> 0.1472027291 | G34: =IFERROR(INDEX('Data Annex'!$K$1:$AN$6000,MATCH(Assets!G$1&"|"&Assets!$B34,'Data Annex'!$K$1:$K$6000,0),MATCH(Assets!G$2,'Data Annex'!$K$1:$AN$1,0)),"") -> 0.1327904368 | H34: =IFERROR(INDEX('Data Annex'!$K$1:$AO$6000,MATCH(Assets!H$1&"|"&Assets!$B34,'Data Annex'!$K$1:$K$6000,0),MATCH(Assets!H$2,'Data Annex'!$K$1:$AO$1,0)),"") -> 0.1563694785 | I34: =IFERROR(INDEX('Data Annex'!$K$1:$AO$6000,MATCH(Assets!I$1&"|"&Assets!$B34,'Data Annex'!$K$1:$K$6000,0),MATCH(Assets!I$2,'Data Annex'!$K$1:$AO$1,0)),"") -> 0.0040121991 | J34: =IFERROR(INDEX('Data Annex'!$K$1:$AO$6000,MATCH(Assets!J$1&"|"&Assets!$B34,'Data Annex'!$K$1:$K$6000,0),MATCH(Assets!J$2,'Data Annex'!$K$1:$AO$1,0)),"") -> 0.0046775921 | K34: =IFERROR(INDEX('Data Annex'!$K$1:$AO$6000,MATCH(Assets!K$1&"|"&Assets!$B34,'Data Annex'!$K$1:$K$6000,0),MATCH(Assets!K$2,'Data Annex'!$K$1:$AO$1,0)),"") -> 0.0055382263 | L34: =IFERROR(INDEX('Data Annex'!$K$1:$AO$6000,MATCH(Assets!L$1&"|"&Assets!$B34,'Data Annex'!$K$1:$K$6000,0),MATCH(Assets!L$2,'Data Annex'!$K$1:$AO$1,0)),"") -> 0.006417403 | M34: =IFERROR(INDEX('Data Annex'!$K$1:$AO$6000,MATCH(Assets!M$1&"|"&Assets!$B34,'Data Annex'!$K$1:$K$6000,0),MATCH(Assets!M$2,'Data Annex'!$K$1:$AO$1,0)),"") -> 0.0847036345 | N34: =IFERROR(INDEX('Data Annex'!$K$1:$AO$6000,MATCH(Assets!N$1&"|"&Assets!$B34,'Data Annex'!$K$1:$K$6000,0),MATCH(Assets!N$2,'Data Annex'!$K$1:$AO$1,0)),"") -> 0.0816309319 | O34: =IFERROR(INDEX('Data Annex'!$K$1:$AO$6000,MATCH(Assets!O$1&"|"&Assets!$B34,'Data Annex'!$K$1:$K$6000,0),MATCH(Assets!O$2,'Data Annex'!$K$1:$AO$1,0)),"") -> 0.0827775735 | P34: =IFERROR(INDEX('Data Annex'!$K$1:$AO$6000,MATCH(Assets!P$1&"|"&Assets!$B34,'Data Annex'!$K$1:$K$6000,0),MATCH(Assets!P$2,'Data Annex'!$K$1:$AO$1,0)),"") -> 0.076155257 | Q34: =IFERROR(INDEX('Data Annex'!$K$1:$AO$6000,MATCH(Assets!Q$1&"|"&Assets!$B34,'Data Annex'!$K$1:$K$6000,0),MATCH(Assets!Q$2,'Data Annex'!$K$1:$AO$1,0)),"") -> 0.7210042227 | R34: =IFERROR(INDEX('Data Annex'!$K$1:$AO$6000,MATCH(Assets!R$1&"|"&Assets!$B34,'Data Annex'!$K$1:$K$6000,0),MATCH(Assets!R$2,'Data Annex'!$K$1:$AO$1,0)),"") -> 0.7006013885 | S34: =IFERROR(INDEX('Data Annex'!$K$1:$AO$6000,MATCH(Assets!S$1&"|"&Assets!$B34,'Data Annex'!$K$1:$K$6000,0),MATCH(Assets!S$2,'Data Annex'!$K$1:$AO$1,0)),"") -> 0.7116159258 | T34: =IFERROR(INDEX('Data Annex'!$K$1:$AO$6000,MATCH(Assets!T$1&"|"&Assets!$B34,'Data Annex'!$K$1:$K$6000,0),MATCH(Assets!T$2,'Data Annex'!$K$1:$AO$1,0)),"") -> 0.6936567368 | U34: =IFERROR(INDEX('Data Annex'!$K$1:$AO$6000,MATCH(Assets!U$1&"|"&Assets!$B34,'Data Annex'!$K$1:$K$6000,0),MATCH(Assets!U$2,'Data Annex'!$K$1:$AO$1,0)),"") -> 0.0345213598 | V34: =IFERROR(INDEX('Data Annex'!$K$1:$AO$6000,MATCH(Assets!V$1&"|"&Assets!$B34,'Data Annex'!$K$1:$K$6000,0),MATCH(Assets!V$2,'Data Annex'!$K$1:$AO$1,0)),"") -> 0.0328496525 | W34: =IFERROR(INDEX('Data Annex'!$K$1:$AO$6000,MATCH(Assets!W$1&"|"&Assets!$B34,'Data Annex'!$K$1:$K$6000,0),MATCH(Assets!W$2,'Data Annex'!$K$1:$AO$1,0)),"") -> 0.0347626837 | X34: =IFERROR(INDEX('Data Annex'!$K$1:$AO$6000,MATCH(Assets!X$1&"|"&Assets!$B34,'Data Annex'!$K$1:$K$6000,0),MATCH(Assets!X$2,'Data Annex'!$K$1:$AO$1,0)),"") -> 0.0282727116 | Y34: =IFERROR(INDEX('Data Annex'!$K$1:$AO$6000,MATCH(Assets!Y$1&"|"&Assets!$B34,'Data Annex'!$K$1:$K$6000,0),MATCH(Assets!Y$2,'Data Annex'!$K$1:$AO$1,0)),"") -> 0.0345407671 | Z34: =IFERROR(INDEX('Data Annex'!$K$1:$AO$6000,MATCH(Assets!Z$1&"|"&Assets!$B34,'Data Annex'!$K$1:$K$6000,0),MATCH(Assets!Z$2,'Data Annex'!$K$1:$AO$1,0)),"") -> 0.0330377059 | AA34: =IFERROR(INDEX('Data Annex'!$K$1:$AO$6000,MATCH(Assets!AA$1&"|"&Assets!$B34,'Data Annex'!$K$1:$K$6000,0),MATCH(Assets!AA$2,'Data Annex'!$K$1:$AO$1,0)),"") -> 0.0325151539 | AB34: =IFERROR(INDEX('Data Annex'!$K$1:$AO$6000,MATCH(Assets!AB$1&"|"&Assets!$B34,'Data Annex'!$K$1:$K$6000,0),MATCH(Assets!AB$2,'Data Annex'!$K$1:$AO$1,0)),"") -> 0.039128413 | AC34: =IFERROR(INDEX('Data Annex'!$K$1:$AH$6000,MATCH(Assets!AC$1&"|"&Assets!$B34,'Data Annex'!$K$1:$K$6000,0),MATCH(Assets!AC$2,'Data Annex'!$K$1:$AH$1,0)),"") -> 
B35: NO | D35: NO | E35: =IFERROR(INDEX('Data Annex'!$K$1:$AN$6000,MATCH(Assets!E$1&"|"&Assets!$B35,'Data Annex'!$K$1:$K$6000,0),MATCH(Assets!E$2,'Data Annex'!$K$1:$AN$1,0)),"") -> 0.0954325403 | F35: =IFERROR(INDEX('Data Annex'!$K$1:$AN$6000,MATCH(Assets!F$1&"|"&Assets!$B35,'Data Annex'!$K$1:$K$6000,0),MATCH(Assets!F$2,'Data Annex'!$K$1:$AN$1,0)),"") -> 0.1025233071 | G35: =IFERROR(INDEX('Data Annex'!$K$1:$AN$6000,MATCH(Assets!G$1&"|"&Assets!$B35,'Data Annex'!$K$1:$K$6000,0),MATCH(Assets!G$2,'Data Annex'!$K$1:$AN$1,0)),"") -> 0.0931955349 | H35: =IFERROR(INDEX('Data Annex'!$K$1:$AO$6000,MATCH(Assets!H$1&"|"&Assets!$B35,'Data Annex'!$K$1:$K$6000,0),MATCH(Assets!H$2,'Data Annex'!$K$1:$AO$1,0)),"") -> 0.1305642215 | I35: =IFERROR(INDEX('Data Annex'!$K$1:$AO$6000,MATCH(Assets!I$1&"|"&Assets!$B35,'Data Annex'!$K$1:$K$6000,0),MATCH(Assets!I$2,'Data Annex'!$K$1:$AO$1,0)),"") -> 0.0029805465 | J35: =IFERROR(INDEX('Data Annex'!$K$1:$AO$6000,MATCH(Assets!J$1&"|"&Assets!$B35,'Data Annex'!$K$1:$K$6000,0),MATCH(Assets!J$2,'Data Annex'!$K$1:$AO$1,0)),"") -> 0.0029890729 | K35: =IFERROR(INDEX('Data Annex'!$K$1:$AO$6000,MATCH(Assets!K$1&"|"&Assets!$B35,'Data Annex'!$K$1:$K$6000,0),MATCH(Assets!K$2,'Data Annex'!$K$1:$AO$1,0)),"") -> 0.003445012 | L35: =IFERROR(INDEX('Data Annex'!$K$1:$AO$6000,MATCH(Assets!L$1&"|"&Assets!$B35,'Data Annex'!$K$1:$K$6000,0),MATCH(Assets!L$2,'Data Annex'!$K$1:$AO$1,0)),"") -> 0.0031956997 | M35: =IFERROR(INDEX('Data Annex'!$K$1:$AO$6000,MATCH(Assets!M$1&"|"&Assets!$B35,'Data Annex'!$K$1:$K$6000,0),MATCH(Assets!M$2,'Data Annex'!$K$1:$AO$1,0)),"") -> 0.1184995935 | N35: =IFERROR(INDEX('Data Annex'!$K$1:$AO$6000,MATCH(Assets!N$1&"|"&Assets!$B35,'Data Annex'!$K$1:$K$6000,0),MATCH(Assets!N$2,'Data Annex'!$K$1:$AO$1,0)),"") -> 0.1080211858 | O35: =IFERROR(INDEX('Data Annex'!$K$1:$AO$6000,MATCH(Assets!O$1&"|"&Assets!$B35,'Data Annex'!$K$1:$K$6000,0),MATCH(Assets!O$2,'Data Annex'!$K$1:$AO$1,0)),"") -> 0.1141561477 | P35: =IFERROR(INDEX('Data Annex'!$K$1:$AO$6000,MATCH(Assets!P$1&"|"&Assets!$B35,'Data Annex'!$K$1:$K$6000,0),MATCH(Assets!P$2,'Data Annex'!$K$1:$AO$1,0)),"") -> 0.1121162949 | Q35: =IFERROR(INDEX('Data Annex'!$K$1:$AO$6000,MATCH(Assets!Q$1&"|"&Assets!$B35,'Data Annex'!$K$1:$K$6000,0),MATCH(Assets!Q$2,'Data Annex'!$K$1:$AO$1,0)),"") -> 0.6976554425 | R35: =IFERROR(INDEX('Data Annex'!$K$1:$AO$6000,MATCH(Assets!R$1&"|"&Assets!$B35,'Data Annex'!$K$1:$K$6000,0),MATCH(Assets!R$2,'Data Annex'!$K$1:$AO$1,0)),"") -> 0.7048241542 | S35: =IFERROR(INDEX('Data Annex'!$K$1:$AO$6000,MATCH(Assets!S$1&"|"&Assets!$B35,'Data Annex'!$K$1:$K$6000,0),MATCH(Assets!S$2,'Data Annex'!$K$1:$AO$1,0)),"") -> 0.7082852795 | T35: =IFERROR(INDEX('Data Annex'!$K$1:$AO$6000,MATCH(Assets!T$1&"|"&Assets!$B35,'Data Annex'!$K$1:$K$6000,0),MATCH(Assets!T$2,'Data Annex'!$K$1:$AO$1,0)),"") -> 0.6894405424 | U35: =IFERROR(INDEX('Data Annex'!$K$1:$AO$6000,MATCH(Assets!U$1&"|"&Assets!$B35,'Data Annex'!$K$1:$K$6000,0),MATCH(Assets!U$2,'Data Annex'!$K$1:$AO$1,0)),"") -> 0.0690086051 | V35: =IFERROR(INDEX('Data Annex'!$K$1:$AO$6000,MATCH(Assets!V$1&"|"&Assets!$B35,'Data Annex'!$K$1:$K$6000,0),MATCH(Assets!V$2,'Data Annex'!$K$1:$AO$1,0)),"") -> 0.0662916558 | W35: =IFERROR(INDEX('Data Annex'!$K$1:$AO$6000,MATCH(Assets!W$1&"|"&Assets!$B35,'Data Annex'!$K$1:$K$6000,0),MATCH(Assets!W$2,'Data Annex'!$K$1:$AO$1,0)),"") -> 0.0659421571 | X35: =IFERROR(INDEX('Data Annex'!$K$1:$AO$6000,MATCH(Assets!X$1&"|"&Assets!$B35,'Data Annex'!$K$1:$K$6000,0),MATCH(Assets!X$2,'Data Annex'!$K$1:$AO$1,0)),"") -> 0.046464115 | Y35: =IFERROR(INDEX('Data Annex'!$K$1:$AO$6000,MATCH(Assets!Y$1&"|"&Assets!$B35,'Data Annex'!$K$1:$K$6000,0),MATCH(Assets!Y$2,'Data Annex'!$K$1:$AO$1,0)),"") -> 0.0164232721 | Z35: =IFERROR(INDEX('Data Annex'!$K$1:$AO$6000,MATCH(Assets!Z$1&"|"&Assets!$B35,'Data Annex'!$K$1:$K$6000,0),MATCH(Assets!Z$2,'Data Annex'!$K$1:$AO$1,0)),"") -> 0.0153506241 | AA35: =IFERROR(INDEX('Data Annex'!$K$1:$AO$6000,MATCH(Assets!AA$1&"|"&Assets!$B35,'Data Annex'!$K$1:$K$6000,0),MATCH(Assets!AA$2,'Data Annex'!$K$1:$AO$1,0)),"") -> 0.0149758689 | AB35: =IFERROR(INDEX('Data Annex'!$K$1:$AO$6000,MATCH(Assets!AB$1&"|"&Assets!$B35,'Data Annex'!$K$1:$K$6000,0),MATCH(Assets!AB$2,'Data Annex'!$K$1:$AO$1,0)),"") -> 0.0182191265 | AC35: =IFERROR(INDEX('Data Annex'!$K$1:$AH$6000,MATCH(Assets!AC$1&"|"&Assets!$B35,'Data Annex'!$K$1:$K$6000,0),MATCH(Assets!AC$2,'Data Annex'!$K$1:$AH$1,0)),"") -> 
B36: PL | D36: PL | E36: =IFERROR(INDEX('Data Annex'!$K$1:$AN$6000,MATCH(Assets!E$1&"|"&Assets!$B36,'Data Annex'!$K$1:$K$6000,0),MATCH(Assets!E$2,'Data Annex'!$K$1:$AN$1,0)),"") -> 0.0297432168 | F36: =IFERROR(INDEX('Data Annex'!$K$1:$AN$6000,MATCH(Assets!F$1&"|"&Assets!$B36,'Data Annex'!$K$1:$K$6000,0),MATCH(Assets!F$2,'Data Annex'!$K$1:$AN$1,0)),"") -> 0.01851489 | G36: =IFERROR(INDEX('Data Annex'!$K$1:$AN$6000,MATCH(Assets!G$1&"|"&Assets!$B36,'Data Annex'!$K$1:$K$6000,0),MATCH(Assets!G$2,'Data Annex'!$K$1:$AN$1,0)),"") -> 0.0229860037 | H36: =IFERROR(INDEX('Data Annex'!$K$1:$AO$6000,MATCH(Assets!H$1&"|"&Assets!$B36,'Data Annex'!$K$1:$K$6000,0),MATCH(Assets!H$2,'Data Annex'!$K$1:$AO$1,0)),"") -> 0.030386293 | I36: =IFERROR(INDEX('Data Annex'!$K$1:$AO$6000,MATCH(Assets!I$1&"|"&Assets!$B36,'Data Annex'!$K$1:$K$6000,0),MATCH(Assets!I$2,'Data Annex'!$K$1:$AO$1,0)),"") -> 0.0019685917 | J36: =IFERROR(INDEX('Data Annex'!$K$1:$AO$6000,MATCH(Assets!J$1&"|"&Assets!$B36,'Data Annex'!$K$1:$K$6000,0),MATCH(Assets!J$2,'Data Annex'!$K$1:$AO$1,0)),"") -> 0.0021461172 | K36: =IFERROR(INDEX('Data Annex'!$K$1:$AO$6000,MATCH(Assets!K$1&"|"&Assets!$B36,'Data Annex'!$K$1:$K$6000,0),MATCH(Assets!K$2,'Data Annex'!$K$1:$AO$1,0)),"") -> 0.002380444 | L36: =IFERROR(INDEX('Data Annex'!$K$1:$AO$6000,MATCH(Assets!L$1&"|"&Assets!$B36,'Data Annex'!$K$1:$K$6000,0),MATCH(Assets!L$2,'Data Annex'!$K$1:$AO$1,0)),"") -> 0.0028491683 | M36: =IFERROR(INDEX('Data Annex'!$K$1:$AO$6000,MATCH(Assets!M$1&"|"&Assets!$B36,'Data Annex'!$K$1:$K$6000,0),MATCH(Assets!M$2,'Data Annex'!$K$1:$AO$1,0)),"") -> 0.2866385452 | N36: =IFERROR(INDEX('Data Annex'!$K$1:$AO$6000,MATCH(Assets!N$1&"|"&Assets!$B36,'Data Annex'!$K$1:$K$6000,0),MATCH(Assets!N$2,'Data Annex'!$K$1:$AO$1,0)),"") -> 0.3035874971 | O36: =IFERROR(INDEX('Data Annex'!$K$1:$AO$6000,MATCH(Assets!O$1&"|"&Assets!$B36,'Data Annex'!$K$1:$K$6000,0),MATCH(Assets!O$2,'Data Annex'!$K$1:$AO$1,0)),"") -> 0.309605 | P36: =IFERROR(INDEX('Data Annex'!$K$1:$AO$6000,MATCH(Assets!P$1&"|"&Assets!$B36,'Data Annex'!$K$1:$K$6000,0),MATCH(Assets!P$2,'Data Annex'!$K$1:$AO$1,0)),"") -> 0.3086833274 | Q36: =IFERROR(INDEX('Data Annex'!$K$1:$AO$6000,MATCH(Assets!Q$1&"|"&Assets!$B36,'Data Annex'!$K$1:$K$6000,0),MATCH(Assets!Q$2,'Data Annex'!$K$1:$AO$1,0)),"") -> 0.6304494281 | R36: =IFERROR(INDEX('Data Annex'!$K$1:$AO$6000,MATCH(Assets!R$1&"|"&Assets!$B36,'Data Annex'!$K$1:$K$6000,0),MATCH(Assets!R$2,'Data Annex'!$K$1:$AO$1,0)),"") -> 0.62526461 | S36: =IFERROR(INDEX('Data Annex'!$K$1:$AO$6000,MATCH(Assets!S$1&"|"&Assets!$B36,'Data Annex'!$K$1:$K$6000,0),MATCH(Assets!S$2,'Data Annex'!$K$1:$AO$1,0)),"") -> 0.613184366 | T36: =IFERROR(INDEX('Data Annex'!$K$1:$AO$6000,MATCH(Assets!T$1&"|"&Assets!$B36,'Data Annex'!$K$1:$K$6000,0),MATCH(Assets!T$2,'Data Annex'!$K$1:$AO$1,0)),"") -> 0.6090454924 | U36: =IFERROR(INDEX('Data Annex'!$K$1:$AO$6000,MATCH(Assets!U$1&"|"&Assets!$B36,'Data Annex'!$K$1:$K$6000,0),MATCH(Assets!U$2,'Data Annex'!$K$1:$AO$1,0)),"") -> 0.0190418666 | V36: =IFERROR(INDEX('Data Annex'!$K$1:$AO$6000,MATCH(Assets!V$1&"|"&Assets!$B36,'Data Annex'!$K$1:$K$6000,0),MATCH(Assets!V$2,'Data Annex'!$K$1:$AO$1,0)),"") -> 0.0187954885 | W36: =IFERROR(INDEX('Data Annex'!$K$1:$AO$6000,MATCH(Assets!W$1&"|"&Assets!$B36,'Data Annex'!$K$1:$K$6000,0),MATCH(Assets!W$2,'Data Annex'!$K$1:$AO$1,0)),"") -> 0.0179256654 | X36: =IFERROR(INDEX('Data Annex'!$K$1:$AO$6000,MATCH(Assets!X$1&"|"&Assets!$B36,'Data Annex'!$K$1:$K$6000,0),MATCH(Assets!X$2,'Data Annex'!$K$1:$AO$1,0)),"") -> 0.0162670211 | Y36: =IFERROR(INDEX('Data Annex'!$K$1:$AO$6000,MATCH(Assets!Y$1&"|"&Assets!$B36,'Data Annex'!$K$1:$K$6000,0),MATCH(Assets!Y$2,'Data Annex'!$K$1:$AO$1,0)),"") -> 0.0321583517 | Z36: =IFERROR(INDEX('Data Annex'!$K$1:$AO$6000,MATCH(Assets!Z$1&"|"&Assets!$B36,'Data Annex'!$K$1:$K$6000,0),MATCH(Assets!Z$2,'Data Annex'!$K$1:$AO$1,0)),"") -> 0.0316913972 | AA36: =IFERROR(INDEX('Data Annex'!$K$1:$AO$6000,MATCH(Assets!AA$1&"|"&Assets!$B36,'Data Annex'!$K$1:$K$6000,0),MATCH(Assets!AA$2,'Data Annex'!$K$1:$AO$1,0)),"") -> 0.033918521 | AB36: =IFERROR(INDEX('Data Annex'!$K$1:$AO$6000,MATCH(Assets!AB$1&"|"&Assets!$B36,'Data Annex'!$K$1:$K$6000,0),MATCH(Assets!AB$2,'Data Annex'!$K$1:$AO$1,0)),"") -> 0.0327686977 | AC36: =IFERROR(INDEX('Data Annex'!$K$1:$AH$6000,MATCH(Assets!AC$1&"|"&Assets!$B36,'Data Annex'!$K$1:$K$6000,0),MATCH(Assets!AC$2,'Data Annex'!$K$1:$AH$1,0)),"") -> 
B37: PT | D37: PT | E37: =IFERROR(INDEX('Data Annex'!$K$1:$AN$6000,MATCH(Assets!E$1&"|"&Assets!$B37,'Data Annex'!$K$1:$K$6000,0),MATCH(Assets!E$2,'Data Annex'!$K$1:$AN$1,0)),"") -> 0.089722854 | F37: =IFERROR(INDEX('Data Annex'!$K$1:$AN$6000,MATCH(Assets!F$1&"|"&Assets!$B37,'Data Annex'!$K$1:$K$6000,0),MATCH(Assets!F$2,'Data Annex'!$K$1:$AN$1,0)),"") -> 0.0810230495 | G37: =IFERROR(INDEX('Data Annex'!$K$1:$AN$6000,MATCH(Assets!G$1&"|"&Assets!$B37,'Data Annex'!$K$1:$K$6000,0),MATCH(Assets!G$2,'Data Annex'!$K$1:$AN$1,0)),"") -> 0.0946362984 | H37: =IFERROR(INDEX('Data Annex'!$K$1:$AO$6000,MATCH(Assets!H$1&"|"&Assets!$B37,'Data Annex'!$K$1:$K$6000,0),MATCH(Assets!H$2,'Data Annex'!$K$1:$AO$1,0)),"") -> 0.1123617773 | I37: =IFERROR(INDEX('Data Annex'!$K$1:$AO$6000,MATCH(Assets!I$1&"|"&Assets!$B37,'Data Annex'!$K$1:$K$6000,0),MATCH(Assets!I$2,'Data Annex'!$K$1:$AO$1,0)),"") -> 0.013654053 | J37: =IFERROR(INDEX('Data Annex'!$K$1:$AO$6000,MATCH(Assets!J$1&"|"&Assets!$B37,'Data Annex'!$K$1:$K$6000,0),MATCH(Assets!J$2,'Data Annex'!$K$1:$AO$1,0)),"") -> 0.0133731004 | K37: =IFERROR(INDEX('Data Annex'!$K$1:$AO$6000,MATCH(Assets!K$1&"|"&Assets!$B37,'Data Annex'!$K$1:$K$6000,0),MATCH(Assets!K$2,'Data Annex'!$K$1:$AO$1,0)),"") -> 0.0129816395 | L37: =IFERROR(INDEX('Data Annex'!$K$1:$AO$6000,MATCH(Assets!L$1&"|"&Assets!$B37,'Data Annex'!$K$1:$K$6000,0),MATCH(Assets!L$2,'Data Annex'!$K$1:$AO$1,0)),"") -> 0.0117740603 | M37: =IFERROR(INDEX('Data Annex'!$K$1:$AO$6000,MATCH(Assets!M$1&"|"&Assets!$B37,'Data Annex'!$K$1:$K$6000,0),MATCH(Assets!M$2,'Data Annex'!$K$1:$AO$1,0)),"") -> 0.2391291377 | N37: =IFERROR(INDEX('Data Annex'!$K$1:$AO$6000,MATCH(Assets!N$1&"|"&Assets!$B37,'Data Annex'!$K$1:$K$6000,0),MATCH(Assets!N$2,'Data Annex'!$K$1:$AO$1,0)),"") -> 0.2402659783 | O37: =IFERROR(INDEX('Data Annex'!$K$1:$AO$6000,MATCH(Assets!O$1&"|"&Assets!$B37,'Data Annex'!$K$1:$K$6000,0),MATCH(Assets!O$2,'Data Annex'!$K$1:$AO$1,0)),"") -> 0.2315986315 | P37: =IFERROR(INDEX('Data Annex'!$K$1:$AO$6000,MATCH(Assets!P$1&"|"&Assets!$B37,'Data Annex'!$K$1:$K$6000,0),MATCH(Assets!P$2,'Data Annex'!$K$1:$AO$1,0)),"") -> 0.2261827645 | Q37: =IFERROR(INDEX('Data Annex'!$K$1:$AO$6000,MATCH(Assets!Q$1&"|"&Assets!$B37,'Data Annex'!$K$1:$K$6000,0),MATCH(Assets!Q$2,'Data Annex'!$K$1:$AO$1,0)),"") -> 0.5883103017 | R37: =IFERROR(INDEX('Data Annex'!$K$1:$AO$6000,MATCH(Assets!R$1&"|"&Assets!$B37,'Data Annex'!$K$1:$K$6000,0),MATCH(Assets!R$2,'Data Annex'!$K$1:$AO$1,0)),"") -> 0.5902875432 | S37: =IFERROR(INDEX('Data Annex'!$K$1:$AO$6000,MATCH(Assets!S$1&"|"&Assets!$B37,'Data Annex'!$K$1:$K$6000,0),MATCH(Assets!S$2,'Data Annex'!$K$1:$AO$1,0)),"") -> 0.5896066008 | T37: =IFERROR(INDEX('Data Annex'!$K$1:$AO$6000,MATCH(Assets!T$1&"|"&Assets!$B37,'Data Annex'!$K$1:$K$6000,0),MATCH(Assets!T$2,'Data Annex'!$K$1:$AO$1,0)),"") -> 0.57576501 | U37: =IFERROR(INDEX('Data Annex'!$K$1:$AO$6000,MATCH(Assets!U$1&"|"&Assets!$B37,'Data Annex'!$K$1:$K$6000,0),MATCH(Assets!U$2,'Data Annex'!$K$1:$AO$1,0)),"") -> 0.0103126884 | V37: =IFERROR(INDEX('Data Annex'!$K$1:$AO$6000,MATCH(Assets!V$1&"|"&Assets!$B37,'Data Annex'!$K$1:$K$6000,0),MATCH(Assets!V$2,'Data Annex'!$K$1:$AO$1,0)),"") -> 0.0098026626 | W37: =IFERROR(INDEX('Data Annex'!$K$1:$AO$6000,MATCH(Assets!W$1&"|"&Assets!$B37,'Data Annex'!$K$1:$K$6000,0),MATCH(Assets!W$2,'Data Annex'!$K$1:$AO$1,0)),"") -> 0.0091640013 | X37: =IFERROR(INDEX('Data Annex'!$K$1:$AO$6000,MATCH(Assets!X$1&"|"&Assets!$B37,'Data Annex'!$K$1:$K$6000,0),MATCH(Assets!X$2,'Data Annex'!$K$1:$AO$1,0)),"") -> 0.0092405517 | Y37: =IFERROR(INDEX('Data Annex'!$K$1:$AO$6000,MATCH(Assets!Y$1&"|"&Assets!$B37,'Data Annex'!$K$1:$K$6000,0),MATCH(Assets!Y$2,'Data Annex'!$K$1:$AO$1,0)),"") -> 0.0588709652 | Z37: =IFERROR(INDEX('Data Annex'!$K$1:$AO$6000,MATCH(Assets!Z$1&"|"&Assets!$B37,'Data Annex'!$K$1:$K$6000,0),MATCH(Assets!Z$2,'Data Annex'!$K$1:$AO$1,0)),"") -> 0.065247666 | AA37: =IFERROR(INDEX('Data Annex'!$K$1:$AO$6000,MATCH(Assets!AA$1&"|"&Assets!$B37,'Data Annex'!$K$1:$K$6000,0),MATCH(Assets!AA$2,'Data Annex'!$K$1:$AO$1,0)),"") -> 0.0620128286 | AB37: =IFERROR(INDEX('Data Annex'!$K$1:$AO$6000,MATCH(Assets!AB$1&"|"&Assets!$B37,'Data Annex'!$K$1:$K$6000,0),MATCH(Assets!AB$2,'Data Annex'!$K$1:$AO$1,0)),"") -> 0.0646758361 | AC37: =IFERROR(INDEX('Data Annex'!$K$1:$AH$6000,MATCH(Assets!AC$1&"|"&Assets!$B37,'Data Annex'!$K$1:$K$6000,0),MATCH(Assets!AC$2,'Data Annex'!$K$1:$AH$1,0)),"") -> 
B38: RO | D38: RO | E38: =IFERROR(INDEX('Data Annex'!$K$1:$AN$6000,MATCH(Assets!E$1&"|"&Assets!$B38,'Data Annex'!$K$1:$K$6000,0),MATCH(Assets!E$2,'Data Annex'!$K$1:$AN$1,0)),"") -> 0.1583654416 | F38: =IFERROR(INDEX('Data Annex'!$K$1:$AN$6000,MATCH(Assets!F$1&"|"&Assets!$B38,'Data Annex'!$K$1:$K$6000,0),MATCH(Assets!F$2,'Data Annex'!$K$1:$AN$1,0)),"") -> 0.1481859405 | G38: =IFERROR(INDEX('Data Annex'!$K$1:$AN$6000,MATCH(Assets!G$1&"|"&Assets!$B38,'Data Annex'!$K$1:$K$6000,0),MATCH(Assets!G$2,'Data Annex'!$K$1:$AN$1,0)),"") -> 0.1659597997 | H38: =IFERROR(INDEX('Data Annex'!$K$1:$AO$6000,MATCH(Assets!H$1&"|"&Assets!$B38,'Data Annex'!$K$1:$K$6000,0),MATCH(Assets!H$2,'Data Annex'!$K$1:$AO$1,0)),"") -> 0.1387467111 | I38: =IFERROR(INDEX('Data Annex'!$K$1:$AO$6000,MATCH(Assets!I$1&"|"&Assets!$B38,'Data Annex'!$K$1:$K$6000,0),MATCH(Assets!I$2,'Data Annex'!$K$1:$AO$1,0)),"") -> 0.0016135904 | J38: =IFERROR(INDEX('Data Annex'!$K$1:$AO$6000,MATCH(Assets!J$1&"|"&Assets!$B38,'Data Annex'!$K$1:$K$6000,0),MATCH(Assets!J$2,'Data Annex'!$K$1:$AO$1,0)),"") -> 0.0017782167 | K38: =IFERROR(INDEX('Data Annex'!$K$1:$AO$6000,MATCH(Assets!K$1&"|"&Assets!$B38,'Data Annex'!$K$1:$K$6000,0),MATCH(Assets!K$2,'Data Annex'!$K$1:$AO$1,0)),"") -> 0.0015905776 | L38: =IFERROR(INDEX('Data Annex'!$K$1:$AO$6000,MATCH(Assets!L$1&"|"&Assets!$B38,'Data Annex'!$K$1:$K$6000,0),MATCH(Assets!L$2,'Data Annex'!$K$1:$AO$1,0)),"") -> 0.0014662749 | M38: =IFERROR(INDEX('Data Annex'!$K$1:$AO$6000,MATCH(Assets!M$1&"|"&Assets!$B38,'Data Annex'!$K$1:$K$6000,0),MATCH(Assets!M$2,'Data Annex'!$K$1:$AO$1,0)),"") -> 0.2837749906 | N38: =IFERROR(INDEX('Data Annex'!$K$1:$AO$6000,MATCH(Assets!N$1&"|"&Assets!$B38,'Data Annex'!$K$1:$K$6000,0),MATCH(Assets!N$2,'Data Annex'!$K$1:$AO$1,0)),"") -> 0.2852663443 | O38: =IFERROR(INDEX('Data Annex'!$K$1:$AO$6000,MATCH(Assets!O$1&"|"&Assets!$B38,'Data Annex'!$K$1:$K$6000,0),MATCH(Assets!O$2,'Data Annex'!$K$1:$AO$1,0)),"") -> 0.2934949597 | P38: =IFERROR(INDEX('Data Annex'!$K$1:$AO$6000,MATCH(Assets!P$1&"|"&Assets!$B38,'Data Annex'!$K$1:$K$6000,0),MATCH(Assets!P$2,'Data Annex'!$K$1:$AO$1,0)),"") -> 0.3180667251 | Q38: =IFERROR(INDEX('Data Annex'!$K$1:$AO$6000,MATCH(Assets!Q$1&"|"&Assets!$B38,'Data Annex'!$K$1:$K$6000,0),MATCH(Assets!Q$2,'Data Annex'!$K$1:$AO$1,0)),"") -> 0.5297529308 | R38: =IFERROR(INDEX('Data Annex'!$K$1:$AO$6000,MATCH(Assets!R$1&"|"&Assets!$B38,'Data Annex'!$K$1:$K$6000,0),MATCH(Assets!R$2,'Data Annex'!$K$1:$AO$1,0)),"") -> 0.5397151175 | S38: =IFERROR(INDEX('Data Annex'!$K$1:$AO$6000,MATCH(Assets!S$1&"|"&Assets!$B38,'Data Annex'!$K$1:$K$6000,0),MATCH(Assets!S$2,'Data Annex'!$K$1:$AO$1,0)),"") -> 0.5151142522 | T38: =IFERROR(INDEX('Data Annex'!$K$1:$AO$6000,MATCH(Assets!T$1&"|"&Assets!$B38,'Data Annex'!$K$1:$K$6000,0),MATCH(Assets!T$2,'Data Annex'!$K$1:$AO$1,0)),"") -> 0.5193698681 | U38: =IFERROR(INDEX('Data Annex'!$K$1:$AO$6000,MATCH(Assets!U$1&"|"&Assets!$B38,'Data Annex'!$K$1:$K$6000,0),MATCH(Assets!U$2,'Data Annex'!$K$1:$AO$1,0)),"") -> 0.0010318584 | V38: =IFERROR(INDEX('Data Annex'!$K$1:$AO$6000,MATCH(Assets!V$1&"|"&Assets!$B38,'Data Annex'!$K$1:$K$6000,0),MATCH(Assets!V$2,'Data Annex'!$K$1:$AO$1,0)),"") -> 0.0008910764 | W38: =IFERROR(INDEX('Data Annex'!$K$1:$AO$6000,MATCH(Assets!W$1&"|"&Assets!$B38,'Data Annex'!$K$1:$K$6000,0),MATCH(Assets!W$2,'Data Annex'!$K$1:$AO$1,0)),"") -> 0.0007602199 | X38: =IFERROR(INDEX('Data Annex'!$K$1:$AO$6000,MATCH(Assets!X$1&"|"&Assets!$B38,'Data Annex'!$K$1:$K$6000,0),MATCH(Assets!X$2,'Data Annex'!$K$1:$AO$1,0)),"") -> 0.0006231656 | Y38: =IFERROR(INDEX('Data Annex'!$K$1:$AO$6000,MATCH(Assets!Y$1&"|"&Assets!$B38,'Data Annex'!$K$1:$K$6000,0),MATCH(Assets!Y$2,'Data Annex'!$K$1:$AO$1,0)),"") -> 0.0254611882 | Z38: =IFERROR(INDEX('Data Annex'!$K$1:$AO$6000,MATCH(Assets!Z$1&"|"&Assets!$B38,'Data Annex'!$K$1:$K$6000,0),MATCH(Assets!Z$2,'Data Annex'!$K$1:$AO$1,0)),"") -> 0.0241633046 | AA38: =IFERROR(INDEX('Data Annex'!$K$1:$AO$6000,MATCH(Assets!AA$1&"|"&Assets!$B38,'Data Annex'!$K$1:$K$6000,0),MATCH(Assets!AA$2,'Data Annex'!$K$1:$AO$1,0)),"") -> 0.0230801909 | AB38: =IFERROR(INDEX('Data Annex'!$K$1:$AO$6000,MATCH(Assets!AB$1&"|"&Assets!$B38,'Data Annex'!$K$1:$K$6000,0),MATCH(Assets!AB$2,'Data Annex'!$K$1:$AO$1,0)),"") -> 0.0217272553
B39: SE | D39: SE | E39: =IFERROR(INDEX('Data Annex'!$K$1:$AN$6000,MATCH(Assets!E$1&"|"&Assets!$B39,'Data Annex'!$K$1:$K$6000,0),MATCH(Assets!E$2,'Data Annex'!$K$1:$AN$1,0)),"") -> 0.1336866688 | F39: =IFERROR(INDEX('Data Annex'!$K$1:$AN$6000,MATCH(Assets!F$1&"|"&Assets!$B39,'Data Annex'!$K$1:$K$6000,0),MATCH(Assets!F$2,'Data Annex'!$K$1:$AN$1,0)),"") -> 0.1305626164 | G39: =IFERROR(INDEX('Data Annex'!$K$1:$AN$6000,MATCH(Assets!G$1&"|"&Assets!$B39,'Data Annex'!$K$1:$K$6000,0),MATCH(Assets!G$2,'Data Annex'!$K$1:$AN$1,0)),"") -> 0.1101895082 | H39: =IFERROR(INDEX('Data Annex'!$K$1:$AO$6000,MATCH(Assets!H$1&"|"&Assets!$B39,'Data Annex'!$K$1:$K$6000,0),MATCH(Assets!H$2,'Data Annex'!$K$1:$AO$1,0)),"") -> 0.1643870661 | I39: =IFERROR(INDEX('Data Annex'!$K$1:$AO$6000,MATCH(Assets!I$1&"|"&Assets!$B39,'Data Annex'!$K$1:$K$6000,0),MATCH(Assets!I$2,'Data Annex'!$K$1:$AO$1,0)),"") -> 0.0061961812 | J39: =IFERROR(INDEX('Data Annex'!$K$1:$AO$6000,MATCH(Assets!J$1&"|"&Assets!$B39,'Data Annex'!$K$1:$K$6000,0),MATCH(Assets!J$2,'Data Annex'!$K$1:$AO$1,0)),"") -> 0.0085657487 | K39: =IFERROR(INDEX('Data Annex'!$K$1:$AO$6000,MATCH(Assets!K$1&"|"&Assets!$B39,'Data Annex'!$K$1:$K$6000,0),MATCH(Assets!K$2,'Data Annex'!$K$1:$AO$1,0)),"") -> 0.0109127064 | L39: =IFERROR(INDEX('Data Annex'!$K$1:$AO$6000,MATCH(Assets!L$1&"|"&Assets!$B39,'Data Annex'!$K$1:$K$6000,0),MATCH(Assets!L$2,'Data Annex'!$K$1:$AO$1,0)),"") -> 0.0118073553 | M39: =IFERROR(INDEX('Data Annex'!$K$1:$AO$6000,MATCH(Assets!M$1&"|"&Assets!$B39,'Data Annex'!$K$1:$K$6000,0),MATCH(Assets!M$2,'Data Annex'!$K$1:$AO$1,0)),"") -> 0.0996669637 | N39: =IFERROR(INDEX('Data Annex'!$K$1:$AO$6000,MATCH(Assets!N$1&"|"&Assets!$B39,'Data Annex'!$K$1:$K$6000,0),MATCH(Assets!N$2,'Data Annex'!$K$1:$AO$1,0)),"") -> 0.0873230937 | O39: =IFERROR(INDEX('Data Annex'!$K$1:$AO$6000,MATCH(Assets!O$1&"|"&Assets!$B39,'Data Annex'!$K$1:$K$6000,0),MATCH(Assets!O$2,'Data Annex'!$K$1:$AO$1,0)),"") -> 0.0812300645 | P39: =IFERROR(INDEX('Data Annex'!$K$1:$AO$6000,MATCH(Assets!P$1&"|"&Assets!$B39,'Data Annex'!$K$1:$K$6000,0),MATCH(Assets!P$2,'Data Annex'!$K$1:$AO$1,0)),"") -> 0.0844432861 | Q39: =IFERROR(INDEX('Data Annex'!$K$1:$AO$6000,MATCH(Assets!Q$1&"|"&Assets!$B39,'Data Annex'!$K$1:$K$6000,0),MATCH(Assets!Q$2,'Data Annex'!$K$1:$AO$1,0)),"") -> 0.7193962991 | R39: =IFERROR(INDEX('Data Annex'!$K$1:$AO$6000,MATCH(Assets!R$1&"|"&Assets!$B39,'Data Annex'!$K$1:$K$6000,0),MATCH(Assets!R$2,'Data Annex'!$K$1:$AO$1,0)),"") -> 0.7324747763 | S39: =IFERROR(INDEX('Data Annex'!$K$1:$AO$6000,MATCH(Assets!S$1&"|"&Assets!$B39,'Data Annex'!$K$1:$K$6000,0),MATCH(Assets!S$2,'Data Annex'!$K$1:$AO$1,0)),"") -> 0.7545198456 | T39: =IFERROR(INDEX('Data Annex'!$K$1:$AO$6000,MATCH(Assets!T$1&"|"&Assets!$B39,'Data Annex'!$K$1:$K$6000,0),MATCH(Assets!T$2,'Data Annex'!$K$1:$AO$1,0)),"") -> 0.7009014526 | U39: =IFERROR(INDEX('Data Annex'!$K$1:$AO$6000,MATCH(Assets!U$1&"|"&Assets!$B39,'Data Annex'!$K$1:$K$6000,0),MATCH(Assets!U$2,'Data Annex'!$K$1:$AO$1,0)),"") -> 0.028527136 | V39: =IFERROR(INDEX('Data Annex'!$K$1:$AO$6000,MATCH(Assets!V$1&"|"&Assets!$B39,'Data Annex'!$K$1:$K$6000,0),MATCH(Assets!V$2,'Data Annex'!$K$1:$AO$1,0)),"") -> 0.0278545746 | W39: =IFERROR(INDEX('Data Annex'!$K$1:$AO$6000,MATCH(Assets!W$1&"|"&Assets!$B39,'Data Annex'!$K$1:$K$6000,0),MATCH(Assets!W$2,'Data Annex'!$K$1:$AO$1,0)),"") -> 0.0276553802 | X39: =IFERROR(INDEX('Data Annex'!$K$1:$AO$6000,MATCH(Assets!X$1&"|"&Assets!$B39,'Data Annex'!$K$1:$K$6000,0),MATCH(Assets!X$2,'Data Annex'!$K$1:$AO$1,0)),"") -> 0.023190573 | Y39: =IFERROR(INDEX('Data Annex'!$K$1:$AO$6000,MATCH(Assets!Y$1&"|"&Assets!$B39,'Data Annex'!$K$1:$K$6000,0),MATCH(Assets!Y$2,'Data Annex'!$K$1:$AO$1,0)),"") -> 0.0125267512 | Z39: =IFERROR(INDEX('Data Annex'!$K$1:$AO$6000,MATCH(Assets!Z$1&"|"&Assets!$B39,'Data Annex'!$K$1:$K$6000,0),MATCH(Assets!Z$2,'Data Annex'!$K$1:$AO$1,0)),"") -> 0.0132191903 | AA39: =IFERROR(INDEX('Data Annex'!$K$1:$AO$6000,MATCH(Assets!AA$1&"|"&Assets!$B39,'Data Annex'!$K$1:$K$6000,0),MATCH(Assets!AA$2,'Data Annex'!$K$1:$AO$1,0)),"") -> 0.0154924951 | AB39: =IFERROR(INDEX('Data Annex'!$K$1:$AO$6000,MATCH(Assets!AB$1&"|"&Assets!$B39,'Data Annex'!$K$1:$K$6000,0),MATCH(Assets!AB$2,'Data Annex'!$K$1:$AO$1,0)),"") -> 0.0152702669
B40: SI | D40: SI | E40: =IFERROR(INDEX('Data Annex'!$K$1:$AN$6000,MATCH(Assets!E$1&"|"&Assets!$B40,'Data Annex'!$K$1:$K$6000,0),MATCH(Assets!E$2,'Data Annex'!$K$1:$AN$1,0)),"") -> 0.1911769854 | F40: =IFERROR(INDEX('Data Annex'!$K$1:$AN$6000,MATCH(Assets!F$1&"|"&Assets!$B40,'Data Annex'!$K$1:$K$6000,0),MATCH(Assets!F$2,'Data Annex'!$K$1:$AN$1,0)),"") -> 0.188408611 | G40: =IFERROR(INDEX('Data Annex'!$K$1:$AN$6000,MATCH(Assets!G$1&"|"&Assets!$B40,'Data Annex'!$K$1:$K$6000,0),MATCH(Assets!G$2,'Data Annex'!$K$1:$AN$1,0)),"") -> 0.203725226 | H40: =IFERROR(INDEX('Data Annex'!$K$1:$AO$6000,MATCH(Assets!H$1&"|"&Assets!$B40,'Data Annex'!$K$1:$K$6000,0),MATCH(Assets!H$2,'Data Annex'!$K$1:$AO$1,0)),"") -> 0.2123513694 | I40: =IFERROR(INDEX('Data Annex'!$K$1:$AO$6000,MATCH(Assets!I$1&"|"&Assets!$B40,'Data Annex'!$K$1:$K$6000,0),MATCH(Assets!I$2,'Data Annex'!$K$1:$AO$1,0)),"") -> 0.0051909617 | J40: =IFERROR(INDEX('Data Annex'!$K$1:$AO$6000,MATCH(Assets!J$1&"|"&Assets!$B40,'Data Annex'!$K$1:$K$6000,0),MATCH(Assets!J$2,'Data Annex'!$K$1:$AO$1,0)),"") -> 0.005159625 | K40: =IFERROR(INDEX('Data Annex'!$K$1:$AO$6000,MATCH(Assets!K$1&"|"&Assets!$B40,'Data Annex'!$K$1:$K$6000,0),MATCH(Assets!K$2,'Data Annex'!$K$1:$AO$1,0)),"") -> 0.0054221659 | L40: =IFERROR(INDEX('Data Annex'!$K$1:$AO$6000,MATCH(Assets!L$1&"|"&Assets!$B40,'Data Annex'!$K$1:$K$6000,0),MATCH(Assets!L$2,'Data Annex'!$K$1:$AO$1,0)),"") -> 0.0051968165 | M40: =IFERROR(INDEX('Data Annex'!$K$1:$AO$6000,MATCH(Assets!M$1&"|"&Assets!$B40,'Data Annex'!$K$1:$K$6000,0),MATCH(Assets!M$2,'Data Annex'!$K$1:$AO$1,0)),"") -> 0.221532008 | N40: =IFERROR(INDEX('Data Annex'!$K$1:$AO$6000,MATCH(Assets!N$1&"|"&Assets!$B40,'Data Annex'!$K$1:$K$6000,0),MATCH(Assets!N$2,'Data Annex'!$K$1:$AO$1,0)),"") -> 0.2295932915 | O40: =IFERROR(INDEX('Data Annex'!$K$1:$AO$6000,MATCH(Assets!O$1&"|"&Assets!$B40,'Data Annex'!$K$1:$K$6000,0),MATCH(Assets!O$2,'Data Annex'!$K$1:$AO$1,0)),"") -> 0.2370919889 | P40: =IFERROR(INDEX('Data Annex'!$K$1:$AO$6000,MATCH(Assets!P$1&"|"&Assets!$B40,'Data Annex'!$K$1:$K$6000,0),MATCH(Assets!P$2,'Data Annex'!$K$1:$AO$1,0)),"") -> 0.233491836 | Q40: =IFERROR(INDEX('Data Annex'!$K$1:$AO$6000,MATCH(Assets!Q$1&"|"&Assets!$B40,'Data Annex'!$K$1:$K$6000,0),MATCH(Assets!Q$2,'Data Annex'!$K$1:$AO$1,0)),"") -> 0.5549826725 | R40: =IFERROR(INDEX('Data Annex'!$K$1:$AO$6000,MATCH(Assets!R$1&"|"&Assets!$B40,'Data Annex'!$K$1:$K$6000,0),MATCH(Assets!R$2,'Data Annex'!$K$1:$AO$1,0)),"") -> 0.5508487606 | S40: =IFERROR(INDEX('Data Annex'!$K$1:$AO$6000,MATCH(Assets!S$1&"|"&Assets!$B40,'Data Annex'!$K$1:$K$6000,0),MATCH(Assets!S$2,'Data Annex'!$K$1:$AO$1,0)),"") -> 0.5285457943 | T40: =IFERROR(INDEX('Data Annex'!$K$1:$AO$6000,MATCH(Assets!T$1&"|"&Assets!$B40,'Data Annex'!$K$1:$K$6000,0),MATCH(Assets!T$2,'Data Annex'!$K$1:$AO$1,0)),"") -> 0.5244225386 | U40: =IFERROR(INDEX('Data Annex'!$K$1:$AO$6000,MATCH(Assets!U$1&"|"&Assets!$B40,'Data Annex'!$K$1:$K$6000,0),MATCH(Assets!U$2,'Data Annex'!$K$1:$AO$1,0)),"") -> 0.001462927 | V40: =IFERROR(INDEX('Data Annex'!$K$1:$AO$6000,MATCH(Assets!V$1&"|"&Assets!$B40,'Data Annex'!$K$1:$K$6000,0),MATCH(Assets!V$2,'Data Annex'!$K$1:$AO$1,0)),"") -> 0.0013418032 | W40: =IFERROR(INDEX('Data Annex'!$K$1:$AO$6000,MATCH(Assets!W$1&"|"&Assets!$B40,'Data Annex'!$K$1:$K$6000,0),MATCH(Assets!W$2,'Data Annex'!$K$1:$AO$1,0)),"") -> 0.001002483 | X40: =IFERROR(INDEX('Data Annex'!$K$1:$AO$6000,MATCH(Assets!X$1&"|"&Assets!$B40,'Data Annex'!$K$1:$K$6000,0),MATCH(Assets!X$2,'Data Annex'!$K$1:$AO$1,0)),"") -> 0.0008929426 | Y40: =IFERROR(INDEX('Data Annex'!$K$1:$AO$6000,MATCH(Assets!Y$1&"|"&Assets!$B40,'Data Annex'!$K$1:$K$6000,0),MATCH(Assets!Y$2,'Data Annex'!$K$1:$AO$1,0)),"") -> 0.0256544089 | Z40: =IFERROR(INDEX('Data Annex'!$K$1:$AO$6000,MATCH(Assets!Z$1&"|"&Assets!$B40,'Data Annex'!$K$1:$K$6000,0),MATCH(Assets!Z$2,'Data Annex'!$K$1:$AO$1,0)),"") -> 0.0246479448 | AA40: =IFERROR(INDEX('Data Annex'!$K$1:$AO$6000,MATCH(Assets!AA$1&"|"&Assets!$B40,'Data Annex'!$K$1:$K$6000,0),MATCH(Assets!AA$2,'Data Annex'!$K$1:$AO$1,0)),"") -> 0.0242123419 | AB40: =IFERROR(INDEX('Data Annex'!$K$1:$AO$6000,MATCH(Assets!AB$1&"|"&Assets!$B40,'Data Annex'!$K$1:$K$6000,0),MATCH(Assets!AB$2,'Data Annex'!$K$1:$AO$1,0)),"") -> 0.023644527
B41: SK | D41: =IF(OR(E41="n.a.",F41="n.a.",G41="n.a.",H41="n.a.",I41="n.a.",J41="n.a.",K41="n.a.",L41="n.a.",M41="n.a.",N41="n.a.",O41="n.a.",P41="n.a.",Q41="n.a.",R41="n.a.",S41="n.a.",T41="n.a.",U41="n.a.",V41="n.a.",W41="n.a.",X41="n.a.",Y41="n.a.",Z41="n.a.",AA41="n.a.",AB41="n.a."),$B41&"*",$B41) -> SK | E41: =IFERROR(INDEX('Data Annex'!$K$1:$AN$6000,MATCH(Assets!E$1&"|"&Assets!$B41,'Data Annex'!$K$1:$K$6000,0),MATCH(Assets!E$2,'Data Annex'!$K$1:$AN$1,0)),"") -> 0.0522861265 | F41: =IFERROR(INDEX('Data Annex'!$K$1:$AN$6000,MATCH(Assets!F$1&"|"&Assets!$B41,'Data Annex'!$K$1:$K$6000,0),MATCH(Assets!F$2,'Data Annex'!$K$1:$AN$1,0)),"") -> 0.0631523169 | G41: =IFERROR(INDEX('Data Annex'!$K$1:$AN$6000,MATCH(Assets!G$1&"|"&Assets!$B41,'Data Annex'!$K$1:$K$6000,0),MATCH(Assets!G$2,'Data Annex'!$K$1:$AN$1,0)),"") -> 0.0789824772 | H41: =IFERROR(INDEX('Data Annex'!$K$1:$AO$6000,MATCH(Assets!H$1&"|"&Assets!$B41,'Data Annex'!$K$1:$K$6000,0),MATCH(Assets!H$2,'Data Annex'!$K$1:$AO$1,0)),"") -> 0.1601895567 | I41: =IFERROR(INDEX('Data Annex'!$K$1:$AO$6000,MATCH(Assets!I$1&"|"&Assets!$B41,'Data Annex'!$K$1:$K$6000,0),MATCH(Assets!I$2,'Data Annex'!$K$1:$AO$1,0)),"") -> 0.0009959384 | J41: =IFERROR(INDEX('Data Annex'!$K$1:$AO$6000,MATCH(Assets!J$1&"|"&Assets!$B41,'Data Annex'!$K$1:$K$6000,0),MATCH(Assets!J$2,'Data Annex'!$K$1:$AO$1,0)),"") -> 0.0011828949 | K41: =IFERROR(INDEX('Data Annex'!$K$1:$AO$6000,MATCH(Assets!K$1&"|"&Assets!$B41,'Data Annex'!$K$1:$K$6000,0),MATCH(Assets!K$2,'Data Annex'!$K$1:$AO$1,0)),"") -> 0.0003932405 | L41: =IFERROR(INDEX('Data Annex'!$K$1:$AO$6000,MATCH(Assets!L$1&"|"&Assets!$B41,'Data Annex'!$K$1:$K$6000,0),MATCH(Assets!L$2,'Data Annex'!$K$1:$AO$1,0)),"") -> 0.0003700305 | M41: =IFERROR(INDEX('Data Annex'!$K$1:$AO$6000,MATCH(Assets!M$1&"|"&Assets!$B41,'Data Annex'!$K$1:$K$6000,0),MATCH(Assets!M$2,'Data Annex'!$K$1:$AO$1,0)),"") -> 0.1548088841 | N41: =IFERROR(INDEX('Data Annex'!$K$1:$AO$6000,MATCH(Assets!N$1&"|"&Assets!$B41,'Data Annex'!$K$1:$K$6000,0),MATCH(Assets!N$2,'Data Annex'!$K$1:$AO$1,0)),"") -> 0.1461401769 | O41: =IFERROR(INDEX('Data Annex'!$K$1:$AO$6000,MATCH(Assets!O$1&"|"&Assets!$B41,'Data Annex'!$K$1:$K$6000,0),MATCH(Assets!O$2,'Data Annex'!$K$1:$AO$1,0)),"") -> 0.1378912315 | P41: =IFERROR(INDEX('Data Annex'!$K$1:$AO$6000,MATCH(Assets!P$1&"|"&Assets!$B41,'Data Annex'!$K$1:$K$6000,0),MATCH(Assets!P$2,'Data Annex'!$K$1:$AO$1,0)),"") -> 0.1206303187 | Q41: =IFERROR(INDEX('Data Annex'!$K$1:$AO$6000,MATCH(Assets!Q$1&"|"&Assets!$B41,'Data Annex'!$K$1:$K$6000,0),MATCH(Assets!Q$2,'Data Annex'!$K$1:$AO$1,0)),"") -> 0.7677594642 | R41: =IFERROR(INDEX('Data Annex'!$K$1:$AO$6000,MATCH(Assets!R$1&"|"&Assets!$B41,'Data Annex'!$K$1:$K$6000,0),MATCH(Assets!R$2,'Data Annex'!$K$1:$AO$1,0)),"") -> 0.7652354613 | S41: =IFERROR(INDEX('Data Annex'!$K$1:$AO$6000,MATCH(Assets!S$1&"|"&Assets!$B41,'Data Annex'!$K$1:$K$6000,0),MATCH(Assets!S$2,'Data Annex'!$K$1:$AO$1,0)),"") -> 0.7589152518 | T41: =IFERROR(INDEX('Data Annex'!$K$1:$AO$6000,MATCH(Assets!T$1&"|"&Assets!$B41,'Data Annex'!$K$1:$K$6000,0),MATCH(Assets!T$2,'Data Annex'!$K$1:$AO$1,0)),"") -> 0.6973432662 | U41: =IFERROR(INDEX('Data Annex'!$K$1:$AO$6000,MATCH(Assets!U$1&"|"&Assets!$B41,'Data Annex'!$K$1:$K$6000,0),MATCH(Assets!U$2,'Data Annex'!$K$1:$AO$1,0)),"") -> 0.0052994906 | V41: =IFERROR(INDEX('Data Annex'!$K$1:$AO$6000,MATCH(Assets!V$1&"|"&Assets!$B41,'Data Annex'!$K$1:$K$6000,0),MATCH(Assets!V$2,'Data Annex'!$K$1:$AO$1,0)),"") -> 0.0055260677 | W41: =IFERROR(INDEX('Data Annex'!$K$1:$AO$6000,MATCH(Assets!W$1&"|"&Assets!$B41,'Data Annex'!$K$1:$K$6000,0),MATCH(Assets!W$2,'Data Annex'!$K$1:$AO$1,0)),"") -> 0.0055292885 | X41: =IFERROR(INDEX('Data Annex'!$K$1:$AO$6000,MATCH(Assets!X$1&"|"&Assets!$B41,'Data Annex'!$K$1:$K$6000,0),MATCH(Assets!X$2,'Data Annex'!$K$1:$AO$1,0)),"") -> 0.0043716197 | Y41: =IFERROR(INDEX('Data Annex'!$K$1:$AO$6000,MATCH(Assets!Y$1&"|"&Assets!$B41,'Data Annex'!$K$1:$K$6000,0),MATCH(Assets!Y$2,'Data Annex'!$K$1:$AO$1,0)),"") -> 0.0188500961 | Z41: =IFERROR(INDEX('Data Annex'!$K$1:$AO$6000,MATCH(Assets!Z$1&"|"&Assets!$B41,'Data Annex'!$K$1:$K$6000,0),MATCH(Assets!Z$2,'Data Annex'!$K$1:$AO$1,0)),"") -> 0.0187630824 | AA41: =IFERROR(INDEX('Data Annex'!$K$1:$AO$6000,MATCH(Assets!AA$1&"|"&Assets!$B41,'Data Annex'!$K$1:$K$6000,0),MATCH(Assets!AA$2,'Data Annex'!$K$1:$AO$1,0)),"") -> 0.0182885104 | AB41: =IFERROR(INDEX('Data Annex'!$K$1:$AO$6000,MATCH(Assets!AB$1&"|"&Assets!$B41,'Data Annex'!$K$1:$K$6000,0),MATCH(Assets!AB$2,'Data Annex'!$K$1:$AO$1,0)),"") -> 0.0170952082
B42: EU | D42: EU/EEA | E42: =IFERROR(INDEX('Data Annex'!$K$1:$AN$6000,MATCH(Assets!E$1&"|"&Assets!$B42,'Data Annex'!$K$1:$K$6000,0),MATCH(Assets!E$2,'Data Annex'!$K$1:$AN$1,0)),"") -> 0.1108304471 | F42: =IFERROR(INDEX('Data Annex'!$K$1:$AN$6000,MATCH(Assets!F$1&"|"&Assets!$B42,'Data Annex'!$K$1:$K$6000,0),MATCH(Assets!F$2,'Data Annex'!$K$1:$AN$1,0)),"") -> 0.1215543319 | G42: =IFERROR(INDEX('Data Annex'!$K$1:$AN$6000,MATCH(Assets!G$1&"|"&Assets!$B42,'Data Annex'!$K$1:$K$6000,0),MATCH(Assets!G$2,'Data Annex'!$K$1:$AN$1,0)),"") -> 0.1253901429 | H42: =IFERROR(INDEX('Data Annex'!$K$1:$AO$6000,MATCH(Assets!H$1&"|"&Assets!$B42,'Data Annex'!$K$1:$K$6000,0),MATCH(Assets!H$2,'Data Annex'!$K$1:$AO$1,0)),"") -> 0.1467011055 | I42: =IFERROR(INDEX('Data Annex'!$K$1:$AO$6000,MATCH(Assets!I$1&"|"&Assets!$B42,'Data Annex'!$K$1:$K$6000,0),MATCH(Assets!I$2,'Data Annex'!$K$1:$AO$1,0)),"") -> 0.0117164283 | J42: =IFERROR(INDEX('Data Annex'!$K$1:$AO$6000,MATCH(Assets!J$1&"|"&Assets!$B42,'Data Annex'!$K$1:$K$6000,0),MATCH(Assets!J$2,'Data Annex'!$K$1:$AO$1,0)),"") -> 0.0122845671 | K42: =IFERROR(INDEX('Data Annex'!$K$1:$AO$6000,MATCH(Assets!K$1&"|"&Assets!$B42,'Data Annex'!$K$1:$K$6000,0),MATCH(Assets!K$2,'Data Annex'!$K$1:$AO$1,0)),"") -> 0.013954763 | L42: =IFERROR(INDEX('Data Annex'!$K$1:$AO$6000,MATCH(Assets!L$1&"|"&Assets!$B42,'Data Annex'!$K$1:$K$6000,0),MATCH(Assets!L$2,'Data Annex'!$K$1:$AO$1,0)),"") -> 0.0170045023 | M42: =IFERROR(INDEX('Data Annex'!$K$1:$AO$6000,MATCH(Assets!M$1&"|"&Assets!$B42,'Data Annex'!$K$1:$K$6000,0),MATCH(Assets!M$2,'Data Annex'!$K$1:$AO$1,0)),"") -> 0.1337491033 | N42: =IFERROR(INDEX('Data Annex'!$K$1:$AO$6000,MATCH(Assets!N$1&"|"&Assets!$B42,'Data Annex'!$K$1:$K$6000,0),MATCH(Assets!N$2,'Data Annex'!$K$1:$AO$1,0)),"") -> 0.1316344264 | O42: =IFERROR(INDEX('Data Annex'!$K$1:$AO$6000,MATCH(Assets!O$1&"|"&Assets!$B42,'Data Annex'!$K$1:$K$6000,0),MATCH(Assets!O$2,'Data Annex'!$K$1:$AO$1,0)),"") -> 0.1253530012 | P42: =IFERROR(INDEX('Data Annex'!$K$1:$AO$6000,MATCH(Assets!P$1&"|"&Assets!$B42,'Data Annex'!$K$1:$K$6000,0),MATCH(Assets!P$2,'Data Annex'!$K$1:$AO$1,0)),"") -> 0.1276620726 | Q42: =IFERROR(INDEX('Data Annex'!$K$1:$AO$6000,MATCH(Assets!Q$1&"|"&Assets!$B42,'Data Annex'!$K$1:$K$6000,0),MATCH(Assets!Q$2,'Data Annex'!$K$1:$AO$1,0)),"") -> 0.6197127768 | R42: =IFERROR(INDEX('Data Annex'!$K$1:$AO$6000,MATCH(Assets!R$1&"|"&Assets!$B42,'Data Annex'!$K$1:$K$6000,0),MATCH(Assets!R$2,'Data Annex'!$K$1:$AO$1,0)),"") -> 0.6146574596 | S42: =IFERROR(INDEX('Data Annex'!$K$1:$AO$6000,MATCH(Assets!S$1&"|"&Assets!$B42,'Data Annex'!$K$1:$K$6000,0),MATCH(Assets!S$2,'Data Annex'!$K$1:$AO$1,0)),"") -> 0.6047538998 | T42: =IFERROR(INDEX('Data Annex'!$K$1:$AO$6000,MATCH(Assets!T$1&"|"&Assets!$B42,'Data Annex'!$K$1:$K$6000,0),MATCH(Assets!T$2,'Data Annex'!$K$1:$AO$1,0)),"") -> 0.5997765751 | U42: =IFERROR(INDEX('Data Annex'!$K$1:$AO$6000,MATCH(Assets!U$1&"|"&Assets!$B42,'Data Annex'!$K$1:$K$6000,0),MATCH(Assets!U$2,'Data Annex'!$K$1:$AO$1,0)),"") -> 0.0737212215 | V42: =IFERROR(INDEX('Data Annex'!$K$1:$AO$6000,MATCH(Assets!V$1&"|"&Assets!$B42,'Data Annex'!$K$1:$K$6000,0),MATCH(Assets!V$2,'Data Annex'!$K$1:$AO$1,0)),"") -> 0.0696883772 | W42: =IFERROR(INDEX('Data Annex'!$K$1:$AO$6000,MATCH(Assets!W$1&"|"&Assets!$B42,'Data Annex'!$K$1:$K$6000,0),MATCH(Assets!W$2,'Data Annex'!$K$1:$AO$1,0)),"") -> 0.0687022793 | X42: =IFERROR(INDEX('Data Annex'!$K$1:$AO$6000,MATCH(Assets!X$1&"|"&Assets!$B42,'Data Annex'!$K$1:$K$6000,0),MATCH(Assets!X$2,'Data Annex'!$K$1:$AO$1,0)),"") -> 0.0578963724 | Y42: =IFERROR(INDEX('Data Annex'!$K$1:$AO$6000,MATCH(Assets!Y$1&"|"&Assets!$B42,'Data Annex'!$K$1:$K$6000,0),MATCH(Assets!Y$2,'Data Annex'!$K$1:$AO$1,0)),"") -> 0.0502700231 | Z42: =IFERROR(INDEX('Data Annex'!$K$1:$AO$6000,MATCH(Assets!Z$1&"|"&Assets!$B42,'Data Annex'!$K$1:$K$6000,0),MATCH(Assets!Z$2,'Data Annex'!$K$1:$AO$1,0)),"") -> 0.0501808379 | AA42: =IFERROR(INDEX('Data Annex'!$K$1:$AO$6000,MATCH(Assets!AA$1&"|"&Assets!$B42,'Data Annex'!$K$1:$K$6000,0),MATCH(Assets!AA$2,'Data Annex'!$K$1:$AO$1,0)),"") -> 0.0618459137 | AB42: =IFERROR(INDEX('Data Annex'!$K$1:$AO$6000,MATCH(Assets!AB$1&"|"&Assets!$B42,'Data Annex'!$K$1:$K$6000,0),MATCH(Assets!AB$2,'Data Annex'!$K$1:$AO$1,0)),"") -> 0.0509593722
F45: T02_1 | G45: T02_1 | H45: T02_1 | I45: T02_1 | J45: T02_2 | K45: T02_2 | L45: T02_2 | M45: T02_2 | P45: T03_1 | Q45: T03_1 | R45: T03_1 | S45: T03_1 | T45: T03_1 | U45: T03_2 | V45: T03_2 | W45: T03_2 | X45: T03_2 | Y45: T03_3 | Z45: T03_3 | AA45: T03_3 | AB45: T03_3
F46: =TEXT(F51,"YYYYMM")+0 -> 202006 | G46: 202009 | H46: 202012 | I46: 202103 | J46: 202006 | K46: 202009 | L46: 202012 | M46: 202103 | Q46: =TEXT(Q51,"YYYYMM")+0 -> 202006 | R46: =TEXT(R51,"YYYYMM")+0 -> 202009 | S46: =TEXT(S51,"YYYYMM")+0 -> 202012 | T46: =TEXT(T51,"YYYYMM")+0 -> 202103 | U46: =TEXT(U51,"YYYYMM")+0 -> 202006 | V46: 202009 | W46: 202012 | X46: 202103 | Y46: 202006 | Z46: 202009 | AA46: 202012 | AB46: 202103
D47: Assets | O47: Financial Assets
D49: Volumes bn EUR | O49: % of total financial assets
F50: Total Assets | J50: Total Financial Assets | Q50: Share of financial assets valued at (amortised) cost | U50: Share of financial assets at fair value through OCI | Y50: Share of financial assets at fair value through profit&loss
F51: =EOMONTH($A$3,-9) -> 2020-06-30 | G51: =EOMONTH($A$3,-6) -> 2020-09-30 | H51: =EOMONTH($A$3,-3) -> 2020-12-31 | I51: =$A$3 -> 2021-03-01 | J51: =EOMONTH($A$3,-9) -> 2020-06-30 | K51: =EOMONTH($A$3,-6) -> 2020-09-30 | L51: =EOMONTH($A$3,-3) -> 2020-12-31 | M51: =$A$3 -> 2021-03-01 | Q51: =EOMONTH($A$3,-9) -> 2020-06-30 | R51: =EOMONTH($A$3,-6) -> 2020-09-30 | S51: =EOMONTH($A$3,-3) -> 2020-12-31 | T51: =$A$3 -> 2021-03-01 | U51: =EOMONTH($A$3,-9) -> 2020-06-30 | V51: =EOMONTH($A$3,-6) -> 2020-09-30 | W51: =EOMONTH($A$3,-3) -> 2020-12-31 | X51: =$A$3 -> 2021-03-01 | Y51: =EOMONTH($A$3,-9) -> 2020-06-30 | Z51: =EOMONTH($A$3,-6) -> 2020-09-30 | AA51: =EOMONTH($A$3,-3) -> 2020-12-31 | AB51: =$A$3 -> 2021-03-01
B52: AT | D52: =IF(OR(F52="n.a.",G52="n.a.",H52="n.a.",I52="n.a.",J52="n.a.",K52="n.a.",L52="n.a.",M52="n.a."),$B52&"*",$B52) -> AT | F52: =IFERROR(INDEX('Data Annex'!$K$1:$AN$6000,MATCH(Assets!F$45&"|"&Assets!$B52,'Data Annex'!$K$1:$K$6000,0),MATCH(Assets!F$46,'Data Annex'!$K$1:$AN$1,0)),"") -> 683.4007252 | G52: =IFERROR(INDEX('Data Annex'!$K$1:$AN$6000,MATCH(Assets!G$45&"|"&Assets!$B52,'Data Annex'!$K$1:$K$6000,0),MATCH(Assets!G$46,'Data Annex'!$K$1:$AN$1,0)),"") -> 692.1961347 | H52: =IFERROR(INDEX('Data Annex'!$K$1:$AN$6000,MATCH(Assets!H$45&"|"&Assets!$B52,'Data Annex'!$K$1:$K$6000,0),MATCH(Assets!H$46,'Data Annex'!$K$1:$AN$1,0)),"") -> 705.0104197 | I52: =IFERROR(INDEX('Data Annex'!$K$1:$AO$6000,MATCH(Assets!I$45&"|"&Assets!$B52,'Data Annex'!$K$1:$K$6000,0),MATCH(Assets!I$46,'Data Annex'!$K$1:$AO$1,0)),"") -> 743.7521543 | J52: =IFERROR(INDEX('Data Annex'!$K$1:$AN$6000,MATCH(Assets!J$45&"|"&Assets!$B52,'Data Annex'!$K$1:$K$6000,0),MATCH(Assets!J$46,'Data Annex'!$K$1:$AN$1,0)),"") -> 660.643585 | K52: =IFERROR(INDEX('Data Annex'!$K$1:$AN$6000,MATCH(Assets!K$45&"|"&Assets!$B52,'Data Annex'!$K$1:$K$6000,0),MATCH(Assets!K$46,'Data Annex'!$K$1:$AN$1,0)),"") -> 669.4861932 | L52: =IFERROR(INDEX('Data Annex'!$K$1:$AN$6000,MATCH(Assets!L$45&"|"&Assets!$B52,'Data Annex'!$K$1:$K$6000,0),MATCH(Assets!L$46,'Data Annex'!$K$1:$AN$1,0)),"") -> 682.3362521 | M52: =IFERROR(INDEX('Data Annex'!$K$1:$AO$6000,MATCH(Assets!M$45&"|"&Assets!$B52,'Data Annex'!$K$1:$K$6000,0),MATCH(Assets!M$46,'Data Annex'!$K$1:$AO$1,0)),"") -> 721.688041 | N52: =M52/I52 -> 0.9703340513 | O52: =+D52 -> AT | Q52: =IFERROR(INDEX('Data Annex'!$K$1:$AN$6000,MATCH(Assets!Q$45&"|"&Assets!$B52,'Data Annex'!$K$1:$K$6000,0),MATCH(Assets!Q$46,'Data Annex'!$K$1:$AN$1,0)),"") -> 0.8968952138 | R52: =IFERROR(INDEX('Data Annex'!$K$1:$AN$6000,MATCH(Assets!R$45&"|"&Assets!$B52,'Data Annex'!$K$1:$K$6000,0),MATCH(Assets!R$46,'Data Annex'!$K$1:$AN$1,0)),"") -> 0.9041410902 | S52: =IFERROR(INDEX('Data Annex'!$K$1:$AN$6000,MATCH(Assets!S$45&"|"&Assets!$B52,'Data Annex'!$K$1:$K$6000,0),MATCH(Assets!S$46,'Data Annex'!$K$1:$AN$1,0)),"") -> 0.9078192656 | T52: =IFERROR(INDEX('Data Annex'!$K$1:$AO$6000,MATCH(Assets!T$45&"|"&Assets!$B52,'Data Annex'!$K$1:$K$6000,0),MATCH(Assets!T$46,'Data Annex'!$K$1:$AO$1,0)),"") -> 0.9148442906 | U52: =IFERROR(INDEX('Data Annex'!$K$1:$AO$6000,MATCH(Assets!U$45&"|"&Assets!$B52,'Data Annex'!$K$1:$K$6000,0),MATCH(Assets!U$46,'Data Annex'!$K$1:$AO$1,0)),"") -> 0.0609447226 | V52: =IFERROR(INDEX('Data Annex'!$K$1:$AO$6000,MATCH(Assets!V$45&"|"&Assets!$B52,'Data Annex'!$K$1:$K$6000,0),MATCH(Assets!V$46,'Data Annex'!$K$1:$AO$1,0)),"") -> 0.0557268353 | W52: =IFERROR(INDEX('Data Annex'!$K$1:$AO$6000,MATCH(Assets!W$45&"|"&Assets!$B52,'Data Annex'!$K$1:$K$6000,0),MATCH(Assets!W$46,'Data Annex'!$K$1:$AO$1,0)),"") -> 0.0539734706 | X52: =IFERROR(INDEX('Data Annex'!$K$1:$AO$6000,MATCH(Assets!X$45&"|"&Assets!$B52,'Data Annex'!$K$1:$K$6000,0),MATCH(Assets!X$46,'Data Annex'!$K$1:$AO$1,0)),"") -> 0.0508728814 | Y52: =IFERROR(INDEX('Data Annex'!$K$1:$AO$6000,MATCH(Assets!Y$45&"|"&Assets!$B52,'Data Annex'!$K$1:$K$6000,0),MATCH(Assets!Y$46,'Data Annex'!$K$1:$AO$1,0)),"") -> 0.0421600635 | Z52: =IFERROR(INDEX('Data Annex'!$K$1:$AO$6000,MATCH(Assets!Z$45&"|"&Assets!$B52,'Data Annex'!$K$1:$K$6000,0),MATCH(Assets!Z$46,'Data Annex'!$K$1:$AO$1,0)),"") -> 0.0401320744 | AA52: =IFERROR(INDEX('Data Annex'!$K$1:$AO$6000,MATCH(Assets!AA$45&"|"&Assets!$B52,'Data Annex'!$K$1:$K$6000,0),MATCH(Assets!AA$46,'Data Annex'!$K$1:$AO$1,0)),"") -> 0.0382072638 | AB52: =IFERROR(INDEX('Data Annex'!$K$1:$AO$6000,MATCH(Assets!AB$45&"|"&Assets!$B52,'Data Annex'!$K$1:$K$6000,0),MATCH(Assets!AB$46,'Data Annex'!$K$1:$AO$1,0)),"") -> 0.0342828281
B53: BE | D53: =IF(OR(F53="n.a.",G53="n.a.",H53="n.a.",I53="n.a.",J53="n.a.",K53="n.a.",L53="n.a.",M53="n.a."),$B53&"*",$B53) -> BE | F53: =IFERROR(INDEX('Data Annex'!$K$1:$AN$6000,MATCH(Assets!F$45&"|"&Assets!$B53,'Data Annex'!$K$1:$K$6000,0),MATCH(Assets!F$46,'Data Annex'!$K$1:$AN$1,0)),"") -> 1203.992874 | G53: =IFERROR(INDEX('Data Annex'!$K$1:$AN$6000,MATCH(Assets!G$45&"|"&Assets!$B53,'Data Annex'!$K$1:$K$6000,0),MATCH(Assets!G$46,'Data Annex'!$K$1:$AN$1,0)),"") -> 1194.63946 | H53: =IFERROR(INDEX('Data Annex'!$K$1:$AN$6000,MATCH(Assets!H$45&"|"&Assets!$B53,'Data Annex'!$K$1:$K$6000,0),MATCH(Assets!H$46,'Data Annex'!$K$1:$AN$1,0)),"") -> 1193.725979 | I53: =IFERROR(INDEX('Data Annex'!$K$1:$AO$6000,MATCH(Assets!I$45&"|"&Assets!$B53,'Data Annex'!$K$1:$K$6000,0),MATCH(Assets!I$46,'Data Annex'!$K$1:$AO$1,0)),"") -> 1243.491396 | J53: =IFERROR(INDEX('Data Annex'!$K$1:$AN$6000,MATCH(Assets!J$45&"|"&Assets!$B53,'Data Annex'!$K$1:$K$6000,0),MATCH(Assets!J$46,'Data Annex'!$K$1:$AN$1,0)),"") -> 1133.306731 | K53: =IFERROR(INDEX('Data Annex'!$K$1:$AN$6000,MATCH(Assets!K$45&"|"&Assets!$B53,'Data Annex'!$K$1:$K$6000,0),MATCH(Assets!K$46,'Data Annex'!$K$1:$AN$1,0)),"") -> 1125.484364 | L53: =IFERROR(INDEX('Data Annex'!$K$1:$AN$6000,MATCH(Assets!L$45&"|"&Assets!$B53,'Data Annex'!$K$1:$K$6000,0),MATCH(Assets!L$46,'Data Annex'!$K$1:$AN$1,0)),"") -> 1123.959252 | M53: =IFERROR(INDEX('Data Annex'!$K$1:$AO$6000,MATCH(Assets!M$45&"|"&Assets!$B53,'Data Annex'!$K$1:$K$6000,0),MATCH(Assets!M$46,'Data Annex'!$K$1:$AO$1,0)),"") -> 1174.925319 | N53: =M53/I53 -> 0.9448600309 | O53: BE | Q53: =IFERROR(INDEX('Data Annex'!$K$1:$AN$6000,MATCH(Assets!Q$45&"|"&Assets!$B53,'Data Annex'!$K$1:$K$6000,0),MATCH(Assets!Q$46,'Data Annex'!$K$1:$AN$1,0)),"") -> 0.8868220369 | R53: =IFERROR(INDEX('Data Annex'!$K$1:$AN$6000,MATCH(Assets!R$45&"|"&Assets!$B53,'Data Annex'!$K$1:$K$6000,0),MATCH(Assets!R$46,'Data Annex'!$K$1:$AN$1,0)),"") -> 0.8923012843 | S53: =IFERROR(INDEX('Data Annex'!$K$1:$AN$6000,MATCH(Assets!S$45&"|"&Assets!$B53,'Data Annex'!$K$1:$K$6000,0),MATCH(Assets!S$46,'Data Annex'!$K$1:$AN$1,0)),"") -> 0.9020368774 | T53: =IFERROR(INDEX('Data Annex'!$K$1:$AO$6000,MATCH(Assets!T$45&"|"&Assets!$B53,'Data Annex'!$K$1:$K$6000,0),MATCH(Assets!T$46,'Data Annex'!$K$1:$AO$1,0)),"") -> 0.9137032732 | U53: =IFERROR(INDEX('Data Annex'!$K$1:$AO$6000,MATCH(Assets!U$45&"|"&Assets!$B53,'Data Annex'!$K$1:$K$6000,0),MATCH(Assets!U$46,'Data Annex'!$K$1:$AO$1,0)),"") -> 0.0406516805 | V53: =IFERROR(INDEX('Data Annex'!$K$1:$AO$6000,MATCH(Assets!V$45&"|"&Assets!$B53,'Data Annex'!$K$1:$K$6000,0),MATCH(Assets!V$46,'Data Annex'!$K$1:$AO$1,0)),"") -> 0.0380941387 | W53: =IFERROR(INDEX('Data Annex'!$K$1:$AO$6000,MATCH(Assets!W$45&"|"&Assets!$B53,'Data Annex'!$K$1:$K$6000,0),MATCH(Assets!W$46,'Data Annex'!$K$1:$AO$1,0)),"") -> 0.0367357918 | X53: =IFERROR(INDEX('Data Annex'!$K$1:$AO$6000,MATCH(Assets!X$45&"|"&Assets!$B53,'Data Annex'!$K$1:$K$6000,0),MATCH(Assets!X$46,'Data Annex'!$K$1:$AO$1,0)),"") -> 0.034890984 | Y53: =IFERROR(INDEX('Data Annex'!$K$1:$AO$6000,MATCH(Assets!Y$45&"|"&Assets!$B53,'Data Annex'!$K$1:$K$6000,0),MATCH(Assets!Y$46,'Data Annex'!$K$1:$AO$1,0)),"") -> 0.0725262826 | Z53: =IFERROR(INDEX('Data Annex'!$K$1:$AO$6000,MATCH(Assets!Z$45&"|"&Assets!$B53,'Data Annex'!$K$1:$K$6000,0),MATCH(Assets!Z$46,'Data Annex'!$K$1:$AO$1,0)),"") -> 0.069604577 | AA53: =IFERROR(INDEX('Data Annex'!$K$1:$AO$6000,MATCH(Assets!AA$45&"|"&Assets!$B53,'Data Annex'!$K$1:$K$6000,0),MATCH(Assets!AA$46,'Data Annex'!$K$1:$AO$1,0)),"") -> 0.0612273308 | AB53: =IFERROR(INDEX('Data Annex'!$K$1:$AO$6000,MATCH(Assets!AB$45&"|"&Assets!$B53,'Data Annex'!$K$1:$K$6000,0),MATCH(Assets!AB$46,'Data Annex'!$K$1:$AO$1,0)),"") -> 0.0514057428
B54: BG | D54: BG | F54: =IFERROR(INDEX('Data Annex'!$K$1:$AN$6000,MATCH(Assets!F$45&"|"&Assets!$B54,'Data Annex'!$K$1:$K$6000,0),MATCH(Assets!F$46,'Data Annex'!$K$1:$AN$1,0)),"") -> 34.0637151 | G54: =IFERROR(INDEX('Data Annex'!$K$1:$AN$6000,MATCH(Assets!G$45&"|"&Assets!$B54,'Data Annex'!$K$1:$K$6000,0),MATCH(Assets!G$46,'Data Annex'!$K$1:$AN$1,0)),"") -> 35.17179313 | H54: =IFERROR(INDEX('Data Annex'!$K$1:$AN$6000,MATCH(Assets!H$45&"|"&Assets!$B54,'Data Annex'!$K$1:$K$6000,0),MATCH(Assets!H$46,'Data Annex'!$K$1:$AN$1,0)),"") -> 36.6209863 | I54: =IFERROR(INDEX('Data Annex'!$K$1:$AO$6000,MATCH(Assets!I$45&"|"&Assets!$B54,'Data Annex'!$K$1:$K$6000,0),MATCH(Assets!I$46,'Data Annex'!$K$1:$AO$1,0)),"") -> 37.49474793 | J54: =IFERROR(INDEX('Data Annex'!$K$1:$AN$6000,MATCH(Assets!J$45&"|"&Assets!$B54,'Data Annex'!$K$1:$K$6000,0),MATCH(Assets!J$46,'Data Annex'!$K$1:$AN$1,0)),"") -> 32.46579303 | K54: =IFERROR(INDEX('Data Annex'!$K$1:$AN$6000,MATCH(Assets!K$45&"|"&Assets!$B54,'Data Annex'!$K$1:$K$6000,0),MATCH(Assets!K$46,'Data Annex'!$K$1:$AN$1,0)),"") -> 33.57361693 | L54: =IFERROR(INDEX('Data Annex'!$K$1:$AN$6000,MATCH(Assets!L$45&"|"&Assets!$B54,'Data Annex'!$K$1:$K$6000,0),MATCH(Assets!L$46,'Data Annex'!$K$1:$AN$1,0)),"") -> 35.06254934 | M54: =IFERROR(INDEX('Data Annex'!$K$1:$AO$6000,MATCH(Assets!M$45&"|"&Assets!$B54,'Data Annex'!$K$1:$K$6000,0),MATCH(Assets!M$46,'Data Annex'!$K$1:$AO$1,0)),"") -> 35.9441676 | N54: 0.9586453994 | O54: BG | Q54: =IFERROR(INDEX('Data Annex'!$K$1:$AN$6000,MATCH(Assets!Q$45&"|"&Assets!$B54,'Data Annex'!$K$1:$K$6000,0),MATCH(Assets!Q$46,'Data Annex'!$K$1:$AN$1,0)),"") -> 0.8748735798 | R54: =IFERROR(INDEX('Data Annex'!$K$1:$AN$6000,MATCH(Assets!R$45&"|"&Assets!$B54,'Data Annex'!$K$1:$K$6000,0),MATCH(Assets!R$46,'Data Annex'!$K$1:$AN$1,0)),"") -> 0.8787684075 | S54: =IFERROR(INDEX('Data Annex'!$K$1:$AN$6000,MATCH(Assets!S$45&"|"&Assets!$B54,'Data Annex'!$K$1:$K$6000,0),MATCH(Assets!S$46,'Data Annex'!$K$1:$AN$1,0)),"") -> 0.8831137009 | T54: =IFERROR(INDEX('Data Annex'!$K$1:$AO$6000,MATCH(Assets!T$45&"|"&Assets!$B54,'Data Annex'!$K$1:$K$6000,0),MATCH(Assets!T$46,'Data Annex'!$K$1:$AO$1,0)),"") -> 0.8875811859 | U54: =IFERROR(INDEX('Data Annex'!$K$1:$AO$6000,MATCH(Assets!U$45&"|"&Assets!$B54,'Data Annex'!$K$1:$K$6000,0),MATCH(Assets!U$46,'Data Annex'!$K$1:$AO$1,0)),"") -> 0.1150578335 | V54: =IFERROR(INDEX('Data Annex'!$K$1:$AO$6000,MATCH(Assets!V$45&"|"&Assets!$B54,'Data Annex'!$K$1:$K$6000,0),MATCH(Assets!V$46,'Data Annex'!$K$1:$AO$1,0)),"") -> 0.1111537377 | W54: =IFERROR(INDEX('Data Annex'!$K$1:$AO$6000,MATCH(Assets!W$45&"|"&Assets!$B54,'Data Annex'!$K$1:$K$6000,0),MATCH(Assets!W$46,'Data Annex'!$K$1:$AO$1,0)),"") -> 0.1066255835 | X54: =IFERROR(INDEX('Data Annex'!$K$1:$AO$6000,MATCH(Assets!X$45&"|"&Assets!$B54,'Data Annex'!$K$1:$K$6000,0),MATCH(Assets!X$46,'Data Annex'!$K$1:$AO$1,0)),"") -> 0.1012179258 | Y54: =IFERROR(INDEX('Data Annex'!$K$1:$AO$6000,MATCH(Assets!Y$45&"|"&Assets!$B54,'Data Annex'!$K$1:$K$6000,0),MATCH(Assets!Y$46,'Data Annex'!$K$1:$AO$1,0)),"") -> 0.0100685867 | Z54: =IFERROR(INDEX('Data Annex'!$K$1:$AO$6000,MATCH(Assets!Z$45&"|"&Assets!$B54,'Data Annex'!$K$1:$K$6000,0),MATCH(Assets!Z$46,'Data Annex'!$K$1:$AO$1,0)),"") -> 0.0100778548 | AA54: =IFERROR(INDEX('Data Annex'!$K$1:$AO$6000,MATCH(Assets!AA$45&"|"&Assets!$B54,'Data Annex'!$K$1:$K$6000,0),MATCH(Assets!AA$46,'Data Annex'!$K$1:$AO$1,0)),"") -> 0.0102607156 | AB54: =IFERROR(INDEX('Data Annex'!$K$1:$AO$6000,MATCH(Assets!AB$45&"|"&Assets!$B54,'Data Annex'!$K$1:$K$6000,0),MATCH(Assets!AB$46,'Data Annex'!$K$1:$AO$1,0)),"") -> 0.0112008883
B55: CY | D55: CY | F55: =IFERROR(INDEX('Data Annex'!$K$1:$AN$6000,MATCH(Assets!F$45&"|"&Assets!$B55,'Data Annex'!$K$1:$K$6000,0),MATCH(Assets!F$46,'Data Annex'!$K$1:$AN$1,0)),"") -> 36.30971339 | G55: =IFERROR(INDEX('Data Annex'!$K$1:$AN$6000,MATCH(Assets!G$45&"|"&Assets!$B55,'Data Annex'!$K$1:$K$6000,0),MATCH(Assets!G$46,'Data Annex'!$K$1:$AN$1,0)),"") -> 36.27881587 | H55: =IFERROR(INDEX('Data Annex'!$K$1:$AN$6000,MATCH(Assets!H$45&"|"&Assets!$B55,'Data Annex'!$K$1:$K$6000,0),MATCH(Assets!H$46,'Data Annex'!$K$1:$AN$1,0)),"") -> 36.35490363 | I55: =IFERROR(INDEX('Data Annex'!$K$1:$AO$6000,MATCH(Assets!I$45&"|"&Assets!$B55,'Data Annex'!$K$1:$K$6000,0),MATCH(Assets!I$46,'Data Annex'!$K$1:$AO$1,0)),"") -> 37.99209693 | J55: =IFERROR(INDEX('Data Annex'!$K$1:$AN$6000,MATCH(Assets!J$45&"|"&Assets!$B55,'Data Annex'!$K$1:$K$6000,0),MATCH(Assets!J$46,'Data Annex'!$K$1:$AN$1,0)),"") -> 33.04124857 | K55: =IFERROR(INDEX('Data Annex'!$K$1:$AN$6000,MATCH(Assets!K$45&"|"&Assets!$B55,'Data Annex'!$K$1:$K$6000,0),MATCH(Assets!K$46,'Data Annex'!$K$1:$AN$1,0)),"") -> 32.95662734 | L55: =IFERROR(INDEX('Data Annex'!$K$1:$AN$6000,MATCH(Assets!L$45&"|"&Assets!$B55,'Data Annex'!$K$1:$K$6000,0),MATCH(Assets!L$46,'Data Annex'!$K$1:$AN$1,0)),"") -> 32.85162039 | M55: =IFERROR(INDEX('Data Annex'!$K$1:$AO$6000,MATCH(Assets!M$45&"|"&Assets!$B55,'Data Annex'!$K$1:$K$6000,0),MATCH(Assets!M$46,'Data Annex'!$K$1:$AO$1,0)),"") -> 34.54574881 | N55: 0.9092877623 | O55: CY | Q55: =IFERROR(INDEX('Data Annex'!$K$1:$AN$6000,MATCH(Assets!Q$45&"|"&Assets!$B55,'Data Annex'!$K$1:$K$6000,0),MATCH(Assets!Q$46,'Data Annex'!$K$1:$AN$1,0)),"") -> 0.9543673306 | R55: =IFERROR(INDEX('Data Annex'!$K$1:$AN$6000,MATCH(Assets!R$45&"|"&Assets!$B55,'Data Annex'!$K$1:$K$6000,0),MATCH(Assets!R$46,'Data Annex'!$K$1:$AN$1,0)),"") -> 0.955791847 | S55: =IFERROR(INDEX('Data Annex'!$K$1:$AN$6000,MATCH(Assets!S$45&"|"&Assets!$B55,'Data Annex'!$K$1:$K$6000,0),MATCH(Assets!S$46,'Data Annex'!$K$1:$AN$1,0)),"") -> 0.9610736977 | T55: =IFERROR(INDEX('Data Annex'!$K$1:$AO$6000,MATCH(Assets!T$45&"|"&Assets!$B55,'Data Annex'!$K$1:$K$6000,0),MATCH(Assets!T$46,'Data Annex'!$K$1:$AO$1,0)),"") -> 0.9621355041 | U55: =IFERROR(INDEX('Data Annex'!$K$1:$AO$6000,MATCH(Assets!U$45&"|"&Assets!$B55,'Data Annex'!$K$1:$K$6000,0),MATCH(Assets!U$46,'Data Annex'!$K$1:$AO$1,0)),"") -> 0.0351524819 | V55: =IFERROR(INDEX('Data Annex'!$K$1:$AO$6000,MATCH(Assets!V$45&"|"&Assets!$B55,'Data Annex'!$K$1:$K$6000,0),MATCH(Assets!V$46,'Data Annex'!$K$1:$AO$1,0)),"") -> 0.0335326989 | W55: =IFERROR(INDEX('Data Annex'!$K$1:$AO$6000,MATCH(Assets!W$45&"|"&Assets!$B55,'Data Annex'!$K$1:$K$6000,0),MATCH(Assets!W$46,'Data Annex'!$K$1:$AO$1,0)),"") -> 0.0282669557 | X55: =IFERROR(INDEX('Data Annex'!$K$1:$AO$6000,MATCH(Assets!X$45&"|"&Assets!$B55,'Data Annex'!$K$1:$K$6000,0),MATCH(Assets!X$46,'Data Annex'!$K$1:$AO$1,0)),"") -> 0.0277036103 | Y55: =IFERROR(INDEX('Data Annex'!$K$1:$AO$6000,MATCH(Assets!Y$45&"|"&Assets!$B55,'Data Annex'!$K$1:$K$6000,0),MATCH(Assets!Y$46,'Data Annex'!$K$1:$AO$1,0)),"") -> 0.0104801876 | Z55: =IFERROR(INDEX('Data Annex'!$K$1:$AO$6000,MATCH(Assets!Z$45&"|"&Assets!$B55,'Data Annex'!$K$1:$K$6000,0),MATCH(Assets!Z$46,'Data Annex'!$K$1:$AO$1,0)),"") -> 0.0106754541 | AA55: =IFERROR(INDEX('Data Annex'!$K$1:$AO$6000,MATCH(Assets!AA$45&"|"&Assets!$B55,'Data Annex'!$K$1:$K$6000,0),MATCH(Assets!AA$46,'Data Annex'!$K$1:$AO$1,0)),"") -> 0.0106593466 | AB55: =IFERROR(INDEX('Data Annex'!$K$1:$AO$6000,MATCH(Assets!AB$45&"|"&Assets!$B55,'Data Annex'!$K$1:$K$6000,0),MATCH(Assets!AB$46,'Data Annex'!$K$1:$AO$1,0)),"") -> 0.0101608856
B56: CZ | D56: CZ | F56: =IFERROR(INDEX('Data Annex'!$K$1:$AN$6000,MATCH(Assets!F$45&"|"&Assets!$B56,'Data Annex'!$K$1:$K$6000,0),MATCH(Assets!F$46,'Data Annex'!$K$1:$AN$1,0)),"") -> 174.4290417 | G56: =IFERROR(INDEX('Data Annex'!$K$1:$AN$6000,MATCH(Assets!G$45&"|"&Assets!$B56,'Data Annex'!$K$1:$K$6000,0),MATCH(Assets!G$46,'Data Annex'!$K$1:$AN$1,0)),"") -> 171.7714256 | H56: =IFERROR(INDEX('Data Annex'!$K$1:$AN$6000,MATCH(Assets!H$45&"|"&Assets!$B56,'Data Annex'!$K$1:$K$6000,0),MATCH(Assets!H$46,'Data Annex'!$K$1:$AN$1,0)),"") -> 170.0010821 | I56: =IFERROR(INDEX('Data Annex'!$K$1:$AO$6000,MATCH(Assets!I$45&"|"&Assets!$B56,'Data Annex'!$K$1:$K$6000,0),MATCH(Assets!I$46,'Data Annex'!$K$1:$AO$1,0)),"") -> 184.4656267 | J56: =IFERROR(INDEX('Data Annex'!$K$1:$AN$6000,MATCH(Assets!J$45&"|"&Assets!$B56,'Data Annex'!$K$1:$K$6000,0),MATCH(Assets!J$46,'Data Annex'!$K$1:$AN$1,0)),"") -> 171.0277075 | K56: =IFERROR(INDEX('Data Annex'!$K$1:$AN$6000,MATCH(Assets!K$45&"|"&Assets!$B56,'Data Annex'!$K$1:$K$6000,0),MATCH(Assets!K$46,'Data Annex'!$K$1:$AN$1,0)),"") -> 168.4551541 | L56: =IFERROR(INDEX('Data Annex'!$K$1:$AN$6000,MATCH(Assets!L$45&"|"&Assets!$B56,'Data Annex'!$K$1:$K$6000,0),MATCH(Assets!L$46,'Data Annex'!$K$1:$AN$1,0)),"") -> 166.6324876 | M56: =IFERROR(INDEX('Data Annex'!$K$1:$AO$6000,MATCH(Assets!M$45&"|"&Assets!$B56,'Data Annex'!$K$1:$K$6000,0),MATCH(Assets!M$46,'Data Annex'!$K$1:$AO$1,0)),"") -> 181.1070827 | N56: 0.9817931172 | O56: CZ | Q56: =IFERROR(INDEX('Data Annex'!$K$1:$AN$6000,MATCH(Assets!Q$45&"|"&Assets!$B56,'Data Annex'!$K$1:$K$6000,0),MATCH(Assets!Q$46,'Data Annex'!$K$1:$AN$1,0)),"") -> 0.9412799347 | R56: =IFERROR(INDEX('Data Annex'!$K$1:$AN$6000,MATCH(Assets!R$45&"|"&Assets!$B56,'Data Annex'!$K$1:$K$6000,0),MATCH(Assets!R$46,'Data Annex'!$K$1:$AN$1,0)),"") -> 0.9451083652 | S56: =IFERROR(INDEX('Data Annex'!$K$1:$AN$6000,MATCH(Assets!S$45&"|"&Assets!$B56,'Data Annex'!$K$1:$K$6000,0),MATCH(Assets!S$46,'Data Annex'!$K$1:$AN$1,0)),"") -> 0.9572400468 | T56: =IFERROR(INDEX('Data Annex'!$K$1:$AO$6000,MATCH(Assets!T$45&"|"&Assets!$B56,'Data Annex'!$K$1:$K$6000,0),MATCH(Assets!T$46,'Data Annex'!$K$1:$AO$1,0)),"") -> 0.9587553418 | U56: =IFERROR(INDEX('Data Annex'!$K$1:$AO$6000,MATCH(Assets!U$45&"|"&Assets!$B56,'Data Annex'!$K$1:$K$6000,0),MATCH(Assets!U$46,'Data Annex'!$K$1:$AO$1,0)),"") -> 0.0227793656 | V56: =IFERROR(INDEX('Data Annex'!$K$1:$AO$6000,MATCH(Assets!V$45&"|"&Assets!$B56,'Data Annex'!$K$1:$K$6000,0),MATCH(Assets!V$46,'Data Annex'!$K$1:$AO$1,0)),"") -> 0.0211492422 | W56: =IFERROR(INDEX('Data Annex'!$K$1:$AO$6000,MATCH(Assets!W$45&"|"&Assets!$B56,'Data Annex'!$K$1:$K$6000,0),MATCH(Assets!W$46,'Data Annex'!$K$1:$AO$1,0)),"") -> 0.0190680468 | X56: =IFERROR(INDEX('Data Annex'!$K$1:$AO$6000,MATCH(Assets!X$45&"|"&Assets!$B56,'Data Annex'!$K$1:$K$6000,0),MATCH(Assets!X$46,'Data Annex'!$K$1:$AO$1,0)),"") -> 0.0184033761 | Y56: =IFERROR(INDEX('Data Annex'!$K$1:$AO$6000,MATCH(Assets!Y$45&"|"&Assets!$B56,'Data Annex'!$K$1:$K$6000,0),MATCH(Assets!Y$46,'Data Annex'!$K$1:$AO$1,0)),"") -> 0.0359406997 | Z56: =IFERROR(INDEX('Data Annex'!$K$1:$AO$6000,MATCH(Assets!Z$45&"|"&Assets!$B56,'Data Annex'!$K$1:$K$6000,0),MATCH(Assets!Z$46,'Data Annex'!$K$1:$AO$1,0)),"") -> 0.0337423926 | AA56: =IFERROR(INDEX('Data Annex'!$K$1:$AO$6000,MATCH(Assets!AA$45&"|"&Assets!$B56,'Data Annex'!$K$1:$K$6000,0),MATCH(Assets!AA$46,'Data Annex'!$K$1:$AO$1,0)),"") -> 0.0236919064 | AB56: =IFERROR(INDEX('Data Annex'!$K$1:$AO$6000,MATCH(Assets!AB$45&"|"&Assets!$B56,'Data Annex'!$K$1:$K$6000,0),MATCH(Assets!AB$46,'Data Annex'!$K$1:$AO$1,0)),"") -> 0.0228412821
B57: DE | D57: DE | F57: =IFERROR(INDEX('Data Annex'!$K$1:$AN$6000,MATCH(Assets!F$45&"|"&Assets!$B57,'Data Annex'!$K$1:$K$6000,0),MATCH(Assets!F$46,'Data Annex'!$K$1:$AN$1,0)),"") -> 3938.556529 | G57: =IFERROR(INDEX('Data Annex'!$K$1:$AN$6000,MATCH(Assets!G$45&"|"&Assets!$B57,'Data Annex'!$K$1:$K$6000,0),MATCH(Assets!G$46,'Data Annex'!$K$1:$AN$1,0)),"") -> 3915.690483 | H57: =IFERROR(INDEX('Data Annex'!$K$1:$AN$6000,MATCH(Assets!H$45&"|"&Assets!$B57,'Data Annex'!$K$1:$K$6000,0),MATCH(Assets!H$46,'Data Annex'!$K$1:$AN$1,0)),"") -> 3742.68177 | I57: =IFERROR(INDEX('Data Annex'!$K$1:$AO$6000,MATCH(Assets!I$45&"|"&Assets!$B57,'Data Annex'!$K$1:$K$6000,0),MATCH(Assets!I$46,'Data Annex'!$K$1:$AO$1,0)),"") -> 3864.617627 | J57: =IFERROR(INDEX('Data Annex'!$K$1:$AN$6000,MATCH(Assets!J$45&"|"&Assets!$B57,'Data Annex'!$K$1:$K$6000,0),MATCH(Assets!J$46,'Data Annex'!$K$1:$AN$1,0)),"") -> 3836.125281 | K57: =IFERROR(INDEX('Data Annex'!$K$1:$AN$6000,MATCH(Assets!K$45&"|"&Assets!$B57,'Data Annex'!$K$1:$K$6000,0),MATCH(Assets!K$46,'Data Annex'!$K$1:$AN$1,0)),"") -> 3814.497177 | L57: =IFERROR(INDEX('Data Annex'!$K$1:$AN$6000,MATCH(Assets!L$45&"|"&Assets!$B57,'Data Annex'!$K$1:$K$6000,0),MATCH(Assets!L$46,'Data Annex'!$K$1:$AN$1,0)),"") -> 3642.947914 | M57: =IFERROR(INDEX('Data Annex'!$K$1:$AO$6000,MATCH(Assets!M$45&"|"&Assets!$B57,'Data Annex'!$K$1:$K$6000,0),MATCH(Assets!M$46,'Data Annex'!$K$1:$AO$1,0)),"") -> 3765.515293 | N57: 0.9743564971 | O57: DE | Q57: =IFERROR(INDEX('Data Annex'!$K$1:$AN$6000,MATCH(Assets!Q$45&"|"&Assets!$B57,'Data Annex'!$K$1:$K$6000,0),MATCH(Assets!Q$46,'Data Annex'!$K$1:$AN$1,0)),"") -> 0.6967116361 | R57: =IFERROR(INDEX('Data Annex'!$K$1:$AN$6000,MATCH(Assets!R$45&"|"&Assets!$B57,'Data Annex'!$K$1:$K$6000,0),MATCH(Assets!R$46,'Data Annex'!$K$1:$AN$1,0)),"") -> 0.704826353 | S57: =IFERROR(INDEX('Data Annex'!$K$1:$AN$6000,MATCH(Assets!S$45&"|"&Assets!$B57,'Data Annex'!$K$1:$K$6000,0),MATCH(Assets!S$46,'Data Annex'!$K$1:$AN$1,0)),"") -> 0.7016594085 | T57: =IFERROR(INDEX('Data Annex'!$K$1:$AO$6000,MATCH(Assets!T$45&"|"&Assets!$B57,'Data Annex'!$K$1:$K$6000,0),MATCH(Assets!T$46,'Data Annex'!$K$1:$AO$1,0)),"") -> 0.729366308 | U57: =IFERROR(INDEX('Data Annex'!$K$1:$AO$6000,MATCH(Assets!U$45&"|"&Assets!$B57,'Data Annex'!$K$1:$K$6000,0),MATCH(Assets!U$46,'Data Annex'!$K$1:$AO$1,0)),"") -> 0.062323604 | V57: =IFERROR(INDEX('Data Annex'!$K$1:$AO$6000,MATCH(Assets!V$45&"|"&Assets!$B57,'Data Annex'!$K$1:$K$6000,0),MATCH(Assets!V$46,'Data Annex'!$K$1:$AO$1,0)),"") -> 0.0642461844 | W57: =IFERROR(INDEX('Data Annex'!$K$1:$AO$6000,MATCH(Assets!W$45&"|"&Assets!$B57,'Data Annex'!$K$1:$K$6000,0),MATCH(Assets!W$46,'Data Annex'!$K$1:$AO$1,0)),"") -> 0.0673942856 | X57: =IFERROR(INDEX('Data Annex'!$K$1:$AO$6000,MATCH(Assets!X$45&"|"&Assets!$B57,'Data Annex'!$K$1:$K$6000,0),MATCH(Assets!X$46,'Data Annex'!$K$1:$AO$1,0)),"") -> 0.0598551751 | Y57: =IFERROR(INDEX('Data Annex'!$K$1:$AO$6000,MATCH(Assets!Y$45&"|"&Assets!$B57,'Data Annex'!$K$1:$K$6000,0),MATCH(Assets!Y$46,'Data Annex'!$K$1:$AO$1,0)),"") -> 0.2409647599 | Z57: =IFERROR(INDEX('Data Annex'!$K$1:$AO$6000,MATCH(Assets!Z$45&"|"&Assets!$B57,'Data Annex'!$K$1:$K$6000,0),MATCH(Assets!Z$46,'Data Annex'!$K$1:$AO$1,0)),"") -> 0.2309274626 | AA57: =IFERROR(INDEX('Data Annex'!$K$1:$AO$6000,MATCH(Assets!AA$45&"|"&Assets!$B57,'Data Annex'!$K$1:$K$6000,0),MATCH(Assets!AA$46,'Data Annex'!$K$1:$AO$1,0)),"") -> 0.2309463059 | AB57: =IFERROR(INDEX('Data Annex'!$K$1:$AO$6000,MATCH(Assets!AB$45&"|"&Assets!$B57,'Data Annex'!$K$1:$K$6000,0),MATCH(Assets!AB$46,'Data Annex'!$K$1:$AO$1,0)),"") -> 0.2107785169
B58: DK | D58: DK | F58: =IFERROR(INDEX('Data Annex'!$K$1:$AN$6000,MATCH(Assets!F$45&"|"&Assets!$B58,'Data Annex'!$K$1:$K$6000,0),MATCH(Assets!F$46,'Data Annex'!$K$1:$AN$1,0)),"") -> 791.2617091 | G58: =IFERROR(INDEX('Data Annex'!$K$1:$AN$6000,MATCH(Assets!G$45&"|"&Assets!$B58,'Data Annex'!$K$1:$K$6000,0),MATCH(Assets!G$46,'Data Annex'!$K$1:$AN$1,0)),"") -> 794.2693591 | H58: =IFERROR(INDEX('Data Annex'!$K$1:$AN$6000,MATCH(Assets!H$45&"|"&Assets!$B58,'Data Annex'!$K$1:$K$6000,0),MATCH(Assets!H$46,'Data Annex'!$K$1:$AN$1,0)),"") -> 813.6337069 | I58: =IFERROR(INDEX('Data Annex'!$K$1:$AO$6000,MATCH(Assets!I$45&"|"&Assets!$B58,'Data Annex'!$K$1:$K$6000,0),MATCH(Assets!I$46,'Data Annex'!$K$1:$AO$1,0)),"") -> 810.87059 | J58: =IFERROR(INDEX('Data Annex'!$K$1:$AN$6000,MATCH(Assets!J$45&"|"&Assets!$B58,'Data Annex'!$K$1:$K$6000,0),MATCH(Assets!J$46,'Data Annex'!$K$1:$AN$1,0)),"") -> 772.4552703 | K58: =IFERROR(INDEX('Data Annex'!$K$1:$AN$6000,MATCH(Assets!K$45&"|"&Assets!$B58,'Data Annex'!$K$1:$K$6000,0),MATCH(Assets!K$46,'Data Annex'!$K$1:$AN$1,0)),"") -> 775.3180648 | L58: =IFERROR(INDEX('Data Annex'!$K$1:$AN$6000,MATCH(Assets!L$45&"|"&Assets!$B58,'Data Annex'!$K$1:$K$6000,0),MATCH(Assets!L$46,'Data Annex'!$K$1:$AN$1,0)),"") -> 794.437018 | M58: =IFERROR(INDEX('Data Annex'!$K$1:$AO$6000,MATCH(Assets!M$45&"|"&Assets!$B58,'Data Annex'!$K$1:$K$6000,0),MATCH(Assets!M$46,'Data Annex'!$K$1:$AO$1,0)),"") -> 791.3220411 | N58: 0.9758919004 | O58: DK | Q58: =IFERROR(INDEX('Data Annex'!$K$1:$AN$6000,MATCH(Assets!Q$45&"|"&Assets!$B58,'Data Annex'!$K$1:$K$6000,0),MATCH(Assets!Q$46,'Data Annex'!$K$1:$AN$1,0)),"") -> 0.3167152098 | R58: =IFERROR(INDEX('Data Annex'!$K$1:$AN$6000,MATCH(Assets!R$45&"|"&Assets!$B58,'Data Annex'!$K$1:$K$6000,0),MATCH(Assets!R$46,'Data Annex'!$K$1:$AN$1,0)),"") -> 0.3149174566 | S58: =IFERROR(INDEX('Data Annex'!$K$1:$AN$6000,MATCH(Assets!S$45&"|"&Assets!$B58,'Data Annex'!$K$1:$K$6000,0),MATCH(Assets!S$46,'Data Annex'!$K$1:$AN$1,0)),"") -> 0.3332168889 | T58: =IFERROR(INDEX('Data Annex'!$K$1:$AO$6000,MATCH(Assets!T$45&"|"&Assets!$B58,'Data Annex'!$K$1:$K$6000,0),MATCH(Assets!T$46,'Data Annex'!$K$1:$AO$1,0)),"") -> 0.3362395139 | U58: =IFERROR(INDEX('Data Annex'!$K$1:$AO$6000,MATCH(Assets!U$45&"|"&Assets!$B58,'Data Annex'!$K$1:$K$6000,0),MATCH(Assets!U$46,'Data Annex'!$K$1:$AO$1,0)),"") -> 0.020043518 | V58: =IFERROR(INDEX('Data Annex'!$K$1:$AO$6000,MATCH(Assets!V$45&"|"&Assets!$B58,'Data Annex'!$K$1:$K$6000,0),MATCH(Assets!V$46,'Data Annex'!$K$1:$AO$1,0)),"") -> 0.0204615101 | W58: =IFERROR(INDEX('Data Annex'!$K$1:$AO$6000,MATCH(Assets!W$45&"|"&Assets!$B58,'Data Annex'!$K$1:$K$6000,0),MATCH(Assets!W$46,'Data Annex'!$K$1:$AO$1,0)),"") -> 0.0197827752 | X58: =IFERROR(INDEX('Data Annex'!$K$1:$AO$6000,MATCH(Assets!X$45&"|"&Assets!$B58,'Data Annex'!$K$1:$K$6000,0),MATCH(Assets!X$46,'Data Annex'!$K$1:$AO$1,0)),"") -> 0.0209904969 | Y58: =IFERROR(INDEX('Data Annex'!$K$1:$AO$6000,MATCH(Assets!Y$45&"|"&Assets!$B58,'Data Annex'!$K$1:$K$6000,0),MATCH(Assets!Y$46,'Data Annex'!$K$1:$AO$1,0)),"") -> 0.6632412723 | Z58: =IFERROR(INDEX('Data Annex'!$K$1:$AO$6000,MATCH(Assets!Z$45&"|"&Assets!$B58,'Data Annex'!$K$1:$K$6000,0),MATCH(Assets!Z$46,'Data Annex'!$K$1:$AO$1,0)),"") -> 0.6646210332 | AA58: =IFERROR(INDEX('Data Annex'!$K$1:$AO$6000,MATCH(Assets!AA$45&"|"&Assets!$B58,'Data Annex'!$K$1:$K$6000,0),MATCH(Assets!AA$46,'Data Annex'!$K$1:$AO$1,0)),"") -> 0.6470003359 | AB58: =IFERROR(INDEX('Data Annex'!$K$1:$AO$6000,MATCH(Assets!AB$45&"|"&Assets!$B58,'Data Annex'!$K$1:$K$6000,0),MATCH(Assets!AB$46,'Data Annex'!$K$1:$AO$1,0)),"") -> 0.6427699892
B59: EE | D59: EE | F59: =IFERROR(INDEX('Data Annex'!$K$1:$AN$6000,MATCH(Assets!F$45&"|"&Assets!$B59,'Data Annex'!$K$1:$K$6000,0),MATCH(Assets!F$46,'Data Annex'!$K$1:$AN$1,0)),"") -> 38.1909144 | G59: =IFERROR(INDEX('Data Annex'!$K$1:$AN$6000,MATCH(Assets!G$45&"|"&Assets!$B59,'Data Annex'!$K$1:$K$6000,0),MATCH(Assets!G$46,'Data Annex'!$K$1:$AN$1,0)),"") -> 39.46389125 | H59: =IFERROR(INDEX('Data Annex'!$K$1:$AN$6000,MATCH(Assets!H$45&"|"&Assets!$B59,'Data Annex'!$K$1:$K$6000,0),MATCH(Assets!H$46,'Data Annex'!$K$1:$AN$1,0)),"") -> 41.52329134 | I59: =IFERROR(INDEX('Data Annex'!$K$1:$AO$6000,MATCH(Assets!I$45&"|"&Assets!$B59,'Data Annex'!$K$1:$K$6000,0),MATCH(Assets!I$46,'Data Annex'!$K$1:$AO$1,0)),"") -> 36.6677767 | J59: =IFERROR(INDEX('Data Annex'!$K$1:$AN$6000,MATCH(Assets!J$45&"|"&Assets!$B59,'Data Annex'!$K$1:$K$6000,0),MATCH(Assets!J$46,'Data Annex'!$K$1:$AN$1,0)),"") -> 37.78401105 | K59: =IFERROR(INDEX('Data Annex'!$K$1:$AN$6000,MATCH(Assets!K$45&"|"&Assets!$B59,'Data Annex'!$K$1:$K$6000,0),MATCH(Assets!K$46,'Data Annex'!$K$1:$AN$1,0)),"") -> 39.0451482 | L59: =IFERROR(INDEX('Data Annex'!$K$1:$AN$6000,MATCH(Assets!L$45&"|"&Assets!$B59,'Data Annex'!$K$1:$K$6000,0),MATCH(Assets!L$46,'Data Annex'!$K$1:$AN$1,0)),"") -> 41.03292144 | M59: =IFERROR(INDEX('Data Annex'!$K$1:$AO$6000,MATCH(Assets!M$45&"|"&Assets!$B59,'Data Annex'!$K$1:$K$6000,0),MATCH(Assets!M$46,'Data Annex'!$K$1:$AO$1,0)),"") -> 36.35593913 | N59: 0.9914955965 | O59: EE | Q59: =IFERROR(INDEX('Data Annex'!$K$1:$AN$6000,MATCH(Assets!Q$45&"|"&Assets!$B59,'Data Annex'!$K$1:$K$6000,0),MATCH(Assets!Q$46,'Data Annex'!$K$1:$AN$1,0)),"") -> 0.917327646 | R59: =IFERROR(INDEX('Data Annex'!$K$1:$AN$6000,MATCH(Assets!R$45&"|"&Assets!$B59,'Data Annex'!$K$1:$K$6000,0),MATCH(Assets!R$46,'Data Annex'!$K$1:$AN$1,0)),"") -> 0.9190256213 | S59: =IFERROR(INDEX('Data Annex'!$K$1:$AN$6000,MATCH(Assets!S$45&"|"&Assets!$B59,'Data Annex'!$K$1:$K$6000,0),MATCH(Assets!S$46,'Data Annex'!$K$1:$AN$1,0)),"") -> 0.9277236787 | T59: =IFERROR(INDEX('Data Annex'!$K$1:$AO$6000,MATCH(Assets!T$45&"|"&Assets!$B59,'Data Annex'!$K$1:$K$6000,0),MATCH(Assets!T$46,'Data Annex'!$K$1:$AO$1,0)),"") -> 0.9211488789 | U59: =IFERROR(INDEX('Data Annex'!$K$1:$AO$6000,MATCH(Assets!U$45&"|"&Assets!$B59,'Data Annex'!$K$1:$K$6000,0),MATCH(Assets!U$46,'Data Annex'!$K$1:$AO$1,0)),"") -> 2.09701e-05 | V59: =IFERROR(INDEX('Data Annex'!$K$1:$AO$6000,MATCH(Assets!V$45&"|"&Assets!$B59,'Data Annex'!$K$1:$K$6000,0),MATCH(Assets!V$46,'Data Annex'!$K$1:$AO$1,0)),"") -> 2.02928e-05 | W59: =IFERROR(INDEX('Data Annex'!$K$1:$AO$6000,MATCH(Assets!W$45&"|"&Assets!$B59,'Data Annex'!$K$1:$K$6000,0),MATCH(Assets!W$46,'Data Annex'!$K$1:$AO$1,0)),"") -> 3.4106762e-06 | X59: =IFERROR(INDEX('Data Annex'!$K$1:$AO$6000,MATCH(Assets!X$45&"|"&Assets!$B59,'Data Annex'!$K$1:$K$6000,0),MATCH(Assets!X$46,'Data Annex'!$K$1:$AO$1,0)),"") -> 3.8508151e-06 | Y59: =IFERROR(INDEX('Data Annex'!$K$1:$AO$6000,MATCH(Assets!Y$45&"|"&Assets!$B59,'Data Annex'!$K$1:$K$6000,0),MATCH(Assets!Y$46,'Data Annex'!$K$1:$AO$1,0)),"") -> 0.0826513838 | Z59: =IFERROR(INDEX('Data Annex'!$K$1:$AO$6000,MATCH(Assets!Z$45&"|"&Assets!$B59,'Data Annex'!$K$1:$K$6000,0),MATCH(Assets!Z$46,'Data Annex'!$K$1:$AO$1,0)),"") -> 0.0809540859 | AA59: =IFERROR(INDEX('Data Annex'!$K$1:$AO$6000,MATCH(Assets!AA$45&"|"&Assets!$B59,'Data Annex'!$K$1:$K$6000,0),MATCH(Assets!AA$46,'Data Annex'!$K$1:$AO$1,0)),"") -> 0.0722729106 | AB59: =IFERROR(INDEX('Data Annex'!$K$1:$AO$6000,MATCH(Assets!AB$45&"|"&Assets!$B59,'Data Annex'!$K$1:$K$6000,0),MATCH(Assets!AB$46,'Data Annex'!$K$1:$AO$1,0)),"") -> 0.0788472703
B60: ES | D60: ES | F60: =IFERROR(INDEX('Data Annex'!$K$1:$AN$6000,MATCH(Assets!F$45&"|"&Assets!$B60,'Data Annex'!$K$1:$K$6000,0),MATCH(Assets!F$46,'Data Annex'!$K$1:$AN$1,0)),"") -> 3558.886843 | G60: =IFERROR(INDEX('Data Annex'!$K$1:$AN$6000,MATCH(Assets!G$45&"|"&Assets!$B60,'Data Annex'!$K$1:$K$6000,0),MATCH(Assets!G$46,'Data Annex'!$K$1:$AN$1,0)),"") -> 3477.47534 | H60: =IFERROR(INDEX('Data Annex'!$K$1:$AN$6000,MATCH(Assets!H$45&"|"&Assets!$B60,'Data Annex'!$K$1:$K$6000,0),MATCH(Assets!H$46,'Data Annex'!$K$1:$AN$1,0)),"") -> 3476.098049 | I60: =IFERROR(INDEX('Data Annex'!$K$1:$AO$6000,MATCH(Assets!I$45&"|"&Assets!$B60,'Data Annex'!$K$1:$K$6000,0),MATCH(Assets!I$46,'Data Annex'!$K$1:$AO$1,0)),"") -> 3539.48908 | J60: =IFERROR(INDEX('Data Annex'!$K$1:$AN$6000,MATCH(Assets!J$45&"|"&Assets!$B60,'Data Annex'!$K$1:$K$6000,0),MATCH(Assets!J$46,'Data Annex'!$K$1:$AN$1,0)),"") -> 3317.372509 | K60: =IFERROR(INDEX('Data Annex'!$K$1:$AN$6000,MATCH(Assets!K$45&"|"&Assets!$B60,'Data Annex'!$K$1:$K$6000,0),MATCH(Assets!K$46,'Data Annex'!$K$1:$AN$1,0)),"") -> 3238.587634 | L60: =IFERROR(INDEX('Data Annex'!$K$1:$AN$6000,MATCH(Assets!L$45&"|"&Assets!$B60,'Data Annex'!$K$1:$K$6000,0),MATCH(Assets!L$46,'Data Annex'!$K$1:$AN$1,0)),"") -> 2976.158671 | M60: =IFERROR(INDEX('Data Annex'!$K$1:$AO$6000,MATCH(Assets!M$45&"|"&Assets!$B60,'Data Annex'!$K$1:$K$6000,0),MATCH(Assets!M$46,'Data Annex'!$K$1:$AO$1,0)),"") -> 3229.675091 | N60: 0.9124692911 | O60: ES | Q60: =IFERROR(INDEX('Data Annex'!$K$1:$AN$6000,MATCH(Assets!Q$45&"|"&Assets!$B60,'Data Annex'!$K$1:$K$6000,0),MATCH(Assets!Q$46,'Data Annex'!$K$1:$AN$1,0)),"") -> 0.8156548724 | R60: =IFERROR(INDEX('Data Annex'!$K$1:$AN$6000,MATCH(Assets!R$45&"|"&Assets!$B60,'Data Annex'!$K$1:$K$6000,0),MATCH(Assets!R$46,'Data Annex'!$K$1:$AN$1,0)),"") -> 0.8288845988 | S60: =IFERROR(INDEX('Data Annex'!$K$1:$AN$6000,MATCH(Assets!S$45&"|"&Assets!$B60,'Data Annex'!$K$1:$K$6000,0),MATCH(Assets!S$46,'Data Annex'!$K$1:$AN$1,0)),"") -> 0.8277100165 | T60: =IFERROR(INDEX('Data Annex'!$K$1:$AO$6000,MATCH(Assets!T$45&"|"&Assets!$B60,'Data Annex'!$K$1:$K$6000,0),MATCH(Assets!T$46,'Data Annex'!$K$1:$AO$1,0)),"") -> 0.840458558 | U60: =IFERROR(INDEX('Data Annex'!$K$1:$AO$6000,MATCH(Assets!U$45&"|"&Assets!$B60,'Data Annex'!$K$1:$K$6000,0),MATCH(Assets!U$46,'Data Annex'!$K$1:$AO$1,0)),"") -> 0.0665238781 | V60: =IFERROR(INDEX('Data Annex'!$K$1:$AO$6000,MATCH(Assets!V$45&"|"&Assets!$B60,'Data Annex'!$K$1:$K$6000,0),MATCH(Assets!V$46,'Data Annex'!$K$1:$AO$1,0)),"") -> 0.0660606907 | W60: =IFERROR(INDEX('Data Annex'!$K$1:$AO$6000,MATCH(Assets!W$45&"|"&Assets!$B60,'Data Annex'!$K$1:$K$6000,0),MATCH(Assets!W$46,'Data Annex'!$K$1:$AO$1,0)),"") -> 0.0689198684 | X60: =IFERROR(INDEX('Data Annex'!$K$1:$AO$6000,MATCH(Assets!X$45&"|"&Assets!$B60,'Data Annex'!$K$1:$K$6000,0),MATCH(Assets!X$46,'Data Annex'!$K$1:$AO$1,0)),"") -> 0.0635582302 | Y60: =IFERROR(INDEX('Data Annex'!$K$1:$AO$6000,MATCH(Assets!Y$45&"|"&Assets!$B60,'Data Annex'!$K$1:$K$6000,0),MATCH(Assets!Y$46,'Data Annex'!$K$1:$AO$1,0)),"") -> 0.1178212495 | Z60: =IFERROR(INDEX('Data Annex'!$K$1:$AO$6000,MATCH(Assets!Z$45&"|"&Assets!$B60,'Data Annex'!$K$1:$K$6000,0),MATCH(Assets!Z$46,'Data Annex'!$K$1:$AO$1,0)),"") -> 0.1050547104 | AA60: =IFERROR(INDEX('Data Annex'!$K$1:$AO$6000,MATCH(Assets!AA$45&"|"&Assets!$B60,'Data Annex'!$K$1:$K$6000,0),MATCH(Assets!AA$46,'Data Annex'!$K$1:$AO$1,0)),"") -> 0.1033701152 | AB60: =IFERROR(INDEX('Data Annex'!$K$1:$AO$6000,MATCH(Assets!AB$45&"|"&Assets!$B60,'Data Annex'!$K$1:$K$6000,0),MATCH(Assets!AB$46,'Data Annex'!$K$1:$AO$1,0)),"") -> 0.0959832118
B61: FI | D61: FI | F61: =IFERROR(INDEX('Data Annex'!$K$1:$AN$6000,MATCH(Assets!F$45&"|"&Assets!$B61,'Data Annex'!$K$1:$K$6000,0),MATCH(Assets!F$46,'Data Annex'!$K$1:$AN$1,0)),"") -> 737.7686125 | G61: =IFERROR(INDEX('Data Annex'!$K$1:$AN$6000,MATCH(Assets!G$45&"|"&Assets!$B61,'Data Annex'!$K$1:$K$6000,0),MATCH(Assets!G$46,'Data Annex'!$K$1:$AN$1,0)),"") -> 724.1444049 | H61: =IFERROR(INDEX('Data Annex'!$K$1:$AN$6000,MATCH(Assets!H$45&"|"&Assets!$B61,'Data Annex'!$K$1:$K$6000,0),MATCH(Assets!H$46,'Data Annex'!$K$1:$AN$1,0)),"") -> 698.2122515 | I61: =IFERROR(INDEX('Data Annex'!$K$1:$AO$6000,MATCH(Assets!I$45&"|"&Assets!$B61,'Data Annex'!$K$1:$K$6000,0),MATCH(Assets!I$46,'Data Annex'!$K$1:$AO$1,0)),"") -> 728.2054096 | J61: =IFERROR(INDEX('Data Annex'!$K$1:$AN$6000,MATCH(Assets!J$45&"|"&Assets!$B61,'Data Annex'!$K$1:$K$6000,0),MATCH(Assets!J$46,'Data Annex'!$K$1:$AN$1,0)),"") -> 720.7055516 | K61: =IFERROR(INDEX('Data Annex'!$K$1:$AN$6000,MATCH(Assets!K$45&"|"&Assets!$B61,'Data Annex'!$K$1:$K$6000,0),MATCH(Assets!K$46,'Data Annex'!$K$1:$AN$1,0)),"") -> 707.5589207 | L61: =IFERROR(INDEX('Data Annex'!$K$1:$AN$6000,MATCH(Assets!L$45&"|"&Assets!$B61,'Data Annex'!$K$1:$K$6000,0),MATCH(Assets!L$46,'Data Annex'!$K$1:$AN$1,0)),"") -> 681.2749212 | M61: =IFERROR(INDEX('Data Annex'!$K$1:$AO$6000,MATCH(Assets!M$45&"|"&Assets!$B61,'Data Annex'!$K$1:$K$6000,0),MATCH(Assets!M$46,'Data Annex'!$K$1:$AO$1,0)),"") -> 709.7159042 | N61: 0.9746094919 | O61: FI | Q61: =IFERROR(INDEX('Data Annex'!$K$1:$AN$6000,MATCH(Assets!Q$45&"|"&Assets!$B61,'Data Annex'!$K$1:$K$6000,0),MATCH(Assets!Q$46,'Data Annex'!$K$1:$AN$1,0)),"") -> 0.6393878324 | R61: =IFERROR(INDEX('Data Annex'!$K$1:$AN$6000,MATCH(Assets!R$45&"|"&Assets!$B61,'Data Annex'!$K$1:$K$6000,0),MATCH(Assets!R$46,'Data Annex'!$K$1:$AN$1,0)),"") -> 0.649657116 | S61: =IFERROR(INDEX('Data Annex'!$K$1:$AN$6000,MATCH(Assets!S$45&"|"&Assets!$B61,'Data Annex'!$K$1:$K$6000,0),MATCH(Assets!S$46,'Data Annex'!$K$1:$AN$1,0)),"") -> 0.6728621866 | T61: =IFERROR(INDEX('Data Annex'!$K$1:$AO$6000,MATCH(Assets!T$45&"|"&Assets!$B61,'Data Annex'!$K$1:$K$6000,0),MATCH(Assets!T$46,'Data Annex'!$K$1:$AO$1,0)),"") -> 0.6745207338 | U61: =IFERROR(INDEX('Data Annex'!$K$1:$AO$6000,MATCH(Assets!U$45&"|"&Assets!$B61,'Data Annex'!$K$1:$K$6000,0),MATCH(Assets!U$46,'Data Annex'!$K$1:$AO$1,0)),"") -> 0.0692564117 | V61: =IFERROR(INDEX('Data Annex'!$K$1:$AO$6000,MATCH(Assets!V$45&"|"&Assets!$B61,'Data Annex'!$K$1:$K$6000,0),MATCH(Assets!V$46,'Data Annex'!$K$1:$AO$1,0)),"") -> 0.0698190058 | W61: =IFERROR(INDEX('Data Annex'!$K$1:$AO$6000,MATCH(Assets!W$45&"|"&Assets!$B61,'Data Annex'!$K$1:$K$6000,0),MATCH(Assets!W$46,'Data Annex'!$K$1:$AO$1,0)),"") -> 0.0712482112 | X61: =IFERROR(INDEX('Data Annex'!$K$1:$AO$6000,MATCH(Assets!X$45&"|"&Assets!$B61,'Data Annex'!$K$1:$K$6000,0),MATCH(Assets!X$46,'Data Annex'!$K$1:$AO$1,0)),"") -> 0.0685359989 | Y61: =IFERROR(INDEX('Data Annex'!$K$1:$AO$6000,MATCH(Assets!Y$45&"|"&Assets!$B61,'Data Annex'!$K$1:$K$6000,0),MATCH(Assets!Y$46,'Data Annex'!$K$1:$AO$1,0)),"") -> 0.2913557559 | Z61: =IFERROR(INDEX('Data Annex'!$K$1:$AO$6000,MATCH(Assets!Z$45&"|"&Assets!$B61,'Data Annex'!$K$1:$K$6000,0),MATCH(Assets!Z$46,'Data Annex'!$K$1:$AO$1,0)),"") -> 0.2805238782 | AA61: =IFERROR(INDEX('Data Annex'!$K$1:$AO$6000,MATCH(Assets!AA$45&"|"&Assets!$B61,'Data Annex'!$K$1:$K$6000,0),MATCH(Assets!AA$46,'Data Annex'!$K$1:$AO$1,0)),"") -> 0.2558896022 | AB61: =IFERROR(INDEX('Data Annex'!$K$1:$AO$6000,MATCH(Assets!AB$45&"|"&Assets!$B61,'Data Annex'!$K$1:$K$6000,0),MATCH(Assets!AB$46,'Data Annex'!$K$1:$AO$1,0)),"") -> 0.2569432673
B62: FR | D62: FR | F62: =IFERROR(INDEX('Data Annex'!$K$1:$AN$6000,MATCH(Assets!F$45&"|"&Assets!$B62,'Data Annex'!$K$1:$K$6000,0),MATCH(Assets!F$46,'Data Annex'!$K$1:$AN$1,0)),"") -> 8445.979585 | G62: =IFERROR(INDEX('Data Annex'!$K$1:$AN$6000,MATCH(Assets!G$45&"|"&Assets!$B62,'Data Annex'!$K$1:$K$6000,0),MATCH(Assets!G$46,'Data Annex'!$K$1:$AN$1,0)),"") -> 8465.079764 | H62: =IFERROR(INDEX('Data Annex'!$K$1:$AN$6000,MATCH(Assets!H$45&"|"&Assets!$B62,'Data Annex'!$K$1:$K$6000,0),MATCH(Assets!H$46,'Data Annex'!$K$1:$AN$1,0)),"") -> 8308.165326 | I62: =IFERROR(INDEX('Data Annex'!$K$1:$AO$6000,MATCH(Assets!I$45&"|"&Assets!$B62,'Data Annex'!$K$1:$K$6000,0),MATCH(Assets!I$46,'Data Annex'!$K$1:$AO$1,0)),"") -> 8617.837987 | J62: =IFERROR(INDEX('Data Annex'!$K$1:$AN$6000,MATCH(Assets!J$45&"|"&Assets!$B62,'Data Annex'!$K$1:$K$6000,0),MATCH(Assets!J$46,'Data Annex'!$K$1:$AN$1,0)),"") -> 7896.422445 | K62: =IFERROR(INDEX('Data Annex'!$K$1:$AN$6000,MATCH(Assets!K$45&"|"&Assets!$B62,'Data Annex'!$K$1:$K$6000,0),MATCH(Assets!K$46,'Data Annex'!$K$1:$AN$1,0)),"") -> 7911.007215 | L62: =IFERROR(INDEX('Data Annex'!$K$1:$AN$6000,MATCH(Assets!L$45&"|"&Assets!$B62,'Data Annex'!$K$1:$K$6000,0),MATCH(Assets!L$46,'Data Annex'!$K$1:$AN$1,0)),"") -> 7755.475881 | M62: =IFERROR(INDEX('Data Annex'!$K$1:$AO$6000,MATCH(Assets!M$45&"|"&Assets!$B62,'Data Annex'!$K$1:$K$6000,0),MATCH(Assets!M$46,'Data Annex'!$K$1:$AO$1,0)),"") -> 8098.877138 | N62: 0.9397806214 | O62: FR | Q62: =IFERROR(INDEX('Data Annex'!$K$1:$AN$6000,MATCH(Assets!Q$45&"|"&Assets!$B62,'Data Annex'!$K$1:$K$6000,0),MATCH(Assets!Q$46,'Data Annex'!$K$1:$AN$1,0)),"") -> 0.7142591836 | R62: =IFERROR(INDEX('Data Annex'!$K$1:$AN$6000,MATCH(Assets!R$45&"|"&Assets!$B62,'Data Annex'!$K$1:$K$6000,0),MATCH(Assets!R$46,'Data Annex'!$K$1:$AN$1,0)),"") -> 0.7174266865 | S62: =IFERROR(INDEX('Data Annex'!$K$1:$AN$6000,MATCH(Assets!S$45&"|"&Assets!$B62,'Data Annex'!$K$1:$K$6000,0),MATCH(Assets!S$46,'Data Annex'!$K$1:$AN$1,0)),"") -> 0.7285288098 | T62: =IFERROR(INDEX('Data Annex'!$K$1:$AO$6000,MATCH(Assets!T$45&"|"&Assets!$B62,'Data Annex'!$K$1:$K$6000,0),MATCH(Assets!T$46,'Data Annex'!$K$1:$AO$1,0)),"") -> 0.7225050585 | U62: =IFERROR(INDEX('Data Annex'!$K$1:$AO$6000,MATCH(Assets!U$45&"|"&Assets!$B62,'Data Annex'!$K$1:$K$6000,0),MATCH(Assets!U$46,'Data Annex'!$K$1:$AO$1,0)),"") -> 0.0396748238 | V62: =IFERROR(INDEX('Data Annex'!$K$1:$AO$6000,MATCH(Assets!V$45&"|"&Assets!$B62,'Data Annex'!$K$1:$K$6000,0),MATCH(Assets!V$46,'Data Annex'!$K$1:$AO$1,0)),"") -> 0.0383144805 | W62: =IFERROR(INDEX('Data Annex'!$K$1:$AO$6000,MATCH(Assets!W$45&"|"&Assets!$B62,'Data Annex'!$K$1:$K$6000,0),MATCH(Assets!W$46,'Data Annex'!$K$1:$AO$1,0)),"") -> 0.0383390663 | X62: =IFERROR(INDEX('Data Annex'!$K$1:$AO$6000,MATCH(Assets!X$45&"|"&Assets!$B62,'Data Annex'!$K$1:$K$6000,0),MATCH(Assets!X$46,'Data Annex'!$K$1:$AO$1,0)),"") -> 0.0359733715 | Y62: =IFERROR(INDEX('Data Annex'!$K$1:$AO$6000,MATCH(Assets!Y$45&"|"&Assets!$B62,'Data Annex'!$K$1:$K$6000,0),MATCH(Assets!Y$46,'Data Annex'!$K$1:$AO$1,0)),"") -> 0.2460659925 | Z62: =IFERROR(INDEX('Data Annex'!$K$1:$AO$6000,MATCH(Assets!Z$45&"|"&Assets!$B62,'Data Annex'!$K$1:$K$6000,0),MATCH(Assets!Z$46,'Data Annex'!$K$1:$AO$1,0)),"") -> 0.244258833 | AA62: =IFERROR(INDEX('Data Annex'!$K$1:$AO$6000,MATCH(Assets!AA$45&"|"&Assets!$B62,'Data Annex'!$K$1:$K$6000,0),MATCH(Assets!AA$46,'Data Annex'!$K$1:$AO$1,0)),"") -> 0.2331321239 | AB62: =IFERROR(INDEX('Data Annex'!$K$1:$AO$6000,MATCH(Assets!AB$45&"|"&Assets!$B62,'Data Annex'!$K$1:$K$6000,0),MATCH(Assets!AB$46,'Data Annex'!$K$1:$AO$1,0)),"") -> 0.24152157
B63: GR | D63: GR | F63: =IFERROR(INDEX('Data Annex'!$K$1:$AN$6000,MATCH(Assets!F$45&"|"&Assets!$B63,'Data Annex'!$K$1:$K$6000,0),MATCH(Assets!F$46,'Data Annex'!$K$1:$AN$1,0)),"") -> 270.7626866 | G63: =IFERROR(INDEX('Data Annex'!$K$1:$AN$6000,MATCH(Assets!G$45&"|"&Assets!$B63,'Data Annex'!$K$1:$K$6000,0),MATCH(Assets!G$46,'Data Annex'!$K$1:$AN$1,0)),"") -> 274.794674 | H63: =IFERROR(INDEX('Data Annex'!$K$1:$AN$6000,MATCH(Assets!H$45&"|"&Assets!$B63,'Data Annex'!$K$1:$K$6000,0),MATCH(Assets!H$46,'Data Annex'!$K$1:$AN$1,0)),"") -> 282.9519209 | I63: =IFERROR(INDEX('Data Annex'!$K$1:$AO$6000,MATCH(Assets!I$45&"|"&Assets!$B63,'Data Annex'!$K$1:$K$6000,0),MATCH(Assets!I$46,'Data Annex'!$K$1:$AO$1,0)),"") -> 286.2680122 | J63: =IFERROR(INDEX('Data Annex'!$K$1:$AN$6000,MATCH(Assets!J$45&"|"&Assets!$B63,'Data Annex'!$K$1:$K$6000,0),MATCH(Assets!J$46,'Data Annex'!$K$1:$AN$1,0)),"") -> 225.0877121 | K63: =IFERROR(INDEX('Data Annex'!$K$1:$AN$6000,MATCH(Assets!K$45&"|"&Assets!$B63,'Data Annex'!$K$1:$K$6000,0),MATCH(Assets!K$46,'Data Annex'!$K$1:$AN$1,0)),"") -> 231.8470509 | L63: =IFERROR(INDEX('Data Annex'!$K$1:$AN$6000,MATCH(Assets!L$45&"|"&Assets!$B63,'Data Annex'!$K$1:$K$6000,0),MATCH(Assets!L$46,'Data Annex'!$K$1:$AN$1,0)),"") -> 238.0776777 | M63: =IFERROR(INDEX('Data Annex'!$K$1:$AO$6000,MATCH(Assets!M$45&"|"&Assets!$B63,'Data Annex'!$K$1:$K$6000,0),MATCH(Assets!M$46,'Data Annex'!$K$1:$AO$1,0)),"") -> 242.0165434 | N63: 0.845419443 | O63: GR | Q63: =IFERROR(INDEX('Data Annex'!$K$1:$AN$6000,MATCH(Assets!Q$45&"|"&Assets!$B63,'Data Annex'!$K$1:$K$6000,0),MATCH(Assets!Q$46,'Data Annex'!$K$1:$AN$1,0)),"") -> 0.8687229472 | R63: =IFERROR(INDEX('Data Annex'!$K$1:$AN$6000,MATCH(Assets!R$45&"|"&Assets!$B63,'Data Annex'!$K$1:$K$6000,0),MATCH(Assets!R$46,'Data Annex'!$K$1:$AN$1,0)),"") -> 0.8795110219 | S63: =IFERROR(INDEX('Data Annex'!$K$1:$AN$6000,MATCH(Assets!S$45&"|"&Assets!$B63,'Data Annex'!$K$1:$K$6000,0),MATCH(Assets!S$46,'Data Annex'!$K$1:$AN$1,0)),"") -> 0.8782452469 | T63: =IFERROR(INDEX('Data Annex'!$K$1:$AO$6000,MATCH(Assets!T$45&"|"&Assets!$B63,'Data Annex'!$K$1:$K$6000,0),MATCH(Assets!T$46,'Data Annex'!$K$1:$AO$1,0)),"") -> 0.8786298802 | U63: =IFERROR(INDEX('Data Annex'!$K$1:$AO$6000,MATCH(Assets!U$45&"|"&Assets!$B63,'Data Annex'!$K$1:$K$6000,0),MATCH(Assets!U$46,'Data Annex'!$K$1:$AO$1,0)),"") -> 0.0781357989 | V63: =IFERROR(INDEX('Data Annex'!$K$1:$AO$6000,MATCH(Assets!V$45&"|"&Assets!$B63,'Data Annex'!$K$1:$K$6000,0),MATCH(Assets!V$46,'Data Annex'!$K$1:$AO$1,0)),"") -> 0.0705314146 | W63: =IFERROR(INDEX('Data Annex'!$K$1:$AO$6000,MATCH(Assets!W$45&"|"&Assets!$B63,'Data Annex'!$K$1:$K$6000,0),MATCH(Assets!W$46,'Data Annex'!$K$1:$AO$1,0)),"") -> 0.0724596063 | X63: =IFERROR(INDEX('Data Annex'!$K$1:$AO$6000,MATCH(Assets!X$45&"|"&Assets!$B63,'Data Annex'!$K$1:$K$6000,0),MATCH(Assets!X$46,'Data Annex'!$K$1:$AO$1,0)),"") -> 0.0767625844 | Y63: =IFERROR(INDEX('Data Annex'!$K$1:$AO$6000,MATCH(Assets!Y$45&"|"&Assets!$B63,'Data Annex'!$K$1:$K$6000,0),MATCH(Assets!Y$46,'Data Annex'!$K$1:$AO$1,0)),"") -> 0.0531412539 | Z63: =IFERROR(INDEX('Data Annex'!$K$1:$AO$6000,MATCH(Assets!Z$45&"|"&Assets!$B63,'Data Annex'!$K$1:$K$6000,0),MATCH(Assets!Z$46,'Data Annex'!$K$1:$AO$1,0)),"") -> 0.0499575635 | AA63: =IFERROR(INDEX('Data Annex'!$K$1:$AO$6000,MATCH(Assets!AA$45&"|"&Assets!$B63,'Data Annex'!$K$1:$K$6000,0),MATCH(Assets!AA$46,'Data Annex'!$K$1:$AO$1,0)),"") -> 0.0492951468 | AB63: =IFERROR(INDEX('Data Annex'!$K$1:$AO$6000,MATCH(Assets!AB$45&"|"&Assets!$B63,'Data Annex'!$K$1:$K$6000,0),MATCH(Assets!AB$46,'Data Annex'!$K$1:$AO$1,0)),"") -> 0.0446075355
B64: HR | D64: HR | F64: =IFERROR(INDEX('Data Annex'!$K$1:$AN$6000,MATCH(Assets!F$45&"|"&Assets!$B64,'Data Annex'!$K$1:$K$6000,0),MATCH(Assets!F$46,'Data Annex'!$K$1:$AN$1,0)),"") -> 46.64333852 | G64: =IFERROR(INDEX('Data Annex'!$K$1:$AN$6000,MATCH(Assets!G$45&"|"&Assets!$B64,'Data Annex'!$K$1:$K$6000,0),MATCH(Assets!G$46,'Data Annex'!$K$1:$AN$1,0)),"") -> 46.69420196 | H64: =IFERROR(INDEX('Data Annex'!$K$1:$AN$6000,MATCH(Assets!H$45&"|"&Assets!$B64,'Data Annex'!$K$1:$K$6000,0),MATCH(Assets!H$46,'Data Annex'!$K$1:$AN$1,0)),"") -> 47.76764184 | I64: =IFERROR(INDEX('Data Annex'!$K$1:$AO$6000,MATCH(Assets!I$45&"|"&Assets!$B64,'Data Annex'!$K$1:$K$6000,0),MATCH(Assets!I$46,'Data Annex'!$K$1:$AO$1,0)),"") -> 48.47061402 | J64: =IFERROR(INDEX('Data Annex'!$K$1:$AN$6000,MATCH(Assets!J$45&"|"&Assets!$B64,'Data Annex'!$K$1:$K$6000,0),MATCH(Assets!J$46,'Data Annex'!$K$1:$AN$1,0)),"") -> 45.49530257 | K64: =IFERROR(INDEX('Data Annex'!$K$1:$AN$6000,MATCH(Assets!K$45&"|"&Assets!$B64,'Data Annex'!$K$1:$K$6000,0),MATCH(Assets!K$46,'Data Annex'!$K$1:$AN$1,0)),"") -> 45.55277238 | L64: =IFERROR(INDEX('Data Annex'!$K$1:$AN$6000,MATCH(Assets!L$45&"|"&Assets!$B64,'Data Annex'!$K$1:$K$6000,0),MATCH(Assets!L$46,'Data Annex'!$K$1:$AN$1,0)),"") -> 46.58846444 | M64: =IFERROR(INDEX('Data Annex'!$K$1:$AO$6000,MATCH(Assets!M$45&"|"&Assets!$B64,'Data Annex'!$K$1:$K$6000,0),MATCH(Assets!M$46,'Data Annex'!$K$1:$AO$1,0)),"") -> 47.27844926 | N64: 0.9754043808 | O64: HR | Q64: =IFERROR(INDEX('Data Annex'!$K$1:$AN$6000,MATCH(Assets!Q$45&"|"&Assets!$B64,'Data Annex'!$K$1:$K$6000,0),MATCH(Assets!Q$46,'Data Annex'!$K$1:$AN$1,0)),"") -> 0.8886704138 | R64: =IFERROR(INDEX('Data Annex'!$K$1:$AN$6000,MATCH(Assets!R$45&"|"&Assets!$B64,'Data Annex'!$K$1:$K$6000,0),MATCH(Assets!R$46,'Data Annex'!$K$1:$AN$1,0)),"") -> 0.8890793945 | S64: =IFERROR(INDEX('Data Annex'!$K$1:$AN$6000,MATCH(Assets!S$45&"|"&Assets!$B64,'Data Annex'!$K$1:$K$6000,0),MATCH(Assets!S$46,'Data Annex'!$K$1:$AN$1,0)),"") -> 0.892736367 | T64: =IFERROR(INDEX('Data Annex'!$K$1:$AO$6000,MATCH(Assets!T$45&"|"&Assets!$B64,'Data Annex'!$K$1:$K$6000,0),MATCH(Assets!T$46,'Data Annex'!$K$1:$AO$1,0)),"") -> 0.8971105392 | U64: =IFERROR(INDEX('Data Annex'!$K$1:$AO$6000,MATCH(Assets!U$45&"|"&Assets!$B64,'Data Annex'!$K$1:$K$6000,0),MATCH(Assets!U$46,'Data Annex'!$K$1:$AO$1,0)),"") -> 0.0996071298 | V64: =IFERROR(INDEX('Data Annex'!$K$1:$AO$6000,MATCH(Assets!V$45&"|"&Assets!$B64,'Data Annex'!$K$1:$K$6000,0),MATCH(Assets!V$46,'Data Annex'!$K$1:$AO$1,0)),"") -> 0.1024800096 | W64: =IFERROR(INDEX('Data Annex'!$K$1:$AO$6000,MATCH(Assets!W$45&"|"&Assets!$B64,'Data Annex'!$K$1:$K$6000,0),MATCH(Assets!W$46,'Data Annex'!$K$1:$AO$1,0)),"") -> 0.0995283032 | X64: =IFERROR(INDEX('Data Annex'!$K$1:$AO$6000,MATCH(Assets!X$45&"|"&Assets!$B64,'Data Annex'!$K$1:$K$6000,0),MATCH(Assets!X$46,'Data Annex'!$K$1:$AO$1,0)),"") -> 0.094925193 | Y64: =IFERROR(INDEX('Data Annex'!$K$1:$AO$6000,MATCH(Assets!Y$45&"|"&Assets!$B64,'Data Annex'!$K$1:$K$6000,0),MATCH(Assets!Y$46,'Data Annex'!$K$1:$AO$1,0)),"") -> 0.0117224565 | Z64: =IFERROR(INDEX('Data Annex'!$K$1:$AO$6000,MATCH(Assets!Z$45&"|"&Assets!$B64,'Data Annex'!$K$1:$K$6000,0),MATCH(Assets!Z$46,'Data Annex'!$K$1:$AO$1,0)),"") -> 0.008440596 | AA64: =IFERROR(INDEX('Data Annex'!$K$1:$AO$6000,MATCH(Assets!AA$45&"|"&Assets!$B64,'Data Annex'!$K$1:$K$6000,0),MATCH(Assets!AA$46,'Data Annex'!$K$1:$AO$1,0)),"") -> 0.0077353297 | AB64: =IFERROR(INDEX('Data Annex'!$K$1:$AO$6000,MATCH(Assets!AB$45&"|"&Assets!$B64,'Data Annex'!$K$1:$K$6000,0),MATCH(Assets!AB$46,'Data Annex'!$K$1:$AO$1,0)),"") -> 0.0079642677
B65: HU | D65: HU | F65: =IFERROR(INDEX('Data Annex'!$K$1:$AN$6000,MATCH(Assets!F$45&"|"&Assets!$B65,'Data Annex'!$K$1:$K$6000,0),MATCH(Assets!F$46,'Data Annex'!$K$1:$AN$1,0)),"") -> 82.35589576 | G65: =IFERROR(INDEX('Data Annex'!$K$1:$AN$6000,MATCH(Assets!G$45&"|"&Assets!$B65,'Data Annex'!$K$1:$K$6000,0),MATCH(Assets!G$46,'Data Annex'!$K$1:$AN$1,0)),"") -> 83.6549559 | H65: =IFERROR(INDEX('Data Annex'!$K$1:$AN$6000,MATCH(Assets!H$45&"|"&Assets!$B65,'Data Annex'!$K$1:$K$6000,0),MATCH(Assets!H$46,'Data Annex'!$K$1:$AN$1,0)),"") -> 87.58803326 | I65: =IFERROR(INDEX('Data Annex'!$K$1:$AO$6000,MATCH(Assets!I$45&"|"&Assets!$B65,'Data Annex'!$K$1:$K$6000,0),MATCH(Assets!I$46,'Data Annex'!$K$1:$AO$1,0)),"") -> 114.2942288 | J65: =IFERROR(INDEX('Data Annex'!$K$1:$AN$6000,MATCH(Assets!J$45&"|"&Assets!$B65,'Data Annex'!$K$1:$K$6000,0),MATCH(Assets!J$46,'Data Annex'!$K$1:$AN$1,0)),"") -> 78.75278804 | K65: =IFERROR(INDEX('Data Annex'!$K$1:$AN$6000,MATCH(Assets!K$45&"|"&Assets!$B65,'Data Annex'!$K$1:$K$6000,0),MATCH(Assets!K$46,'Data Annex'!$K$1:$AN$1,0)),"") -> 80.22052064 | L65: =IFERROR(INDEX('Data Annex'!$K$1:$AN$6000,MATCH(Assets!L$45&"|"&Assets!$B65,'Data Annex'!$K$1:$K$6000,0),MATCH(Assets!L$46,'Data Annex'!$K$1:$AN$1,0)),"") -> 83.98259554 | M65: =IFERROR(INDEX('Data Annex'!$K$1:$AO$6000,MATCH(Assets!M$45&"|"&Assets!$B65,'Data Annex'!$K$1:$K$6000,0),MATCH(Assets!M$46,'Data Annex'!$K$1:$AO$1,0)),"") -> 109.6529373 | N65: 0.9593917243 | O65: HU | Q65: =IFERROR(INDEX('Data Annex'!$K$1:$AN$6000,MATCH(Assets!Q$45&"|"&Assets!$B65,'Data Annex'!$K$1:$K$6000,0),MATCH(Assets!Q$46,'Data Annex'!$K$1:$AN$1,0)),"") -> 0.88515992 | R65: =IFERROR(INDEX('Data Annex'!$K$1:$AN$6000,MATCH(Assets!R$45&"|"&Assets!$B65,'Data Annex'!$K$1:$K$6000,0),MATCH(Assets!R$46,'Data Annex'!$K$1:$AN$1,0)),"") -> 0.8856138134 | S65: =IFERROR(INDEX('Data Annex'!$K$1:$AN$6000,MATCH(Assets!S$45&"|"&Assets!$B65,'Data Annex'!$K$1:$K$6000,0),MATCH(Assets!S$46,'Data Annex'!$K$1:$AN$1,0)),"") -> 0.8657912237 | T65: =IFERROR(INDEX('Data Annex'!$K$1:$AO$6000,MATCH(Assets!T$45&"|"&Assets!$B65,'Data Annex'!$K$1:$K$6000,0),MATCH(Assets!T$46,'Data Annex'!$K$1:$AO$1,0)),"") -> 0.8651864986 | U65: =IFERROR(INDEX('Data Annex'!$K$1:$AO$6000,MATCH(Assets!U$45&"|"&Assets!$B65,'Data Annex'!$K$1:$K$6000,0),MATCH(Assets!U$46,'Data Annex'!$K$1:$AO$1,0)),"") -> 0.0891916038 | V65: =IFERROR(INDEX('Data Annex'!$K$1:$AO$6000,MATCH(Assets!V$45&"|"&Assets!$B65,'Data Annex'!$K$1:$K$6000,0),MATCH(Assets!V$46,'Data Annex'!$K$1:$AO$1,0)),"") -> 0.0908343104 | W65: =IFERROR(INDEX('Data Annex'!$K$1:$AO$6000,MATCH(Assets!W$45&"|"&Assets!$B65,'Data Annex'!$K$1:$K$6000,0),MATCH(Assets!W$46,'Data Annex'!$K$1:$AO$1,0)),"") -> 0.0875105315 | X65: =IFERROR(INDEX('Data Annex'!$K$1:$AO$6000,MATCH(Assets!X$45&"|"&Assets!$B65,'Data Annex'!$K$1:$K$6000,0),MATCH(Assets!X$46,'Data Annex'!$K$1:$AO$1,0)),"") -> 0.0924785235 | Y65: =IFERROR(INDEX('Data Annex'!$K$1:$AO$6000,MATCH(Assets!Y$45&"|"&Assets!$B65,'Data Annex'!$K$1:$K$6000,0),MATCH(Assets!Y$46,'Data Annex'!$K$1:$AO$1,0)),"") -> 0.0256484762 | Z65: =IFERROR(INDEX('Data Annex'!$K$1:$AO$6000,MATCH(Assets!Z$45&"|"&Assets!$B65,'Data Annex'!$K$1:$K$6000,0),MATCH(Assets!Z$46,'Data Annex'!$K$1:$AO$1,0)),"") -> 0.0235518762 | AA65: =IFERROR(INDEX('Data Annex'!$K$1:$AO$6000,MATCH(Assets!AA$45&"|"&Assets!$B65,'Data Annex'!$K$1:$K$6000,0),MATCH(Assets!AA$46,'Data Annex'!$K$1:$AO$1,0)),"") -> 0.0466982448 | AB65: =IFERROR(INDEX('Data Annex'!$K$1:$AO$6000,MATCH(Assets!AB$45&"|"&Assets!$B65,'Data Annex'!$K$1:$K$6000,0),MATCH(Assets!AB$46,'Data Annex'!$K$1:$AO$1,0)),"") -> 0.0423349779
B66: IE | D66: IE | F66: =IFERROR(INDEX('Data Annex'!$K$1:$AN$6000,MATCH(Assets!F$45&"|"&Assets!$B66,'Data Annex'!$K$1:$K$6000,0),MATCH(Assets!F$46,'Data Annex'!$K$1:$AN$1,0)),"") -> 275.8759662 | G66: =IFERROR(INDEX('Data Annex'!$K$1:$AN$6000,MATCH(Assets!G$45&"|"&Assets!$B66,'Data Annex'!$K$1:$K$6000,0),MATCH(Assets!G$46,'Data Annex'!$K$1:$AN$1,0)),"") -> 279.8104981 | H66: =IFERROR(INDEX('Data Annex'!$K$1:$AN$6000,MATCH(Assets!H$45&"|"&Assets!$B66,'Data Annex'!$K$1:$K$6000,0),MATCH(Assets!H$46,'Data Annex'!$K$1:$AN$1,0)),"") -> 285.5603146 | I66: =IFERROR(INDEX('Data Annex'!$K$1:$AO$6000,MATCH(Assets!I$45&"|"&Assets!$B66,'Data Annex'!$K$1:$K$6000,0),MATCH(Assets!I$46,'Data Annex'!$K$1:$AO$1,0)),"") -> 307.359542 | J66: =IFERROR(INDEX('Data Annex'!$K$1:$AN$6000,MATCH(Assets!J$45&"|"&Assets!$B66,'Data Annex'!$K$1:$K$6000,0),MATCH(Assets!J$46,'Data Annex'!$K$1:$AN$1,0)),"") -> 260.9006879 | K66: =IFERROR(INDEX('Data Annex'!$K$1:$AN$6000,MATCH(Assets!K$45&"|"&Assets!$B66,'Data Annex'!$K$1:$K$6000,0),MATCH(Assets!K$46,'Data Annex'!$K$1:$AN$1,0)),"") -> 265.9846481 | L66: =IFERROR(INDEX('Data Annex'!$K$1:$AN$6000,MATCH(Assets!L$45&"|"&Assets!$B66,'Data Annex'!$K$1:$K$6000,0),MATCH(Assets!L$46,'Data Annex'!$K$1:$AN$1,0)),"") -> 272.4465003 | M66: =IFERROR(INDEX('Data Annex'!$K$1:$AO$6000,MATCH(Assets!M$45&"|"&Assets!$B66,'Data Annex'!$K$1:$K$6000,0),MATCH(Assets!M$46,'Data Annex'!$K$1:$AO$1,0)),"") -> 292.7558132 | N66: 0.952486496 | O66: IE | Q66: =IFERROR(INDEX('Data Annex'!$K$1:$AN$6000,MATCH(Assets!Q$45&"|"&Assets!$B66,'Data Annex'!$K$1:$K$6000,0),MATCH(Assets!Q$46,'Data Annex'!$K$1:$AN$1,0)),"") -> 0.8322741285 | R66: =IFERROR(INDEX('Data Annex'!$K$1:$AN$6000,MATCH(Assets!R$45&"|"&Assets!$B66,'Data Annex'!$K$1:$K$6000,0),MATCH(Assets!R$46,'Data Annex'!$K$1:$AN$1,0)),"") -> 0.8408955359 | S66: =IFERROR(INDEX('Data Annex'!$K$1:$AN$6000,MATCH(Assets!S$45&"|"&Assets!$B66,'Data Annex'!$K$1:$K$6000,0),MATCH(Assets!S$46,'Data Annex'!$K$1:$AN$1,0)),"") -> 0.8367224414 | T66: =IFERROR(INDEX('Data Annex'!$K$1:$AO$6000,MATCH(Assets!T$45&"|"&Assets!$B66,'Data Annex'!$K$1:$K$6000,0),MATCH(Assets!T$46,'Data Annex'!$K$1:$AO$1,0)),"") -> 0.8406367956 | U66: =IFERROR(INDEX('Data Annex'!$K$1:$AO$6000,MATCH(Assets!U$45&"|"&Assets!$B66,'Data Annex'!$K$1:$K$6000,0),MATCH(Assets!U$46,'Data Annex'!$K$1:$AO$1,0)),"") -> 0.1206746027 | V66: =IFERROR(INDEX('Data Annex'!$K$1:$AO$6000,MATCH(Assets!V$45&"|"&Assets!$B66,'Data Annex'!$K$1:$K$6000,0),MATCH(Assets!V$46,'Data Annex'!$K$1:$AO$1,0)),"") -> 0.1137444736 | W66: =IFERROR(INDEX('Data Annex'!$K$1:$AO$6000,MATCH(Assets!W$45&"|"&Assets!$B66,'Data Annex'!$K$1:$K$6000,0),MATCH(Assets!W$46,'Data Annex'!$K$1:$AO$1,0)),"") -> 0.1095492314 | X66: =IFERROR(INDEX('Data Annex'!$K$1:$AO$6000,MATCH(Assets!X$45&"|"&Assets!$B66,'Data Annex'!$K$1:$K$6000,0),MATCH(Assets!X$46,'Data Annex'!$K$1:$AO$1,0)),"") -> 0.1040317285 | Y66: =IFERROR(INDEX('Data Annex'!$K$1:$AO$6000,MATCH(Assets!Y$45&"|"&Assets!$B66,'Data Annex'!$K$1:$K$6000,0),MATCH(Assets!Y$46,'Data Annex'!$K$1:$AO$1,0)),"") -> 0.0470512688 | Z66: =IFERROR(INDEX('Data Annex'!$K$1:$AO$6000,MATCH(Assets!Z$45&"|"&Assets!$B66,'Data Annex'!$K$1:$K$6000,0),MATCH(Assets!Z$46,'Data Annex'!$K$1:$AO$1,0)),"") -> 0.0453599904 | AA66: =IFERROR(INDEX('Data Annex'!$K$1:$AO$6000,MATCH(Assets!AA$45&"|"&Assets!$B66,'Data Annex'!$K$1:$K$6000,0),MATCH(Assets!AA$46,'Data Annex'!$K$1:$AO$1,0)),"") -> 0.0537283272 | AB66: =IFERROR(INDEX('Data Annex'!$K$1:$AO$6000,MATCH(Assets!AB$45&"|"&Assets!$B66,'Data Annex'!$K$1:$K$6000,0),MATCH(Assets!AB$46,'Data Annex'!$K$1:$AO$1,0)),"") -> 0.0553314759
B67: IS | D67: IS | F67: =IFERROR(INDEX('Data Annex'!$K$1:$AN$6000,MATCH(Assets!F$45&"|"&Assets!$B67,'Data Annex'!$K$1:$K$6000,0),MATCH(Assets!F$46,'Data Annex'!$K$1:$AN$1,0)),"") -> 25.65387418 | G67: =IFERROR(INDEX('Data Annex'!$K$1:$AN$6000,MATCH(Assets!G$45&"|"&Assets!$B67,'Data Annex'!$K$1:$K$6000,0),MATCH(Assets!G$46,'Data Annex'!$K$1:$AN$1,0)),"") -> 25.74136607 | H67: =IFERROR(INDEX('Data Annex'!$K$1:$AN$6000,MATCH(Assets!H$45&"|"&Assets!$B67,'Data Annex'!$K$1:$K$6000,0),MATCH(Assets!H$46,'Data Annex'!$K$1:$AN$1,0)),"") -> 26.14448641 | I67: =IFERROR(INDEX('Data Annex'!$K$1:$AO$6000,MATCH(Assets!I$45&"|"&Assets!$B67,'Data Annex'!$K$1:$K$6000,0),MATCH(Assets!I$46,'Data Annex'!$K$1:$AO$1,0)),"") -> 28.13828426 | J67: =IFERROR(INDEX('Data Annex'!$K$1:$AN$6000,MATCH(Assets!J$45&"|"&Assets!$B67,'Data Annex'!$K$1:$K$6000,0),MATCH(Assets!J$46,'Data Annex'!$K$1:$AN$1,0)),"") -> 24.81608029 | K67: =IFERROR(INDEX('Data Annex'!$K$1:$AN$6000,MATCH(Assets!K$45&"|"&Assets!$B67,'Data Annex'!$K$1:$K$6000,0),MATCH(Assets!K$46,'Data Annex'!$K$1:$AN$1,0)),"") -> 24.93600112 | L67: =IFERROR(INDEX('Data Annex'!$K$1:$AN$6000,MATCH(Assets!L$45&"|"&Assets!$B67,'Data Annex'!$K$1:$K$6000,0),MATCH(Assets!L$46,'Data Annex'!$K$1:$AN$1,0)),"") -> 25.52521814 | M67: =IFERROR(INDEX('Data Annex'!$K$1:$AO$6000,MATCH(Assets!M$45&"|"&Assets!$B67,'Data Annex'!$K$1:$K$6000,0),MATCH(Assets!M$46,'Data Annex'!$K$1:$AO$1,0)),"") -> 27.3306696 | N67: 0.9712983686 | O67: IS | Q67: =IFERROR(INDEX('Data Annex'!$K$1:$AN$6000,MATCH(Assets!Q$45&"|"&Assets!$B67,'Data Annex'!$K$1:$K$6000,0),MATCH(Assets!Q$46,'Data Annex'!$K$1:$AN$1,0)),"") -> 0.8714492601 | R67: =IFERROR(INDEX('Data Annex'!$K$1:$AN$6000,MATCH(Assets!R$45&"|"&Assets!$B67,'Data Annex'!$K$1:$K$6000,0),MATCH(Assets!R$46,'Data Annex'!$K$1:$AN$1,0)),"") -> 0.8654610748 | S67: =IFERROR(INDEX('Data Annex'!$K$1:$AN$6000,MATCH(Assets!S$45&"|"&Assets!$B67,'Data Annex'!$K$1:$K$6000,0),MATCH(Assets!S$46,'Data Annex'!$K$1:$AN$1,0)),"") -> 0.8648231305 | T67: =IFERROR(INDEX('Data Annex'!$K$1:$AO$6000,MATCH(Assets!T$45&"|"&Assets!$B67,'Data Annex'!$K$1:$K$6000,0),MATCH(Assets!T$46,'Data Annex'!$K$1:$AO$1,0)),"") -> 0.8719698783 | U67: =IFERROR(INDEX('Data Annex'!$K$1:$AO$6000,MATCH(Assets!U$45&"|"&Assets!$B67,'Data Annex'!$K$1:$K$6000,0),MATCH(Assets!U$46,'Data Annex'!$K$1:$AO$1,0)),"") -> 0.0316839913 | V67: =IFERROR(INDEX('Data Annex'!$K$1:$AO$6000,MATCH(Assets!V$45&"|"&Assets!$B67,'Data Annex'!$K$1:$K$6000,0),MATCH(Assets!V$46,'Data Annex'!$K$1:$AO$1,0)),"") -> 0.0378111705 | W67: =IFERROR(INDEX('Data Annex'!$K$1:$AO$6000,MATCH(Assets!W$45&"|"&Assets!$B67,'Data Annex'!$K$1:$K$6000,0),MATCH(Assets!W$46,'Data Annex'!$K$1:$AO$1,0)),"") -> 0.0345477863 | X67: =IFERROR(INDEX('Data Annex'!$K$1:$AO$6000,MATCH(Assets!X$45&"|"&Assets!$B67,'Data Annex'!$K$1:$K$6000,0),MATCH(Assets!X$46,'Data Annex'!$K$1:$AO$1,0)),"") -> 0.0257743603 | Y67: =IFERROR(INDEX('Data Annex'!$K$1:$AO$6000,MATCH(Assets!Y$45&"|"&Assets!$B67,'Data Annex'!$K$1:$K$6000,0),MATCH(Assets!Y$46,'Data Annex'!$K$1:$AO$1,0)),"") -> 0.0968667486 | Z67: =IFERROR(INDEX('Data Annex'!$K$1:$AO$6000,MATCH(Assets!Z$45&"|"&Assets!$B67,'Data Annex'!$K$1:$K$6000,0),MATCH(Assets!Z$46,'Data Annex'!$K$1:$AO$1,0)),"") -> 0.0967277547 | AA67: =IFERROR(INDEX('Data Annex'!$K$1:$AO$6000,MATCH(Assets!AA$45&"|"&Assets!$B67,'Data Annex'!$K$1:$K$6000,0),MATCH(Assets!AA$46,'Data Annex'!$K$1:$AO$1,0)),"") -> 0.1006290832 | AB67: =IFERROR(INDEX('Data Annex'!$K$1:$AO$6000,MATCH(Assets!AB$45&"|"&Assets!$B67,'Data Annex'!$K$1:$K$6000,0),MATCH(Assets!AB$46,'Data Annex'!$K$1:$AO$1,0)),"") -> 0.1022557614
B68: IT | D68: IT | F68: =IFERROR(INDEX('Data Annex'!$K$1:$AN$6000,MATCH(Assets!F$45&"|"&Assets!$B68,'Data Annex'!$K$1:$K$6000,0),MATCH(Assets!F$46,'Data Annex'!$K$1:$AN$1,0)),"") -> 2545.205181 | G68: =IFERROR(INDEX('Data Annex'!$K$1:$AN$6000,MATCH(Assets!G$45&"|"&Assets!$B68,'Data Annex'!$K$1:$K$6000,0),MATCH(Assets!G$46,'Data Annex'!$K$1:$AN$1,0)),"") -> 2582.706742 | H68: =IFERROR(INDEX('Data Annex'!$K$1:$AN$6000,MATCH(Assets!H$45&"|"&Assets!$B68,'Data Annex'!$K$1:$K$6000,0),MATCH(Assets!H$46,'Data Annex'!$K$1:$AN$1,0)),"") -> 2623.56943 | I68: =IFERROR(INDEX('Data Annex'!$K$1:$AO$6000,MATCH(Assets!I$45&"|"&Assets!$B68,'Data Annex'!$K$1:$K$6000,0),MATCH(Assets!I$46,'Data Annex'!$K$1:$AO$1,0)),"") -> 2752.291618 | J68: =IFERROR(INDEX('Data Annex'!$K$1:$AN$6000,MATCH(Assets!J$45&"|"&Assets!$B68,'Data Annex'!$K$1:$K$6000,0),MATCH(Assets!J$46,'Data Annex'!$K$1:$AN$1,0)),"") -> 2397.137287 | K68: =IFERROR(INDEX('Data Annex'!$K$1:$AN$6000,MATCH(Assets!K$45&"|"&Assets!$B68,'Data Annex'!$K$1:$K$6000,0),MATCH(Assets!K$46,'Data Annex'!$K$1:$AN$1,0)),"") -> 2434.438404 | L68: =IFERROR(INDEX('Data Annex'!$K$1:$AN$6000,MATCH(Assets!L$45&"|"&Assets!$B68,'Data Annex'!$K$1:$K$6000,0),MATCH(Assets!L$46,'Data Annex'!$K$1:$AN$1,0)),"") -> 2452.02841 | M68: =IFERROR(INDEX('Data Annex'!$K$1:$AO$6000,MATCH(Assets!M$45&"|"&Assets!$B68,'Data Annex'!$K$1:$K$6000,0),MATCH(Assets!M$46,'Data Annex'!$K$1:$AO$1,0)),"") -> 2606.825263 | N68: 0.9471471866 | O68: IT | Q68: =IFERROR(INDEX('Data Annex'!$K$1:$AN$6000,MATCH(Assets!Q$45&"|"&Assets!$B68,'Data Annex'!$K$1:$K$6000,0),MATCH(Assets!Q$46,'Data Annex'!$K$1:$AN$1,0)),"") -> 0.8276777698 | R68: =IFERROR(INDEX('Data Annex'!$K$1:$AN$6000,MATCH(Assets!R$45&"|"&Assets!$B68,'Data Annex'!$K$1:$K$6000,0),MATCH(Assets!R$46,'Data Annex'!$K$1:$AN$1,0)),"") -> 0.8341243721 | S68: =IFERROR(INDEX('Data Annex'!$K$1:$AN$6000,MATCH(Assets!S$45&"|"&Assets!$B68,'Data Annex'!$K$1:$K$6000,0),MATCH(Assets!S$46,'Data Annex'!$K$1:$AN$1,0)),"") -> 0.8491566092 | T68: =IFERROR(INDEX('Data Annex'!$K$1:$AO$6000,MATCH(Assets!T$45&"|"&Assets!$B68,'Data Annex'!$K$1:$K$6000,0),MATCH(Assets!T$46,'Data Annex'!$K$1:$AO$1,0)),"") -> 0.85552029 | U68: =IFERROR(INDEX('Data Annex'!$K$1:$AO$6000,MATCH(Assets!U$45&"|"&Assets!$B68,'Data Annex'!$K$1:$K$6000,0),MATCH(Assets!U$46,'Data Annex'!$K$1:$AO$1,0)),"") -> 0.0896259096 | V68: =IFERROR(INDEX('Data Annex'!$K$1:$AO$6000,MATCH(Assets!V$45&"|"&Assets!$B68,'Data Annex'!$K$1:$K$6000,0),MATCH(Assets!V$46,'Data Annex'!$K$1:$AO$1,0)),"") -> 0.0854402656 | W68: =IFERROR(INDEX('Data Annex'!$K$1:$AO$6000,MATCH(Assets!W$45&"|"&Assets!$B68,'Data Annex'!$K$1:$K$6000,0),MATCH(Assets!W$46,'Data Annex'!$K$1:$AO$1,0)),"") -> 0.0738189209 | X68: =IFERROR(INDEX('Data Annex'!$K$1:$AO$6000,MATCH(Assets!X$45&"|"&Assets!$B68,'Data Annex'!$K$1:$K$6000,0),MATCH(Assets!X$46,'Data Annex'!$K$1:$AO$1,0)),"") -> 0.0713043946 | Y68: =IFERROR(INDEX('Data Annex'!$K$1:$AO$6000,MATCH(Assets!Y$45&"|"&Assets!$B68,'Data Annex'!$K$1:$K$6000,0),MATCH(Assets!Y$46,'Data Annex'!$K$1:$AO$1,0)),"") -> 0.0826963205 | Z68: =IFERROR(INDEX('Data Annex'!$K$1:$AO$6000,MATCH(Assets!Z$45&"|"&Assets!$B68,'Data Annex'!$K$1:$K$6000,0),MATCH(Assets!Z$46,'Data Annex'!$K$1:$AO$1,0)),"") -> 0.0804353623 | AA68: =IFERROR(INDEX('Data Annex'!$K$1:$AO$6000,MATCH(Assets!AA$45&"|"&Assets!$B68,'Data Annex'!$K$1:$K$6000,0),MATCH(Assets!AA$46,'Data Annex'!$K$1:$AO$1,0)),"") -> 0.0770244699 | AB68: =IFERROR(INDEX('Data Annex'!$K$1:$AO$6000,MATCH(Assets!AB$45&"|"&Assets!$B68,'Data Annex'!$K$1:$K$6000,0),MATCH(Assets!AB$46,'Data Annex'!$K$1:$AO$1,0)),"") -> 0.0731753155
B69: LT | D69: LT | F69: =IFERROR(INDEX('Data Annex'!$K$1:$AN$6000,MATCH(Assets!F$45&"|"&Assets!$B69,'Data Annex'!$K$1:$K$6000,0),MATCH(Assets!F$46,'Data Annex'!$K$1:$AN$1,0)),"") -> 23.313285 | G69: =IFERROR(INDEX('Data Annex'!$K$1:$AN$6000,MATCH(Assets!G$45&"|"&Assets!$B69,'Data Annex'!$K$1:$K$6000,0),MATCH(Assets!G$46,'Data Annex'!$K$1:$AN$1,0)),"") -> 25.067414 | H69: =IFERROR(INDEX('Data Annex'!$K$1:$AN$6000,MATCH(Assets!H$45&"|"&Assets!$B69,'Data Annex'!$K$1:$K$6000,0),MATCH(Assets!H$46,'Data Annex'!$K$1:$AN$1,0)),"") -> 27.242588 | I69: =IFERROR(INDEX('Data Annex'!$K$1:$AO$6000,MATCH(Assets!I$45&"|"&Assets!$B69,'Data Annex'!$K$1:$K$6000,0),MATCH(Assets!I$46,'Data Annex'!$K$1:$AO$1,0)),"") -> 27.897228 | J69: =IFERROR(INDEX('Data Annex'!$K$1:$AN$6000,MATCH(Assets!J$45&"|"&Assets!$B69,'Data Annex'!$K$1:$K$6000,0),MATCH(Assets!J$46,'Data Annex'!$K$1:$AN$1,0)),"") -> 23.095373 | K69: =IFERROR(INDEX('Data Annex'!$K$1:$AN$6000,MATCH(Assets!K$45&"|"&Assets!$B69,'Data Annex'!$K$1:$K$6000,0),MATCH(Assets!K$46,'Data Annex'!$K$1:$AN$1,0)),"") -> 24.849712 | L69: =IFERROR(INDEX('Data Annex'!$K$1:$AN$6000,MATCH(Assets!L$45&"|"&Assets!$B69,'Data Annex'!$K$1:$K$6000,0),MATCH(Assets!L$46,'Data Annex'!$K$1:$AN$1,0)),"") -> 27.028702 | M69: =IFERROR(INDEX('Data Annex'!$K$1:$AO$6000,MATCH(Assets!M$45&"|"&Assets!$B69,'Data Annex'!$K$1:$K$6000,0),MATCH(Assets!M$46,'Data Annex'!$K$1:$AO$1,0)),"") -> 27.676261 | N69: 0.9920792489 | O69: LT | Q69: =IFERROR(INDEX('Data Annex'!$K$1:$AN$6000,MATCH(Assets!Q$45&"|"&Assets!$B69,'Data Annex'!$K$1:$K$6000,0),MATCH(Assets!Q$46,'Data Annex'!$K$1:$AN$1,0)),"") -> 0.9684527286 | R69: =IFERROR(INDEX('Data Annex'!$K$1:$AN$6000,MATCH(Assets!R$45&"|"&Assets!$B69,'Data Annex'!$K$1:$K$6000,0),MATCH(Assets!R$46,'Data Annex'!$K$1:$AN$1,0)),"") -> 0.970097239 | S69: =IFERROR(INDEX('Data Annex'!$K$1:$AN$6000,MATCH(Assets!S$45&"|"&Assets!$B69,'Data Annex'!$K$1:$K$6000,0),MATCH(Assets!S$46,'Data Annex'!$K$1:$AN$1,0)),"") -> 0.96950353 | T69: =IFERROR(INDEX('Data Annex'!$K$1:$AO$6000,MATCH(Assets!T$45&"|"&Assets!$B69,'Data Annex'!$K$1:$K$6000,0),MATCH(Assets!T$46,'Data Annex'!$K$1:$AO$1,0)),"") -> 0.9690810475 | U69: =IFERROR(INDEX('Data Annex'!$K$1:$AO$6000,MATCH(Assets!U$45&"|"&Assets!$B69,'Data Annex'!$K$1:$K$6000,0),MATCH(Assets!U$46,'Data Annex'!$K$1:$AO$1,0)),"") -> 0.001598069 | V69: =IFERROR(INDEX('Data Annex'!$K$1:$AO$6000,MATCH(Assets!V$45&"|"&Assets!$B69,'Data Annex'!$K$1:$K$6000,0),MATCH(Assets!V$46,'Data Annex'!$K$1:$AO$1,0)),"") -> 0.0013053672 | W69: =IFERROR(INDEX('Data Annex'!$K$1:$AO$6000,MATCH(Assets!W$45&"|"&Assets!$B69,'Data Annex'!$K$1:$K$6000,0),MATCH(Assets!W$46,'Data Annex'!$K$1:$AO$1,0)),"") -> 0.0011258032 | X69: =IFERROR(INDEX('Data Annex'!$K$1:$AO$6000,MATCH(Assets!X$45&"|"&Assets!$B69,'Data Annex'!$K$1:$K$6000,0),MATCH(Assets!X$46,'Data Annex'!$K$1:$AO$1,0)),"") -> 0.0017757818 | Y69: =IFERROR(INDEX('Data Annex'!$K$1:$AO$6000,MATCH(Assets!Y$45&"|"&Assets!$B69,'Data Annex'!$K$1:$K$6000,0),MATCH(Assets!Y$46,'Data Annex'!$K$1:$AO$1,0)),"") -> 0.0299492024 | Z69: =IFERROR(INDEX('Data Annex'!$K$1:$AO$6000,MATCH(Assets!Z$45&"|"&Assets!$B69,'Data Annex'!$K$1:$K$6000,0),MATCH(Assets!Z$46,'Data Annex'!$K$1:$AO$1,0)),"") -> 0.0285973938 | AA69: =IFERROR(INDEX('Data Annex'!$K$1:$AO$6000,MATCH(Assets!AA$45&"|"&Assets!$B69,'Data Annex'!$K$1:$K$6000,0),MATCH(Assets!AA$46,'Data Annex'!$K$1:$AO$1,0)),"") -> 0.0293706668 | AB69: =IFERROR(INDEX('Data Annex'!$K$1:$AO$6000,MATCH(Assets!AB$45&"|"&Assets!$B69,'Data Annex'!$K$1:$K$6000,0),MATCH(Assets!AB$46,'Data Annex'!$K$1:$AO$1,0)),"") -> 0.0291431707
B70: LU | D70: LU | F70: =IFERROR(INDEX('Data Annex'!$K$1:$AN$6000,MATCH(Assets!F$45&"|"&Assets!$B70,'Data Annex'!$K$1:$K$6000,0),MATCH(Assets!F$46,'Data Annex'!$K$1:$AN$1,0)),"") -> 221.3351309 | G70: =IFERROR(INDEX('Data Annex'!$K$1:$AN$6000,MATCH(Assets!G$45&"|"&Assets!$B70,'Data Annex'!$K$1:$K$6000,0),MATCH(Assets!G$46,'Data Annex'!$K$1:$AN$1,0)),"") -> 218.7217715 | H70: =IFERROR(INDEX('Data Annex'!$K$1:$AN$6000,MATCH(Assets!H$45&"|"&Assets!$B70,'Data Annex'!$K$1:$K$6000,0),MATCH(Assets!H$46,'Data Annex'!$K$1:$AN$1,0)),"") -> 177.2987268 | I70: =IFERROR(INDEX('Data Annex'!$K$1:$AO$6000,MATCH(Assets!I$45&"|"&Assets!$B70,'Data Annex'!$K$1:$K$6000,0),MATCH(Assets!I$46,'Data Annex'!$K$1:$AO$1,0)),"") -> 183.5338135 | J70: =IFERROR(INDEX('Data Annex'!$K$1:$AN$6000,MATCH(Assets!J$45&"|"&Assets!$B70,'Data Annex'!$K$1:$K$6000,0),MATCH(Assets!J$46,'Data Annex'!$K$1:$AN$1,0)),"") -> 215.6807873 | K70: =IFERROR(INDEX('Data Annex'!$K$1:$AN$6000,MATCH(Assets!K$45&"|"&Assets!$B70,'Data Annex'!$K$1:$K$6000,0),MATCH(Assets!K$46,'Data Annex'!$K$1:$AN$1,0)),"") -> 212.8172027 | L70: =IFERROR(INDEX('Data Annex'!$K$1:$AN$6000,MATCH(Assets!L$45&"|"&Assets!$B70,'Data Annex'!$K$1:$K$6000,0),MATCH(Assets!L$46,'Data Annex'!$K$1:$AN$1,0)),"") -> 172.2626683 | M70: =IFERROR(INDEX('Data Annex'!$K$1:$AO$6000,MATCH(Assets!M$45&"|"&Assets!$B70,'Data Annex'!$K$1:$K$6000,0),MATCH(Assets!M$46,'Data Annex'!$K$1:$AO$1,0)),"") -> 178.3683153 | N70: 0.9718553323 | O70: LU | Q70: =IFERROR(INDEX('Data Annex'!$K$1:$AN$6000,MATCH(Assets!Q$45&"|"&Assets!$B70,'Data Annex'!$K$1:$K$6000,0),MATCH(Assets!Q$46,'Data Annex'!$K$1:$AN$1,0)),"") -> 0.7210186325 | R70: =IFERROR(INDEX('Data Annex'!$K$1:$AN$6000,MATCH(Assets!R$45&"|"&Assets!$B70,'Data Annex'!$K$1:$K$6000,0),MATCH(Assets!R$46,'Data Annex'!$K$1:$AN$1,0)),"") -> 0.7297893112 | S70: =IFERROR(INDEX('Data Annex'!$K$1:$AN$6000,MATCH(Assets!S$45&"|"&Assets!$B70,'Data Annex'!$K$1:$K$6000,0),MATCH(Assets!S$46,'Data Annex'!$K$1:$AN$1,0)),"") -> 0.9184497427 | T70: =IFERROR(INDEX('Data Annex'!$K$1:$AO$6000,MATCH(Assets!T$45&"|"&Assets!$B70,'Data Annex'!$K$1:$K$6000,0),MATCH(Assets!T$46,'Data Annex'!$K$1:$AO$1,0)),"") -> 0.9232739657 | U70: =IFERROR(INDEX('Data Annex'!$K$1:$AO$6000,MATCH(Assets!U$45&"|"&Assets!$B70,'Data Annex'!$K$1:$K$6000,0),MATCH(Assets!U$46,'Data Annex'!$K$1:$AO$1,0)),"") -> 0.0535360826 | V70: =IFERROR(INDEX('Data Annex'!$K$1:$AO$6000,MATCH(Assets!V$45&"|"&Assets!$B70,'Data Annex'!$K$1:$K$6000,0),MATCH(Assets!V$46,'Data Annex'!$K$1:$AO$1,0)),"") -> 0.05193172 | W70: =IFERROR(INDEX('Data Annex'!$K$1:$AO$6000,MATCH(Assets!W$45&"|"&Assets!$B70,'Data Annex'!$K$1:$K$6000,0),MATCH(Assets!W$46,'Data Annex'!$K$1:$AO$1,0)),"") -> 0.0636620602 | X70: =IFERROR(INDEX('Data Annex'!$K$1:$AO$6000,MATCH(Assets!X$45&"|"&Assets!$B70,'Data Annex'!$K$1:$K$6000,0),MATCH(Assets!X$46,'Data Annex'!$K$1:$AO$1,0)),"") -> 0.0597190607 | Y70: =IFERROR(INDEX('Data Annex'!$K$1:$AO$6000,MATCH(Assets!Y$45&"|"&Assets!$B70,'Data Annex'!$K$1:$K$6000,0),MATCH(Assets!Y$46,'Data Annex'!$K$1:$AO$1,0)),"") -> 0.2254452849 | Z70: =IFERROR(INDEX('Data Annex'!$K$1:$AO$6000,MATCH(Assets!Z$45&"|"&Assets!$B70,'Data Annex'!$K$1:$K$6000,0),MATCH(Assets!Z$46,'Data Annex'!$K$1:$AO$1,0)),"") -> 0.2182789687 | AA70: =IFERROR(INDEX('Data Annex'!$K$1:$AO$6000,MATCH(Assets!AA$45&"|"&Assets!$B70,'Data Annex'!$K$1:$K$6000,0),MATCH(Assets!AA$46,'Data Annex'!$K$1:$AO$1,0)),"") -> 0.0178881971 | AB70: =IFERROR(INDEX('Data Annex'!$K$1:$AO$6000,MATCH(Assets!AB$45&"|"&Assets!$B70,'Data Annex'!$K$1:$K$6000,0),MATCH(Assets!AB$46,'Data Annex'!$K$1:$AO$1,0)),"") -> 0.0170069736
B71: LV | D71: LV | F71: =IFERROR(INDEX('Data Annex'!$K$1:$AN$6000,MATCH(Assets!F$45&"|"&Assets!$B71,'Data Annex'!$K$1:$K$6000,0),MATCH(Assets!F$46,'Data Annex'!$K$1:$AN$1,0)),"") -> 15.49101397 | G71: =IFERROR(INDEX('Data Annex'!$K$1:$AN$6000,MATCH(Assets!G$45&"|"&Assets!$B71,'Data Annex'!$K$1:$K$6000,0),MATCH(Assets!G$46,'Data Annex'!$K$1:$AN$1,0)),"") -> 15.78316162 | H71: =IFERROR(INDEX('Data Annex'!$K$1:$AN$6000,MATCH(Assets!H$45&"|"&Assets!$B71,'Data Annex'!$K$1:$K$6000,0),MATCH(Assets!H$46,'Data Annex'!$K$1:$AN$1,0)),"") -> 16.49323827 | I71: =IFERROR(INDEX('Data Annex'!$K$1:$AO$6000,MATCH(Assets!I$45&"|"&Assets!$B71,'Data Annex'!$K$1:$K$6000,0),MATCH(Assets!I$46,'Data Annex'!$K$1:$AO$1,0)),"") -> 17.34828751 | J71: =IFERROR(INDEX('Data Annex'!$K$1:$AN$6000,MATCH(Assets!J$45&"|"&Assets!$B71,'Data Annex'!$K$1:$K$6000,0),MATCH(Assets!J$46,'Data Annex'!$K$1:$AN$1,0)),"") -> 15.31503411 | K71: =IFERROR(INDEX('Data Annex'!$K$1:$AN$6000,MATCH(Assets!K$45&"|"&Assets!$B71,'Data Annex'!$K$1:$K$6000,0),MATCH(Assets!K$46,'Data Annex'!$K$1:$AN$1,0)),"") -> 15.61511859 | L71: =IFERROR(INDEX('Data Annex'!$K$1:$AN$6000,MATCH(Assets!L$45&"|"&Assets!$B71,'Data Annex'!$K$1:$K$6000,0),MATCH(Assets!L$46,'Data Annex'!$K$1:$AN$1,0)),"") -> 16.36191686 | M71: =IFERROR(INDEX('Data Annex'!$K$1:$AO$6000,MATCH(Assets!M$45&"|"&Assets!$B71,'Data Annex'!$K$1:$K$6000,0),MATCH(Assets!M$46,'Data Annex'!$K$1:$AO$1,0)),"") -> 17.18298963 | N71: 0.9904718041 | O71: LV | Q71: =IFERROR(INDEX('Data Annex'!$K$1:$AN$6000,MATCH(Assets!Q$45&"|"&Assets!$B71,'Data Annex'!$K$1:$K$6000,0),MATCH(Assets!Q$46,'Data Annex'!$K$1:$AN$1,0)),"") -> 0.8913249433 | R71: =IFERROR(INDEX('Data Annex'!$K$1:$AN$6000,MATCH(Assets!R$45&"|"&Assets!$B71,'Data Annex'!$K$1:$K$6000,0),MATCH(Assets!R$46,'Data Annex'!$K$1:$AN$1,0)),"") -> 0.8864917444 | S71: =IFERROR(INDEX('Data Annex'!$K$1:$AN$6000,MATCH(Assets!S$45&"|"&Assets!$B71,'Data Annex'!$K$1:$K$6000,0),MATCH(Assets!S$46,'Data Annex'!$K$1:$AN$1,0)),"") -> 0.9005810141 | T71: =IFERROR(INDEX('Data Annex'!$K$1:$AO$6000,MATCH(Assets!T$45&"|"&Assets!$B71,'Data Annex'!$K$1:$K$6000,0),MATCH(Assets!T$46,'Data Annex'!$K$1:$AO$1,0)),"") -> 0.8998540691 | U71: =IFERROR(INDEX('Data Annex'!$K$1:$AO$6000,MATCH(Assets!U$45&"|"&Assets!$B71,'Data Annex'!$K$1:$K$6000,0),MATCH(Assets!U$46,'Data Annex'!$K$1:$AO$1,0)),"") -> 0.0244807545 | V71: =IFERROR(INDEX('Data Annex'!$K$1:$AO$6000,MATCH(Assets!V$45&"|"&Assets!$B71,'Data Annex'!$K$1:$K$6000,0),MATCH(Assets!V$46,'Data Annex'!$K$1:$AO$1,0)),"") -> 0.0306981949 | W71: =IFERROR(INDEX('Data Annex'!$K$1:$AO$6000,MATCH(Assets!W$45&"|"&Assets!$B71,'Data Annex'!$K$1:$K$6000,0),MATCH(Assets!W$46,'Data Annex'!$K$1:$AO$1,0)),"") -> 0.020686725 | X71: =IFERROR(INDEX('Data Annex'!$K$1:$AO$6000,MATCH(Assets!X$45&"|"&Assets!$B71,'Data Annex'!$K$1:$K$6000,0),MATCH(Assets!X$46,'Data Annex'!$K$1:$AO$1,0)),"") -> 0.0190106422 | Y71: =IFERROR(INDEX('Data Annex'!$K$1:$AO$6000,MATCH(Assets!Y$45&"|"&Assets!$B71,'Data Annex'!$K$1:$K$6000,0),MATCH(Assets!Y$46,'Data Annex'!$K$1:$AO$1,0)),"") -> 0.0841943021 | Z71: =IFERROR(INDEX('Data Annex'!$K$1:$AO$6000,MATCH(Assets!Z$45&"|"&Assets!$B71,'Data Annex'!$K$1:$K$6000,0),MATCH(Assets!Z$46,'Data Annex'!$K$1:$AO$1,0)),"") -> 0.0828100607 | AA71: =IFERROR(INDEX('Data Annex'!$K$1:$AO$6000,MATCH(Assets!AA$45&"|"&Assets!$B71,'Data Annex'!$K$1:$K$6000,0),MATCH(Assets!AA$46,'Data Annex'!$K$1:$AO$1,0)),"") -> 0.0787322609 | AB71: =IFERROR(INDEX('Data Annex'!$K$1:$AO$6000,MATCH(Assets!AB$45&"|"&Assets!$B71,'Data Annex'!$K$1:$K$6000,0),MATCH(Assets!AB$46,'Data Annex'!$K$1:$AO$1,0)),"") -> 0.0811352887
B72: MT | D72: MT | F72: =IFERROR(INDEX('Data Annex'!$K$1:$AN$6000,MATCH(Assets!F$45&"|"&Assets!$B72,'Data Annex'!$K$1:$K$6000,0),MATCH(Assets!F$46,'Data Annex'!$K$1:$AN$1,0)),"") -> 22.388761 | G72: =IFERROR(INDEX('Data Annex'!$K$1:$AN$6000,MATCH(Assets!G$45&"|"&Assets!$B72,'Data Annex'!$K$1:$K$6000,0),MATCH(Assets!G$46,'Data Annex'!$K$1:$AN$1,0)),"") -> 22.49619345 | H72: =IFERROR(INDEX('Data Annex'!$K$1:$AN$6000,MATCH(Assets!H$45&"|"&Assets!$B72,'Data Annex'!$K$1:$K$6000,0),MATCH(Assets!H$46,'Data Annex'!$K$1:$AN$1,0)),"") -> 22.84453198 | I72: =IFERROR(INDEX('Data Annex'!$K$1:$AO$6000,MATCH(Assets!I$45&"|"&Assets!$B72,'Data Annex'!$K$1:$K$6000,0),MATCH(Assets!I$46,'Data Annex'!$K$1:$AO$1,0)),"") -> 23.81170423 | J72: =IFERROR(INDEX('Data Annex'!$K$1:$AN$6000,MATCH(Assets!J$45&"|"&Assets!$B72,'Data Annex'!$K$1:$K$6000,0),MATCH(Assets!J$46,'Data Annex'!$K$1:$AN$1,0)),"") -> 21.69237724 | K72: =IFERROR(INDEX('Data Annex'!$K$1:$AN$6000,MATCH(Assets!K$45&"|"&Assets!$B72,'Data Annex'!$K$1:$K$6000,0),MATCH(Assets!K$46,'Data Annex'!$K$1:$AN$1,0)),"") -> 21.81917865 | L72: =IFERROR(INDEX('Data Annex'!$K$1:$AN$6000,MATCH(Assets!L$45&"|"&Assets!$B72,'Data Annex'!$K$1:$K$6000,0),MATCH(Assets!L$46,'Data Annex'!$K$1:$AN$1,0)),"") -> 22.13203145 | M72: =IFERROR(INDEX('Data Annex'!$K$1:$AO$6000,MATCH(Assets!M$45&"|"&Assets!$B72,'Data Annex'!$K$1:$K$6000,0),MATCH(Assets!M$46,'Data Annex'!$K$1:$AO$1,0)),"") -> 23.12428087 | N72: 0.9711308625 | O72: MT | Q72: =IFERROR(INDEX('Data Annex'!$K$1:$AN$6000,MATCH(Assets!Q$45&"|"&Assets!$B72,'Data Annex'!$K$1:$K$6000,0),MATCH(Assets!Q$46,'Data Annex'!$K$1:$AN$1,0)),"") -> 0.8799762531 | R72: =IFERROR(INDEX('Data Annex'!$K$1:$AN$6000,MATCH(Assets!R$45&"|"&Assets!$B72,'Data Annex'!$K$1:$K$6000,0),MATCH(Assets!R$46,'Data Annex'!$K$1:$AN$1,0)),"") -> 0.8883434702 | S72: =IFERROR(INDEX('Data Annex'!$K$1:$AN$6000,MATCH(Assets!S$45&"|"&Assets!$B72,'Data Annex'!$K$1:$K$6000,0),MATCH(Assets!S$46,'Data Annex'!$K$1:$AN$1,0)),"") -> 0.8970539531 | T72: =IFERROR(INDEX('Data Annex'!$K$1:$AO$6000,MATCH(Assets!T$45&"|"&Assets!$B72,'Data Annex'!$K$1:$K$6000,0),MATCH(Assets!T$46,'Data Annex'!$K$1:$AO$1,0)),"") -> 0.8985097135 | U72: =IFERROR(INDEX('Data Annex'!$K$1:$AO$6000,MATCH(Assets!U$45&"|"&Assets!$B72,'Data Annex'!$K$1:$K$6000,0),MATCH(Assets!U$46,'Data Annex'!$K$1:$AO$1,0)),"") -> 0.1112077249 | V72: =IFERROR(INDEX('Data Annex'!$K$1:$AO$6000,MATCH(Assets!V$45&"|"&Assets!$B72,'Data Annex'!$K$1:$K$6000,0),MATCH(Assets!V$46,'Data Annex'!$K$1:$AO$1,0)),"") -> 0.1031444159 | W72: =IFERROR(INDEX('Data Annex'!$K$1:$AO$6000,MATCH(Assets!W$45&"|"&Assets!$B72,'Data Annex'!$K$1:$K$6000,0),MATCH(Assets!W$46,'Data Annex'!$K$1:$AO$1,0)),"") -> 0.0948983016 | X72: =IFERROR(INDEX('Data Annex'!$K$1:$AO$6000,MATCH(Assets!X$45&"|"&Assets!$B72,'Data Annex'!$K$1:$K$6000,0),MATCH(Assets!X$46,'Data Annex'!$K$1:$AO$1,0)),"") -> 0.0933416489 | Y72: =IFERROR(INDEX('Data Annex'!$K$1:$AO$6000,MATCH(Assets!Y$45&"|"&Assets!$B72,'Data Annex'!$K$1:$K$6000,0),MATCH(Assets!Y$46,'Data Annex'!$K$1:$AO$1,0)),"") -> 0.008816022 | Z72: =IFERROR(INDEX('Data Annex'!$K$1:$AO$6000,MATCH(Assets!Z$45&"|"&Assets!$B72,'Data Annex'!$K$1:$K$6000,0),MATCH(Assets!Z$46,'Data Annex'!$K$1:$AO$1,0)),"") -> 0.0085121139 | AA72: =IFERROR(INDEX('Data Annex'!$K$1:$AO$6000,MATCH(Assets!AA$45&"|"&Assets!$B72,'Data Annex'!$K$1:$K$6000,0),MATCH(Assets!AA$46,'Data Annex'!$K$1:$AO$1,0)),"") -> 0.0080477453 | AB72: =IFERROR(INDEX('Data Annex'!$K$1:$AO$6000,MATCH(Assets!AB$45&"|"&Assets!$B72,'Data Annex'!$K$1:$K$6000,0),MATCH(Assets!AB$46,'Data Annex'!$K$1:$AO$1,0)),"") -> 0.0081486376
B73: NL | D73: NL | F73: =IFERROR(INDEX('Data Annex'!$K$1:$AN$6000,MATCH(Assets!F$45&"|"&Assets!$B73,'Data Annex'!$K$1:$K$6000,0),MATCH(Assets!F$46,'Data Annex'!$K$1:$AN$1,0)),"") -> 2262.356289 | G73: =IFERROR(INDEX('Data Annex'!$K$1:$AN$6000,MATCH(Assets!G$45&"|"&Assets!$B73,'Data Annex'!$K$1:$K$6000,0),MATCH(Assets!G$46,'Data Annex'!$K$1:$AN$1,0)),"") -> 2290.66618 | H73: =IFERROR(INDEX('Data Annex'!$K$1:$AN$6000,MATCH(Assets!H$45&"|"&Assets!$B73,'Data Annex'!$K$1:$K$6000,0),MATCH(Assets!H$46,'Data Annex'!$K$1:$AN$1,0)),"") -> 2193.284832 | I73: =IFERROR(INDEX('Data Annex'!$K$1:$AO$6000,MATCH(Assets!I$45&"|"&Assets!$B73,'Data Annex'!$K$1:$K$6000,0),MATCH(Assets!I$46,'Data Annex'!$K$1:$AO$1,0)),"") -> 2338.070814 | J73: =IFERROR(INDEX('Data Annex'!$K$1:$AN$6000,MATCH(Assets!J$45&"|"&Assets!$B73,'Data Annex'!$K$1:$K$6000,0),MATCH(Assets!J$46,'Data Annex'!$K$1:$AN$1,0)),"") -> 2184.212768 | K73: =IFERROR(INDEX('Data Annex'!$K$1:$AN$6000,MATCH(Assets!K$45&"|"&Assets!$B73,'Data Annex'!$K$1:$K$6000,0),MATCH(Assets!K$46,'Data Annex'!$K$1:$AN$1,0)),"") -> 2214.987825 | L73: =IFERROR(INDEX('Data Annex'!$K$1:$AN$6000,MATCH(Assets!L$45&"|"&Assets!$B73,'Data Annex'!$K$1:$K$6000,0),MATCH(Assets!L$46,'Data Annex'!$K$1:$AN$1,0)),"") -> 2121.969838 | M73: =IFERROR(INDEX('Data Annex'!$K$1:$AO$6000,MATCH(Assets!M$45&"|"&Assets!$B73,'Data Annex'!$K$1:$K$6000,0),MATCH(Assets!M$46,'Data Annex'!$K$1:$AO$1,0)),"") -> 2246.585813 | N73: 0.9608715871 | O73: NL | Q73: =IFERROR(INDEX('Data Annex'!$K$1:$AN$6000,MATCH(Assets!Q$45&"|"&Assets!$B73,'Data Annex'!$K$1:$K$6000,0),MATCH(Assets!Q$46,'Data Annex'!$K$1:$AN$1,0)),"") -> 0.8683345005 | R73: =IFERROR(INDEX('Data Annex'!$K$1:$AN$6000,MATCH(Assets!R$45&"|"&Assets!$B73,'Data Annex'!$K$1:$K$6000,0),MATCH(Assets!R$46,'Data Annex'!$K$1:$AN$1,0)),"") -> 0.8727921323 | S73: =IFERROR(INDEX('Data Annex'!$K$1:$AN$6000,MATCH(Assets!S$45&"|"&Assets!$B73,'Data Annex'!$K$1:$K$6000,0),MATCH(Assets!S$46,'Data Annex'!$K$1:$AN$1,0)),"") -> 0.8740992185 | T73: =IFERROR(INDEX('Data Annex'!$K$1:$AO$6000,MATCH(Assets!T$45&"|"&Assets!$B73,'Data Annex'!$K$1:$K$6000,0),MATCH(Assets!T$46,'Data Annex'!$K$1:$AO$1,0)),"") -> 0.8780083791 | U73: =IFERROR(INDEX('Data Annex'!$K$1:$AO$6000,MATCH(Assets!U$45&"|"&Assets!$B73,'Data Annex'!$K$1:$K$6000,0),MATCH(Assets!U$46,'Data Annex'!$K$1:$AO$1,0)),"") -> 0.0530070786 | V73: =IFERROR(INDEX('Data Annex'!$K$1:$AO$6000,MATCH(Assets!V$45&"|"&Assets!$B73,'Data Annex'!$K$1:$K$6000,0),MATCH(Assets!V$46,'Data Annex'!$K$1:$AO$1,0)),"") -> 0.050848488 | W73: =IFERROR(INDEX('Data Annex'!$K$1:$AO$6000,MATCH(Assets!W$45&"|"&Assets!$B73,'Data Annex'!$K$1:$K$6000,0),MATCH(Assets!W$46,'Data Annex'!$K$1:$AO$1,0)),"") -> 0.0517055198 | X73: =IFERROR(INDEX('Data Annex'!$K$1:$AO$6000,MATCH(Assets!X$45&"|"&Assets!$B73,'Data Annex'!$K$1:$K$6000,0),MATCH(Assets!X$46,'Data Annex'!$K$1:$AO$1,0)),"") -> 0.0461114359 | Y73: =IFERROR(INDEX('Data Annex'!$K$1:$AO$6000,MATCH(Assets!Y$45&"|"&Assets!$B73,'Data Annex'!$K$1:$K$6000,0),MATCH(Assets!Y$46,'Data Annex'!$K$1:$AO$1,0)),"") -> 0.078658421 | Z73: =IFERROR(INDEX('Data Annex'!$K$1:$AO$6000,MATCH(Assets!Z$45&"|"&Assets!$B73,'Data Annex'!$K$1:$K$6000,0),MATCH(Assets!Z$46,'Data Annex'!$K$1:$AO$1,0)),"") -> 0.0763593797 | AA73: =IFERROR(INDEX('Data Annex'!$K$1:$AO$6000,MATCH(Assets!AA$45&"|"&Assets!$B73,'Data Annex'!$K$1:$K$6000,0),MATCH(Assets!AA$46,'Data Annex'!$K$1:$AO$1,0)),"") -> 0.0741952617 | AB73: =IFERROR(INDEX('Data Annex'!$K$1:$AO$6000,MATCH(Assets!AB$45&"|"&Assets!$B73,'Data Annex'!$K$1:$K$6000,0),MATCH(Assets!AB$46,'Data Annex'!$K$1:$AO$1,0)),"") -> 0.075880185
B74: NO | D74: NO | F74: =IFERROR(INDEX('Data Annex'!$K$1:$AN$6000,MATCH(Assets!F$45&"|"&Assets!$B74,'Data Annex'!$K$1:$K$6000,0),MATCH(Assets!F$46,'Data Annex'!$K$1:$AN$1,0)),"") -> 303.6580119 | G74: =IFERROR(INDEX('Data Annex'!$K$1:$AN$6000,MATCH(Assets!G$45&"|"&Assets!$B74,'Data Annex'!$K$1:$K$6000,0),MATCH(Assets!G$46,'Data Annex'!$K$1:$AN$1,0)),"") -> 297.2320525 | H74: =IFERROR(INDEX('Data Annex'!$K$1:$AN$6000,MATCH(Assets!H$45&"|"&Assets!$B74,'Data Annex'!$K$1:$K$6000,0),MATCH(Assets!H$46,'Data Annex'!$K$1:$AN$1,0)),"") -> 302.9686131 | I74: =IFERROR(INDEX('Data Annex'!$K$1:$AO$6000,MATCH(Assets!I$45&"|"&Assets!$B74,'Data Annex'!$K$1:$K$6000,0),MATCH(Assets!I$46,'Data Annex'!$K$1:$AO$1,0)),"") -> 324.0029166 | J74: =IFERROR(INDEX('Data Annex'!$K$1:$AN$6000,MATCH(Assets!J$45&"|"&Assets!$B74,'Data Annex'!$K$1:$K$6000,0),MATCH(Assets!J$46,'Data Annex'!$K$1:$AN$1,0)),"") -> 298.6709538 | K74: =IFERROR(INDEX('Data Annex'!$K$1:$AN$6000,MATCH(Assets!K$45&"|"&Assets!$B74,'Data Annex'!$K$1:$K$6000,0),MATCH(Assets!K$46,'Data Annex'!$K$1:$AN$1,0)),"") -> 292.669355 | L74: =IFERROR(INDEX('Data Annex'!$K$1:$AN$6000,MATCH(Assets!L$45&"|"&Assets!$B74,'Data Annex'!$K$1:$K$6000,0),MATCH(Assets!L$46,'Data Annex'!$K$1:$AN$1,0)),"") -> 298.4313948 | M74: =IFERROR(INDEX('Data Annex'!$K$1:$AO$6000,MATCH(Assets!M$45&"|"&Assets!$B74,'Data Annex'!$K$1:$K$6000,0),MATCH(Assets!M$46,'Data Annex'!$K$1:$AO$1,0)),"") -> 318.0998665 | N74: 0.9817808735 | O74: NO | Q74: =IFERROR(INDEX('Data Annex'!$K$1:$AN$6000,MATCH(Assets!Q$45&"|"&Assets!$B74,'Data Annex'!$K$1:$K$6000,0),MATCH(Assets!Q$46,'Data Annex'!$K$1:$AN$1,0)),"") -> 0.7662843486 | R74: =IFERROR(INDEX('Data Annex'!$K$1:$AN$6000,MATCH(Assets!R$45&"|"&Assets!$B74,'Data Annex'!$K$1:$K$6000,0),MATCH(Assets!R$46,'Data Annex'!$K$1:$AN$1,0)),"") -> 0.7794090304 | S74: =IFERROR(INDEX('Data Annex'!$K$1:$AN$6000,MATCH(Assets!S$45&"|"&Assets!$B74,'Data Annex'!$K$1:$K$6000,0),MATCH(Assets!S$46,'Data Annex'!$K$1:$AN$1,0)),"") -> 0.769211687 | T74: =IFERROR(INDEX('Data Annex'!$K$1:$AO$6000,MATCH(Assets!T$45&"|"&Assets!$B74,'Data Annex'!$K$1:$K$6000,0),MATCH(Assets!T$46,'Data Annex'!$K$1:$AO$1,0)),"") -> 0.791324086 | U74: =IFERROR(INDEX('Data Annex'!$K$1:$AO$6000,MATCH(Assets!U$45&"|"&Assets!$B74,'Data Annex'!$K$1:$K$6000,0),MATCH(Assets!U$46,'Data Annex'!$K$1:$AO$1,0)),"") -> 0.0514201702 | V74: =IFERROR(INDEX('Data Annex'!$K$1:$AO$6000,MATCH(Assets!V$45&"|"&Assets!$B74,'Data Annex'!$K$1:$K$6000,0),MATCH(Assets!V$46,'Data Annex'!$K$1:$AO$1,0)),"") -> 0.053362937 | W74: =IFERROR(INDEX('Data Annex'!$K$1:$AO$6000,MATCH(Assets!W$45&"|"&Assets!$B74,'Data Annex'!$K$1:$K$6000,0),MATCH(Assets!W$46,'Data Annex'!$K$1:$AO$1,0)),"") -> 0.0568657281 | X74: =IFERROR(INDEX('Data Annex'!$K$1:$AO$6000,MATCH(Assets!X$45&"|"&Assets!$B74,'Data Annex'!$K$1:$K$6000,0),MATCH(Assets!X$46,'Data Annex'!$K$1:$AO$1,0)),"") -> 0.0584457183 | Y74: =IFERROR(INDEX('Data Annex'!$K$1:$AO$6000,MATCH(Assets!Y$45&"|"&Assets!$B74,'Data Annex'!$K$1:$K$6000,0),MATCH(Assets!Y$46,'Data Annex'!$K$1:$AO$1,0)),"") -> 0.1822954812 | Z74: =IFERROR(INDEX('Data Annex'!$K$1:$AO$6000,MATCH(Assets!Z$45&"|"&Assets!$B74,'Data Annex'!$K$1:$K$6000,0),MATCH(Assets!Z$46,'Data Annex'!$K$1:$AO$1,0)),"") -> 0.1672280326 | AA74: =IFERROR(INDEX('Data Annex'!$K$1:$AO$6000,MATCH(Assets!AA$45&"|"&Assets!$B74,'Data Annex'!$K$1:$K$6000,0),MATCH(Assets!AA$46,'Data Annex'!$K$1:$AO$1,0)),"") -> 0.1739225848 | AB74: =IFERROR(INDEX('Data Annex'!$K$1:$AO$6000,MATCH(Assets!AB$45&"|"&Assets!$B74,'Data Annex'!$K$1:$K$6000,0),MATCH(Assets!AB$46,'Data Annex'!$K$1:$AO$1,0)),"") -> 0.1502301957
B75: PL | D75: PL | F75: =IFERROR(INDEX('Data Annex'!$K$1:$AN$6000,MATCH(Assets!F$45&"|"&Assets!$B75,'Data Annex'!$K$1:$K$6000,0),MATCH(Assets!F$46,'Data Annex'!$K$1:$AN$1,0)),"") -> 186.7362212 | G75: =IFERROR(INDEX('Data Annex'!$K$1:$AN$6000,MATCH(Assets!G$45&"|"&Assets!$B75,'Data Annex'!$K$1:$K$6000,0),MATCH(Assets!G$46,'Data Annex'!$K$1:$AN$1,0)),"") -> 182.4476114 | H75: =IFERROR(INDEX('Data Annex'!$K$1:$AN$6000,MATCH(Assets!H$45&"|"&Assets!$B75,'Data Annex'!$K$1:$K$6000,0),MATCH(Assets!H$46,'Data Annex'!$K$1:$AN$1,0)),"") -> 183.6233976 | I75: =IFERROR(INDEX('Data Annex'!$K$1:$AO$6000,MATCH(Assets!I$45&"|"&Assets!$B75,'Data Annex'!$K$1:$K$6000,0),MATCH(Assets!I$46,'Data Annex'!$K$1:$AO$1,0)),"") -> 187.4557981 | J75: =IFERROR(INDEX('Data Annex'!$K$1:$AN$6000,MATCH(Assets!J$45&"|"&Assets!$B75,'Data Annex'!$K$1:$K$6000,0),MATCH(Assets!J$46,'Data Annex'!$K$1:$AN$1,0)),"") -> 180.7310921 | K75: =IFERROR(INDEX('Data Annex'!$K$1:$AN$6000,MATCH(Assets!K$45&"|"&Assets!$B75,'Data Annex'!$K$1:$K$6000,0),MATCH(Assets!K$46,'Data Annex'!$K$1:$AN$1,0)),"") -> 176.6655917 | L75: =IFERROR(INDEX('Data Annex'!$K$1:$AN$6000,MATCH(Assets!L$45&"|"&Assets!$B75,'Data Annex'!$K$1:$K$6000,0),MATCH(Assets!L$46,'Data Annex'!$K$1:$AN$1,0)),"") -> 177.3951636 | M75: =IFERROR(INDEX('Data Annex'!$K$1:$AO$6000,MATCH(Assets!M$45&"|"&Assets!$B75,'Data Annex'!$K$1:$K$6000,0),MATCH(Assets!M$46,'Data Annex'!$K$1:$AO$1,0)),"") -> 181.3131157 | N75: 0.9672313023 | O75: PL | Q75: =IFERROR(INDEX('Data Annex'!$K$1:$AN$6000,MATCH(Assets!Q$45&"|"&Assets!$B75,'Data Annex'!$K$1:$K$6000,0),MATCH(Assets!Q$46,'Data Annex'!$K$1:$AN$1,0)),"") -> 0.7440716971 | R75: =IFERROR(INDEX('Data Annex'!$K$1:$AN$6000,MATCH(Assets!R$45&"|"&Assets!$B75,'Data Annex'!$K$1:$K$6000,0),MATCH(Assets!R$46,'Data Annex'!$K$1:$AN$1,0)),"") -> 0.7341933818 | S75: =IFERROR(INDEX('Data Annex'!$K$1:$AN$6000,MATCH(Assets!S$45&"|"&Assets!$B75,'Data Annex'!$K$1:$K$6000,0),MATCH(Assets!S$46,'Data Annex'!$K$1:$AN$1,0)),"") -> 0.7375765616 | T75: =IFERROR(INDEX('Data Annex'!$K$1:$AO$6000,MATCH(Assets!T$45&"|"&Assets!$B75,'Data Annex'!$K$1:$K$6000,0),MATCH(Assets!T$46,'Data Annex'!$K$1:$AO$1,0)),"") -> 0.7530564796 | U75: =IFERROR(INDEX('Data Annex'!$K$1:$AO$6000,MATCH(Assets!U$45&"|"&Assets!$B75,'Data Annex'!$K$1:$K$6000,0),MATCH(Assets!U$46,'Data Annex'!$K$1:$AO$1,0)),"") -> 0.2210887401 | V75: =IFERROR(INDEX('Data Annex'!$K$1:$AO$6000,MATCH(Assets!V$45&"|"&Assets!$B75,'Data Annex'!$K$1:$K$6000,0),MATCH(Assets!V$46,'Data Annex'!$K$1:$AO$1,0)),"") -> 0.2303220245 | W75: =IFERROR(INDEX('Data Annex'!$K$1:$AO$6000,MATCH(Assets!W$45&"|"&Assets!$B75,'Data Annex'!$K$1:$K$6000,0),MATCH(Assets!W$46,'Data Annex'!$K$1:$AO$1,0)),"") -> 0.2298369881 | X75: =IFERROR(INDEX('Data Annex'!$K$1:$AO$6000,MATCH(Assets!X$45&"|"&Assets!$B75,'Data Annex'!$K$1:$K$6000,0),MATCH(Assets!X$46,'Data Annex'!$K$1:$AO$1,0)),"") -> 0.2188806342 | Y75: =IFERROR(INDEX('Data Annex'!$K$1:$AO$6000,MATCH(Assets!Y$45&"|"&Assets!$B75,'Data Annex'!$K$1:$K$6000,0),MATCH(Assets!Y$46,'Data Annex'!$K$1:$AO$1,0)),"") -> 0.0348395628 | Z75: =IFERROR(INDEX('Data Annex'!$K$1:$AO$6000,MATCH(Assets!Z$45&"|"&Assets!$B75,'Data Annex'!$K$1:$K$6000,0),MATCH(Assets!Z$46,'Data Annex'!$K$1:$AO$1,0)),"") -> 0.0354845937 | AA75: =IFERROR(INDEX('Data Annex'!$K$1:$AO$6000,MATCH(Assets!AA$45&"|"&Assets!$B75,'Data Annex'!$K$1:$K$6000,0),MATCH(Assets!AA$46,'Data Annex'!$K$1:$AO$1,0)),"") -> 0.0325864503 | AB75: =IFERROR(INDEX('Data Annex'!$K$1:$AO$6000,MATCH(Assets!AB$45&"|"&Assets!$B75,'Data Annex'!$K$1:$K$6000,0),MATCH(Assets!AB$46,'Data Annex'!$K$1:$AO$1,0)),"") -> 0.0280628862
B76: PT | D76: PT | F76: =IFERROR(INDEX('Data Annex'!$K$1:$AN$6000,MATCH(Assets!F$45&"|"&Assets!$B76,'Data Annex'!$K$1:$K$6000,0),MATCH(Assets!F$46,'Data Annex'!$K$1:$AN$1,0)),"") -> 356.0361086 | G76: =IFERROR(INDEX('Data Annex'!$K$1:$AN$6000,MATCH(Assets!G$45&"|"&Assets!$B76,'Data Annex'!$K$1:$K$6000,0),MATCH(Assets!G$46,'Data Annex'!$K$1:$AN$1,0)),"") -> 354.1518472 | H76: =IFERROR(INDEX('Data Annex'!$K$1:$AN$6000,MATCH(Assets!H$45&"|"&Assets!$B76,'Data Annex'!$K$1:$K$6000,0),MATCH(Assets!H$46,'Data Annex'!$K$1:$AN$1,0)),"") -> 355.0090286 | I76: =IFERROR(INDEX('Data Annex'!$K$1:$AO$6000,MATCH(Assets!I$45&"|"&Assets!$B76,'Data Annex'!$K$1:$K$6000,0),MATCH(Assets!I$46,'Data Annex'!$K$1:$AO$1,0)),"") -> 284.5563477 | J76: =IFERROR(INDEX('Data Annex'!$K$1:$AN$6000,MATCH(Assets!J$45&"|"&Assets!$B76,'Data Annex'!$K$1:$K$6000,0),MATCH(Assets!J$46,'Data Annex'!$K$1:$AN$1,0)),"") -> 335.0759192 | K76: =IFERROR(INDEX('Data Annex'!$K$1:$AN$6000,MATCH(Assets!K$45&"|"&Assets!$B76,'Data Annex'!$K$1:$K$6000,0),MATCH(Assets!K$46,'Data Annex'!$K$1:$AN$1,0)),"") -> 331.0442657 | L76: =IFERROR(INDEX('Data Annex'!$K$1:$AN$6000,MATCH(Assets!L$45&"|"&Assets!$B76,'Data Annex'!$K$1:$K$6000,0),MATCH(Assets!L$46,'Data Annex'!$K$1:$AN$1,0)),"") -> 332.9939146 | M76: =IFERROR(INDEX('Data Annex'!$K$1:$AO$6000,MATCH(Assets!M$45&"|"&Assets!$B76,'Data Annex'!$K$1:$K$6000,0),MATCH(Assets!M$46,'Data Annex'!$K$1:$AO$1,0)),"") -> 266.152428 | N76: 0.9353241639 | O76: PT | Q76: =IFERROR(INDEX('Data Annex'!$K$1:$AN$6000,MATCH(Assets!Q$45&"|"&Assets!$B76,'Data Annex'!$K$1:$K$6000,0),MATCH(Assets!Q$46,'Data Annex'!$K$1:$AN$1,0)),"") -> 0.8319262862 | R76: =IFERROR(INDEX('Data Annex'!$K$1:$AN$6000,MATCH(Assets!R$45&"|"&Assets!$B76,'Data Annex'!$K$1:$K$6000,0),MATCH(Assets!R$46,'Data Annex'!$K$1:$AN$1,0)),"") -> 0.8368844904 | S76: =IFERROR(INDEX('Data Annex'!$K$1:$AN$6000,MATCH(Assets!S$45&"|"&Assets!$B76,'Data Annex'!$K$1:$K$6000,0),MATCH(Assets!S$46,'Data Annex'!$K$1:$AN$1,0)),"") -> 0.8495353772 | T76: =IFERROR(INDEX('Data Annex'!$K$1:$AO$6000,MATCH(Assets!T$45&"|"&Assets!$B76,'Data Annex'!$K$1:$K$6000,0),MATCH(Assets!T$46,'Data Annex'!$K$1:$AO$1,0)),"") -> 0.8354799429 | U76: =IFERROR(INDEX('Data Annex'!$K$1:$AO$6000,MATCH(Assets!U$45&"|"&Assets!$B76,'Data Annex'!$K$1:$K$6000,0),MATCH(Assets!U$46,'Data Annex'!$K$1:$AO$1,0)),"") -> 0.1167063041 | V76: =IFERROR(INDEX('Data Annex'!$K$1:$AO$6000,MATCH(Assets!V$45&"|"&Assets!$B76,'Data Annex'!$K$1:$K$6000,0),MATCH(Assets!V$46,'Data Annex'!$K$1:$AO$1,0)),"") -> 0.1168661438 | W76: =IFERROR(INDEX('Data Annex'!$K$1:$AO$6000,MATCH(Assets!W$45&"|"&Assets!$B76,'Data Annex'!$K$1:$K$6000,0),MATCH(Assets!W$46,'Data Annex'!$K$1:$AO$1,0)),"") -> 0.1119838176 | X76: =IFERROR(INDEX('Data Annex'!$K$1:$AO$6000,MATCH(Assets!X$45&"|"&Assets!$B76,'Data Annex'!$K$1:$K$6000,0),MATCH(Assets!X$46,'Data Annex'!$K$1:$AO$1,0)),"") -> 0.1266647223 | Y76: =IFERROR(INDEX('Data Annex'!$K$1:$AO$6000,MATCH(Assets!Y$45&"|"&Assets!$B76,'Data Annex'!$K$1:$K$6000,0),MATCH(Assets!Y$46,'Data Annex'!$K$1:$AO$1,0)),"") -> 0.0513674097 | Z76: =IFERROR(INDEX('Data Annex'!$K$1:$AO$6000,MATCH(Assets!Z$45&"|"&Assets!$B76,'Data Annex'!$K$1:$K$6000,0),MATCH(Assets!Z$46,'Data Annex'!$K$1:$AO$1,0)),"") -> 0.0462493659 | AA76: =IFERROR(INDEX('Data Annex'!$K$1:$AO$6000,MATCH(Assets!AA$45&"|"&Assets!$B76,'Data Annex'!$K$1:$K$6000,0),MATCH(Assets!AA$46,'Data Annex'!$K$1:$AO$1,0)),"") -> 0.0384808052 | AB76: =IFERROR(INDEX('Data Annex'!$K$1:$AO$6000,MATCH(Assets!AB$45&"|"&Assets!$B76,'Data Annex'!$K$1:$K$6000,0),MATCH(Assets!AB$46,'Data Annex'!$K$1:$AO$1,0)),"") -> 0.0378553348
B77: RO | D77: RO | F77: =IFERROR(INDEX('Data Annex'!$K$1:$AN$6000,MATCH(Assets!F$45&"|"&Assets!$B77,'Data Annex'!$K$1:$K$6000,0),MATCH(Assets!F$46,'Data Annex'!$K$1:$AN$1,0)),"") -> 48.513647 | G77: =IFERROR(INDEX('Data Annex'!$K$1:$AN$6000,MATCH(Assets!G$45&"|"&Assets!$B77,'Data Annex'!$K$1:$K$6000,0),MATCH(Assets!G$46,'Data Annex'!$K$1:$AN$1,0)),"") -> 49.13824223 | H77: =IFERROR(INDEX('Data Annex'!$K$1:$AN$6000,MATCH(Assets!H$45&"|"&Assets!$B77,'Data Annex'!$K$1:$K$6000,0),MATCH(Assets!H$46,'Data Annex'!$K$1:$AN$1,0)),"") -> 51.95130691 | I77: =IFERROR(INDEX('Data Annex'!$K$1:$AO$6000,MATCH(Assets!I$45&"|"&Assets!$B77,'Data Annex'!$K$1:$K$6000,0),MATCH(Assets!I$46,'Data Annex'!$K$1:$AO$1,0)),"") -> 52.67667784 | J77: =IFERROR(INDEX('Data Annex'!$K$1:$AN$6000,MATCH(Assets!J$45&"|"&Assets!$B77,'Data Annex'!$K$1:$K$6000,0),MATCH(Assets!J$46,'Data Annex'!$K$1:$AN$1,0)),"") -> 47.27843191 | K77: =IFERROR(INDEX('Data Annex'!$K$1:$AN$6000,MATCH(Assets!K$45&"|"&Assets!$B77,'Data Annex'!$K$1:$K$6000,0),MATCH(Assets!K$46,'Data Annex'!$K$1:$AN$1,0)),"") -> 47.95089992 | L77: =IFERROR(INDEX('Data Annex'!$K$1:$AN$6000,MATCH(Assets!L$45&"|"&Assets!$B77,'Data Annex'!$K$1:$K$6000,0),MATCH(Assets!L$46,'Data Annex'!$K$1:$AN$1,0)),"") -> 50.75226083 | M77: =IFERROR(INDEX('Data Annex'!$K$1:$AO$6000,MATCH(Assets!M$45&"|"&Assets!$B77,'Data Annex'!$K$1:$K$6000,0),MATCH(Assets!M$46,'Data Annex'!$K$1:$AO$1,0)),"") -> 51.53215821 | N77: 0.9782727447 | O77: RO | Q77: =IFERROR(INDEX('Data Annex'!$K$1:$AN$6000,MATCH(Assets!Q$45&"|"&Assets!$B77,'Data Annex'!$K$1:$K$6000,0),MATCH(Assets!Q$46,'Data Annex'!$K$1:$AN$1,0)),"") -> 0.7760492608 | R77: =IFERROR(INDEX('Data Annex'!$K$1:$AN$6000,MATCH(Assets!R$45&"|"&Assets!$B77,'Data Annex'!$K$1:$K$6000,0),MATCH(Assets!R$46,'Data Annex'!$K$1:$AN$1,0)),"") -> 0.77264143 | S77: =IFERROR(INDEX('Data Annex'!$K$1:$AN$6000,MATCH(Assets!S$45&"|"&Assets!$B77,'Data Annex'!$K$1:$K$6000,0),MATCH(Assets!S$46,'Data Annex'!$K$1:$AN$1,0)),"") -> 0.7587139855 | T77: =IFERROR(INDEX('Data Annex'!$K$1:$AO$6000,MATCH(Assets!T$45&"|"&Assets!$B77,'Data Annex'!$K$1:$K$6000,0),MATCH(Assets!T$46,'Data Annex'!$K$1:$AO$1,0)),"") -> 0.7291249105 | U77: =IFERROR(INDEX('Data Annex'!$K$1:$AO$6000,MATCH(Assets!U$45&"|"&Assets!$B77,'Data Annex'!$K$1:$K$6000,0),MATCH(Assets!U$46,'Data Annex'!$K$1:$AO$1,0)),"") -> 0.2023029169 | V77: =IFERROR(INDEX('Data Annex'!$K$1:$AO$6000,MATCH(Assets!V$45&"|"&Assets!$B77,'Data Annex'!$K$1:$K$6000,0),MATCH(Assets!V$46,'Data Annex'!$K$1:$AO$1,0)),"") -> 0.2068212646 | W77: =IFERROR(INDEX('Data Annex'!$K$1:$AO$6000,MATCH(Assets!W$45&"|"&Assets!$B77,'Data Annex'!$K$1:$K$6000,0),MATCH(Assets!W$46,'Data Annex'!$K$1:$AO$1,0)),"") -> 0.2199991194 | X77: =IFERROR(INDEX('Data Annex'!$K$1:$AO$6000,MATCH(Assets!X$45&"|"&Assets!$B77,'Data Annex'!$K$1:$K$6000,0),MATCH(Assets!X$46,'Data Annex'!$K$1:$AO$1,0)),"") -> 0.2487595451 | Y77: =IFERROR(INDEX('Data Annex'!$K$1:$AO$6000,MATCH(Assets!Y$45&"|"&Assets!$B77,'Data Annex'!$K$1:$K$6000,0),MATCH(Assets!Y$46,'Data Annex'!$K$1:$AO$1,0)),"") -> 0.0216478223 | Z77: =IFERROR(INDEX('Data Annex'!$K$1:$AO$6000,MATCH(Assets!Z$45&"|"&Assets!$B77,'Data Annex'!$K$1:$K$6000,0),MATCH(Assets!Z$46,'Data Annex'!$K$1:$AO$1,0)),"") -> 0.0205373054 | AA77: =IFERROR(INDEX('Data Annex'!$K$1:$AO$6000,MATCH(Assets!AA$45&"|"&Assets!$B77,'Data Annex'!$K$1:$K$6000,0),MATCH(Assets!AA$46,'Data Annex'!$K$1:$AO$1,0)),"") -> 0.021286895 | AB77: =IFERROR(INDEX('Data Annex'!$K$1:$AO$6000,MATCH(Assets!AB$45&"|"&Assets!$B77,'Data Annex'!$K$1:$K$6000,0),MATCH(Assets!AB$46,'Data Annex'!$K$1:$AO$1,0)),"") -> 0.0221155443
B78: SE | D78: SE | F78: =IFERROR(INDEX('Data Annex'!$K$1:$AN$6000,MATCH(Assets!F$45&"|"&Assets!$B78,'Data Annex'!$K$1:$K$6000,0),MATCH(Assets!F$46,'Data Annex'!$K$1:$AN$1,0)),"") -> 980.1949257 | G78: =IFERROR(INDEX('Data Annex'!$K$1:$AN$6000,MATCH(Assets!G$45&"|"&Assets!$B78,'Data Annex'!$K$1:$K$6000,0),MATCH(Assets!G$46,'Data Annex'!$K$1:$AN$1,0)),"") -> 941.9134368 | H78: =IFERROR(INDEX('Data Annex'!$K$1:$AN$6000,MATCH(Assets!H$45&"|"&Assets!$B78,'Data Annex'!$K$1:$K$6000,0),MATCH(Assets!H$46,'Data Annex'!$K$1:$AN$1,0)),"") -> 939.9334633 | I78: =IFERROR(INDEX('Data Annex'!$K$1:$AO$6000,MATCH(Assets!I$45&"|"&Assets!$B78,'Data Annex'!$K$1:$K$6000,0),MATCH(Assets!I$46,'Data Annex'!$K$1:$AO$1,0)),"") -> 1013.993495 | J78: =IFERROR(INDEX('Data Annex'!$K$1:$AN$6000,MATCH(Assets!J$45&"|"&Assets!$B78,'Data Annex'!$K$1:$K$6000,0),MATCH(Assets!J$46,'Data Annex'!$K$1:$AN$1,0)),"") -> 967.9162677 | K78: =IFERROR(INDEX('Data Annex'!$K$1:$AN$6000,MATCH(Assets!K$45&"|"&Assets!$B78,'Data Annex'!$K$1:$K$6000,0),MATCH(Assets!K$46,'Data Annex'!$K$1:$AN$1,0)),"") -> 929.4621038 | L78: =IFERROR(INDEX('Data Annex'!$K$1:$AN$6000,MATCH(Assets!L$45&"|"&Assets!$B78,'Data Annex'!$K$1:$K$6000,0),MATCH(Assets!L$46,'Data Annex'!$K$1:$AN$1,0)),"") -> 925.3715487 | M78: =IFERROR(INDEX('Data Annex'!$K$1:$AO$6000,MATCH(Assets!M$45&"|"&Assets!$B78,'Data Annex'!$K$1:$K$6000,0),MATCH(Assets!M$46,'Data Annex'!$K$1:$AO$1,0)),"") -> 998.5095436 | N78: 0.984729733 | O78: SE | Q78: =IFERROR(INDEX('Data Annex'!$K$1:$AN$6000,MATCH(Assets!Q$45&"|"&Assets!$B78,'Data Annex'!$K$1:$K$6000,0),MATCH(Assets!Q$46,'Data Annex'!$K$1:$AN$1,0)),"") -> 0.8410936998 | R78: =IFERROR(INDEX('Data Annex'!$K$1:$AN$6000,MATCH(Assets!R$45&"|"&Assets!$B78,'Data Annex'!$K$1:$K$6000,0),MATCH(Assets!R$46,'Data Annex'!$K$1:$AN$1,0)),"") -> 0.8533020936 | S78: =IFERROR(INDEX('Data Annex'!$K$1:$AN$6000,MATCH(Assets!S$45&"|"&Assets!$B78,'Data Annex'!$K$1:$K$6000,0),MATCH(Assets!S$46,'Data Annex'!$K$1:$AN$1,0)),"") -> 0.8700521538 | T78: =IFERROR(INDEX('Data Annex'!$K$1:$AO$6000,MATCH(Assets!T$45&"|"&Assets!$B78,'Data Annex'!$K$1:$K$6000,0),MATCH(Assets!T$46,'Data Annex'!$K$1:$AO$1,0)),"") -> 0.8645760907 | U78: =IFERROR(INDEX('Data Annex'!$K$1:$AO$6000,MATCH(Assets!U$45&"|"&Assets!$B78,'Data Annex'!$K$1:$K$6000,0),MATCH(Assets!U$46,'Data Annex'!$K$1:$AO$1,0)),"") -> 0.00979873 | V78: =IFERROR(INDEX('Data Annex'!$K$1:$AO$6000,MATCH(Assets!V$45&"|"&Assets!$B78,'Data Annex'!$K$1:$K$6000,0),MATCH(Assets!V$46,'Data Annex'!$K$1:$AO$1,0)),"") -> 0.0100801474 | W78: =IFERROR(INDEX('Data Annex'!$K$1:$AO$6000,MATCH(Assets!W$45&"|"&Assets!$B78,'Data Annex'!$K$1:$K$6000,0),MATCH(Assets!W$46,'Data Annex'!$K$1:$AO$1,0)),"") -> 0.0110727452 | X78: =IFERROR(INDEX('Data Annex'!$K$1:$AO$6000,MATCH(Assets!X$45&"|"&Assets!$B78,'Data Annex'!$K$1:$K$6000,0),MATCH(Assets!X$46,'Data Annex'!$K$1:$AO$1,0)),"") -> 0.010438265 | Y78: =IFERROR(INDEX('Data Annex'!$K$1:$AO$6000,MATCH(Assets!Y$45&"|"&Assets!$B78,'Data Annex'!$K$1:$K$6000,0),MATCH(Assets!Y$46,'Data Annex'!$K$1:$AO$1,0)),"") -> 0.1491075702 | Z78: =IFERROR(INDEX('Data Annex'!$K$1:$AO$6000,MATCH(Assets!Z$45&"|"&Assets!$B78,'Data Annex'!$K$1:$K$6000,0),MATCH(Assets!Z$46,'Data Annex'!$K$1:$AO$1,0)),"") -> 0.136617759 | AA78: =IFERROR(INDEX('Data Annex'!$K$1:$AO$6000,MATCH(Assets!AA$45&"|"&Assets!$B78,'Data Annex'!$K$1:$K$6000,0),MATCH(Assets!AA$46,'Data Annex'!$K$1:$AO$1,0)),"") -> 0.1188751009 | AB78: =IFERROR(INDEX('Data Annex'!$K$1:$AO$6000,MATCH(Assets!AB$45&"|"&Assets!$B78,'Data Annex'!$K$1:$K$6000,0),MATCH(Assets!AB$46,'Data Annex'!$K$1:$AO$1,0)),"") -> 0.1249856443
B79: SI | D79: SI | F79: =IFERROR(INDEX('Data Annex'!$K$1:$AN$6000,MATCH(Assets!F$45&"|"&Assets!$B79,'Data Annex'!$K$1:$K$6000,0),MATCH(Assets!F$46,'Data Annex'!$K$1:$AN$1,0)),"") -> 27.4030235 | G79: =IFERROR(INDEX('Data Annex'!$K$1:$AN$6000,MATCH(Assets!G$45&"|"&Assets!$B79,'Data Annex'!$K$1:$K$6000,0),MATCH(Assets!G$46,'Data Annex'!$K$1:$AN$1,0)),"") -> 27.67413222 | H79: =IFERROR(INDEX('Data Annex'!$K$1:$AN$6000,MATCH(Assets!H$45&"|"&Assets!$B79,'Data Annex'!$K$1:$K$6000,0),MATCH(Assets!H$46,'Data Annex'!$K$1:$AN$1,0)),"") -> 32.39711546 | I79: =IFERROR(INDEX('Data Annex'!$K$1:$AO$6000,MATCH(Assets!I$45&"|"&Assets!$B79,'Data Annex'!$K$1:$K$6000,0),MATCH(Assets!I$46,'Data Annex'!$K$1:$AO$1,0)),"") -> 33.22855623 | J79: =IFERROR(INDEX('Data Annex'!$K$1:$AN$6000,MATCH(Assets!J$45&"|"&Assets!$B79,'Data Annex'!$K$1:$K$6000,0),MATCH(Assets!J$46,'Data Annex'!$K$1:$AN$1,0)),"") -> 26.70001613 | K79: =IFERROR(INDEX('Data Annex'!$K$1:$AN$6000,MATCH(Assets!K$45&"|"&Assets!$B79,'Data Annex'!$K$1:$K$6000,0),MATCH(Assets!K$46,'Data Annex'!$K$1:$AN$1,0)),"") -> 26.99202274 | L79: =IFERROR(INDEX('Data Annex'!$K$1:$AN$6000,MATCH(Assets!L$45&"|"&Assets!$B79,'Data Annex'!$K$1:$K$6000,0),MATCH(Assets!L$46,'Data Annex'!$K$1:$AN$1,0)),"") -> 31.61270542 | M79: =IFERROR(INDEX('Data Annex'!$K$1:$AO$6000,MATCH(Assets!M$45&"|"&Assets!$B79,'Data Annex'!$K$1:$K$6000,0),MATCH(Assets!M$46,'Data Annex'!$K$1:$AO$1,0)),"") -> 32.44288374 | N79: 0.9763555031 | O79: SI | Q79: =IFERROR(INDEX('Data Annex'!$K$1:$AN$6000,MATCH(Assets!Q$45&"|"&Assets!$B79,'Data Annex'!$K$1:$K$6000,0),MATCH(Assets!Q$46,'Data Annex'!$K$1:$AN$1,0)),"") -> 0.8300208526 | R79: =IFERROR(INDEX('Data Annex'!$K$1:$AN$6000,MATCH(Assets!R$45&"|"&Assets!$B79,'Data Annex'!$K$1:$K$6000,0),MATCH(Assets!R$46,'Data Annex'!$K$1:$AN$1,0)),"") -> 0.8268814403 | S79: =IFERROR(INDEX('Data Annex'!$K$1:$AN$6000,MATCH(Assets!S$45&"|"&Assets!$B79,'Data Annex'!$K$1:$K$6000,0),MATCH(Assets!S$46,'Data Annex'!$K$1:$AN$1,0)),"") -> 0.8114558947 | T79: =IFERROR(INDEX('Data Annex'!$K$1:$AO$6000,MATCH(Assets!T$45&"|"&Assets!$B79,'Data Annex'!$K$1:$K$6000,0),MATCH(Assets!T$46,'Data Annex'!$K$1:$AO$1,0)),"") -> 0.8256126494 | U79: =IFERROR(INDEX('Data Annex'!$K$1:$AO$6000,MATCH(Assets!U$45&"|"&Assets!$B79,'Data Annex'!$K$1:$K$6000,0),MATCH(Assets!U$46,'Data Annex'!$K$1:$AO$1,0)),"") -> 0.1637986256 | V79: =IFERROR(INDEX('Data Annex'!$K$1:$AO$6000,MATCH(Assets!V$45&"|"&Assets!$B79,'Data Annex'!$K$1:$K$6000,0),MATCH(Assets!V$46,'Data Annex'!$K$1:$AO$1,0)),"") -> 0.1671775565 | W79: =IFERROR(INDEX('Data Annex'!$K$1:$AO$6000,MATCH(Assets!W$45&"|"&Assets!$B79,'Data Annex'!$K$1:$K$6000,0),MATCH(Assets!W$46,'Data Annex'!$K$1:$AO$1,0)),"") -> 0.1809458826 | X79: =IFERROR(INDEX('Data Annex'!$K$1:$AO$6000,MATCH(Assets!X$45&"|"&Assets!$B79,'Data Annex'!$K$1:$K$6000,0),MATCH(Assets!X$46,'Data Annex'!$K$1:$AO$1,0)),"") -> 0.1673931093 | Y79: =IFERROR(INDEX('Data Annex'!$K$1:$AO$6000,MATCH(Assets!Y$45&"|"&Assets!$B79,'Data Annex'!$K$1:$K$6000,0),MATCH(Assets!Y$46,'Data Annex'!$K$1:$AO$1,0)),"") -> 0.0061805218 | Z79: =IFERROR(INDEX('Data Annex'!$K$1:$AO$6000,MATCH(Assets!Z$45&"|"&Assets!$B79,'Data Annex'!$K$1:$K$6000,0),MATCH(Assets!Z$46,'Data Annex'!$K$1:$AO$1,0)),"") -> 0.0059410032 | AA79: =IFERROR(INDEX('Data Annex'!$K$1:$AO$6000,MATCH(Assets!AA$45&"|"&Assets!$B79,'Data Annex'!$K$1:$K$6000,0),MATCH(Assets!AA$46,'Data Annex'!$K$1:$AO$1,0)),"") -> 0.0075982226 | AB79: =IFERROR(INDEX('Data Annex'!$K$1:$AO$6000,MATCH(Assets!AB$45&"|"&Assets!$B79,'Data Annex'!$K$1:$K$6000,0),MATCH(Assets!AB$46,'Data Annex'!$K$1:$AO$1,0)),"") -> 0.0069942413
B80: SK | D80: SK | F80: =IFERROR(INDEX('Data Annex'!$K$1:$AN$6000,MATCH(Assets!F$45&"|"&Assets!$B80,'Data Annex'!$K$1:$K$6000,0),MATCH(Assets!F$46,'Data Annex'!$K$1:$AN$1,0)),"") -> 52.76961206 | G80: =IFERROR(INDEX('Data Annex'!$K$1:$AN$6000,MATCH(Assets!G$45&"|"&Assets!$B80,'Data Annex'!$K$1:$K$6000,0),MATCH(Assets!G$46,'Data Annex'!$K$1:$AN$1,0)),"") -> 54.14568922 | H80: =IFERROR(INDEX('Data Annex'!$K$1:$AN$6000,MATCH(Assets!H$45&"|"&Assets!$B80,'Data Annex'!$K$1:$K$6000,0),MATCH(Assets!H$46,'Data Annex'!$K$1:$AN$1,0)),"") -> 55.6011076 | I80: =IFERROR(INDEX('Data Annex'!$K$1:$AO$6000,MATCH(Assets!I$45&"|"&Assets!$B80,'Data Annex'!$K$1:$K$6000,0),MATCH(Assets!I$46,'Data Annex'!$K$1:$AO$1,0)),"") -> 60.3019378 | J80: =IFERROR(INDEX('Data Annex'!$K$1:$AN$6000,MATCH(Assets!J$45&"|"&Assets!$B80,'Data Annex'!$K$1:$K$6000,0),MATCH(Assets!J$46,'Data Annex'!$K$1:$AN$1,0)),"") -> 51.77489981 | K80: =IFERROR(INDEX('Data Annex'!$K$1:$AN$6000,MATCH(Assets!K$45&"|"&Assets!$B80,'Data Annex'!$K$1:$K$6000,0),MATCH(Assets!K$46,'Data Annex'!$K$1:$AN$1,0)),"") -> 53.12974919 | L80: =IFERROR(INDEX('Data Annex'!$K$1:$AN$6000,MATCH(Assets!L$45&"|"&Assets!$B80,'Data Annex'!$K$1:$K$6000,0),MATCH(Assets!L$46,'Data Annex'!$K$1:$AN$1,0)),"") -> 54.58424617 | M80: =IFERROR(INDEX('Data Annex'!$K$1:$AO$6000,MATCH(Assets!M$45&"|"&Assets!$B80,'Data Annex'!$K$1:$K$6000,0),MATCH(Assets!M$46,'Data Annex'!$K$1:$AO$1,0)),"") -> 59.27106361 | N80: 0.9829047918 | O80: SK | Q80: =IFERROR(INDEX('Data Annex'!$K$1:$AN$6000,MATCH(Assets!Q$45&"|"&Assets!$B80,'Data Annex'!$K$1:$K$6000,0),MATCH(Assets!Q$46,'Data Annex'!$K$1:$AN$1,0)),"") -> 0.9482174247 | R80: =IFERROR(INDEX('Data Annex'!$K$1:$AN$6000,MATCH(Assets!R$45&"|"&Assets!$B80,'Data Annex'!$K$1:$K$6000,0),MATCH(Assets!R$46,'Data Annex'!$K$1:$AN$1,0)),"") -> 0.9543258737 | S80: =IFERROR(INDEX('Data Annex'!$K$1:$AN$6000,MATCH(Assets!S$45&"|"&Assets!$B80,'Data Annex'!$K$1:$K$6000,0),MATCH(Assets!S$46,'Data Annex'!$K$1:$AN$1,0)),"") -> 0.9595329835 | T80: =IFERROR(INDEX('Data Annex'!$K$1:$AO$6000,MATCH(Assets!T$45&"|"&Assets!$B80,'Data Annex'!$K$1:$K$6000,0),MATCH(Assets!T$46,'Data Annex'!$K$1:$AO$1,0)),"") -> 0.9673195727 | U80: =IFERROR(INDEX('Data Annex'!$K$1:$AO$6000,MATCH(Assets!U$45&"|"&Assets!$B80,'Data Annex'!$K$1:$K$6000,0),MATCH(Assets!U$46,'Data Annex'!$K$1:$AO$1,0)),"") -> 0.0419812895 | V80: =IFERROR(INDEX('Data Annex'!$K$1:$AO$6000,MATCH(Assets!V$45&"|"&Assets!$B80,'Data Annex'!$K$1:$K$6000,0),MATCH(Assets!V$46,'Data Annex'!$K$1:$AO$1,0)),"") -> 0.0365191766 | W80: =IFERROR(INDEX('Data Annex'!$K$1:$AO$6000,MATCH(Assets!W$45&"|"&Assets!$B80,'Data Annex'!$K$1:$K$6000,0),MATCH(Assets!W$46,'Data Annex'!$K$1:$AO$1,0)),"") -> 0.0336961339 | X80: =IFERROR(INDEX('Data Annex'!$K$1:$AO$6000,MATCH(Assets!X$45&"|"&Assets!$B80,'Data Annex'!$K$1:$K$6000,0),MATCH(Assets!X$46,'Data Annex'!$K$1:$AO$1,0)),"") -> 0.0267749737 | Y80: =IFERROR(INDEX('Data Annex'!$K$1:$AO$6000,MATCH(Assets!Y$45&"|"&Assets!$B80,'Data Annex'!$K$1:$K$6000,0),MATCH(Assets!Y$46,'Data Annex'!$K$1:$AO$1,0)),"") -> 0.0098012858 | Z80: =IFERROR(INDEX('Data Annex'!$K$1:$AO$6000,MATCH(Assets!Z$45&"|"&Assets!$B80,'Data Annex'!$K$1:$K$6000,0),MATCH(Assets!Z$46,'Data Annex'!$K$1:$AO$1,0)),"") -> 0.0091549497 | AA80: =IFERROR(INDEX('Data Annex'!$K$1:$AO$6000,MATCH(Assets!AA$45&"|"&Assets!$B80,'Data Annex'!$K$1:$K$6000,0),MATCH(Assets!AA$46,'Data Annex'!$K$1:$AO$1,0)),"") -> 0.0067708826 | AB80: =IFERROR(INDEX('Data Annex'!$K$1:$AO$6000,MATCH(Assets!AB$45&"|"&Assets!$B80,'Data Annex'!$K$1:$K$6000,0),MATCH(Assets!AB$46,'Data Annex'!$K$1:$AO$1,0)),"") -> 0.0059054536
B81: EU | D81: =+D42 -> EU/EEA | F81: =IFERROR(INDEX('Data Annex'!$K$1:$AN$6000,MATCH(Assets!F$45&"|"&Assets!$B81,'Data Annex'!$K$1:$K$6000,0),MATCH(Assets!F$46,'Data Annex'!$K$1:$AN$1,0)),"") -> 26054.12025 | G81: =IFERROR(INDEX('Data Annex'!$K$1:$AN$6000,MATCH(Assets!G$45&"|"&Assets!$B81,'Data Annex'!$K$1:$K$6000,0),MATCH(Assets!G$46,'Data Annex'!$K$1:$AN$1,0)),"") -> 25992.15865 | H81: =IFERROR(INDEX('Data Annex'!$K$1:$AN$6000,MATCH(Assets!H$45&"|"&Assets!$B81,'Data Annex'!$K$1:$K$6000,0),MATCH(Assets!H$46,'Data Annex'!$K$1:$AN$1,0)),"") -> 25638.25496 | I81: =IFERROR(INDEX('Data Annex'!$K$1:$AO$6000,MATCH(Assets!I$45&"|"&Assets!$B81,'Data Annex'!$K$1:$K$6000,0),MATCH(Assets!I$46,'Data Annex'!$K$1:$AO$1,0)),"") -> 26625.74617 | J81: =IFERROR(INDEX('Data Annex'!$K$1:$AN$6000,MATCH(Assets!J$45&"|"&Assets!$B81,'Data Annex'!$K$1:$K$6000,0),MATCH(Assets!J$46,'Data Annex'!$K$1:$AN$1,0)),"") -> 24744.37902 | K81: =IFERROR(INDEX('Data Annex'!$K$1:$AN$6000,MATCH(Assets!K$45&"|"&Assets!$B81,'Data Annex'!$K$1:$K$6000,0),MATCH(Assets!K$46,'Data Annex'!$K$1:$AN$1,0)),"") -> 24687.85035 | L81: =IFERROR(INDEX('Data Annex'!$K$1:$AN$6000,MATCH(Assets!L$45&"|"&Assets!$B81,'Data Annex'!$K$1:$K$6000,0),MATCH(Assets!L$46,'Data Annex'!$K$1:$AN$1,0)),"") -> 24052.63366 | M81: =IFERROR(INDEX('Data Annex'!$K$1:$AO$6000,MATCH(Assets!M$45&"|"&Assets!$B81,'Data Annex'!$K$1:$K$6000,0),MATCH(Assets!M$46,'Data Annex'!$K$1:$AO$1,0)),"") -> 25268.91486 | N81: 0.9490406278 | O81: =D81 -> EU/EEA | Q81: =IFERROR(INDEX('Data Annex'!$K$1:$AN$6000,MATCH(Assets!Q$45&"|"&Assets!$B81,'Data Annex'!$K$1:$K$6000,0),MATCH(Assets!Q$46,'Data Annex'!$K$1:$AN$1,0)),"") -> 0.7553696172 | R81: =IFERROR(INDEX('Data Annex'!$K$1:$AN$6000,MATCH(Assets!R$45&"|"&Assets!$B81,'Data Annex'!$K$1:$K$6000,0),MATCH(Assets!R$46,'Data Annex'!$K$1:$AN$1,0)),"") -> 0.7618567415 | S81: =IFERROR(INDEX('Data Annex'!$K$1:$AN$6000,MATCH(Assets!S$45&"|"&Assets!$B81,'Data Annex'!$K$1:$K$6000,0),MATCH(Assets!S$46,'Data Annex'!$K$1:$AN$1,0)),"") -> 0.7682386637 | T81: =IFERROR(INDEX('Data Annex'!$K$1:$AO$6000,MATCH(Assets!T$45&"|"&Assets!$B81,'Data Annex'!$K$1:$K$6000,0),MATCH(Assets!T$46,'Data Annex'!$K$1:$AO$1,0)),"") -> 0.7751882567 | U81: =IFERROR(INDEX('Data Annex'!$K$1:$AO$6000,MATCH(Assets!U$45&"|"&Assets!$B81,'Data Annex'!$K$1:$K$6000,0),MATCH(Assets!U$46,'Data Annex'!$K$1:$AO$1,0)),"") -> 0.0558221959 | V81: =IFERROR(INDEX('Data Annex'!$K$1:$AO$6000,MATCH(Assets!V$45&"|"&Assets!$B81,'Data Annex'!$K$1:$K$6000,0),MATCH(Assets!V$46,'Data Annex'!$K$1:$AO$1,0)),"") -> 0.0548756048 | W81: =IFERROR(INDEX('Data Annex'!$K$1:$AO$6000,MATCH(Assets!W$45&"|"&Assets!$B81,'Data Annex'!$K$1:$K$6000,0),MATCH(Assets!W$46,'Data Annex'!$K$1:$AO$1,0)),"") -> 0.0544355944 | X81: =IFERROR(INDEX('Data Annex'!$K$1:$AO$6000,MATCH(Assets!X$45&"|"&Assets!$B81,'Data Annex'!$K$1:$K$6000,0),MATCH(Assets!X$46,'Data Annex'!$K$1:$AO$1,0)),"") -> 0.0510146061 | Y81: =IFERROR(INDEX('Data Annex'!$K$1:$AO$6000,MATCH(Assets!Y$45&"|"&Assets!$B81,'Data Annex'!$K$1:$K$6000,0),MATCH(Assets!Y$46,'Data Annex'!$K$1:$AO$1,0)),"") -> 0.1888081869 | Z81: =IFERROR(INDEX('Data Annex'!$K$1:$AO$6000,MATCH(Assets!Z$45&"|"&Assets!$B81,'Data Annex'!$K$1:$K$6000,0),MATCH(Assets!Z$46,'Data Annex'!$K$1:$AO$1,0)),"") -> 0.1832676537 | AA81: =IFERROR(INDEX('Data Annex'!$K$1:$AO$6000,MATCH(Assets!AA$45&"|"&Assets!$B81,'Data Annex'!$K$1:$K$6000,0),MATCH(Assets!AA$46,'Data Annex'!$K$1:$AO$1,0)),"") -> 0.1773257418 | AB81: =IFERROR(INDEX('Data Annex'!$K$1:$AO$6000,MATCH(Assets!AB$45&"|"&Assets!$B81,'Data Annex'!$K$1:$K$6000,0),MATCH(Assets!AB$46,'Data Annex'!$K$1:$AO$1,0)),"") -> 0.1737971372
N83: =H42+L42+P42+T42+X42 -> 0.9490406279
D84: Individual country data includes subsidiaries, which are excluded from EU aggregate. For example, at country level the subsidiary in country X of a bank domiciled in country Y is included both in data for countries X and Y (for the latter as part of the consolidated entity). In the EU aggregate, only the consolidated entity domiciled in country Y is considered. The sample of banks is unbalanced and reviewed annually. As of Q1 2020 onwards UK banks are removed from the EU/EEA aggregate and subsidiaries of UK banks in EU member states are used instead.
D85: * To ensure confidentiality, figures by country are only disclosed if there are at least 3 institutions potentially reporting data, unless institutions provide explicit consent for the publication of country aggregates with less than 3 institutions.

Sheet Loans Composition (hidden)
E1: T20_1 | F1: T20_1 | G1: T20_1 | H1: T20_1 | I1: T20_2 | J1: T20_2 | K1: T20_2 | L1: T20_2 | M1: T20_3 | N1: T20_3 | O1: T20_3 | P1: T20_3 | Q1: T20_4 | R1: T20_4 | S1: T20_4 | T1: T20_4 | U1: T20_5 | V1: T20_5 | W1: T20_5 | X1: T20_5 | Y1: T20_6 | Z1: T20_6 | AA1: T20_6 | AB1: T20_6
A2: ='Reference Dates'!$C$8 -> 202103 | E2: =TEXT(E49,"YYYYMM")+0 -> 202006 | F2: 202009 | G2: 202012 | H2: 202103 | I2: 202006 | J2: 202009 | K2: 202012 | L2: 202103 | M2: 202006 | N2: 202009 | O2: 202012 | P2: 202103 | Q2: 202006 | R2: 202009 | S2: 202012 | T2: 202103 | U2: 202006 | V2: 202009 | W2: 202012 | X2: 202103 | Y2: 202006 | Z2: 202009 | AA2: 202012 | AB2: 202103
A3: =DATE(LEFT(A2,4),RIGHT(A2,2),1) -> 2021-03-01 | D3: Statistical Annex
D4: Loans: composition and asset quality
I7: of which: loans and advances at amortised cost - by segment (volumes) (2)
D9: Volumes bn EUR
E10: Loans and advances (1) | I10: HHs | M10: …of which mortgages | Q10: NFCs | U10: …of which SMEs | Y10: …of which CRE
E11: =EOMONTH($A$3,-9) -> 2020-06-30 | F11: =EOMONTH($A$3,-6) -> 2020-09-30 | G11: =EOMONTH($A$3,-3) -> 2020-12-31 | H11: =EOMONTH($A$3,0) -> 2021-03-31 | I11: =EOMONTH($A$3,-9) -> 2020-06-30 | J11: =EOMONTH($A$3,-6) -> 2020-09-30 | K11: =EOMONTH($A$3,-3) -> 2020-12-31 | L11: =EOMONTH($A$3,0) -> 2021-03-31 | M11: =EOMONTH($A$3,-9) -> 2020-06-30 | N11: =EOMONTH($A$3,-6) -> 2020-09-30 | O11: =EOMONTH($A$3,-3) -> 2020-12-31 | P11: =EOMONTH($A$3,0) -> 2021-03-31 | Q11: =EOMONTH($A$3,-9) -> 2020-06-30 | R11: =EOMONTH($A$3,-6) -> 2020-09-30 | S11: =EOMONTH($A$3,-3) -> 2020-12-31 | T11: =EOMONTH($A$3,0) -> 2021-03-31 | U11: =EOMONTH($A$3,-9) -> 2020-06-30 | V11: =EOMONTH($A$3,-6) -> 2020-09-30 | W11: =EOMONTH($A$3,-3) -> 2020-12-31 | X11: =EOMONTH($A$3,0) -> 2021-03-31 | Y11: =EOMONTH($A$3,-9) -> 2020-06-30 | Z11: =EOMONTH($A$3,-6) -> 2020-09-30 | AA11: =EOMONTH($A$3,-3) -> 2020-12-31 | AB11: =EOMONTH($A$3,0) -> 2021-03-31
